{"text_format":"1","workbook":"xlsx","n_sheets":18,"sheets":["Index","General Info","Financial Results","Taxonomy","1 Segment Income","2 Segment Surplus Deficit","3 Segment Assets","4 Segment Liabilities","Cash Flow Direct","Balance Sheet","Cash Flow Indirect","Impact of Audit Qualification","Financial details","Audit qualification","Related Party Transactions","SOD","OS Default on Loans & Debt Sec.","TextBlock"],"not_rendered":{"charts":0,"images":1,"macros":1,"external_links":0,"defined_names":7,"comments":0,"pivot_tables":0},"unopened":[],"bounds":{"document_bytes":16777216,"sheet_cells":100000,"rows_first":2000,"rows_last":500,"rows_between":2000,"halvings":0,"cell_chars":16384,"cell_head_chars":4096},"cells_cut":0,"cells_raw":0,"read":"whole","date_system":"1900"}

{"sheet":"Index","index":0,"n_rows":62,"n_cols":10,"rows_kept":62,"cut":false,"hidden":false,"merged":[[61,3,61,9],[20,3,20,9],[21,3,21,9],[5,4,5,8],[6,5,6,8],[7,5,7,8],[8,5,8,8],[10,5,10,8],[9,5,9,8],[13,3,13,9],[17,3,17,9],[18,3,18,9],[30,4,30,8],[31,4,31,8],[35,4,35,8],[39,4,39,8],[40,4,40,8],[41,4,41,8],[29,4,29,8],[22,3,22,9],[28,4,28,8],[37,4,37,8],[38,4,38,8],[32,4,32,8],[33,4,33,8],[34,4,34,8],[36,4,36,8],[14,3,14,9],[19,3,19,9],[23,3,23,9],[26,3,26,9],[27,4,27,8],[55,3,55,9],[44,3,44,9],[45,3,45,9],[54,3,54,9],[47,3,47,9],[48,3,48,9],[49,3,49,9],[50,3,50,9],[46,3,46,9],[51,3,51,9],[60,3,60,9],[56,3,56,9],[57,3,57,9],[58,3,58,9],[59,3,59,9]]}
[]
[]
[]
[]
[]
[null,null,null,null,"                                      XBRL Excel Utility"]
[null,null,null,null,"1.","Overview"]
[null,null,null,null,"2.","Before you begin"]
[null,null,null,null,"3.","Index"]
[null,null,null,null,"4.","Steps for filing - Integrated Filing (Finance)_Life Insurance"]
[null,null,null,null,"5.","Fill up the data in excel utility"]
[]
[]
[null,null,null,"1. Overview"]
[null,null,null,"The excel utility can be used for creating the XBRL/XML file for efiling of Integrated Filing (Finance)_Life Insurance"]
[]
[]
[null,null,null," 2.  Before you begin"]
[null,null,null,"1. The version of Microsoft Excel in your system should be Microsoft Office Excel 2007 and above."]
[null,null,null,"2. The system should have a file compression software to unzip excel utility file."]
[null,null,null,"3. Make sure that you have downloaded the latest Excel Utility from NSE Website to your local system."]
[null,null,null,"4. Make sure that you have downloaded the Chrome Browser to view report generated from Excel utility"]
[null,null,null,"5. Please enable the Macros (if disabled) as per instructions given in manual, so that all the functionalities of  Excel Utility works fine. Please first go through Enable Macro - Manual attached with zip file."]
[null,null,null,"6. Kindly use this file in local system instead of OneDrive/shared drive.\nBecause it may gives an error \"Run-time error '52' : Bad file name or number\" While clicking on textblock button if files saved on OneDrive/shared drive."]
[]
[]
[null,null,null,"3. Index "]
[null,null,null,1,"Details of general information about company",null,null,null,null,"General Info"]
[null,null,null,{"$f":"+D28+1","v":2},"Financial Results ",null,null,null,null,"Financial Result"]
[null,null,null,{"$f":"+D29+1","v":3},"Statement of Segment income",null,null,null,null,"1 Segment Income"]
[null,null,null,4,"Segment Surplus Deficit",null,null,null,null,"2 Segment Surplus Deficit "]
[null,null,null,5,"Segment Assets",null,null,null,null,"3 Segment Assets"]
[null,null,null,6,"Segment Liabilities",null,null,null,null,"4 Segment Liabilities"]
[null,null,null,7,"Balance Sheet",null,null,null,null,"Balance Sheet"]
[null,null,null,8,"Cash Flow Direct",null,null,null,null,"Cash Flow Direct"]
[null,null,null,9,"Cash Flow Indirect",null,null,null,null,"Cash Flow Indirect"]
[null,null,null,10,"Statement on Deviation or Variation for proceeds of Public Issue, Rights Issue, Preferential Issue, Qualified Institutions Placement Etc.",null,null,null,null,"SOD"]
[null,null,null,11,"Format for Disclosing Outstanding Default on Loans and Debt Securities",null,null,null,null,"OS Default on Loans & Debt Sec."]
[null,null,null,12,"Format for Disclosure of Related Party Transactions",null,null,null,null,"Related Party Transactions"]
[null,null,null,13,"Details of Impact of Audit Qualification",null,null,null,null,"Impact of Audit Qualification"]
[null,null,null,14,"Financial details",null,null,null,null,"Financial details"]
[null,null,null,15,"Audit qualification",null,null,null,null,"Audit qualification"]
[]
[]
[null,null,null,"4. Steps for Filing Integrated Filing (Finance)_Life Insurance"]
[null,null,null,"I.  Fill up the data: Navigate to each field of every section in the sheet to provide applicable data in correct format.  (Formats will get reflected while Filling data.)  \n   - Use paste special command to paste data from other sheet.\n   - Use \"Home\" button (cntrl + H) to toggle between the sheets."]
[null,null,null,"II. Validating Sheets:  Click on the ''Validate \"  button to ensure that the sheet has been properly filled and also data has been furnished in proper format. If there are some errors on the sheet, excel utility will prompt you about the same."]
[null,null,null,"III. Validate All Sheets:  Click on the ''Home\"  button. And then click on \"Validate All Sheet\" button to ensure that all sheets has been properly filled and validated successfully. If there are some errors on the sheet, excel utility will prompt you about the same and stop validation at the same time. After correction, once again follow the same procedure to validate all sheets."]
[null,null,null,"Excel Utility will not allow you to generate XBRL/XML until you rectify all errors. "]
[null,null,null,"IV. Generate XML :   Excel Utility will not allow you to generate XBRL/XML unless successful validation of all sheet is completed. Now click on 'Generate XML'' to generate XBRL/XML file. \n    - Save the XBRL/XML file in your desired folder in local system. "]
[null,null,null,"V. Generate Report :   Excel Utility will allow you to generate Report. Now click on 'Generate Report'' to generate html report.   \n     - Save the HTML Report file in your desired folder in local system.     \n     - To view HTML Report open \"Chrome Web Browser\" . \n     - To print report in PDF Format, Click on print button and save as PDF. "]
[null,null,null,"VI. Upload XML file to NSE Listing Center: For uploading the XBRL/XML file generated through  Utility, login to NSE Listing Center and upload generated xml file. On Upload screen provide the required information and browse to select XML file and submit the XML."]
[]
[]
[null,null,null,"5. Fill up the data in excel utility"]
[null,null,null,"1. Cells with red fonts indicate mandatory fields. "]
[null,null,null,"2. If mandatory field is left empty, then Utility will not allow you to proceed further for generating XML."]
[null,null,null,"3. You are not allowed to enter data in the Grey Cells."]
[null,null,null,"4. If fields are not applicable to your company then leave it blank. Do not insert Zero unless it is a mandatory field."]
[null,null,null,"5. Data provided must be in correct format, otherwise Utility will not allow you to proceed further for generating XML."]
[null,null,null,"6. Select data from \"Dropdown list\" wherever applicable. "]
[null,null,null,"7. Adding Notes:  Click on \"Add Text Block\" button to add notes "]

{"sheet":"General Info","index":1,"n_rows":71,"n_cols":26,"rows_kept":71,"cut":false,"hidden":false,"merged":[[25,5,25,7],[20,5,24,7],[44,5,44,7],[7,3,7,7]]}
[0,null,null,null,null,null,null,null,null,null,null,null,null,null,null,"Quarterly",null,"SME","Main Board",null,null,null,"1"]
[null,null,null,null,null,null,null,null,null,null,null,null,null,null,null,"Half Yearly",null,null,null,null,null,null,"2"]
[null,null,null,null,null,null,null,null,"General Insurance Format","Life Insurance Format",null,null,null,null,null,null,"Standalone","Actual","Single segment",null,"Declaration of unmodified opinion",null,"3",null,"Fourth quarter","Fourth quarter"]
[null,null,null,null,null,null,null,null,null,null,null,null,null,null,null,null,"Consolidated","Thousands","Multi segment",null,"Statement on impact of audit qualification",null,"4",null,"Yearly","Fifth quarter"]
[null,null,null,null,null,null,null,null,null,null,null,null,null,null,null,null,null,"Lakhs","Geographical","First quarter","Not applicable",null,"5",null,null,"Yearly"]
[null,null,null,null,null,null,null,null,null,null,null,null,null,null,null,null,"Audited","Millions",null,"Second quarter",null,null,"6"]
[null,null,null,null,null,null,null,"                *Validate General Information to open other sheets",null,null,null,null,null,null,null,null,"Unaudited","Billions",null,"Third quarter",null,null,"7"]
[null,null,null,"General information about company",null,null,null,null,null,null,null,"Linked Policy","Non-Linked Policy","Non-Linked Policy And Linked Policy",null,null,"Yes","Crores",null,"Fourth quarter",null,null,"8",null,null,"Equity"]
[null,null,null,"Scrip code*",null,null,null,null,null,null,null,"Scrip code*",null,null,null,null,"No",null,null,"Half yearly",null,null,"9",null,null,"Debt securities and/or non-cumulative redeemable preference shares"]
[null,null,null,"NSE Symbol*",null,null,null,null,null,null,null,"NSE Symbol*",null,null,null,null,null,null,null,"Yearly",null,null,"10"]
[null,null,null,"MSEI Symbol*",null,null,null,null,null,null,null,"MSEI Symbol*",null,null,null,null,"00","00"]
[null,null,null,"ISIN*",null,null,null,null,null,null,null,"ISIN*",null,null,null,null,"01","01","2014"]
[null,null,null,"Name of company",null,null,null,null,null,null,null,"Name of company",null,null,null,null,"02","02","2015"]
[null,null,null,"Type of company",null,null,null,null,null,null,null,"Type of company",null,null,null,null,"03","03","2016","01","12"]
[null,null,null,"Class of security","Equity",null,null,null,null,null,null,"Class of security",null,null,null,null,"04","04",2017,"04","03",null,null,null,null,15]
[null,null,null,"Type Of Insurance",null,null,null,null,null,null,null,"Type Of Insurance",null,null,null,null,"05","05",2018,"07","06"]
[null,null,null,"Date of start of financial year","01",null,null,null,null,null,null,"Date of start of financial year",null,null,null,null,"06","06",2019,"10","09"]
[null,null,null,"Date of end of financial year",{"$f":"IF(F18=\"\",\"\",IF(OR(VALUE(F18)=12,VALUE(F18)=3,VALUE(F18)=1,VALUE(F18)=5,VALUE(F18)=7,VALUE(F18)=8,VALUE(F18)=10),31,30))","v":""},{"$f":"IF(F17=\"\",\"\",IF(G17=\"\",\"\",VLOOKUP(F17,T13:U17,2,0)))","v":""},{"$f":"IF(F17=\"\",\"\",IF(G17=\"\",\"\",IF(VALUE(F17)=1,G17,G17+1)))","v":""},null,null,null,null,"Date of end of financial year",null,null,null,null,"07","07",2020]
[null,null,null,"Date of board meeting when results were approved",null,null,null,null,null,null,null,"Date of board meeting when results were approved",null,null,null,null,"08","08",2021,"03"]
[null,null,null,"Date on which prior intimation of the meeting for considering financial results was informed to the exchange",null,null,null,null,null,null,null,"Date on which prior intimation of the meeting for considering financial results was informed to the exchange",null,null,null,null,"09","09",2022]
[null,null,null,"Description of presentation currency","INR",null,null,null,null,null,null,"Description of presentation currency",null,null,null,null,"10","10",2023]
[null,null,null,"Level of rounding",null,null,null,null,null,"Yes",null,"Level of rounding",null,null,null,null,"11","11",2024,null,"STD"]
[null,null,null,"Reporting Type",null,null,null,null,null,"No",null,"Reporting Type",null,null,null,null,"12","12",2025,null,"dd","mm","yyyy"]
[null,null,null,"Reporting Quarter",null,null,null,null,null,"NA",null,"Reporting Quarter",null,null,null,null,"13",null,2026,"First quarter",{"$f":"VALUE(E17)","v":1},{"$f":"VALUE(F17)","v":0},{"$f":"VALUE(G17)","v":0}]
[null,null,null,"Nature of report standalone or consolidated",null,null,null,null,null,null,null,"Nature of report standalone or consolidated",null,null,null,null,"14",null,2027,"Second quarter",1,{"$f":"+IF(OR(V24=1,V24=4,V24=7,V24=10),IF(V24+3>=13,1,V24+3),IF(OR(V24=2,V24=3),4,IF(OR(V24=5,V24=6),7,IF(OR(V24=8,V24=9),10,IF(OR(V24=11,V24=12),1)))))","v":false},{"$f":"+IF(V25<=1,W24+1,W24)","v":0}]
[null,null,null,"Whether results are audited or unaudited for the quarter ended",null,"For Current Quarter Only",null,null,null,"Cash Flow Direct",null,"Whether results are audited or unaudited for the quarter ended",null,null,null,null,"15",null,null,"Third quarter",{"$f":"+U25","v":1},{"$f":"+IF(V25+3>=13,1,V25+3)","v":3},{"$f":"+IF(V26<=1,W25+1,W25)","v":0}]
[null,null,null,"Whether results are audited or unaudited for the Year to date for current period ended/year ended",null,null,null,null,null,"Cash Flow Indirect",null,"Whether results are audited or unaudited for the Year to date for current period ended/year ended",null,null,null,null,"16",null,null,"Fourth quarter",{"$f":"+U26","v":1},{"$f":"+IF(V26+3>=13,1,V26+3)","v":6},{"$f":"+IF(V27<=1,W26+1,W26)","v":0}]
[null,null,null,"Start date and time of board meeting",null,null,null,"Date:HH:MM",null,null,null,"Start date and time of board meeting",null,null,null,null,"17",null,null,null,"EDT",null,null,null,null,"Start date of board meeting"]
[null,null,null,"End date and time of board meeting",null,null,null,"Date:HH:MM",null,null,null,"End date and time of board meeting",null,null,null,null,"18",null,null,"First quarter",{"$f":"IF(OR(V29=12,V29=3,V29=1,V29=5,V29=7,V29=8,V29=10),31,30)","v":30},{"$f":"+IF(OR(V24=1,V24=4,V24=7,V24=10),IF(V24+3>=13,13,V24+3),IF(OR(V24=2,V24=3),4,IF(OR(V24=5,V24=6),7,IF(OR(V24=8,V24=9),10,IF(OR(V24=11,V24=12),1)))))-1","v":-1},{"$f":"+IF((+V24+2)>12,W24+1,W24)","v":0},null,null,"End date of board meeting"]
[null,null,null,"Whether cash flow statement is applicable on company","",null,null,null,null,null,null,"Whether cash flow statement is applicable on company",null,null,null,null,19,null,null,"Second quarter",{"$f":"IF(OR(V30=12,V30=3,V30=1,V30=5,V30=7,V30=8,V30=10),31,30)","v":30},{"$f":"+V25+2","v":2},{"$f":"+IF((V25+2)>12,W25+1,W25)","v":0}]
[null,null,null,"Type of cash flow statement ",null,null,null,null,null,null,null,"Type of cash flow statement",null,null,null,null,"20",null,null,"Third quarter",{"$f":"IF(OR(V31=12,V31=3,V31=1,V31=5,V31=7,V31=8,V31=10),31,30)","v":31},{"$f":"+V26+2","v":5},{"$f":"+IF((V26+2)>12,W26+1,W26)","v":0}]
[null,null,null,"Declaration of unmodified opinion or statement on impact of audit qualification",null,null,null,null,null,null,null,"Declaration of unmodified opinion or statement on impact of audit qualification",null,null,null,null,"21",null,null,"Fourth quarter",{"$f":"IF(OR(V32=12,V32=3,V32=1,V32=5,V32=7,V32=8,V32=10),31,30)","v":31},{"$f":"+V27+2","v":8},{"$f":"+IF((V27+2)>12,W27+1,W27)","v":0}]
[null,null,null,"Whether the company has any related party?",null,null,null,null,null,null,null,"Whether the company has any related party?",null,null,null,null,"22"]
[null,null,null,"Whether the company has entered into any Related Party transaction during the selected half year for which it wants to submit disclosure?",null,null,null,null,null,null,null,"Whether the company has entered into any Related Party transaction during the selected half year for which it wants to submit disclosure?",null,null,null,null,"23"]
[null,null,null,"(I) We declare that the acceptance of fixed deposits by the bans/Non-Banking Finance Company are at the terms uniformly applicable/offered to all shareholders/public",null,null,null,null,null,null,null,"(I) We declare that the acceptance of fixed deposits by the bans/Non-Banking Finance Company are at the terms uniformly applicable/offered to all shareholders/public",null,null,null,null,"24"]
[null,null,null,"(II) We declare that the scheduled commercial bank, as per RBI circular RBI/DBR/2015-16/19 dated March 03, 2016, has allowed additional interest of one per cent per annum, over and above the rate of interest mentioned in the schedule of interest rates on savings or a term deposits of bank’s staff and their exclusive associations as well as on deposits of Chairman, Chairman & Managing Director, Executive Director or such other Executives appointed for a fixed tenure.",null,null,null,null,null,null,null,"(II) We declare that the scheduled commercial bank, as per RBI circular RBI/DBR/2015-16/19 dated March 03, 2016, has allowed additional interest of one per cent per annum, over and above the rate of interest mentioned in the schedule of interest rates on savings or a term deposits of bank’s staff and their exclusive associations as well as on deposits of Chairman, Chairman & Managing Director, Executive Director or such other Executives appointed for a fixed tenure.",null,null,null,null,"25"]
[null,null,null,"(III) Whether the company is a ‘high value debt listed entity’ according to regulation 15 (1A)?",null,null,null,null,null,null,null,"(III) Whether the company is a ‘high value debt listed entity’ according to regulation 15 (1A)?",null,null,null,null,"26"]
[null,null,null,"(a) If answer to above question is Yes, whether complying with proviso to regulation 23 (9), i.e., submitting RPT disclosures on the day of results publication?",null,null,null,null,null,null,null,"(a) If answer to above question is Yes, whether complying with proviso to regulation 23 (9), i.e., submitting RPT disclosures on the day of results publication?",null,null,null,null,"27"]
[null,null,null,"(b) If answer to above question is No, please explain the reason for not complying.",null,null,null,null,null,null,null,"(b) If answer to above question is No, please explain the reason for not complying.",null,null,null,null,"28"]
[null,null,null,"Whether the updated Related Party Transactions (RPT) Policy (in compliance with Reg. 23 of SEBI LODR) has been uploaded on the website of the Company?",null,null,null,null,null,null,null,"Whether the updated Related Party Transactions (RPT) Policy (in compliance with Reg. 23 of SEBI LODR) has been uploaded on the website of the Company?",null,null,null,null,"29"]
[null,null,null,"Latest Date on which RPT policy is updated",null,null,null,null,null,null,null,"Latest Date on which RPT policy is updated",null,null,null,null,"30"]
[null,null,null,"Indicate Company website link for updated RPT policy of the Company",null,null,null,null,null,null,null,"Indicate Company website link for updated RPT policy of the Company",null,null,null,null,"31"]
[null,null,null,"Whether statement on deviation or variation for proceeds of public issue, rights issue, preferential issue, qualified institutions placement etc. is applicable to the company for the current quarter?",null,null,null,null,null,null,null,"Whether statement on deviation or variation for proceeds of public issue, rights issue, preferential issue, qualified institutions placement etc. is applicable to the company for the current quarter?",null,null,null,null,"32"]
[null,null,null,"No. of times funds raised during the quarter",null,null,null,null,null,null,null,"No. of times funds raised during the quarter",null,null,null,null,"33"]
[null,null,null,"Whether the disclosure for the Default on Loans and Debt Securities is applicable to the entity?",null,null,null,null,{"$f":"IF($E$45=\"No\",\"<<< Notes mandatory, if Not Applicable\",\"\")","v":""},null,null,"Whether the disclosure for the Default on Loans and Debt Securities is applicable to the entity?",null,null,null,null,"34",null,null,null,null,null,null,null,null,"Notes for Whether the disclosure for the Default on Loans and Debt Securities is applicable to the entity"]
[null,null,null,null,null,null,null,null,null,null,null,null,null,null,null,null,"35"]
[null,null,null,null,null,null,null,null,null,null,null,null,null,null,null,null,"36"]
[null,null,null,null,null,null,null,null,null,null,null,null,null,null,null,null,"37"]
[null,null,null,null,null,null,null,null,null,null,null,null,null,null,null,null,"38"]
[null,null,null,null,null,null,null,null,null,null,null,null,null,null,null,null,"39"]
[null,null,null,null,null,null,null,null,null,null,null,null,null,null,null,null,"40"]
[null,null,null,null,null,null,null,null,null,null,null,null,null,null,null,null,"41"]
[null,null,null,null,null,null,null,null,null,null,null,null,null,null,null,null,"42"]
[null,null,null,null,null,null,null,null,null,null,null,null,null,null,null,null,"43"]
[null,null,null,null,null,null,null,null,null,null,null,null,null,null,null,null,"44"]
[null,null,null,null,null,null,null,null,null,null,null,null,null,null,null,null,"45"]
[null,null,null,null,null,null,null,null,null,null,null,null,null,null,null,null,"46"]
[null,null,null,null,null,null,null,null,null,null,null,null,null,null,null,null,"47"]
[null,null,null,null,null,null,null,null,null,null,null,null,null,null,null,null,"48"]
[null,null,null,null,null,null,null,null,null,null,null,null,null,null,null,null,"49"]
[null,null,null,null,null,null,null,null,null,null,null,null,null,null,null,null,"50"]
[null,null,null,null,null,null,null,null,null,null,null,null,null,null,null,null,"51"]
[null,null,null,null,null,null,null,null,null,null,null,null,null,null,null,null,"52"]
[null,null,null,null,null,null,null,null,null,null,null,null,null,null,null,null,"53"]
[null,null,null,null,null,null,null,null,null,null,null,null,null,null,null,null,"54"]
[null,null,null,null,null,null,null,null,null,null,null,null,null,null,null,null,"55"]
[null,null,null,null,null,null,null,null,null,null,null,null,null,null,null,null,"56"]
[null,null,null,null,null,null,null,null,null,null,null,null,null,null,null,null,"57"]
[null,null,null,null,null,null,null,null,null,null,null,null,null,null,null,null,"58"]
[null,null,null,null,null,null,null,null,null,null,null,null,null,null,null,null,"59"]
[null,null,null,null,null,null,null,null,null,null,null,null,null,null,null,null,"60"]

{"sheet":"Financial Results","index":2,"n_rows":207,"n_cols":19,"rows_kept":207,"cut":false,"hidden":false,"merged":[[8,5,8,6],[9,5,9,6],[10,5,10,6],[11,5,11,6],[182,7,182,8],[82,5,82,6],[82,7,82,8],[83,7,83,8],[85,7,85,8],[35,7,35,8],[42,7,42,8],[46,7,46,8],[72,7,72,8],[75,7,75,8],[187,7,187,8],[87,7,87,8],[101,7,101,8],[114,7,114,8],[122,7,122,8],[130,7,130,8],[167,7,167,8],[166,5,166,8],[137,7,137,8],[6,5,6,8],[7,5,7,6],[190,7,190,8],[196,7,196,8],[200,5,200,6],[200,7,200,8],[134,7,134,8],[123,7,123,8],[63,7,63,8],[14,7,14,8],[12,5,12,6],[12,7,12,8],[13,7,13,8],[36,7,36,8],[117,7,117,8],[21,7,21,8]]}
[]
[]
[]
[null,null,null,null,null,null,null,null,null,null,"Audited","Unaudited"]
[]
[null,null,null,null,null,null,null,null,{"$f":"IF('General Info'!E22=\"\",\"\",\"Amount in (\"&'General Info'!E22&\")\")","v":""}]
[null,null,null,null,null,"Format for financial results by life insurance companies filed with stock exchanges"]
[null,null,null,null,null,"Partiuclars",null,"Current Quarter","Year to Date Figures",null,null,"SubmissionOfFinancialResultsByLifeInsuranceCompaniesFiledWithStockExchangesAbstract"]
[null,null,null,null,null,"Date of start of reporting period",null,{"$f":"IF('General Info'!E18=\"\",\"\",IF('General Info'!F18=\"\",\"\",IF(OR('General Info'!$E$24='General Info'!T24,'General Info'!$E$24='General Info'!T9),IF(LEN('General Info'!U24)>1,'General Info'!U24,\"0\"&'General Info'!U24)&\"-\"&IF(LEN('General Info'!V24)>1,'General Info'!V24,\"0\"&'General Info'!V24)&\"-\"&IF(LEN('General Info'!W24)>1,'General Info'!W24,\"0\"&'General Info'!W24),\"\")&IF('General Info'!$E$24='General Info'!T25,IF(LEN('General Info'!U25)>1,'General Info'!U25,\"0\"&'General Info'!U25)&\"-\"&IF(LEN('General Info'!V25)>1,'General Info'!V25,\"0\"&'General Info'!V25)&\"-\"&IF(LEN('General Info'!W25)>1,'General Info'!W24,\"0\"&'General Info'!W25),\"\")&IF(OR('General Info'!$E$24='General Info'!T26,'General Info'!$E$24='General Info'!T10),IF(LEN('General Info'!U26)>1,'General Info'!U26,\"0\"&'General Info'!U26)&\"-\"&IF(LEN('General Info'!V26)>1,'General Info'!V26,\"0\"&'General Info'!V26)&\"-\"&IF(LEN('General Info'!W26)>1,'General Info'!W26,\"0\"&'General Info'!W26),\"\")&IF('General Info'!$E$24='General Info'!T27,IF(LEN('General Info'!U27)>1,'General Info'!U27,\"0\"&'General Info'!U27)&\"-\"&IF(LEN('General Info'!V27)>1,'General Info'!V27,\"0\"&'General Info'!V27)&\"-\"&IF(LEN('General Info'!W27)>1,'General Info'!W27,\"0\"&'General Info'!W27),\"\")))","v":""},{"$f":"IF('General Info'!E24=\"\",\"\",IF('General Info'!F17=\"\",\"\",IF('General Info'!G17=\"\",\"\",'General Info'!E17&\"-\"&'General Info'!F17&\"-\"&'General Info'!G17)))","v":""},null,null,"DateOfStartOfReportingPeriod"]
[null,null,null,null,null,"Date of end of reporting period",null,{"$f":"IF('General Info'!E18=\"\",\"\",IF('General Info'!F18=\"\",\"\",IF('General Info'!$E$24='General Info'!T24,IF(LEN('General Info'!U29)>1,'General Info'!U29,\"0\"&'General Info'!U29)&\"-\"&IF(LEN('General Info'!V29)>1,'General Info'!V29,\"0\"&'General Info'!V29)&\"-\"&IF(LEN('General Info'!W29)>1,'General Info'!W29,\"0\"&'General Info'!W29),\"\")&IF(OR('General Info'!$E$24='General Info'!T25,'General Info'!$E$24='General Info'!T9),IF(LEN('General Info'!U30)>1,'General Info'!U30,\"0\"&'General Info'!U30)&\"-\"&IF(LEN('General Info'!V30)>1,'General Info'!V30,\"0\"&'General Info'!V30)&\"-\"&IF(LEN('General Info'!W30)>1,'General Info'!W30,\"0\"&'General Info'!W30),\"\")&IF('General Info'!$E$24='General Info'!T26,IF(LEN('General Info'!U31)>1,'General Info'!U31,\"0\"&'General Info'!U31)&\"-\"&IF(LEN('General Info'!V31)>1,'General Info'!V31,\"0\"&'General Info'!V31)&\"-\"&IF(LEN('General Info'!W31)>1,'General Info'!W31,\"0\"&'General Info'!W31),\"\")&IF(OR('General Info'!$E$24='General Info'!T27,'General Info'!$E$24='General Info'!T10),IF(LEN('General Info'!U32)>1,'General Info'!U32,\"0\"&'General Info'!U32)&\"-\"&IF(LEN('General Info'!V32)>1,'General Info'!V32,\"0\"&'General Info'!V32)&\"-\"&IF(LEN('General Info'!W32)>1,'General Info'!W32,\"0\"&'General Info'!W32),\"\")))","v":""},{"$f":"IF('General Info'!E18=\"\",\"\",IF('General Info'!F18=\"\",\"\",IF('General Info'!$E$24='General Info'!T24,IF(LEN('General Info'!U29)>1,'General Info'!U29,\"0\"&'General Info'!U29)&\"-\"&IF(LEN('General Info'!V29)>1,'General Info'!V29,\"0\"&'General Info'!V29)&\"-\"&IF(LEN('General Info'!W29)>1,'General Info'!W29,\"0\"&'General Info'!W29),\"\")&IF(OR('General Info'!$E$24='General Info'!T25,'General Info'!$E$24='General Info'!T9),IF(LEN('General Info'!U30)>1,'General Info'!U30,\"0\"&'General Info'!U30)&\"-\"&IF(LEN('General Info'!V30)>1,'General Info'!V30,\"0\"&'General Info'!V30)&\"-\"&IF(LEN('General Info'!W30)>1,'General Info'!W30,\"0\"&'General Info'!W30),\"\")&IF('General Info'!$E$24='General Info'!T26,IF(LEN('General Info'!U31)>1,'General Info'!U31,\"0\"&'General Info'!U31)&\"-\"&IF(LEN('General Info'!V31)>1,'General Info'!V31,\"0\"&'General Info'!V31)&\"-\"&IF(LEN('General Info'!W31)>1,'General Info'!W31,\"0\"&'General Info'!W31),\"\")&IF(OR('General Info'!$E$24='General Info'!T27,'General Info'!$E$24='General Info'!T10),IF(LEN('General Info'!U32)>1,'General Info'!U32,\"0\"&'General Info'!U32)&\"-\"&IF(LEN('General Info'!V32)>1,'General Info'!V32,\"0\"&'General Info'!V32)&\"-\"&IF(LEN('General Info'!W32)>1,'General Info'!W32,\"0\"&'General Info'!W32),\"\")))","v":""},null,null,"DateOfEndOfReportingPeriod"]
[null,null,null,null,null,"Whether results are audited or unaudited",null,{"$f":"+IF(COUNTA('General Info'!E26),'General Info'!E26,\"\")","v":""},{"$f":"+IF(COUNTA('General Info'!E27),'General Info'!E27,H11)","v":""},null,null,"WhetherResultsAreAuditedOrUnaudited"]
[null,null,null,null,null,"Nature of report standalone or consolidated",null,{"$f":"+IF(COUNTA('General Info'!E25),'General Info'!E25,\"\")","v":""},{"$f":"+IF(COUNTA('General Info'!E25),'General Info'!E25,\"\")","v":""},null,null,"Nature of report standalone or consolidated"]
[null,null,null,null,null,"Policyholders’ Accounts",null,null,null,null,null,"PolicyholdersAccountAbstract"]
[null,null,null,null,null,1,"Income",null,null,null,null,"IncomeAbstract"]
[null,null,null,null,null,"(i)","Gross premium income ",null,null,null,null,"GrossPremiumIncomeAbstract"]
[null,null,null,null,null," (a) ","First Year Premium",null,null,null,null,"IncomeFirstYearPremium",null,null,null,null,null,null,{"$f":"IF(COUNTA('Financial Results'!H16),'Financial Results'!H16,\"\")","v":""}]
[null,null,null,null,null,"(b)","Renewal Premium",null,null,null,null,"IncomeRenewalPremium",null,null,null,null,null,null,{"$f":"IF(COUNTA('Financial Results'!H17),'Financial Results'!H17,\"\")","v":""}]
[null,null,null,null,null,"(c) ","Single Premium",null,null,null,null,"IncomeSinglePremium",null,null,null,null,null,null,{"$f":"IF(COUNTA('Financial Results'!H18),'Financial Results'!H18,\"\")","v":""}]
[null,null,null,null,null,null,"Gross premium income",{"$f":"+IF(COUNT(H16:H18),+ROUND(SUM(H16:H18),2),\"\")","v":""},{"$f":"+IF(COUNT(I16:I18),+ROUND(SUM(I16:I18),2),\"\")","v":""},null,null,"GrossPremiumIncome",null,null,null,null,null,null,{"$f":"IF(COUNTA('Financial Results'!H19),'Financial Results'!H19,\"\")","v":""}]
[null,null,null,null,null,"(ii)","Net premium income",null,null,null,null,"NetPremiumIncome",null,null,null,null,null,null,{"$f":"IF(COUNTA('Financial Results'!H20),'Financial Results'!H20,\"\")","v":""}]
[null,null,null,null,null,"(iii)","Income from investments (Net) ",null,null,null,null,"IncomeFromInvestmentsNet",null,null,null,null,null,null,{"$f":"IF(COUNTA('Financial Results'!H21),'Financial Results'!H21,\"\")","v":""}]
[null,null,null,null,null,"(iv)","Other income",null,null,null,null,"PolicyholdersAccountOtherIncome",null,null,null,null,null,null,{"$f":"IF(COUNTA('Financial Results'!H22),'Financial Results'!H22,\"\")","v":""}]
[null,null,null,null,null,"i",null,null,null,null,null,"PolicyholdersAccountOtherIncome1Member",null,null,null,null,null,null,{"$f":"IF(COUNTA('Financial Results'!H23),'Financial Results'!H23,\"\")","v":""}]
[null,null,null,null,null,"ii",null,null,null,null,null,"PolicyholdersAccountOtherIncome2Member",null,null,null,null,null,null,{"$f":"IF(COUNTA('Financial Results'!H24),'Financial Results'!H24,\"\")","v":""}]
[null,null,null,null,null,"iii",null,null,null,null,null,"PolicyholdersAccountOtherIncome3Member",null,null,null,null,null,null,{"$f":"IF(COUNTA('Financial Results'!H25),'Financial Results'!H25,\"\")","v":""}]
[null,null,null,null,null,"iv",null,null,null,null,null,"PolicyholdersAccountOtherIncome4Member",null,null,null,null,null,null,{"$f":"IF(COUNTA('Financial Results'!H26),'Financial Results'!H26,\"\")","v":""}]
[null,null,null,null,null,"v",null,null,null,null,null,"PolicyholdersAccountOtherIncome5Member",null,null,null,null,null,null,{"$f":"IF(COUNTA('Financial Results'!H27),'Financial Results'!H27,\"\")","v":""}]
[null,null,null,null,null,"vi",null,null,null,null,null,"PolicyholdersAccountOtherIncome6Member",null,null,null,null,null,null,{"$f":"IF(COUNTA('Financial Results'!H28),'Financial Results'!H28,\"\")","v":""}]
[null,null,null,null,null,"vii",null,null,null,null,null,"PolicyholdersAccountOtherIncome7Member",null,null,null,null,null,null,{"$f":"IF(COUNTA('Financial Results'!H29),'Financial Results'!H29,\"\")","v":""}]
[null,null,null,null,null,"viii",null,null,null,null,null,"PolicyholdersAccountOtherIncome8Member",null,null,null,null,null,null,{"$f":"IF(COUNTA('Financial Results'!H30),'Financial Results'!H30,\"\")","v":""}]
[null,null,null,null,null,"ix",null,null,null,null,null,"PolicyholdersAccountOtherIncome9Member",null,null,null,null,null,null,{"$f":"IF(COUNTA('Financial Results'!H31),'Financial Results'!H31,\"\")","v":""}]
[null,null,null,null,null,"x",null,null,null,null,null,"PolicyholdersAccountOtherIncome10Member",null,null,null,null,null,null,{"$f":"IF(COUNTA('Financial Results'!H32),'Financial Results'!H32,\"\")","v":""}]
[null,null,null,null,null,null,"Total other income",{"$f":"+IF(COUNT(H23:H32),+ROUND(SUM(H23:H32),2),\"\")","v":""},{"$f":"+IF(COUNT(I23:I32),+ROUND(SUM(I23:I32),2),\"\")","v":""},null,null,"PolicyholdersAccountOtherIncome",null,null,null,null,null,null,{"$f":"IF(COUNTA('Financial Results'!H33),'Financial Results'!H33,\"\")","v":""}]
[null,null,null,null,null,"(v)","Transfer Of Funds From Shareholders Account",null,null,null,null,"TransferOfFundsFromShareholdersAccount",null,null,null,null,null,null,{"$f":"IF(COUNTA('Financial Results'!H34),'Financial Results'!H34,\"\")","v":""}]
[null,null,null,null,null,"(vi)","Total Income",{"$f":"+IF(COUNT(H33:H34,H20:H21),+ROUND(SUM(H20:H21,H33,H34),2),\"\")","v":""},{"$f":"+IF(COUNT(I33:I34,I20:I21),+ROUND(SUM(I20:I21,I33,I34),2),\"\")","v":""},null,null,"Income",null,null,null,null,null,null,{"$f":"IF(COUNTA('Financial Results'!H35),'Financial Results'!H35,\"\")","v":""}]
[null,null,null,null,null,2,"Expenses",null,null,null,null,"ExpensesAbstract",null,null,null,null,null,null,{"$f":"IF(COUNTA('Financial Results'!H36),'Financial Results'!H36,\"\")","v":""}]
[null,null,null,null,null,"(i)","Commission on",null,null,null,null,"CommissionAbstract",null,null,null,null,null,null,{"$f":"IF(COUNTA('Financial Results'!H37),'Financial Results'!H37,\"\")","v":""}]
[null,null,null,null,null," (a) ","First Year Premium ",null,null,null,null,"CommissionFirstYearPremium",null,null,null,null,null,null,{"$f":"IF(COUNTA('Financial Results'!H38),'Financial Results'!H38,\"\")","v":""}]
[null,null,null,null,null,"(b)","Renewal Premium",null,null,null,null,"CommissionRenewalPremium",null,null,null,null,null,null,{"$f":"IF(COUNTA('Financial Results'!H39),'Financial Results'!H39,\"\")","v":""}]
[null,null,null,null,null,"(c) ","Single Premium",null,null,null,null,"CommissionSinglePremium",null,null,null,null,null,null,{"$f":"IF(COUNTA('Financial Results'!H40),'Financial Results'!H40,\"\")","v":""}]
[null,null,null,null,null,null,"Total Commission",{"$f":"+IF(COUNT(H38:H40),+ROUND(SUM(H38:H40),2),\"\")","v":""},{"$f":"+IF(COUNT(I38:I40),+ROUND(SUM(I38:I40),2),\"\")","v":""},null,null,"Commission",null,null,null,null,null,null,{"$f":"IF(COUNTA('Financial Results'!H41),'Financial Results'!H41,\"\")","v":""}]
[null,null,null,null,null,"(ii)","Net Commission",null,null,null,null,"NetCommission",null,null,null,null,null,null,{"$f":"IF(COUNTA('Financial Results'!H42),'Financial Results'!H42,\"\")","v":""}]
[null,null,null,null,null,"(iii)","Operating Expenses related to insurance business",null,null,null,null,"OperatingExpensesRelatedToInsuranceBusinessAbstract",null,null,null,null,null,null,{"$f":"IF(COUNTA('Financial Results'!H43),'Financial Results'!H43,\"\")","v":""}]
[null,null,null,null,null," (a) ","Employees remuneration and welfare expenses ",null,null,null,null,"EmployeesRemunerationAndWelfareExpenses",null,null,null,null,null,null,{"$f":"IF(COUNTA('Financial Results'!H44),'Financial Results'!H44,\"\")","v":""}]
[null,null,null,null,null," (b) ","Administration expenses",null,null,null,null,"AdministrationExpenses",null,null,null,null,null,null,{"$f":"IF(COUNTA('Financial Results'!H45),'Financial Results'!H45,\"\")","v":""}]
[null,null,null,null,null," (c) ","Advertisement and publicity",null,null,null,null,"AdvertisementAndPublicity",null,null,null,null,null,null,{"$f":"IF(COUNTA('Financial Results'!H46),'Financial Results'!H46,\"\")","v":""}]
[null,null,null,null,null,"(b)"," Other operating expenses",null,null,null,null,null,null,null,null,null,null,null,{"$f":"IF(COUNTA('Financial Results'!H47),'Financial Results'!H47,\"\")","v":""}]
[null,null,null,null,null,"i",null,null,null,null,null,"OtherOperatingExpenses1Member",null,null,null,null,null,null,{"$f":"IF(COUNTA('Financial Results'!H48),'Financial Results'!H48,\"\")","v":""}]
[null,null,null,null,null,"ii",null,null,null,null,null,"OtherOperatingExpenses2Member",null,null,null,null,null,null,{"$f":"IF(COUNTA('Financial Results'!H49),'Financial Results'!H49,\"\")","v":""}]
[null,null,null,null,null,"iii",null,null,null,null,null,"OtherOperatingExpenses3Member",null,null,null,null,null,null,{"$f":"IF(COUNTA('Financial Results'!H50),'Financial Results'!H50,\"\")","v":""}]
[null,null,null,null,null,"iv",null,null,null,null,null,"OtherOperatingExpenses4Member",null,null,null,null,null,null,{"$f":"IF(COUNTA('Financial Results'!H51),'Financial Results'!H51,\"\")","v":""}]
[null,null,null,null,null,"v",null,null,null,null,null,"OtherOperatingExpenses5Member",null,null,null,null,null,null,{"$f":"IF(COUNTA('Financial Results'!H52),'Financial Results'!H52,\"\")","v":""}]
[null,null,null,null,null,"vi",null,null,null,null,null,"OtherOperatingExpenses6Member",null,null,null,null,null,null,{"$f":"IF(COUNTA('Financial Results'!H53),'Financial Results'!H53,\"\")","v":""}]
[null,null,null,null,null,"vii",null,null,null,null,null,"OtherOperatingExpenses7Member",null,null,null,null,null,null,{"$f":"IF(COUNTA('Financial Results'!H54),'Financial Results'!H54,\"\")","v":""}]
[null,null,null,null,null,"viii",null,null,null,null,null,"OtherOperatingExpenses8Member",null,null,null,null,null,null,{"$f":"IF(COUNTA('Financial Results'!H55),'Financial Results'!H55,\"\")","v":""}]
[null,null,null,null,null,"ix",null,null,null,null,null,"OtherOperatingExpenses9Member",null,null,null,null,null,null,{"$f":"IF(COUNTA('Financial Results'!H56),'Financial Results'!H56,\"\")","v":""}]
[null,null,null,null,null,"x",null,null,null,null,null,"OtherOperatingExpenses10Member",null,null,null,null,null,null,{"$f":"IF(COUNTA('Financial Results'!H57),'Financial Results'!H57,\"\")","v":""}]
[null,null,null,null,null,null,"Total other operating expenses",{"$f":"+IF(COUNT(H48:H57),+ROUND(SUM(H48:H57),2),\"\")","v":""},{"$f":"+IF(COUNT(I48:I57),+ROUND(SUM(I48:I57),2),\"\")","v":""},null,null,"OtherOperatingExpenses",null,null,null,null,null,null,{"$f":"IF(COUNTA('Financial Results'!H58),'Financial Results'!H58,\"\")","v":""}]
[null,null,null,null,null,null,"Total operating expenses related to insurance business",{"$f":"+IF(COUNT(H58,H44:H46),+ROUND(SUM(H44:H46,H58),2),\"\")","v":""},{"$f":"+IF(COUNT(I58,I44:I46),+ROUND(SUM(I44:I46,I58),2),\"\")","v":""},null,null,"OperatingExpensesRelatedToInsuranceBusiness",null,null,null,null,null,null,{"$f":"IF(COUNTA('Financial Results'!H59),'Financial Results'!H59,\"\")","v":""}]
[null,null,null,null,null,null,"Total Expenses of Management",{"$f":"+IF(COUNT(H59,H42),+ROUND(SUM(H42,H59),2),\"\")","v":""},{"$f":"+IF(COUNT(I59,I42),+ROUND(SUM(I42,I59),2),\"\")","v":""},null,null,"ExpensesOfManagement",null,null,null,null,null,null,{"$f":"IF(COUNTA('Financial Results'!H60),'Financial Results'!H60,\"\")","v":""}]
[null,null,null,null,null,"(iv)","Provisions for doubtful debts (including bad debts written off)",null,null,null,null,"ProvisionsForDoubtfulDebtsIncludingBadDebtsWrittenOff",null,null,null,null,null,null,{"$f":"IF(COUNTA('Financial Results'!H61),'Financial Results'!H61,\"\")","v":""}]
[null,null,null,null,null,"(v)","Provisions for diminution in value of investments ",null,null,null,null,"ProvisionsForDiminutionInValueOfInvestments",null,null,null,null,null,null,{"$f":"IF(COUNTA('Financial Results'!H62),'Financial Results'!H62,\"\")","v":""}]
[null,null,null,null,null,"(vi)","Goods & Service tax charge on linked charges",null,null,null,null,"GoodsAndServiceTaxChargeOnLinkedCharges",null,null,null,null,null,null,{"$f":"IF(COUNTA('Financial Results'!H63),'Financial Results'!H63,\"\")","v":""}]
[null,null,null,null,null,"(vii)","Provision for taxes",null,null,null,null,"ProvisionForTaxAbstract",null,null,null,null,null,null,{"$f":"IF(COUNTA('Financial Results'!H64),'Financial Results'!H64,\"\")","v":""}]
[null,null,null,null,null,null,"Current Tax",null,null,null,null,"CurrentTax",null,null,null,null,null,null,{"$f":"IF(COUNTA('Financial Results'!H65),'Financial Results'!H65,\"\")","v":""}]
[null,null,null,null,null,null,"Deferred Tax",null,null,null,null,"DefferedTax",null,null,null,null,null,null,{"$f":"IF(COUNTA('Financial Results'!H66),'Financial Results'!H66,\"\")","v":""}]
[null,null,null,null,null,null,"Total provision of taxes",{"$f":"+IF(COUNT(H65:H66),+ROUND(SUM(H65:H66),2),\"\")","v":""},{"$f":"+IF(COUNT(I65:I66),+ROUND(SUM(I65:I66),2),\"\")","v":""},null,null,"ProvisionsForTax",null,null,null,null,null,null,{"$f":"IF(COUNTA('Financial Results'!H67),'Financial Results'!H67,\"\")","v":""}]
[null,null,null,null,null,"(viii)","Benefits Paid 6(Net)2",null,null,null,null,"BenefitsPaidNet",null,null,null,null,null,null,{"$f":"IF(COUNTA('Financial Results'!H68),'Financial Results'!H68,\"\")","v":""}]
[null,null,null,null,null,"(ix)","Change in actuarial liability",null,null,null,null,"ChangeInActuarialLiability",null,null,null,null,null,null,{"$f":"IF(COUNTA('Financial Results'!H69),'Financial Results'!H69,\"\")","v":""}]
[null,null,null,null,null,null,"Total Expenses",{"$f":"+IF(COUNT(H60:H63,H67:H69),+ROUND(SUM(H60:H63,H67:H69),2),\"\")","v":""},{"$f":"+IF(COUNT(I60:I63,I67:I69),+ROUND(SUM(I60:I63,I67:I69),2),\"\")","v":""},null,null,"Expenses",null,null,null,null,null,null,{"$f":"IF(COUNTA('Financial Results'!H70),'Financial Results'!H70,\"\")","v":""}]
[null,null,null,null,null,3,"Net Surplus(Deficit)",{"$f":"+IF(COUNT(H70,H35),+ROUND(SUM(H35)-SUM(H70),2),\"\")","v":""},{"$f":"+IF(COUNT(I70,I35),+ROUND(SUM(I35)-SUM(I70),2),\"\")","v":""},null,null,"NetSurplusDeficit",null,null,null,null,null,null,{"$f":"IF(COUNTA('Financial Results'!H71),'Financial Results'!H71,\"\")","v":""}]
[null,null,null,null,null,null,null,null,null,null,null,null,null,null,null,null,null,null,{"$f":"IF(COUNTA('Financial Results'!H72),'Financial Results'!H72,\"\")","v":""}]
[null,null,null,null,null,4,"Appropriations ",null,null,null,null,"AppropriationsAbstract",null,null,null,null,null,null,{"$f":"IF(COUNTA('Financial Results'!H73),'Financial Results'!H73,\"\")","v":""}]
[null,null,null,null,null,"(a)","Transferred to Shareholders A/c",null,null,null,null,"TransferredToShareholdersAccount",null,null,null,null,null,null,{"$f":"IF(COUNTA('Financial Results'!H74),'Financial Results'!H74,\"\")","v":""}]
[null,null,null,null,null,"(b)","Funds for Future Appropriation",null,null,null,null,"FundsForFutureAppropriation",null,null,null,null,null,null,{"$f":"IF(COUNTA('Financial Results'!H75),'Financial Results'!H75,\"\")","v":""}]
[null,null,null,null,null,5,"Details of Surplus / Deficit ",null,null,null,null,"DetailsOfSurplusDeficitAbstract",null,null,null,null,null,null,{"$f":"IF(COUNTA('Financial Results'!H76),'Financial Results'!H76,\"\")","v":""}]
[null,null,null,null,null,"(a)","Interim bonus paid",null,null,null,null,"InterimBonusPaid",null,null,null,null,null,null,{"$f":"IF(COUNTA('Financial Results'!H77),'Financial Results'!H77,\"\")","v":""}]
[null,null,null,null,null,"(b)","Allocation of bonus to policyholders",null,null,null,null,"AllocationOfBonusToPolicyholders",null,null,null,null,null,null,{"$f":"IF(COUNTA('Financial Results'!H78),'Financial Results'!H78,\"\")","v":""}]
[null,null,null,null,null,"(c) ","Surplus shown in the Revenue Account",null,null,null,null,"SurplusShownInTheRevenueAccount",null,null,null,null,null,null,{"$f":"IF(COUNTA('Financial Results'!H79),'Financial Results'!H79,\"\")","v":""}]
[null,null,null,null,null,"(d) ","Terminal bonus paid",null,null,null,null,"TerminalBonusPaid",null,null,null,null,null,null,{"$f":"IF(COUNTA('Financial Results'!H80),'Financial Results'!H80,\"\")","v":""}]
[null,null,null,null,null,null,"Total Surplus (Deficit )",{"$f":"+IF(COUNT(H77:H80),+ROUND(SUM(H77:H80),2),\"\")","v":""},{"$f":"+IF(COUNT(I77:I80),+ROUND(SUM(I77:I80),2),\"\")","v":""},null,null,"SurplusDeficit",null,null,null,null,null,null,{"$f":"IF(COUNTA('Financial Results'!H81),'Financial Results'!H81,\"\")","v":""}]
[null,null,null,null,null,null,null,null,null,null,null,"ShareholdersAccountAbstract",null,null,null,null,null,null,{"$f":"IF(COUNTA('Financial Results'!H82),'Financial Results'!H82,\"\")","v":""}]
[null,null,null,null,null,"SHAREHOLDERS' Account",null,null,null,null,null,"StatementOfProfitAndLossAbstract",null,null,null,null,null,null,{"$f":"IF(COUNTA('Financial Results'!H83),'Financial Results'!H83,\"\")","v":""}]
[null,null,null,null,null,1,"Income",null,null,null,null,"ShareholdersAccountIncomeAbstract",null,null,null,null,null,null,{"$f":"IF(COUNTA('Financial Results'!H84),'Financial Results'!H84,\"\")","v":""}]
[null,null,null,null,null,"(i)","Transfer from Policyholders' Account",null,null,null,null,"TransferFromPolicyholdersAccount",null,null,null,null,null,null,{"$f":"IF(COUNTA('Financial Results'!H85),'Financial Results'!H85,\"\")","v":""}]
[null,null,null,null,null,"(ii)","Income under Shareholders’ Account",null,null,null,null,"IncomeUnderShareholdersAccountAbstract",null,null,null,null,null,null,{"$f":"IF(COUNTA('Financial Results'!H86),'Financial Results'!H86,\"\")","v":""}]
[null,null,null,null,null,"(a)","Investment Income",null,null,null,null,"InvestmentIncome",null,null,null,null,null,null,{"$f":"IF(COUNTA('Financial Results'!H87),'Financial Results'!H87,\"\")","v":""}]
[null,null,null,null,null,"(b)","Other income",null,null,null,null,null,null,null,null,null,null,null,{"$f":"IF(COUNTA('Financial Results'!H88),'Financial Results'!H88,\"\")","v":""}]
[null,null,null,null,null,"i",null,null,null,null,null,"ShareholdersAccountOtherIncome1Member",null,null,null,null,null,null,{"$f":"IF(COUNTA('Financial Results'!H89),'Financial Results'!H89,\"\")","v":""}]
[null,null,null,null,null,"ii",null,null,null,null,null,"ShareholdersAccountOtherIncome2Member",null,null,null,null,null,null,{"$f":"IF(COUNTA('Financial Results'!H90),'Financial Results'!H90,\"\")","v":""}]
[null,null,null,null,null,"iii",null,null,null,null,null,"ShareholdersAccountOtherIncome3Member",null,null,null,null,null,null,{"$f":"IF(COUNTA('Financial Results'!H91),'Financial Results'!H91,\"\")","v":""}]
[null,null,null,null,null,"iv",null,null,null,null,null,"ShareholdersAccountOtherIncome4Member",null,null,null,null,null,null,{"$f":"IF(COUNTA('Financial Results'!H92),'Financial Results'!H92,\"\")","v":""}]
[null,null,null,null,null,"v",null,null,null,null,null,"ShareholdersAccountOtherIncome5Member",null,null,null,null,null,null,{"$f":"IF(COUNTA('Financial Results'!H93),'Financial Results'!H93,\"\")","v":""}]
[null,null,null,null,null,"vi",null,null,null,null,null,"ShareholdersAccountOtherIncome6Member",null,null,null,null,null,null,{"$f":"IF(COUNTA('Financial Results'!H94),'Financial Results'!H94,\"\")","v":""}]
[null,null,null,null,null,"vii",null,null,null,null,null,"ShareholdersAccountOtherIncome7Member",null,null,null,null,null,null,{"$f":"IF(COUNTA('Financial Results'!H95),'Financial Results'!H95,\"\")","v":""}]
[null,null,null,null,null,"viii",null,null,null,null,null,"ShareholdersAccountOtherIncome8Member",null,null,null,null,null,null,{"$f":"IF(COUNTA('Financial Results'!H96),'Financial Results'!H96,\"\")","v":""}]
[null,null,null,null,null,"ix",null,null,null,null,null,"ShareholdersAccountOtherIncome9Member",null,null,null,null,null,null,{"$f":"IF(COUNTA('Financial Results'!H97),'Financial Results'!H97,\"\")","v":""}]
[null,null,null,null,null,"x",null,null,null,null,null,"ShareholdersAccountOtherIncome10Member",null,null,null,null,null,null,{"$f":"IF(COUNTA('Financial Results'!H98),'Financial Results'!H98,\"\")","v":""}]
[null,null,null,null,null,null,"Total Other income",{"$f":"+IF(COUNT(H89:H98),+ROUND(SUM(H89:H98),2),\"\")","v":""},{"$f":"+IF(COUNT(I89:I98),+ROUND(SUM(I89:I98),2),\"\")","v":""},null,null,"ShareholdersAccountOtherIncome",null,null,null,null,null,null,{"$f":"IF(COUNTA('Financial Results'!H99),'Financial Results'!H99,\"\")","v":""}]
[null,null,null,null,null,null,"Total income under shareholders account",{"$f":"+IF(COUNT(H99,H87),+ROUND(SUM(H99,H87),2),\"\")","v":""},{"$f":"+IF(COUNT(I99,I87),+ROUND(SUM(I99,I87),2),\"\")","v":""},null,null,"IncomeUnderShareholdersAccount",null,null,null,null,null,null,{"$f":"IF(COUNTA('Financial Results'!H100),'Financial Results'!H100,\"\")","v":""}]
[null,null,null,null,null,null,"Total Income",{"$f":"+IF(COUNT(H100,H85),+ROUND(SUM(H100,H85),2),\"\")","v":""},{"$f":"+IF(COUNT(I100,I85),+ROUND(SUM(I100,I85),2),\"\")","v":""},null,null,"ShareholdersAccountIncome",null,null,null,null,null,null,{"$f":"IF(COUNTA('Financial Results'!H101),'Financial Results'!H101,\"\")","v":""}]
[null,null,null,null,null,2,"Expenses",null,null,null,null,"ShareholdersAccountExpensesAbstract",null,null,null,null,null,null,{"$f":"IF(COUNTA('Financial Results'!H102),'Financial Results'!H102,\"\")","v":""}]
[null,null,null,null,null,"(i)","Expenses other than those related to insurance business",null,null,null,null,"ExpensesOtherThanThoseRelatedToInsuranceBusiness",null,null,null,null,null,null,{"$f":"IF(COUNTA('Financial Results'!H103),'Financial Results'!H103,\"\")","v":""}]
[null,null,null,null,null,"(ii)","Transfer of funds to policyholders account",null,null,null,null,"TransferOfFundsToPolicyholdersAccount",null,null,null,null,null,null,{"$f":"IF(COUNTA('Financial Results'!H104),'Financial Results'!H104,\"\")","v":""}]
[null,null,null,null,null,"(iii)","Provisions for doubtful debts (including write off)",null,null,null,null,"ProvisionsForDoubtfulDebtsIncludingWriteOff",null,null,null,null,null,null,{"$f":"IF(COUNTA('Financial Results'!H105),'Financial Results'!H105,\"\")","v":""}]
[null,null,null,null,null,"(iv)","Provisions for diminution in value of investments ",null,null,null,null,"ShareholdersAccountProvisionsForDiminutionInValueOfInvestments",null,null,null,null,null,null,{"$f":"IF(COUNTA('Financial Results'!H106),'Financial Results'!H106,\"\")","v":""}]
[null,null,null,null,null,null,"Total Expenses",{"$f":"+IF(COUNT(H103:H106),+ROUND(SUM(H103:H106),2),\"\")","v":""},{"$f":"+IF(COUNT(I103:I106),+ROUND(SUM(I103:I106),2),\"\")","v":""},null,null,"ShareholdersAccountExpenses",null,null,null,null,null,null,{"$f":"IF(COUNTA('Financial Results'!H107),'Financial Results'!H107,\"\")","v":""}]
[null,null,null,null,null,3,"Profit/ (loss) before tax",{"$f":"+IF(COUNT(H101,H107),ROUND(SUM(H101)-SUM(H107),2),\"\")","v":""},{"$f":"+IF(COUNT(I101,I107),ROUND(SUM(I101)-SUM(I107),2),\"\")","v":""},null,null,"ProfitLossBeforeTax",null,null,null,null,null,null,{"$f":"IF(COUNTA('Financial Results'!H108),'Financial Results'!H108,\"\")","v":""}]
[null,null,null,null,null,4,"Provisions for tax",{"$f":"+IF(COUNT(H110:H111),+ROUND(SUM(H110:H111),2),\"\")","v":""},{"$f":"+IF(COUNT(I110:I111),+ROUND(SUM(I110:I111),2),\"\")","v":""},null,null,"ProvisionsForTaxes",null,null,null,null,null,null,{"$f":"IF(COUNTA('Financial Results'!H109),'Financial Results'!H109,\"\")","v":""}]
[null,null,null,null,null,"(i)","Current tax",null,null,null,null,"CurrentTaxes",null,null,null,null,null,null,{"$f":"IF(COUNTA('Financial Results'!H110),'Financial Results'!H110,\"\")","v":""}]
[null,null,null,null,null,"(ii)","Deferred Tax",null,null,null,null,"DefferedTaxes",null,null,null,null,null,null,{"$f":"IF(COUNTA('Financial Results'!H111),'Financial Results'!H111,\"\")","v":""}]
[null,null,null,null,null,5,"Profit / (loss) after tax and before Extraordinary Items",{"$f":"+IF(COUNT(H108,H109),+ROUND(SUM(H108)-SUM(H109),2),\"\")","v":""},{"$f":"+IF(COUNT(I108,I109),+ROUND(SUM(I108)-SUM(I109),2),\"\")","v":""},null,null,"ProfitLossAfterTaxBeforeExtraordinaryItems",null,null,null,null,null,null,{"$f":"IF(COUNTA('Financial Results'!H112),'Financial Results'!H112,\"\")","v":""}]
[null,null,null,null,null,6,"Extraordinary Items (Net of tax expenses) ",null,null,null,null,"ExtraordinaryItemsNetOfTaxExpenses",null,null,null,null,null,null,{"$f":"IF(COUNTA('Financial Results'!H113),'Financial Results'!H113,\"\")","v":""}]
[null,null,null,null,null,7,"Profit/ (loss) after tax and Extraordinary Items",{"$f":"+IF(COUNT(H112,H113),+ROUND(SUM(H112,H113),2),\"\")","v":""},{"$f":"+IF(COUNT(I112,I113),+ROUND(SUM(I112,I113),2),\"\")","v":""},null,null,"ProfitLossAfterTaxAndExtraordinaryItems",null,null,null,null,null,null,{"$f":"IF(COUNTA('Financial Results'!H114),'Financial Results'!H114,\"\")","v":""}]
[null,null,null,null,null,8,"Dividend per share",null,null,null,null,"DividendPerShareAbstract",null,null,null,null,null,null,{"$f":"IF(COUNTA('Financial Results'!H115),'Financial Results'!H115,\"\")","v":""}]
[null,null,null,null,null,"(a)","Interim Dividend",null,null,null,null,"InterimDividend",null,null,null,null,null,null,{"$f":"IF(COUNTA('Financial Results'!H116),'Financial Results'!H116,\"\")","v":""}]
[null,null,null,null,null,"(b)","Final Dividend",null,null,null,null,"FinalDividend",null,null,null,null,null,null,{"$f":"IF(COUNTA('Financial Results'!H117),'Financial Results'!H117,\"\")","v":""}]
[null,null,null,null,null,null,null,null,null,null,null,null,null,null,null,null,null,null,{"$f":"IF(COUNTA('Financial Results'!H118),'Financial Results'!H118,\"\")","v":""}]
[null,null,null,null,null,9,"Profit/(Loss) carried to  Balance Sheet",null,null,null,null,"ProfitLossCarriedToBalanceSheet",null,null,null,null,null,null,{"$f":"IF(COUNTA('Financial Results'!H119),'Financial Results'!H119,\"\")","v":""}]
[null,null,null,null,null,10,"Paid up equity share capital",null,null,null,null,"PaidUpEquityShareCapital",null,null,null,null,null,null,{"$f":"IF(COUNTA('Financial Results'!H120),'Financial Results'!H120,\"\")","v":""}]
[null,null,null,null,null,11,"Reserve & Surplus (excluding Revaluation Reserve)",null,null,null,null,"ReserveAndSurplus",null,null,null,null,null,null,{"$f":"IF(COUNTA('Financial Results'!H121),'Financial Results'!H121,\"\")","v":""}]
[null,null,null,null,null,12,"Fair Value Change Account and Revaluation Reserve (Shareholders)",null,null,null,null,"FairValueChangeAccountAndRevaluationReserveShareholders",null,null,null,null,null,null,{"$f":"IF(COUNTA('Financial Results'!H122),'Financial Results'!H122,\"\")","v":""}]
[null,null,null,null,null,13,"Assets",null,null,null,null,"AssetsAbstract",null,null,null,null,null,null,{"$f":"IF(COUNTA('Financial Results'!H123),'Financial Results'!H123,\"\")","v":""}]
[null,null,null,null,null,"(i)","Investments:",null,null,null,null,"InvestmentsAbstract",null,null,null,null,null,null,{"$f":"IF(COUNTA('Financial Results'!H124),'Financial Results'!H124,\"\")","v":""}]
[null,null,null,null,null,"(a)","Shareholders",null,null,null,null,"ShareholderFund",null,null,null,null,null,null,{"$f":"IF(COUNTA('Financial Results'!H125),'Financial Results'!H125,\"\")","v":""}]
[null,null,null,null,null,"(b)","Policyholders Fund excluding Linked Assets",null,null,null,null,"PolicyholdersFundExcludingLinkedAssets",null,null,null,null,null,null,{"$f":"IF(COUNTA('Financial Results'!H126),'Financial Results'!H126,\"\")","v":""}]
[null,null,null,null,null,"(c) ","Assets held to cover Linked Liabilities",null,null,null,null,"AssetsHeldToCoverLinkedLiabilities",null,null,null,null,null,null,{"$f":"IF(COUNTA('Financial Results'!H127),'Financial Results'!H127,\"\")","v":""}]
[null,null,null,null,null,null,"Total Investments",{"$f":" IF(COUNT(H125:H127),+ROUND(SUM(H125:H127),2),\"\")","v":""},{"$f":" IF(COUNT(I125:I127),+ROUND(SUM(I125:I127),2),\"\")","v":""},null,null,"Investments",null,null,null,null,null,null,{"$f":"IF(COUNTA('Financial Results'!H128),'Financial Results'!H128,\"\")","v":""}]
[null,null,null,null,null,"(b)","Other Assets (Net of current liabilities and provisions)",null,null,null,null,"OtherAssetsNetOfCurrentLiabilitiesAndProvisions",null,null,null,null,null,null,{"$f":"IF(COUNTA('Financial Results'!H129),'Financial Results'!H129,\"\")","v":""}]
[null,null,null,null,null,null,"Total Assets",{"$f":"IF(COUNT(H128:H129),+ROUND(SUM(H128:H129),2),\"\")","v":""},{"$f":"IF(COUNT(I128:I129),+ROUND(SUM(I128:I129),2),\"\")","v":""},null,null,"Assets",null,null,null,null,null,null,{"$f":"IF(COUNTA('Financial Results'!H130),'Financial Results'!H130,\"\")","v":""}]
[null,null,null,null,null,14,"Analytical Ratios",null,null,null,null,"AnalyticalRatiosAbstract",null,null,null,null,null,null,{"$f":"IF(COUNTA('Financial Results'!H131),'Financial Results'!H131,\"\")","v":""}]
[null,null,null,null,null,"(i)","Solvency Ratio",null,null,null,null,"SolvencyRatio",null,null,null,null,null,null,{"$f":"IF(COUNTA('Financial Results'!H132),'Financial Results'!H132,\"\")","v":""}]
[null,null,null,null,null,"(ii)","Expenses of Management Ratio",null,null,null,null,"ExpensesOfManagementRatio",null,null,null,null,null,null,{"$f":"IF(COUNTA('Financial Results'!H133),'Financial Results'!H133,\"\")","v":""}]
[null,null,null,null,null,"(iii)","Policyholder’s liabilities to shareholders’ fund ",null,null,null,null,"PolicyholdersLiabilitiesToShareholdersFund",null,null,null,null,null,null,{"$f":"IF(COUNTA('Financial Results'!H134),'Financial Results'!H134,\"\")","v":""}]
[null,null,null,null,null,"(iv)","Earnings per share (Rs.):",null,null,null,null,"EarningsPerShareAbstract",null,null,null,null,null,null,{"$f":"IF(COUNTA('Financial Results'!H135),'Financial Results'!H135,\"\")","v":""}]
[null,null,null,null,null,"(a)","Basic and diluted EPS before extraordinary items (net of tax expense) for the period (not to be annualized)",null,null,null,null,"BasicAndDilutedEPSBeforeExtraordinaryItemsNetOfTaxExpenseForThePeriodNotToBeAnnualized",null,null,null,null,null,null,{"$f":"IF(COUNTA('Financial Results'!H136),'Financial Results'!H136,\"\")","v":""}]
[null,null,null,null,null,"(b)","Basic and diluted EPS  after extraordinary items (net of tax expense) for the period (not to be annualized)",null,null,null,null,"BasicAndDilutedEPSAfterExtraordinaryItemsNetOfTaxExpenseForThePeriodNotToBeAnnualized",null,null,null,null,null,null,{"$f":"IF(COUNTA('Financial Results'!H137),'Financial Results'!H137,\"\")","v":""}]
[null,null,null,null,null,"(v)","NPA ratios: (for policyholders' fund)",null,null,null,null,"NPARatiosForPolicyholdersFundAbstract",null,null,null,null,null,null,{"$f":"IF(COUNTA('Financial Results'!H138),'Financial Results'!H138,\"\")","v":""}]
[null,null,null,null,null,"(a)","Gross NPAs",null,null,null,null,"GrossNPAsPolicyholdersFund",null,null,null,null,null,null,{"$f":"IF(COUNTA('Financial Results'!H139),'Financial Results'!H139,\"\")","v":""}]
[null,null,null,null,null,null,"Non Linked",null,null,null,null,null,null,null,null,null,null,null,{"$f":"IF(COUNTA('Financial Results'!H140),'Financial Results'!H140,\"\")","v":""}]
[null,null,null,null,null,null,"Par",null,null,null,null,"NonLinkedParticipatingPolicyholdersFundGrossNPAs",null,null,null,null,null,null,{"$f":"IF(COUNTA('Financial Results'!H141),'Financial Results'!H141,\"\")","v":""}]
[null,null,null,null,null,null,"Non Par",null,null,null,null,"NonLinkedNonParticipatingPolicyholdersFundGrossNPAs",null,null,null,null,null,null,{"$f":"IF(COUNTA('Financial Results'!H142),'Financial Results'!H142,\"\")","v":""}]
[null,null,null,null,null,null,"Linked",null,null,null,null,null,null,null,null,null,null,null,{"$f":"IF(COUNTA('Financial Results'!H143),'Financial Results'!H143,\"\")","v":""}]
[null,null,null,null,null,null,"Par",null,null,null,null,"LinkedParticipatingPolicyholdersFundGrossNPAs",null,null,null,null,null,null,{"$f":"IF(COUNTA('Financial Results'!H144),'Financial Results'!H144,\"\")","v":""}]
[null,null,null,null,null,null,"Non Par",null,null,null,null,"LinkedNonParticipatingPolicyholdersFundGrossNPAs",null,null,null,null,null,null,{"$f":"IF(COUNTA('Financial Results'!H145),'Financial Results'!H145,\"\")","v":""}]
[null,null,null,null,null,null,"Net NPAs",null,null,null,null,null,null,null,null,null,null,null,{"$f":"IF(COUNTA('Financial Results'!H146),'Financial Results'!H146,\"\")","v":""}]
[null,null,null,null,null,null,"Non Linked",null,null,null,null,null,null,null,null,null,null,null,{"$f":"IF(COUNTA('Financial Results'!H147),'Financial Results'!H147,\"\")","v":""}]
[null,null,null,null,null,null,"Par",null,null,null,null,"NonLinkedParticipatingPolicyholdersFundNetNPAs",null,null,null,null,null,null,{"$f":"IF(COUNTA('Financial Results'!H148),'Financial Results'!H148,\"\")","v":""}]
[null,null,null,null,null,null,"Non Par",null,null,null,null,"NonLinkedNonParticipatingPolicyholdersFundNetNPAs",null,null,null,null,null,null,{"$f":"IF(COUNTA('Financial Results'!H149),'Financial Results'!H149,\"\")","v":""}]
[null,null,null,null,null,null,"Linked",null,null,null,null,null,null,null,null,null,null,null,{"$f":"IF(COUNTA('Financial Results'!H150),'Financial Results'!H150,\"\")","v":""}]
[null,null,null,null,null,null,"Par",null,null,null,null,"LinkedParticipatingPolicyholdersFundNetNPAs",null,null,null,null,null,null,{"$f":"IF(COUNTA('Financial Results'!H151),'Financial Results'!H151,\"\")","v":""}]
[null,null,null,null,null,null,"Non Par",null,null,null,null,"LinkedNonParticipatingPolicyholdersFundNetNPAs",null,null,null,null,null,null,{"$f":"IF(COUNTA('Financial Results'!H152),'Financial Results'!H152,\"\")","v":""}]
[null,null,null,null,null,null,"% of Gross NPAs",null,null,null,null,null,null,null,null,null,null,null,{"$f":"IF(COUNTA('Financial Results'!H153),'Financial Results'!H153,\"\")","v":""}]
[null,null,null,null,null,null,"Non Linked",null,null,null,null,null,null,null,null,null,null,null,{"$f":"IF(COUNTA('Financial Results'!H154),'Financial Results'!H154,\"\")","v":""}]
[null,null,null,null,null,null,"Par",null,null,null,null,"NonLinkedParticipatingPolicyholdersFundPercentageOfGrossNPAs",null,null,null,null,null,null,{"$f":"IF(COUNTA('Financial Results'!H155),'Financial Results'!H155,\"\")","v":""}]
[null,null,null,null,null,null,"Non Par",null,null,null,null,"NonLinkedNonParticipatingPolicyholdersFundPercentageOfGrossNPAs",null,null,null,null,null,null,{"$f":"IF(COUNTA('Financial Results'!H156),'Financial Results'!H156,\"\")","v":""}]
[null,null,null,null,null,null,"Linked",null,null,null,null,null,null,null,null,null,null,null,{"$f":"IF(COUNTA('Financial Results'!H157),'Financial Results'!H157,\"\")","v":""}]
[null,null,null,null,null,null,"Par",null,null,null,null,"LinkedParticipatingPolicyholdersFundPercentageOfGrossNPAs",null,null,null,null,null,null,{"$f":"IF(COUNTA('Financial Results'!H158),'Financial Results'!H158,\"\")","v":""}]
[null,null,null,null,null,null,"Non Par",null,null,null,null,"LinkedNonParticipatingPolicyholdersFundPercentageOfGrossNPAs",null,null,null,null,null,null,{"$f":"IF(COUNTA('Financial Results'!H159),'Financial Results'!H159,\"\")","v":""}]
[null,null,null,null,null,null,"% of Net NPAs",null,null,null,null,null,null,null,null,null,null,null,{"$f":"IF(COUNTA('Financial Results'!H160),'Financial Results'!H160,\"\")","v":""}]
[null,null,null,null,null,null,"Non Linked",null,null,null,null,null,null,null,null,null,null,null,{"$f":"IF(COUNTA('Financial Results'!H161),'Financial Results'!H161,\"\")","v":""}]
[null,null,null,null,null,null,"Par",null,null,null,null,"NonLinkedParticipatingPolicyholdersFundPercentageOfNetNPAs",null,null,null,null,null,null,{"$f":"IF(COUNTA('Financial Results'!H162),'Financial Results'!H162,\"\")","v":""}]
[null,null,null,null,null,null,"Non Par",null,null,null,null,"NonLinkedNonParticipatingPolicyholdersFundPercentageOfNetNPAs",null,null,null,null,null,null,{"$f":"IF(COUNTA('Financial Results'!H163),'Financial Results'!H163,\"\")","v":""}]
[null,null,null,null,null,null,"Linked",null,null,null,null,null,null,null,null,null,null,null,{"$f":"IF(COUNTA('Financial Results'!H164),'Financial Results'!H164,\"\")","v":""}]
[null,null,null,null,null,null,"Par",null,null,null,null,"LinkedParticipatingPolicyholdersFundPercentageOfNetNPAs",null,null,null,null,null,null,{"$f":"IF(COUNTA('Financial Results'!H165),'Financial Results'!H165,\"\")","v":""}]
[null,null,null,null,null,null,"Non Par",null,null,null,null,"LinkedNonParticipatingPolicyholdersFundPercentageOfNetNPAs",null,null,null,null,null,null,{"$f":"IF(COUNTA('Financial Results'!H166),'Financial Results'!H166,\"\")","v":""}]
[null,null,null,null,null,null,null,null,null,null,null,null,null,null,null,null,null,null,{"$f":"IF(COUNTA('Financial Results'!H167),'Financial Results'!H167,\"\")","v":""}]
[null,null,null,null,null,"(vi)","Yield on Investments (on policyholders' fund)",null,null,null,null,"YieldOnInvestmentsOnPolicyholdersFundAbstract",null,null,null,null,null,null,{"$f":"IF(COUNTA('Financial Results'!H168),'Financial Results'!H168,\"\")","v":""}]
[null,null,null,null,null,"(a)","  Without unrealised gains",null,null,null,null,null,null,null,null,null,null,null,{"$f":"IF(COUNTA('Financial Results'!H169),'Financial Results'!H169,\"\")","v":""}]
[null,null,null,null,null,null,"Non Linked",null,null,null,null,null,null,null,null,null,null,null,{"$f":"IF(COUNTA('Financial Results'!H170),'Financial Results'!H170,\"\")","v":""}]
[null,null,null,null,null,null,"Par",null,null,null,null,"NonLinkedParticipatingPolicyholdersFundWithoutUnrealisedGains",null,null,null,null,null,null,{"$f":"IF(COUNTA('Financial Results'!H171),'Financial Results'!H171,\"\")","v":""}]
[null,null,null,null,null,null,"Non Par",null,null,null,null,"NonLinkedNonParticipatingPolicyholdersFundWithoutUnrealisedGains",null,null,null,null,null,null,{"$f":"IF(COUNTA('Financial Results'!H172),'Financial Results'!H172,\"\")","v":""}]
[null,null,null,null,null,null,"Linked",null,null,null,null,null,null,null,null,null,null,null,{"$f":"IF(COUNTA('Financial Results'!H173),'Financial Results'!H173,\"\")","v":""}]
[null,null,null,null,null,null,"Par",null,null,null,null,"LinkedParticipatingPolicyholdersFundWithoutUnrealisedGains",null,null,null,null,null,null,{"$f":"IF(COUNTA('Financial Results'!H174),'Financial Results'!H174,\"\")","v":""}]
[null,null,null,null,null,null,"Non Par",null,null,null,null,"LinkedNonParticipatingPolicyholdersFundWithoutUnrealisedGains",null,null,null,null,null,null,{"$f":"IF(COUNTA('Financial Results'!H175),'Financial Results'!H175,\"\")","v":""}]
[null,null,null,null,null,"(b)"," With unrealised gains",null,null,null,null,null,null,null,null,null,null,null,{"$f":"IF(COUNTA('Financial Results'!H176),'Financial Results'!H176,\"\")","v":""}]
[null,null,null,null,null,null,"Non Linked",null,null,null,null,null,null,null,null,null,null,null,{"$f":"IF(COUNTA('Financial Results'!H177),'Financial Results'!H177,\"\")","v":""}]
[null,null,null,null,null,null,"Par",null,null,null,null,"NonLinkedParticipatingPolicyholdersFundWithUnrealisedGains",null,null,null,null,null,null,{"$f":"IF(COUNTA('Financial Results'!H178),'Financial Results'!H178,\"\")","v":""}]
[null,null,null,null,null,null,"Non Par",null,null,null,null,"NonLinkedNonParticipatingPolicyholdersFundWithUnrealisedGains",null,null,null,null,null,null,{"$f":"IF(COUNTA('Financial Results'!H179),'Financial Results'!H179,\"\")","v":""}]
[null,null,null,null,null,null,"Linked",null,null,null,null,null,null,null,null,null,null,null,{"$f":"IF(COUNTA('Financial Results'!H180),'Financial Results'!H180,\"\")","v":""}]
[null,null,null,null,null,null,"Par",null,null,null,null,"LinkedParticipatingPolicyholdersFundWithUnrealisedGains",null,null,null,null,null,null,{"$f":"IF(COUNTA('Financial Results'!H181),'Financial Results'!H181,\"\")","v":""}]
[null,null,null,null,null,null,"Non Par",null,null,null,null,"LinkedNonParticipatingPolicyholdersFundWithUnrealisedGains",null,null,null,null,null,null,{"$f":"IF(COUNTA('Financial Results'!H182),'Financial Results'!H182,\"\")","v":""}]
[null,null,null,null,null,"(vii)","NPA ratios: (for shareholders' fund)",null,null,null,null,null,null,null,null,null,null,null,{"$f":"IF(COUNTA('Financial Results'!H183),'Financial Results'!H183,\"\")","v":""}]
[null,null,null,null,null,"(a)","Gross NPAs",null,null,null,null,"GrossNPAsShareholdersFund",null,null,null,null,null,null,{"$f":"IF(COUNTA('Financial Results'!H184),'Financial Results'!H184,\"\")","v":""}]
[null,null,null,null,null,null,"Net NPAs",null,null,null,null,"NetNPAsShareholdersFund",null,null,null,null,null,null,{"$f":"IF(COUNTA('Financial Results'!H185),'Financial Results'!H185,\"\")","v":""}]
[null,null,null,null,null,"(b)","  Percentage of Gross NPAs",null,null,null,null,"PercentageOfGrossNPAsShareholdersFund",null,null,null,null,null,null,{"$f":"IF(COUNTA('Financial Results'!H186),'Financial Results'!H186,\"\")","v":""}]
[null,null,null,null,null,null,"  Percentage of Net NPAs",null,null,null,null,"PercentageOfNetNPAsShareholdersFund",null,null,null,null,null,null,{"$f":"IF(COUNTA('Financial Results'!H187),'Financial Results'!H187,\"\")","v":""}]
[null,null,null,null,null,"(viii)","Yield on Investments (on shareholders' fund)",null,null,null,null,null,null,null,null,null,null,null,{"$f":"IF(COUNTA('Financial Results'!H188),'Financial Results'!H188,\"\")","v":""}]
[null,null,null,null,null,"(a)","Without unrealised gains",null,null,null,null,"ShareholdersFundWithoutUnrealisedGains",null,null,null,null,null,null,{"$f":"IF(COUNTA('Financial Results'!H189),'Financial Results'!H189,\"\")","v":""}]
[null,null,null,null,null,"(b)","With unrealised gains",null,null,null,null,"ShareholdersFundWithUnrealisedGains",null,null,null,null,null,null,{"$f":"IF(COUNTA('Financial Results'!H190),'Financial Results'!H190,\"\")","v":""}]
[null,null,null,null,null,"(ix)","Persistency Ratio",null,null,null,null,null,null,null,null,null,null,null,{"$f":"IF(COUNTA('Financial Results'!H191),'Financial Results'!H191,\"\")","v":""}]
[null,null,null,null,null,1,"13th Month",null,null,null,null,"PersistencyRatio13ThMonth",null,null,null,null,null,null,{"$f":"IF(COUNTA('Financial Results'!H192),'Financial Results'!H192,\"\")","v":""}]
[null,null,null,null,null,2,"25th Month",null,null,null,null,"PersistencyRatio25ThMonth",null,null,null,null,null,null,{"$f":"IF(COUNTA('Financial Results'!H193),'Financial Results'!H193,\"\")","v":""}]
[null,null,null,null,null,3,"37th Month",null,null,null,null,"PersistencyRatio37ThMonth",null,null,null,null,null,null,{"$f":"IF(COUNTA('Financial Results'!H194),'Financial Results'!H194,\"\")","v":""}]
[null,null,null,null,null,4,"49th Month",null,null,null,null,"PersistencyRatio49ThMonth",null,null,null,null,null,null,{"$f":"IF(COUNTA('Financial Results'!H195),'Financial Results'!H195,\"\")","v":""}]
[null,null,null,null,null,5,"61st Month",null,null,null,null,"PersistencyRatio61ThMonth",null,null,null,null,null,null,{"$f":"IF(COUNTA('Financial Results'!H196),'Financial Results'!H196,\"\")","v":""}]
[null,null,null,null,null,"(ix)","Other Rations",null,null,null,null,null,null,null,null,null,null,null,{"$f":"IF(COUNTA('Financial Results'!H197),'Financial Results'!H197,\"\")","v":""}]
[null,null,null,null,null,"(x)","Conservation Ratio ",null,null,null,null,"ConservationRatio",null,null,null,null,null,null,{"$f":"IF(COUNTA('Financial Results'!H198),'Financial Results'!H198,\"\")","v":""}]
[null,null,null,null,null,"(xi)","Percentage of shares held by Government of India (in case of public sector insurance companies)",null,null,null,null,"PercentageOfSharesHeldByGovernmentOfIndiaInCaseOfPublicSectorInsuranceCompanies",null,null,null,null,null,null,{"$f":"IF(COUNTA('Financial Results'!H199),'Financial Results'!H199,\"\")","v":""}]
[null,null,null,null,null,null,null,null,null,null,null,null,null,null,null,null,null,null,{"$f":"IF(COUNTA('Financial Results'!H200),'Financial Results'!H200,\"\")","v":""}]
[null,null,null,null,null,"Investor Compliants",null,null,null,null,null,"InvestorComplaintsAbstract",null,null,null,null,null,null,{"$f":"IF(COUNTA('Financial Results'!H201),'Financial Results'!H201,\"\")","v":""}]
[null,null,null,null,null,"(i)","No of investor complaints pending at the beginning of the period",null,null,null,null,"NoOfInvestorComplaintsPendingAtTheBeginningOfThePeriod",null,null,null,null,null,null,{"$f":"IF(COUNTA('Financial Results'!H202),'Financial Results'!H202,\"\")","v":""}]
[null,null,null,null,null,"(ii)","No of investor complaints during the period",null,null,null,null,"NoOfInvestorComplaintsReceivedDuringThePeriod",null,null,null,null,null,null,{"$f":"IF(COUNTA('Financial Results'!H203),'Financial Results'!H203,\"\")","v":""}]
[null,null,null,null,null,"(iii)","No of investor complaints disposed off during the period",null,null,null,null,"NoOfInvestorComplaintsDisposedOffDuringThePeriod",null,null,null,null,null,null,{"$f":"IF(COUNTA('Financial Results'!H204),'Financial Results'!H204,\"\")","v":""}]
[null,null,null,null,null,"(iv)","No of investor complaints remaining unresolved at the end of the period",{"$f":"IF(COUNT(H202:H204),+ROUND(SUM(H202:H203)-SUM(H204),2),\"\")","v":""},{"$f":"IF(COUNT(I202:I204),+ROUND(SUM(I202:I203)-SUM(I204),2),\"\")","v":""},null,null,"NoOfInvestorComplaintsRemainingUnresolvedAtTheEndOfThePeriod",null,null,null,null,null,null,{"$f":"IF(COUNTA('Financial Results'!H205),'Financial Results'!H205,\"\")","v":""}]
[]
[null,null,null,null,null,"(c)","Notes Format for financial results by life insurance companies filed with stock exchanges",null,null,null,null,"DisclosureOfNotesOnFinancialResultsExplanatoryTextBlock"]

{"sheet":"Taxonomy","index":3,"n_rows":1200,"n_cols":13,"rows_kept":1200,"cut":false,"hidden":true,"merged":[]}
[]
["Prefix","Name","Name","id","type","substitutionGroup","balance","periodType","abstract","nillable"]
["in-capmkt","GeneralInformationAboutTheCompanyAbstract","GeneralInformationAboutTheCompanyAbstract","in-capmkt_GeneralInformationAboutTheCompanyAbstract","xbrli:stringItemType","xbrli:item",null,"duration","true","true"]
["in-capmkt","Scrip code*","ScripCode","in-capmkt_ScripCode","in-capmkt-types:ScripCode","xbrli:item",null,"duration","false","true","1) This field is mandatory.\n2) Enter a valid Scrip code.\n3) Please enter 6 digit Scrip code."]
["in-capmkt","NSE Symbol*","Symbol","in-capmkt_Symbol","xbrli:stringItemType","xbrli:item",null,"duration","true","true","1) This field is mandatory.\n2) Space is not allowed.\n3) Maximum 10 characters allowed."]
["in-capmkt","MSEI Symbol*","MSEISymbol","in-capmkt_MSEISymbol","xbrli:stringItemType","xbrli:item",null,"duration","true","true","1) This field is mandatory.\n2) Space is not allowed.\n3) Maximum 10 characters allowed."]
["in-capmkt","ISIN*","ISIN","in-capmkt_ISIN","in-capmkt-types:ISIN","xbrli:item",null,"duration","true","true","1) This field is mandatory.\n2) Please enter 12 digit ISIN number."]
["in-capmkt","Type Of Insurance","TypeOfInsurance","in-capmkt_TypeOfInsurance","in-capmkt-types:TypeOfInsurance","xbrli:item",null,"instant","true","true","1) This field is mandatory.\n2) Please select from dropdown only."]
["in-capmkt","Name of company","NameOfTheCompany","in-capmkt_NameOfTheCompany","xbrli:stringItemType","xbrli:item",null,"duration","true","true","This field is mandatory."]
["in-capmkt","Date of start of financial year","DateOfStartOfFinancialYear","in-capmkt_DateOfStartOfFinancialYear","xbrli:dateItemType","xbrli:item",null,"duration","false","true","1) This field is mandatory.\n2) Please select from dropdown only."]
["in-capmkt","Date of end of financial year","DateOfEndOfFinancialYear","in-capmkt_DateOfEndOfFinancialYear","xbrli:dateItemType","xbrli:item",null,"duration","false","true"]
["in-capmkt","DescriptionOfPresentationCurrency","DescriptionOfPresentationCurrency","in-capmkt_DescriptionOfPresentationCurrency","xbrli:stringItemType","xbrli:item",null,"duration","true","true"]
["in-capmkt","LevelOfRoundingUsedInFinancialStatements","LevelOfRoundingUsedInFinancialStatements",{"$error":"#N/A"},{"$error":"#N/A"},"xbrli:item",null,{"$error":"#N/A"},"true","true"]
["in-capmkt","Date of board meeting when results were approved","DateOfBoardMeetingWhenFinancialResultsWereApproved","in-capmkt_DateOfBoardMeetingWhenFinancialResultsWereApproved","xbrli:dateItemType","xbrli:item",null,"duration","false","true","1)Date on which prior intimation of the meeting for considering financial results was informed to the exchange must be on or before \"Date of board meeting when results were approved\".\n2)Date should be within \"Start date and time of board meeting\" and \" End date and time of board meeting\"."]
["in-capmkt","Reporting Quarter","ReportingQuarter","in-capmkt_ReportingQuarter","in-capmkt-types:ReportingPeriod","xbrli:item",null,"duration","false","true","1) This field is mandatory.\n2) Please select from dropdown only."]
["in-capmkt","Nature of report standalone or consolidated","NatureOfReportStandaloneConsolidated","in-capmkt_NatureOfReportStandaloneConsolidated","in-capmkt-types:NatureOfReport","xbrli:item",null,"duration","false","true","1) This field is mandatory.\n2) Please select from dropdown only."]
["in-capmkt","Start date of board meeting","DateOfStartOfBoardMeeting","in-capmkt_DateOfStartOfBoardMeeting","xbrli:dateItemType","xbrli:item",null,"duration","false","true","1) This field is mandatory.\n2) Start date of board meeting would be the next quarter then the reporting quarter (e.g. if results are submitted for June, quarter start time and end time would be from July).\n3) Future date is not allowed.\n4) Enter date in \"DD-MM-YYYY\" format.\n5) Enter a valid date."]
["in-capmkt","End date of board meeting","DateOfEndOfBoardMeeting","in-capmkt_DateOfEndOfBoardMeeting","xbrli:dateItemType","xbrli:item",null,"duration","false","true","1) This field is mandatory.\n2) End date of board meeting must be after or same day of start date of bord meeting and would be the next quarter then the reporting quarter (e.g. if results are submitted for June, quarter start time and end time would be from July) and shall not be earlier than Date of Prior Intimation.\n3) Future date is not allowed.\n4) Enter date in \"DD-MM-YYYY\" format.\n5) Enter a valid date."]
["in-capmkt","Start date and time of board meeting","StartTimeOfBoardMeeting","in-capmkt_StartTimeOfBoardMeeting","xbrli:timeItemType","xbrli:item",null,"duration","false","true","1) This field is mandatory.\n2) Please select from dropdown only."]
["in-capmkt","End date and time of board meeting","EndTimeOfBoardMeeting","in-capmkt_EndTimeOfBoardMeeting","xbrli:timeItemType","xbrli:item",null,"duration","false","true","1) This field is mandatory.\n2) \"End time of board meeting\" must be greater than \"Start time of board meeting\".\n3) Please select from dropdown only."]
["in-capmkt","Date on which prior intimation of the meeting for considering financial results was informed to the exchange","DateOnWhichPriorIntimationOfTheMeetingForConsideringFinancialResultsWasInformedToTheExchange","in-capmkt_DateOnWhichPriorIntimationOfTheMeetingForConsideringFinancialResultsWasInformedToTheExchange","xbrli:dateItemType","xbrli:item",null,"duration",false,true,"\"Date on which prior intimation of the meeting for considering financial results was informed to the exchange\" must be on or before \"Date of board meeting when results were approved\"."]
["in-capmkt","Declaration of unmodified opinion or statement on impact of audit qualification","DeclarationOfUnmodifiedOpinionOrStatementOnImpactOfAuditQualification","in-capmkt_DeclarationOfUnmodifiedOpinionOrStatementOnImpactOfAuditQualification","in-capmkt-types:DeclarationOfImpactOfAuditQalification","xbrli:item",null,"duration","false","true","1) This field is mandatory, if \"Yearly\" selected in \"Reporting Quarter\" field.\n2) Please select from dropdown only."]
["in-capmkt","BalanceSheetAbstract","BalanceSheetAbstract","in-capmkt_BalanceSheetAbstract","xbrli:stringItemType","xbrli:item",null,"duration","true","true"]
["in-capmkt","DateOfEndOfReportingPeriod","DateOfEndOfReportingPeriod","in-capmkt_DateOfEndOfReportingPeriod","xbrli:dateItemType","xbrli:item",null,"duration","true","true"]
["in-capmkt","WhetherResultsAreAuditedOrUnaudited","WhetherResultsAreAuditedOrUnaudited","in-capmkt_WhetherResultsAreAuditedOrUnaudited","in-capmkt-types:AuditedUnaudited","xbrli:item",null,"duration","false","true",null,null,198]
["in-capmkt","SourcesOfFundsAbstract","SourcesOfFundsAbstract","in-capmkt_SourcesOfFundsAbstract","xbrli:stringItemType","xbrli:item",null,"duration","true","true"]
["in-capmkt","ShareCapital","ShareCapital","in-capmkt_ShareCapital","xbrli:monetaryItemType","xbrli:item",null,"instant","false","true","1) This field is mandatory.\n2) Only numeric value allowed.\n3) Upto 2 decimal value allowed."]
["in-capmkt","ReserveAndSurplus","ReservesAndSurplusExcludingRevaluationReserve","in-capmkt_ReservesAndSurplusExcludingRevaluationReserve","xbrli:monetaryItemType","xbrli:item",null,"duration","false","true","1) This field is mandatory.\n2) Only numeric value allowed.\n3) Upto 2 decimal value allowed."]
["in-capmkt","ReservesAndSurplus","ReservesAndSurplus","in-capmkt_ReservesAndSurplus","xbrli:monetaryItemType","xbrli:item",null,"instant","true","true","1) This field is mandatory.\n2) Only numeric value allowed.\n3) Upto 2 decimal value allowed."]
["in-capmkt","FairValueChangeAccountAbstract","FairValueChangeAccountAbstract",{"$error":"#N/A"},{"$error":"#N/A"},"xbrli:item",null,{"$error":"#N/A"},"true","true"]
["in-capmkt","PolicyholdersFunds","PolicyholdersFunds","in-capmkt_PolicyholdersFunds","xbrli:monetaryItemType","xbrli:item",null,"instant","true","true","1) This field is mandatory.\n2) Only numeric value allowed.\n3) Upto 2 decimal value allowed."]
["in-capmkt","ShareholderFund","InvestmentsShareholdersFund","in-capmkt_InvestmentsShareholdersFund","xbrli:monetaryItemType","xbrli:item",null,"instant","false","true","1) This field is mandatory.\n2) Only numeric value allowed.\n3) Upto 2 decimal value allowed."]
["in-capmkt","Borrowings","Borrowings","in-capmkt_Borrowings","xbrli:monetaryItemType","xbrli:item",null,"instant","false","true","1) This field is mandatory.\n2) Only numeric value allowed.\n3) Upto 2 decimal value allowed."]
["in-capmkt","MinorityInterest","MinorityInterest",{"$error":"#N/A"},{"$error":"#N/A"},"xbrli:item",null,{"$error":"#N/A"},"false","true","1) This field is mandatory.\n2) Only numeric value allowed.\n3) Upto 2 decimal value allowed."]
["in-capmkt","SourcesOfFunds","SourcesOfFunds","in-capmkt_SourcesOfFunds","xbrli:monetaryItemType","xbrli:item",null,"instant","true","true","1) This field is mandatory.\n2) Only numeric value allowed.\n3) Upto 2 decimal value allowed."]
["in-capmkt","ApplicationOfFundsAbstract","ApplicationOfFundsAbstract","in-capmkt_ApplicationOfFundsAbstract","xbrli:stringItemType","xbrli:item",null,"duration","true","true"]
["in-capmkt","InvestmentsShareholders","InvestmentsShareholders","in-capmkt_InvestmentsShareholders","xbrli:monetaryItemType","xbrli:item",null,"instant","true","true","1) This field is mandatory.\n2) Only numeric value allowed.\n3) Upto 2 decimal value allowed."]
["in-capmkt","InvestmentsPolicyholders","InvestmentsPolicyholders","in-capmkt_InvestmentsPolicyholders","xbrli:monetaryItemType","xbrli:item",null,"instant","true","true","1) This field is mandatory.\n2) Only numeric value allowed.\n3) Upto 2 decimal value allowed."]
["in-capmkt","Loans","Loans","in-capmkt_Loans","xbrli:monetaryItemType","xbrli:item",null,"instant","true","true","1) This field is mandatory.\n2) Only numeric value allowed.\n3) Upto 2 decimal value allowed."]
["in-capmkt","FixedAssets","FixedAssets","in-capmkt_FixedAssets","xbrli:monetaryItemType","xbrli:item",null,"instant","false","true","1) This field is mandatory.\n2) Only numeric value allowed.\n3) Upto 2 decimal value allowed."]
["in-capmkt","DeferredTaxAsset","DeferredTaxAsset","in-capmkt_DeferredTaxAsset","xbrli:monetaryItemType","xbrli:item",null,"instant","true","true","1) This field is mandatory.\n2) Only numeric value allowed.\n3) Upto 2 decimal value allowed."]
["in-capmkt","NetCurrentAssetsAbstract","NetCurrentAssetsAbstract","in-capmkt_NetCurrentAssetsAbstract","xbrli:stringItemType","xbrli:item",null,"duration","true","true"]
["in-capmkt","CurrentAssetsAbstract","CurrentAssetsAbstract","in-capmkt_CurrentAssetsAbstract","xbrli:stringItemType","xbrli:item",null,"duration","true","true"]
["in-capmkt","CashAndBankBalances","CashAndBankBalances","in-capmkt_CashAndBankBalances","xbrli:monetaryItemType","xbrli:item",null,"instant","true","true","1) This field is mandatory.\n2) Only numeric value allowed.\n3) Upto 2 decimal value allowed."]
["in-capmkt","AdvancesAndOtherAssets","AdvancesAndOtherAssets","in-capmkt_AdvancesAndOtherAssets","xbrli:monetaryItemType","xbrli:item",null,"instant","true","true","1) This field is mandatory.\n2) Only numeric value allowed.\n3) Upto 2 decimal value allowed."]
["in-capmkt","CurrentAssets","CurrentAssets","in-capmkt_CurrentAssets","xbrli:monetaryItemType","xbrli:item",null,"instant","false","true","1) This field is mandatory.\n2) Only numeric value allowed.\n3) Upto 2 decimal value allowed."]
["in-capmkt","CurrentLiabilitiesAbstract","CurrentLiabilitiesAbstract","in-capmkt_CurrentLiabilitiesAbstract","xbrli:stringItemType","xbrli:item",null,"duration","true","true"]
["in-capmkt","CurrentLiabilities","CurrentLiabilities","in-capmkt_CurrentLiabilities","xbrli:monetaryItemType","xbrli:item",null,"instant","false","true","1) This field is mandatory.\n2) Only numeric value allowed.\n3) Upto 2 decimal value allowed."]
["in-capmkt","Provisions","Provisions","in-capmkt_Provisions","xbrli:monetaryItemType","xbrli:item",null,"instant","false","true","1) This field is mandatory.\n2) Only numeric value allowed.\n3) Upto 2 decimal value allowed."]
["in-capmkt","NetCurrentAssets","NetCurrentAssets","in-capmkt_NetCurrentAssets","xbrli:monetaryItemType","xbrli:item",null,"instant","false","true","1) This field is mandatory.\n2) Only numeric value allowed.\n3) Upto 2 decimal value allowed."]
["in-capmkt","MiscellaneousExpenditureToTheExtentNotWrittenOffOrAdjusted","MiscellaneousExpenditureToTheExtentNotWrittenOffOrAdjusted","in-capmkt_MiscellaneousExpenditureToTheExtentNotWrittenOffOrAdjusted","xbrli:monetaryItemType","xbrli:item",null,"instant","false","true","1) This field is mandatory.\n2) Only numeric value allowed.\n3) Upto 2 decimal value allowed."]
["in-capmkt","DebitBalanceInProfitAndLossAccountShareholdersAccount","DebitBalanceInProfitAndLossAccountShareholdersAccount","in-capmkt_DebitBalanceInProfitAndLossAccountShareholdersAccount","xbrli:monetaryItemType","xbrli:item",null,"instant","false","true","1) This field is mandatory.\n2) Only numeric value allowed.\n3) Upto 2 decimal value allowed."]
["in-capmkt","ApplicationOfFunds","ApplicationOfFunds","in-capmkt_ApplicationOfFunds","xbrli:monetaryItemType","xbrli:item",null,"instant","false","true","1) This field is mandatory.\n2) Only numeric value allowed.\n3) Upto 2 decimal value allowed."]
["in-capmkt","ContigentLiabilities","ContigentLiabilities","in-capmkt_ContigentLiabilities","xbrli:monetaryItemType","xbrli:item",null,"instant","false","true","1) This field is mandatory.\n2) Only numeric value allowed.\n3) Upto 2 decimal value allowed."]
["in-capmkt","DisclosureOfNotesToBalanceSheetExplanatoryTextBlock","DisclosureOfNotesToBalanceSheetExplanatoryTextBlock","in-capmkt_DisclosureOfNotesToBalanceSheetExplanatoryTextBlock","nonnum:textBlockItemType","xbrli:item",null,"instant","false","true"]
["in-capmkt","SubmissionOfFinancialResultsByLifeInsuranceCompaniesFiledWithStockExchangesAbstract","SubmissionOfFinancialResultsByLifeInsuranceCompaniesFiledWithStockExchangesAbstract","in-capmkt_SubmissionOfFinancialResultsByLifeInsuranceCompaniesFiledWithStockExchangesAbstract","xbrli:stringItemType","xbrli:item",null,"duration","true","true"]
["in-capmkt","DateOfStartOfReportingPeriod","DateOfStartOfReportingPeriod","in-capmkt_DateOfStartOfReportingPeriod","xbrli:dateItemType","xbrli:item",null,"duration","true","true"]
["in-capmkt","PolicyholdersAccountAbstract","PolicyholdersAccountAbstract","in-capmkt_PolicyholdersAccountAbstract","xbrli:stringItemType","xbrli:item",null,"duration","true","true"]
["in-capmkt","StatementOfSurplusDeficitAbstract","StatementOfSurplusDeficitAbstract","in-capmkt_StatementOfSurplusDeficitAbstract","xbrli:stringItemType","xbrli:item",null,"duration","true","true"]
["in-capmkt","IncomeAbstract","IncomeAbstract","in-capmkt_IncomeAbstract","xbrli:stringItemType","xbrli:item",null,"duration","true","true"]
["in-capmkt","GrossPremiumIncomeAbstract","GrossPremiumIncomeAbstract","in-capmkt_GrossPremiumIncomeAbstract","xbrli:stringItemType","xbrli:item",null,"duration","true","true"]
["in-capmkt","IncomeFirstYearPremium","IncomeFirstYearPremium","in-capmkt_IncomeFirstYearPremium","xbrli:monetaryItemType","xbrli:item",null,"duration","true","true","1) This field is mandatory.\n2) Only numeric value allowed.\n3) Upto 2 decimal value allowed."]
["in-capmkt","IncomeRenewalPremium","IncomeRenewalPremium","in-capmkt_IncomeRenewalPremium","xbrli:monetaryItemType","xbrli:item",null,"duration","true","true","1) This field is mandatory.\n2) Only numeric value allowed.\n3) Upto 2 decimal value allowed."]
["in-capmkt","IncomeSinglePremium","IncomeSinglePremium","in-capmkt_IncomeSinglePremium","xbrli:monetaryItemType","xbrli:item",null,"duration","true","true","1) This field is mandatory.\n2) Only numeric value allowed.\n3) Upto 2 decimal value allowed."]
["in-capmkt","GrossPremiumIncome","GrossPremiumIncome","in-capmkt_GrossPremiumIncome","xbrli:monetaryItemType","xbrli:item",null,"duration","true","true","1) This field is mandatory.\n2) Only numeric value allowed.\n3) Upto 2 decimal value allowed."]
["in-capmkt","NetPremiumIncome","NetPremiumIncome","in-capmkt_NetPremiumIncome","xbrli:monetaryItemType","xbrli:item",null,"duration","true","true","1) This field is mandatory.\n2) Only numeric value allowed.\n3) Upto 2 decimal value allowed."]
["in-capmkt","IncomeFromInvestmentsNet","IncomeFromInvestmentsNet","in-capmkt_IncomeFromInvestmentsNet","xbrli:monetaryItemType","xbrli:item",null,"duration","true","true","1) This field is mandatory.\n2) Only numeric value allowed.\n3) Upto 2 decimal value allowed."]
["in-capmkt","PolicyholdersAccountOtherIncome","PolicyholdersAccountOtherIncome","in-capmkt_PolicyholdersAccountOtherIncome","xbrli:monetaryItemType","xbrli:item",null,"duration","true","true","1) This field is mandatory.\n2) Only numeric value allowed.\n3) Upto 2 decimal value allowed."]
["in-capmkt","TransferOfFundsFromShareholdersAccount","TransferOfFundsFromShareholdersAccount","in-capmkt_TransferOfFundsFromShareholdersAccount","xbrli:monetaryItemType","xbrli:item",null,"duration","true","true","1) This field is mandatory if value entered in other segment(s).\n2) If value is inserted then relevant filed is mandatory in other segments so kindly check all segments then validate the sheet."]
["in-capmkt","Income","Income","in-capmkt_Income","xbrli:monetaryItemType","xbrli:item",null,"duration","true","true","1) This field is mandatory.\n2) Only numeric value allowed.\n3) Upto 2 decimal value allowed."]
["in-capmkt","ExpensesAbstract","ExpensesAbstract","in-capmkt_ExpensesAbstract","xbrli:stringItemType","xbrli:item",null,"duration","true","true"]
["in-capmkt","ExpensesOfManagementAbstract","ExpensesOfManagementAbstract","in-capmkt_ExpensesOfManagementAbstract","xbrli:stringItemType","xbrli:item",null,"duration","true","true"]
["in-capmkt","CommissionAbstract","CommissionAbstract","in-capmkt_CommissionAbstract","xbrli:stringItemType","xbrli:item",null,"duration","true","true"]
["in-capmkt","CommissionFirstYearPremium","CommissionFirstYearPremium","in-capmkt_CommissionFirstYearPremium","xbrli:monetaryItemType","xbrli:item",null,"duration","true","true","1) This field is mandatory.\n2) Only numeric value allowed.\n3) Upto 2 decimal value allowed."]
["in-capmkt","CommissionRenewalPremium","CommissionRenewalPremium","in-capmkt_CommissionRenewalPremium","xbrli:monetaryItemType","xbrli:item",null,"duration","true","true","1) This field is mandatory.\n2) Only numeric value allowed.\n3) Upto 2 decimal value allowed."]
["in-capmkt","CommissionSinglePremium","CommissionSinglePremium","in-capmkt_CommissionSinglePremium","xbrli:monetaryItemType","xbrli:item",null,"duration","true","true","1) This field is mandatory.\n2) Only numeric value allowed.\n3) Upto 2 decimal value allowed."]
["in-capmkt","Commission","Commission","in-capmkt_Commission","xbrli:monetaryItemType","xbrli:item",null,"duration","true","true","1) This field is mandatory.\n2) Only numeric value allowed.\n3) Upto 2 decimal value allowed."]
["in-capmkt","NetCommission","NetCommission","in-capmkt_NetCommission","xbrli:monetaryItemType","xbrli:item",null,"duration","true","true","1) This field is mandatory.\n2) Only numeric value allowed.\n3) Upto 2 decimal value allowed."]
["in-capmkt","OperatingExpensesRelatedToInsuranceBusinessAbstract","OperatingExpensesRelatedToInsuranceBusinessAbstract","in-capmkt_OperatingExpensesRelatedToInsuranceBusinessAbstract","xbrli:stringItemType","xbrli:item",null,"duration","true","true"]
["in-capmkt","EmployeesRemunerationAndWelfareExpenses","EmployeesRemunerationAndWelfareExpenses","in-capmkt_EmployeesRemunerationAndWelfareExpenses","xbrli:monetaryItemType","xbrli:item",null,"duration","true","true","1) This field is mandatory.\n2) Only numeric value allowed.\n3) Upto 2 decimal value allowed."]
["in-capmkt","AdministrationExpenses","AdministrationExpenses","in-capmkt_AdministrationExpenses","xbrli:monetaryItemType","xbrli:item",null,"duration","true","true","1) This field is mandatory.\n2) Only numeric value allowed.\n3) Upto 2 decimal value allowed."]
["in-capmkt","AdvertisementAndPublicity","AdvertisementAndPublicity","in-capmkt_AdvertisementAndPublicity","xbrli:monetaryItemType","xbrli:item",null,"duration","true","true","1) This field is mandatory.\n2) Only numeric value allowed.\n3) Upto 2 decimal value allowed."]
["in-capmkt","OtherOperatingExpenses","OtherOperatingExpenses","in-capmkt_OtherOperatingExpenses","xbrli:monetaryItemType","xbrli:item",null,"duration","true","true","1) This field is mandatory.\n2) Only numeric value allowed.\n3) Upto 2 decimal value allowed."]
["in-capmkt","OperatingExpensesRelatedToInsuranceBusiness","OperatingExpensesRelatedToInsuranceBusiness","in-capmkt_OperatingExpensesRelatedToInsuranceBusiness","xbrli:monetaryItemType","xbrli:item",null,"duration","true","true","1) This field is mandatory.\n2) Only numeric value allowed.\n3) Upto 2 decimal value allowed."]
["in-capmkt","ExpensesOfManagement","ExpensesOfManagement","in-capmkt_ExpensesOfManagement","xbrli:monetaryItemType","xbrli:item",null,"duration","true","true","1) This field is mandatory.\n2) Only numeric value allowed.\n3) Upto 2 decimal value allowed."]
["in-capmkt","ProvisionsForDoubtfulDebtsIncludingBadDebtsWrittenOff","ProvisionsForDoubtfulDebtsIncludingBadDebtsWrittenOff","in-capmkt_ProvisionsForDoubtfulDebtsIncludingBadDebtsWrittenOff","xbrli:monetaryItemType","xbrli:item",null,"duration","true","true","1) This field is mandatory.\n2) Only numeric value allowed.\n3) Upto 2 decimal value allowed."]
["in-capmkt","ProvisionsForDiminutionInValueOfInvestments","ProvisionsForDiminutionInValueOfInvestments","in-capmkt_ProvisionsForDiminutionInValueOfInvestments","xbrli:monetaryItemType","xbrli:item",null,"duration","true","true","1) This field is mandatory.\n2) Only numeric value allowed.\n3) Upto 2 decimal value allowed."]
["in-capmkt","GoodsAndServiceTaxChargeOnLinkedCharges","GoodsAndServiceTaxChargeOnLinkedCharges","in-capmkt_GoodsAndServiceTaxChargeOnLinkedCharges","xbrli:monetaryItemType","xbrli:item",null,"duration","true","true","1) This field is mandatory.\n2) Only numeric value allowed.\n3) Upto 2 decimal value allowed."]
["in-capmkt","ProvisionForTaxAbstract","ProvisionForTaxAbstract","in-capmkt_ProvisionForTaxAbstract","xbrli:stringItemType","xbrli:item",null,"duration","true","true"]
["in-capmkt","CurrentTax","CurrentTax","in-capmkt_CurrentTax","xbrli:monetaryItemType","xbrli:item",null,"duration","false","true","1) This field is mandatory.\n2) Only numeric value allowed.\n3) Upto 2 decimal value allowed."]
["in-capmkt","DefferedTax","DefferedTax","in-capmkt_DefferedTax","xbrli:monetaryItemType","xbrli:item",null,"duration","true","true","1) This field is mandatory.\n2) Only numeric value allowed.\n3) Upto 2 decimal value allowed."]
["in-capmkt","ProvisionsForTax","ProvisionForTax","in-capmkt_ProvisionForTax","xbrli:monetaryItemType","xbrli:item",null,"duration","true","true","1) This field is mandatory.\n2) Only numeric value allowed.\n3) Upto 2 decimal value allowed."]
["in-capmkt","BenefitsPaidNet","BenefitsPaidNet","in-capmkt_BenefitsPaidNet","xbrli:monetaryItemType","xbrli:item",null,"duration","true","true","1) This field is mandatory.\n2) Only numeric value allowed.\n3) Upto 2 decimal value allowed."]
["in-capmkt","ChangeInActuarialLiability","ChangeInActuarialLiability","in-capmkt_ChangeInActuarialLiability","xbrli:monetaryItemType","xbrli:item",null,"duration","true","true","1) This field is mandatory.\n2) Only numeric value allowed.\n3) Upto 2 decimal value allowed."]
["in-capmkt","Expenses","Expenses","in-capmkt_Expenses","xbrli:monetaryItemType","xbrli:item",null,"duration","true","true","1) This field is mandatory.\n2) Only numeric value allowed.\n3) Upto 2 decimal value allowed."]
["in-capmkt","NetSurplusDeficit","NetSurplusDeficit","in-capmkt_NetSurplusDeficit","xbrli:monetaryItemType","xbrli:item",null,"duration","true","true","Transferred to Shareholders A/c + Funds for Future Appropriation= Net Surplus(Deficit)"]
["in-capmkt","AppropriationsAbstract","AppropriationsAbstract","in-capmkt_AppropriationsAbstract","xbrli:stringItemType","xbrli:item",null,"duration","true","true"]
["in-capmkt","TransferredToShareholdersAccount","TransferredToShareholdersAccount","in-capmkt_TransferredToShareholdersAccount","xbrli:monetaryItemType","xbrli:item",null,"duration","true","true","1) This field is mandatory.\n2) Only numeric value allowed.\n3) Upto 2 decimal value allowed."]
["in-capmkt","FundsForFutureAppropriation","FundsForFutureAppropriation","in-capmkt_FundsForFutureAppropriation","xbrli:monetaryItemType","xbrli:item",null,"duration","true","true","1) This field is mandatory.\n2) Only numeric value allowed.\n3) Upto 2 decimal value allowed."]
["in-capmkt","FundsForFutureAppropriations","FundsForFutureAppropriations","in-capmkt_FundsForFutureAppropriations","xbrli:monetaryItemType","xbrli:item",null,"instant","true","true","1) This field is mandatory.\n2) Only numeric value allowed.\n3) Upto 2 decimal value allowed."]
["in-capmkt","DetailsOfSurplusDeficitAbstract","DetailsOfSurplusDeficitAbstract","in-capmkt_DetailsOfSurplusDeficitAbstract","xbrli:stringItemType","xbrli:item",null,"duration","true","true"]
["in-capmkt","InterimBonusPaid","InterimBonusPaid","in-capmkt_InterimBonusPaid","xbrli:monetaryItemType","xbrli:item",null,"duration","true","true","1) This field is mandatory.\n2) Only numeric value allowed.\n3) Upto 2 decimal value allowed."]
["in-capmkt","AllocationOfBonusToPolicyholders","AllocationOfBonusToPolicyholders","in-capmkt_AllocationOfBonusToPolicyholders","xbrli:monetaryItemType","xbrli:item",null,"duration","true","true","1) This field is mandatory.\n2) Only numeric value allowed.\n3) Upto 2 decimal value allowed."]
["in-capmkt","SurplusShownInTheRevenueAccount","SurplusShownInTheRevenueAccount","in-capmkt_SurplusShownInTheRevenueAccount","xbrli:monetaryItemType","xbrli:item",null,"duration","true","true","1) This field is mandatory.\n2) Only numeric value allowed.\n3) Upto 2 decimal value allowed."]
["in-capmkt","TerminalBonusPaid","TerminalBonusPaid","in-capmkt_TerminalBonusPaid","xbrli:monetaryItemType","xbrli:item",null,"duration","true","true","1) This field is mandatory.\n2) Only numeric value allowed.\n3) Upto 2 decimal value allowed."]
["in-capmkt","SurplusDeficit","SurplusDeficit","in-capmkt_SurplusDeficit","xbrli:monetaryItemType","xbrli:item",null,"duration","true","true","1) This field is mandatory if value entered in other segment(s).\n2) If value is inserted then relevant filed is mandatory in other segments so kindly check all segments then validate the sheet.\n3) Upto 2 decimal value allowed"]
["in-capmkt","ShareholdersAccountAbstract","ShareholdersAccountAbstract","in-capmkt_ShareholdersAccountAbstract","xbrli:stringItemType","xbrli:item",null,"duration","true","true"]
["in-capmkt","StatementOfProfitAndLossAbstract","StatementOfProfitAndLossAbstract","in-capmkt_StatementOfProfitAndLossAbstract","xbrli:stringItemType","xbrli:item",null,"duration","true","true"]
["in-capmkt","ShareholdersAccountIncomeAbstract","ShareholdersAccountIncomeAbstract","in-capmkt_ShareholdersAccountIncomeAbstract","xbrli:stringItemType","xbrli:item",null,"duration","true","true"]
["in-capmkt","TransferFromPolicyholdersAccount","TransferFromPolicyholdersAccount","in-capmkt_TransferFromPolicyholdersAccount","xbrli:monetaryItemType","xbrli:item",null,"duration","true","true","Transfer from Policyholders' Account Should be equal to Transferred to Shareholders A/c"]
["in-capmkt","IncomeUnderShareholdersAccountAbstract","IncomeUnderShareholdersAccountAbstract","in-capmkt_IncomeUnderShareholdersAccountAbstract","xbrli:stringItemType","xbrli:item",null,"duration","true","true"]
["in-capmkt","InvestmentIncome","InvestmentIncome","in-capmkt_InvestmentIncome","xbrli:monetaryItemType","xbrli:item",null,"duration","true","true","1) This field is mandatory.\n2) Only numeric value allowed.\n3) Upto 2 decimal value allowed."]
["in-capmkt","ShareholdersAccountOtherIncome","ShareholdersAccountOtherIncome","in-capmkt_ShareholdersAccountOtherIncome","xbrli:monetaryItemType","xbrli:item",null,"duration","true","true","1) This field is mandatory.\n2) Only numeric value allowed.\n3) Upto 2 decimal value allowed."]
["in-capmkt","IncomeUnderShareholdersAccount","IncomeUnderShareholdersAccount","in-capmkt_IncomeUnderShareholdersAccount","xbrli:monetaryItemType","xbrli:item",null,"duration","true","true","1) This field is mandatory.\n2) Only numeric value allowed.\n3) Upto 2 decimal value allowed."]
["in-capmkt","ShareholdersAccountIncome","ShareholdersAccountIncome","in-capmkt_ShareholdersAccountIncome","xbrli:monetaryItemType","xbrli:item",null,"duration","true","true","1) This field is mandatory.\n2) Only numeric value allowed.\n3) Upto 2 decimal value allowed."]
["in-capmkt","ShareholdersAccountExpensesAbstract","ShareholdersAccountExpensesAbstract","in-capmkt_ShareholdersAccountExpensesAbstract","xbrli:stringItemType","xbrli:item",null,"duration","true","true"]
["in-capmkt","ExpensesOtherThanThoseRelatedToInsuranceBusiness","ExpensesOtherThanThoseRelatedToInsuranceBusiness","in-capmkt_ExpensesOtherThanThoseRelatedToInsuranceBusiness","xbrli:monetaryItemType","xbrli:item",null,"duration","true","true","1) This field is mandatory.\n2) Only numeric value allowed.\n3) Upto 2 decimal value allowed."]
["in-capmkt","TransferOfFundsToPolicyholdersAccount","TransferOfFundsToPolicyholdersAccount","in-capmkt_TransferOfFundsToPolicyholdersAccount","xbrli:monetaryItemType","xbrli:item",null,"duration","true","true","1) This field is mandatory.\n2) Only numeric value allowed.\n3) Upto 2 decimal value allowed."]
["in-capmkt","ProvisionsForDoubtfulDebtsIncludingWriteOff","ProvisionsForDoubtfulDebtsIncludingWriteOff","in-capmkt_ProvisionsForDoubtfulDebtsIncludingWriteOff","xbrli:monetaryItemType","xbrli:item",null,"duration","true","true","1) This field is mandatory.\n2) Only numeric value allowed.\n3) Upto 2 decimal value allowed."]
["in-capmkt","ShareholdersAccountProvisionsForDiminutionInValueOfInvestments","ShareholdersAccountProvisionsForDiminutionInValueOfInvestments","in-capmkt_ShareholdersAccountProvisionsForDiminutionInValueOfInvestments","xbrli:monetaryItemType","xbrli:item",null,"duration","true","true","1) This field is mandatory.\n2) Only numeric value allowed.\n3) Upto 2 decimal value allowed."]
["in-capmkt","ShareholdersAccountExpenses","ShareholdersAccountExpenses","in-capmkt_ShareholdersAccountExpenses","xbrli:monetaryItemType","xbrli:item",null,"duration","true","true","1) This field is mandatory.\n2) Only numeric value allowed.\n3) Upto 2 decimal value allowed."]
["in-capmkt","ProfitLossBeforeTax","ProfitLossBeforeTax","in-capmkt_ProfitLossBeforeTax","xbrli:monetaryItemType","xbrli:item",null,"duration","true","true","1) This field is mandatory.\n2) Only numeric value allowed.\n3) Upto 2 decimal value allowed."]
["in-capmkt","ProvisionsForTax","ProvisionForTax","in-capmkt_ProvisionForTax","xbrli:monetaryItemType","xbrli:item",null,"duration","true","true","1) This field is mandatory.\n2) Only numeric value allowed.\n3) Upto 2 decimal value allowed."]
["in-capmkt","ProvisionsForTaxesAbstract","ProvisionsForTaxesAbstract","in-capmkt_ProvisionsForTaxesAbstract","xbrli:stringItemType","xbrli:item",null,"duration","true","true"]
["in-capmkt","CurrentTaxes","CurrentTaxes","in-capmkt_CurrentTaxes","xbrli:monetaryItemType","xbrli:item",null,"duration","true","true","1) This field is mandatory.\n2) Only numeric value allowed.\n3) Upto 2 decimal value allowed."]
["in-capmkt","DefferedTaxes","DefferedTaxes","in-capmkt_DefferedTaxes","xbrli:monetaryItemType","xbrli:item",null,"duration","true","true","1) This field is mandatory.\n2) Only numeric value allowed.\n3) Upto 2 decimal value allowed."]
["in-capmkt","ProvisionsForTaxes","ProvisionsForTaxes","in-capmkt_ProvisionsForTaxes","xbrli:monetaryItemType","xbrli:item",null,"duration","true","true","1) This field is mandatory.\n2) Only numeric value allowed.\n3) Upto 2 decimal value allowed."]
["in-capmkt","ProfitLossAfterTaxBeforeExtraordinaryItems","ProfitLossAfterTaxBeforeExtraordinaryItems","in-capmkt_ProfitLossAfterTaxBeforeExtraordinaryItems","xbrli:monetaryItemType","xbrli:item",null,"duration","true","true","1) This field is mandatory.\n2) Only numeric value allowed.\n3) Upto 2 decimal value allowed."]
["in-capmkt","ExtraordinaryItemsNetOfTaxExpenses","ExtraordinaryItemsNetOfTaxExpenses","in-capmkt_ExtraordinaryItemsNetOfTaxExpenses","xbrli:monetaryItemType","xbrli:item",null,"duration","true","true","1) This field is mandatory.\n2) Only numeric value allowed.\n3) Upto 2 decimal value allowed."]
["in-capmkt","ProfitLossAfterTaxAndExtraordinaryItems","ProfitLossAfterTaxAndExtraordinaryItems","in-capmkt_ProfitLossAfterTaxAndExtraordinaryItems","xbrli:monetaryItemType","xbrli:item",null,"duration","true","true","1) This field is mandatory.\n2) Only numeric value allowed.\n3) Upto 2 decimal value allowed."]
["in-capmkt","DividendPerShareAbstract","DividendPerShareAbstract","in-capmkt_DividendPerShareAbstract","xbrli:stringItemType","xbrli:item",null,"duration","true","true"]
["in-capmkt","InterimDividend","InterimDividend","in-capmkt_InterimDividend","xbrli:monetaryItemType","xbrli:item",null,"duration","true","true","1) This field is mandatory.\n2) Only numeric value allowed.\n3) Upto 2 decimal value allowed."]
["in-capmkt","FinalDividend","FinalDividend","in-capmkt_FinalDividend","xbrli:monetaryItemType","xbrli:item",null,"duration","true","true","1) This field is mandatory.\n2) Only numeric value allowed.\n3) Upto 2 decimal value allowed."]
["in-capmkt","OpeningBalanceAndApproproationsFromPATNet","OpeningBalanceAndApproproationsFromPATNet",{"$error":"#N/A"},{"$error":"#N/A"},"xbrli:item",null,{"$error":"#N/A"},"true","true","1) This field is mandatory.\n2) Only numeric value allowed.\n3) Upto 2 decimal value allowed."]
["in-capmkt","ProfitLossCarriedToBalanceSheet","ProfitLossCarriedToBalanceSheet","in-capmkt_ProfitLossCarriedToBalanceSheet","xbrli:monetaryItemType","xbrli:item",null,"duration","true","true","1) This field is mandatory.\n2) Only numeric value allowed.\n3) Upto 2 decimal value allowed."]
["in-capmkt","PaidUpEquityShareCapital","PaidUpEquityShareCapital","in-capmkt_PaidUpEquityShareCapital","xbrli:monetaryItemType","xbrli:item",null,"instant","true","true","1) This field is mandatory.\n2) Only numeric value allowed.\n3) Upto 2 decimal value allowed."]
["in-capmkt","FairValueChangeAccountAndRevaluationReserveShareholders","FairValueChangeAccountAndRevaluationReserveShareholders","in-capmkt_FairValueChangeAccountAndRevaluationReserveShareholders","xbrli:monetaryItemType","xbrli:item",null,"instant","true","true","1) This field is mandatory.\n2) Only numeric value allowed.\n3) Upto 2 decimal value allowed."]
["in-capmkt","AssetsAbstract","AssetsAbstract","in-capmkt_AssetsAbstract","xbrli:stringItemType","xbrli:item",null,"duration","true","true"]
["in-capmkt","InvestmentsAbstract","InvestmentsAbstract","in-capmkt_InvestmentsAbstract","xbrli:stringItemType","xbrli:item",null,"duration","true","true"]
["in-capmkt","ShareholdersFund","ShareholdersFund",{"$error":"#N/A"},{"$error":"#N/A"},"xbrli:item",null,{"$error":"#N/A"},"true","true","1) This field is mandatory.\n2) Only numeric value allowed.\n3) Upto 2 decimal value allowed."]
["in-capmkt","PolicyholdersFundExcludingLinkedAssets","InvestmentsPolicyholdersFundExcludingLinkedAssets","in-capmkt_InvestmentsPolicyholdersFundExcludingLinkedAssets","xbrli:monetaryItemType","xbrli:item",null,"instant","true","true","1) This field is mandatory.\n2) Only numeric value allowed.\n3) Upto 2 decimal value allowed."]
["in-capmkt","AssetsHeldToCoverLinkedLiabilities","AssetsHeldToCoverLinkedLiabilities","in-capmkt_AssetsHeldToCoverLinkedLiabilities","xbrli:monetaryItemType","xbrli:item",null,"instant","true","true","1) This field is mandatory.\n2) Only numeric value allowed.\n3) Upto 2 decimal value allowed."]
["in-capmkt","Investments","Investments","in-capmkt_Investments","xbrli:monetaryItemType","xbrli:item",null,"instant","true","true","1) This field is mandatory.\n2) Only numeric value allowed.\n3) Upto 2 decimal value allowed."]
["in-capmkt","OtherAssetsNetOfCurrentLiabilitiesAndProvisions","OtherAssetsNetOfCurrentLiabilitiesAndProvisions","in-capmkt_OtherAssetsNetOfCurrentLiabilitiesAndProvisions","xbrli:monetaryItemType","xbrli:item",null,"instant","true","true","1) This field is mandatory.\n2) Only numeric value allowed.\n3) Upto 2 decimal value allowed."]
["in-capmkt","Assets","Assets","in-capmkt_Assets","xbrli:monetaryItemType","xbrli:item",null,"instant","true","true","1) This field is mandatory.\n2) Only numeric value allowed.\n3) Upto 2 decimal value allowed."]
["in-capmkt","AnalyticalRatiosAbstract","AnalyticalRatiosAbstract","in-capmkt_AnalyticalRatiosAbstract","xbrli:stringItemType","xbrli:item",null,"duration","true","true"]
["in-capmkt","SolvencyRatio","SolvencyRatio","in-capmkt_SolvencyRatio","num:percentItemType","xbrli:item",null,"duration","true","true","1) This field is mandatory.\n2) Only numeric value allowed.\n3) Upto 2 decimal value allowed."]
["in-capmkt","ExpensesOfManagementRatio","ExpensesOfManagementRatio","in-capmkt_ExpensesOfManagementRatio","num:percentItemType","xbrli:item",null,"duration","true","true","1) This field is mandatory.\n2) Only numeric value allowed.\n3) Upto 2 decimal value allowed."]
["in-capmkt","PolicyholdersLiabilitiesToShareholdersFund","PolicyholdersLiabilitiesToShareholdersFund","in-capmkt_PolicyholdersLiabilitiesToShareholdersFund","xbrli:monetaryItemType","xbrli:item",null,"duration","true","true","1) This field is mandatory.\n2) Only numeric value allowed.\n3) Upto 2 decimal value allowed."]
["in-capmkt","EarningsPerShareAbstract","EarningsPerShareAbstract","in-capmkt_EarningsPerShareAbstract","xbrli:stringItemType","xbrli:item",null,"duration","true","true"]
["in-capmkt","BasicAndDilutedEPSBeforeExtraordinaryItemsNetOfTaxExpenseForThePeriodNotToBeAnnualized","BasicAndDilutedEPSBeforeExtraordinaryItemsNetOfTaxExpenseForThePeriodNotToBeAnnualized","in-capmkt_BasicAndDilutedEPSBeforeExtraordinaryItemsNetOfTaxExpenseForThePeriodNotToBeAnnualized","num:perShareItemType","xbrli:item",null,"duration","true","true","1) This field is mandatory.\n2) Only numeric value allowed.\n3) Upto 2 decimal value allowed."]
["in-capmkt","BasicAndDilutedEPSAfterExtraordinaryItemsNetOfTaxExpenseForThePeriodNotToBeAnnualized","BasicAndDilutedEPSAfterExtraordinaryItemsNetOfTaxExpenseForThePeriodNotToBeAnnualized","in-capmkt_BasicAndDilutedEPSAfterExtraordinaryItemsNetOfTaxExpenseForThePeriodNotToBeAnnualized","num:perShareItemType","xbrli:item",null,"duration","true","true","1) This field is mandatory.\n2) Only numeric value allowed.\n3) Upto 2 decimal value allowed."]
["in-capmkt","NPARatiosForPolicyholdersFundAbstract","NPARatiosForPolicyholdersFundAbstract","in-capmkt_NPARatiosForPolicyholdersFundAbstract","xbrli:stringItemType","xbrli:item",null,"duration","true","true"]
["in-capmkt","GrossNPAsPolicyholdersFund","GrossNPAsPolicyholdersFund",{"$error":"#N/A"},{"$error":"#N/A"},"xbrli:item",null,{"$error":"#N/A"},"true","true","1) This field is mandatory.\n2) Only numeric value allowed.\n3) Upto 2 decimal value allowed."]
["in-capmkt","PercentageOfGrossNPAsPolicyholdersFund","PercentageOfGrossNPAsPolicyholdersFund",{"$error":"#N/A"},{"$error":"#N/A"},"xbrli:item",null,{"$error":"#N/A"},"true","true","1) This field is mandatory.\n2) Only numeric value allowed.\n3) Upto 2 decimal value allowed."]
["in-capmkt","NetNPAsPolicyholdersFund","NetNPAsPolicyholdersFund",{"$error":"#N/A"},{"$error":"#N/A"},"xbrli:item",null,{"$error":"#N/A"},"true","true","1) This field is mandatory.\n2) Only numeric value allowed.\n3) Upto 2 decimal value allowed."]
["in-capmkt","PercentageOfNetNPAsPolicyholdersFund","PercentageOfNetNPAsPolicyholdersFund",{"$error":"#N/A"},{"$error":"#N/A"},"xbrli:item",null,{"$error":"#N/A"},"true","true","1) This field is mandatory.\n2) Only numeric value allowed.\n3) Upto 2 decimal value allowed."]
["in-capmkt","YieldOnInvestmentsOnPolicyholdersFundAbstract","YieldOnInvestmentsOnPolicyholdersFundAbstract","in-capmkt_YieldOnInvestmentsOnPolicyholdersFundAbstract","xbrli:stringItemType","xbrli:item",null,"duration","true","true"]
["in-capmkt","PolicyholdersFundWithoutUnrealisedGainsAbstract","PolicyholdersFundWithoutUnrealisedGainsAbstract","in-capmkt_PolicyholdersFundWithoutUnrealisedGainsAbstract","xbrli:stringItemType","xbrli:item",null,"duration","true","true"]
["in-capmkt","NonLinkedPolicyholdersFundWithoutUnrealisedGainsAbstract","NonLinkedPolicyholdersFundWithoutUnrealisedGainsAbstract","in-capmkt_NonLinkedPolicyholdersFundWithoutUnrealisedGainsAbstract","xbrli:stringItemType","xbrli:item",null,"duration","true","true"]
["in-capmkt","NonLinkedParticipatingPolicyholdersFundWithoutUnrealisedGains","NonLinkedParticipatingPolicyholdersFundWithoutUnrealisedGains","in-capmkt_NonLinkedParticipatingPolicyholdersFundWithoutUnrealisedGains","num:percentItemType","xbrli:item",null,"duration","true","true","1) This field is mandatory.\n2) Only numeric value allowed.\n3) Upto 2 decimal value allowed."]
["in-capmkt","NonLinkedNonParticipatingPolicyholdersFundWithoutUnrealisedGains","NonLinkedNonParticipatingPolicyholdersFundWithoutUnrealisedGains","in-capmkt_NonLinkedNonParticipatingPolicyholdersFundWithoutUnrealisedGains","num:percentItemType","xbrli:item",null,"duration","true","true","1) This field is mandatory.\n2) Only numeric value allowed.\n3) Upto 2 decimal value allowed."]
["in-capmkt","LinkedPolicyholdersFundWithoutUnrealisedGainsAbstract","LinkedPolicyholdersFundWithoutUnrealisedGainsAbstract","in-capmkt_LinkedPolicyholdersFundWithoutUnrealisedGainsAbstract","xbrli:stringItemType","xbrli:item",null,"duration","true","true"]
["in-capmkt","LinkedParticipatingPolicyholdersFundWithoutUnrealisedGains","LinkedParticipatingPolicyholdersFundWithoutUnrealisedGains","in-capmkt_LinkedParticipatingPolicyholdersFundWithoutUnrealisedGains","num:percentItemType","xbrli:item",null,"duration","true","true","1) This field is mandatory.\n2) Only numeric value allowed.\n3) Upto 2 decimal value allowed."]
["in-capmkt","LinkedNonParticipatingPolicyholdersFundWithoutUnrealisedGains","LinkedNonParticipatingPolicyholdersFundWithoutUnrealisedGains","in-capmkt_LinkedNonParticipatingPolicyholdersFundWithoutUnrealisedGains","num:percentItemType","xbrli:item",null,"duration","true","true","1) This field is mandatory.\n2) Only numeric value allowed.\n3) Upto 2 decimal value allowed."]
["in-capmkt","PolicyholdersFundWithUnrealisedGainsAbstract","PolicyholdersFundWithUnrealisedGainsAbstract","in-capmkt_PolicyholdersFundWithUnrealisedGainsAbstract","xbrli:stringItemType","xbrli:item",null,"duration","true","true"]
["in-capmkt","NonLinkedPolicyholdersFundWithUnrealisedGainsAbstract","NonLinkedPolicyholdersFundWithUnrealisedGainsAbstract","in-capmkt_NonLinkedPolicyholdersFundWithUnrealisedGainsAbstract","xbrli:stringItemType","xbrli:item",null,"duration","true","true"]
["in-capmkt","NonLinkedParticipatingPolicyholdersFundWithUnrealisedGains","NonLinkedParticipatingPolicyholdersFundWithUnrealisedGains","in-capmkt_NonLinkedParticipatingPolicyholdersFundWithUnrealisedGains","num:percentItemType","xbrli:item",null,"duration","true","true","1) This field is mandatory.\n2) Only numeric value allowed.\n3) Upto 2 decimal value allowed."]
["in-capmkt","NonLinkedNonParticipatingPolicyholdersFundWithUnrealisedGains","NonLinkedNonParticipatingPolicyholdersFundWithUnrealisedGains","in-capmkt_NonLinkedNonParticipatingPolicyholdersFundWithUnrealisedGains","num:percentItemType","xbrli:item",null,"duration","true","true","1) This field is mandatory.\n2) Only numeric value allowed.\n3) Upto 2 decimal value allowed."]
["in-capmkt","LinkedPolicyholdersFundWithUnrealisedGainsAbstract","LinkedPolicyholdersFundWithUnrealisedGainsAbstract","in-capmkt_LinkedPolicyholdersFundWithUnrealisedGainsAbstract","xbrli:stringItemType","xbrli:item",null,"duration","true","true"]
["in-capmkt","LinkedParticipatingPolicyholdersFundWithUnrealisedGains","LinkedParticipatingPolicyholdersFundWithUnrealisedGains","in-capmkt_LinkedParticipatingPolicyholdersFundWithUnrealisedGains","num:percentItemType","xbrli:item",null,"duration","true","true","1) This field is mandatory.\n2) Only numeric value allowed.\n3) Upto 2 decimal value allowed."]
["in-capmkt","LinkedNonParticipatingPolicyholdersFundWithUnrealisedGains","LinkedNonParticipatingPolicyholdersFundWithUnrealisedGains","in-capmkt_LinkedNonParticipatingPolicyholdersFundWithUnrealisedGains","num:percentItemType","xbrli:item",null,"duration","true","true","1) This field is mandatory.\n2) Only numeric value allowed.\n3) Upto 2 decimal value allowed."]
["in-capmkt","NPARatiosForShareholdersFundAbstract","NPARatiosForShareholdersFundAbstract","in-capmkt_NPARatiosForShareholdersFundAbstract","xbrli:stringItemType","xbrli:item",null,"duration","true","true"]
["in-capmkt","GrossNPAsShareholdersFund","GrossNPAsShareholdersFund","in-capmkt_GrossNPAsShareholdersFund","xbrli:monetaryItemType","xbrli:item",null,"duration","true","true","1) This field is mandatory.\n2) Only numeric value allowed.\n3) Upto 2 decimal value allowed."]
["in-capmkt","PercentageOfGrossNPAsShareholdersFund","PercentageOfGrossNPAsShareholdersFund","in-capmkt_PercentageOfGrossNPAsShareholdersFund","num:percentItemType","xbrli:item",null,"duration","true","true","1) This field is mandatory.\n2) Only numeric value allowed.\n3) Upto 2 decimal value allowed."]
["in-capmkt","NetNPAsShareholdersFund","NetNPAsShareholdersFund","in-capmkt_NetNPAsShareholdersFund","xbrli:monetaryItemType","xbrli:item",null,"duration","true","true","1) This field is mandatory.\n2) Only numeric value allowed.\n3) Upto 2 decimal value allowed."]
["in-capmkt","PercentageOfNetNPAsShareholdersFund","PercentageOfNetNPAsShareholdersFund","in-capmkt_PercentageOfNetNPAsShareholdersFund","num:percentItemType","xbrli:item",null,"duration","true","true","1) This field is mandatory.\n2) Only numeric value allowed.\n3) Upto 2 decimal value allowed."]
["in-capmkt","YieldOnInvestmentsOnShareholdersFundAbstract","YieldOnInvestmentsOnShareholdersFundAbstract","in-capmkt_YieldOnInvestmentsOnShareholdersFundAbstract","xbrli:stringItemType","xbrli:item",null,"duration","true","true"]
["in-capmkt","ShareholdersFundWithoutUnrealisedGains","ShareholdersFundWithoutUnrealisedGains","in-capmkt_ShareholdersFundWithoutUnrealisedGains","xbrli:monetaryItemType","xbrli:item",null,"duration","true","true","1) This field is mandatory.\n2) Only numeric value allowed.\n3) Upto 2 decimal value allowed."]
["in-capmkt","ShareholdersFundWithUnrealisedGains","ShareholdersFundWithUnrealisedGains","in-capmkt_ShareholdersFundWithUnrealisedGains","xbrli:monetaryItemType","xbrli:item",null,"duration","true","true","1) This field is mandatory.\n2) Only numeric value allowed.\n3) Upto 2 decimal value allowed."]
["in-capmkt","PersistencyRatio","PersistencyRatio","in-capmkt_PersistencyRatio","num:percentItemType","xbrli:item",null,"duration","true","true","1) This field is mandatory.\n2) Only numeric value allowed.\n3) Upto 2 decimal value allowed."]
["in-capmkt","PersistencyRatio13ThMonth","PersistencyRatio13ThMonth","in-capmkt_PersistencyRatio13ThMonth","num:percentItemType","xbrli:item",null,"duration","true","true","1) This field is mandatory.\n2) Only numeric value allowed.\n3) Upto 2 decimal value allowed."]
["in-capmkt","PersistencyRatio25ThMonth","PersistencyRatio25ThMonth","in-capmkt_PersistencyRatio25ThMonth","num:percentItemType","xbrli:item",null,"duration","true","true","1) This field is mandatory.\n2) Only numeric value allowed.\n3) Upto 2 decimal value allowed."]
["in-capmkt","PersistencyRatio37ThMonth","PersistencyRatio37ThMonth","in-capmkt_PersistencyRatio37ThMonth","num:percentItemType","xbrli:item",null,"duration","true","true","1) This field is mandatory.\n2) Only numeric value allowed.\n3) Upto 2 decimal value allowed."]
["in-capmkt","PersistencyRatio49ThMonth","PersistencyRatio49ThMonth","in-capmkt_PersistencyRatio49ThMonth","num:percentItemType","xbrli:item",null,"duration","true","true","1) This field is mandatory.\n2) Only numeric value allowed.\n3) Upto 2 decimal value allowed."]
["in-capmkt","PersistencyRatio61ThMonth","PersistencyRatio61ThMonth","in-capmkt_PersistencyRatio61ThMonth","num:percentItemType","xbrli:item",null,"duration","true","true","1) This field is mandatory.\n2) Only numeric value allowed.\n3) Upto 2 decimal value allowed."]
["in-capmkt","ConservationRatio","ConservationRatio","in-capmkt_ConservationRatio","num:percentItemType","xbrli:item",null,"duration","true","true","1) This field is mandatory.\n2) Only numeric value allowed.\n3) Upto 2 decimal value allowed."]
["in-capmkt","PercentageOfSharesHeldByGovernmentOfIndiaInCaseOfPublicSectorInsuranceCompanies","PercentageOfSharesHeldByGovernmentOfIndiaInCaseOfPublicSectorInsuranceCompanies","in-capmkt_PercentageOfSharesHeldByGovernmentOfIndiaInCaseOfPublicSectorInsuranceCompanies","num:percentItemType","xbrli:item",null,"duration","true","true","1) This field is mandatory.\n2) Only numeric value allowed.\n3) Upto 2 decimal value allowed."]
["in-capmkt","InvestorComplaintsAbstract","InvestorComplaintsAbstract","in-capmkt_InvestorComplaintsAbstract","xbrli:stringItemType","xbrli:item",null,"duration","true","true"]
["in-capmkt","NoOfInvestorComplaintsPendingAtTheBeginningOfThePeriod","NoOfInvestorComplaints","in-capmkt_NoOfInvestorComplaints","xbrli:integerItemType","xbrli:item",null,"instant","true","true","1) This is mandatory field.\n2) Number of investor complaints can not be negative or fraction."]
["in-capmkt","NoOfInvestorComplaintsReceivedDuringThePeriod","NoOfInvestorComplaintsReceivedDuringThePeriod","in-capmkt_NoOfInvestorComplaintsReceivedDuringThePeriod","xbrli:integerItemType","xbrli:item",null,"duration","true","true","1) This is mandatory field.\n2) Number of investor complaints Received during the period can not be negative or fraction."]
["in-capmkt","NoOfInvestorComplaintsDisposedOffDuringThePeriod","NoOfInvestorComplaintsDisposedOffDuringThePeriod","in-capmkt_NoOfInvestorComplaintsDisposedOffDuringThePeriod","xbrli:integerItemType","xbrli:item",null,"duration","true","true","1) This is mandatory field.\n2) Number of investor complaints disposed off during the quarter cannot be negative,fraction or greater than sum of complaints at the beginnig of quarter and recieved during the quarter."]
["in-capmkt","NoOfInvestorComplaintsRemainingUnresolvedAtTheEndOfThePeriod","NoOfInvestorComplaints","in-capmkt_NoOfInvestorComplaints","xbrli:integerItemType","xbrli:item",null,"instant","true","true"]
["in-capmkt","NoOfInvestorComplaintsDuringThePeriod","NoOfInvestorComplaintsDuringThePeriod","in-capmkt_NoOfInvestorComplaintsDuringThePeriod","xbrli:integerItemType","xbrli:item",null,"duration","true","true"]
["in-capmkt","DisclosureOfNotesOnFinancialResultsExplanatoryTextBlock","DisclosureOfNotesOnFinancialResultsExplanatoryTextBlock","in-capmkt_DisclosureOfNotesOnFinancialResultsExplanatoryTextBlock","nonnum:textBlockItemType","xbrli:item",null,"duration","false","true"]
["in-capmkt","DetailsOfOtherIncomeAbstract","DetailsOfOtherIncomeAbstract",{"$error":"#N/A"},{"$error":"#N/A"},"xbrli:item",null,{"$error":"#N/A"},"true","true"]
["in-capmkt","DetailsOfOtherIncomeTable","DetailsOfOtherIncomeTable",{"$error":"#N/A"},{"$error":"#N/A"},"xbrldt:hypercubeItem",null,{"$error":"#N/A"},"true","true"]
["in-capmkt","DetailsOfOtherIncomeAxis","DetailsOfOtherIncomeAxis",{"$error":"#N/A"},{"$error":"#N/A"},"xbrldt:dimensionItem",null,{"$error":"#N/A"},"true","true"]
["in-capmkt","OtherIncomeMember","OtherIncomeMember",{"$error":"#N/A"},{"$error":"#N/A"},"xbrli:item",null,{"$error":"#N/A"},"true","true"]
["in-capmkt","OtherIncome1Member","OtherIncome1Member",{"$error":"#N/A"},{"$error":"#N/A"},"xbrli:item",null,{"$error":"#N/A"},"true","true"]
["in-capmkt","OtherIncome2Member","OtherIncome2Member",{"$error":"#N/A"},{"$error":"#N/A"},"xbrli:item",null,{"$error":"#N/A"},"true","true"]
["in-capmkt","OtherIncome3Member","OtherIncome3Member",{"$error":"#N/A"},{"$error":"#N/A"},"xbrli:item",null,{"$error":"#N/A"},"true","true"]
["in-capmkt","OtherIncome4Member","OtherIncome4Member",{"$error":"#N/A"},{"$error":"#N/A"},"xbrli:item",null,{"$error":"#N/A"},"true","true"]
["in-capmkt","OtherIncome5Member","OtherIncome5Member",{"$error":"#N/A"},{"$error":"#N/A"},"xbrli:item",null,{"$error":"#N/A"},"true","true"]
["in-capmkt","OtherIncome6Member","OtherIncome6Member",{"$error":"#N/A"},{"$error":"#N/A"},"xbrli:item",null,{"$error":"#N/A"},"true","true"]
["in-capmkt","OtherIncome7Member","OtherIncome7Member",{"$error":"#N/A"},{"$error":"#N/A"},"xbrli:item",null,{"$error":"#N/A"},"true","true"]
["in-capmkt","OtherIncome8Member","OtherIncome8Member",{"$error":"#N/A"},{"$error":"#N/A"},"xbrli:item",null,{"$error":"#N/A"},"true","true"]
["in-capmkt","OtherIncome9Member","OtherIncome9Member",{"$error":"#N/A"},{"$error":"#N/A"},"xbrli:item",null,{"$error":"#N/A"},"true","true"]
["in-capmkt","OtherIncome10Member","OtherIncome10Member",{"$error":"#N/A"},{"$error":"#N/A"},"xbrli:item",null,{"$error":"#N/A"},"true","true"]
["in-capmkt","DetailsOfOtherIncomeLineItems","DetailsOfOtherIncomeLineItems",{"$error":"#N/A"},{"$error":"#N/A"},"xbrli:item",null,{"$error":"#N/A"},"true","true"]
["in-capmkt","DescriptionOfOtherIncome","DescriptionOfOtherIncome",{"$error":"#N/A"},{"$error":"#N/A"},"xbrli:item",null,{"$error":"#N/A"},"true","true"]
["in-capmkt","OtherIncome","OtherIncome","in-capmkt_OtherIncome","xbrli:monetaryItemType","xbrli:item",null,"duration","true","true","1) This field is mandatory if value entered in other segment(s).\n2) If value is inserted then relevant filed is mandatory in other segments so kindly check all segments then validate the sheet."]
["in-capmkt","DetailsOfOtherOperatingExpensesAbstract","DetailsOfOtherOperatingExpensesAbstract","in-capmkt_DetailsOfOtherOperatingExpensesAbstract","xbrli:stringItemType","xbrli:item",null,"duration","true","true"]
["in-capmkt","DetailsOfOtherOperatingExpensesTable","DetailsOfOtherOperatingExpensesTable","in-capmkt_DetailsOfOtherOperatingExpensesTable","xbrli:stringItemType","xbrldt:hypercubeItem",null,"duration","true","true"]
["in-capmkt","DetailsOfOtherOperatingExpensesAxis","DetailsOfOtherOperatingExpensesAxis","in-capmkt_DetailsOfOtherOperatingExpensesAxis","xbrli:stringItemType","xbrldt:dimensionItem",null,"duration","true","true"]
["in-capmkt","OtherOperatingExpensesMember","OtherOperatingExpensesMember","in-capmkt_OtherOperatingExpensesMember","nonnum:domainItemType","xbrli:item",null,"duration","true","true"]
["in-capmkt","OtherOperatingExpenses1Member","OtherOperatingExpenses1Member","in-capmkt_OtherOperatingExpenses1Member","nonnum:domainItemType","xbrli:item",null,"duration","true","true","1) This field is mandatory.\n2) Only numeric value allowed.\n3) Upto 2 decimal value allowed."]
["in-capmkt","OtherOperatingExpenses2Member","OtherOperatingExpenses2Member","in-capmkt_OtherOperatingExpenses2Member","nonnum:domainItemType","xbrli:item",null,"duration","true","true","1) This field is mandatory.\n2) Only numeric value allowed.\n3) Upto 2 decimal value allowed."]
["in-capmkt","OtherOperatingExpenses3Member","OtherOperatingExpenses3Member","in-capmkt_OtherOperatingExpenses3Member","nonnum:domainItemType","xbrli:item",null,"duration","true","true","1) This field is mandatory.\n2) Only numeric value allowed.\n3) Upto 2 decimal value allowed."]
["in-capmkt","OtherOperatingExpenses4Member","OtherOperatingExpenses4Member","in-capmkt_OtherOperatingExpenses4Member","nonnum:domainItemType","xbrli:item",null,"duration","true","true","1) This field is mandatory.\n2) Only numeric value allowed.\n3) Upto 2 decimal value allowed."]
["in-capmkt","OtherOperatingExpenses5Member","OtherOperatingExpenses5Member","in-capmkt_OtherOperatingExpenses5Member","nonnum:domainItemType","xbrli:item",null,"duration","true","true","1) This field is mandatory.\n2) Only numeric value allowed.\n3) Upto 2 decimal value allowed."]
["in-capmkt","OtherOperatingExpenses6Member","OtherOperatingExpenses6Member","in-capmkt_OtherOperatingExpenses6Member","nonnum:domainItemType","xbrli:item",null,"duration","true","true","1) This field is mandatory.\n2) Only numeric value allowed.\n3) Upto 2 decimal value allowed."]
["in-capmkt","OtherOperatingExpenses7Member","OtherOperatingExpenses7Member","in-capmkt_OtherOperatingExpenses7Member","nonnum:domainItemType","xbrli:item",null,"duration","true","true","1) This field is mandatory.\n2) Only numeric value allowed.\n3) Upto 2 decimal value allowed."]
["in-capmkt","OtherOperatingExpenses8Member","OtherOperatingExpenses8Member","in-capmkt_OtherOperatingExpenses8Member","nonnum:domainItemType","xbrli:item",null,"duration","true","true","1) This field is mandatory.\n2) Only numeric value allowed.\n3) Upto 2 decimal value allowed."]
["in-capmkt","OtherOperatingExpenses9Member","OtherOperatingExpenses9Member","in-capmkt_OtherOperatingExpenses9Member","nonnum:domainItemType","xbrli:item",null,"duration","true","true","1) This field is mandatory.\n2) Only numeric value allowed.\n3) Upto 2 decimal value allowed."]
["in-capmkt","OtherOperatingExpenses10Member","OtherOperatingExpenses10Member","in-capmkt_OtherOperatingExpenses10Member","nonnum:domainItemType","xbrli:item",null,"duration","true","true","1) This field is mandatory.\n2) Only numeric value allowed.\n3) Upto 2 decimal value allowed."]
["in-capmkt","DetailsOfOtherOperatingExpensesLineItems","DetailsOfOtherOperatingExpensesLineItems","in-capmkt_DetailsOfOtherOperatingExpensesLineItems","xbrli:stringItemType","xbrli:item",null,"duration","true","true"]
["in-capmkt","DescriptionOfOtherOperatingExpenses","DescriptionOfOtherOperatingExpenses","in-capmkt_DescriptionOfOtherOperatingExpenses","xbrli:stringItemType","xbrli:item",null,"duration","true","true"]
["in-capmkt","DetailsOfPolicyholdersAccountOtherIncomeAbstract","DetailsOfPolicyholdersAccountOtherIncomeAbstract","in-capmkt_DetailsOfPolicyholdersAccountOtherIncomeAbstract","xbrli:stringItemType","xbrli:item",null,"duration","true","true"]
["in-capmkt","DetailsOfPolicyholdersAccountOtherIncomeTable","DetailsOfPolicyholdersAccountOtherIncomeTable","in-capmkt_DetailsOfPolicyholdersAccountOtherIncomeTable","xbrli:stringItemType","xbrldt:hypercubeItem",null,"duration","true","true"]
["in-capmkt","DetailsOfPolicyholdersAccountOtherIncomeAxis","DetailsOfPolicyholdersAccountOtherIncomeAxis","in-capmkt_DetailsOfPolicyholdersAccountOtherIncomeAxis","xbrli:stringItemType","xbrldt:dimensionItem",null,"duration","true","true"]
["in-capmkt","PolicyholdersAccountOtherIncomeMember","PolicyholdersAccountOtherIncomeMember","in-capmkt_PolicyholdersAccountOtherIncomeMember","nonnum:domainItemType","xbrli:item",null,"duration","true","true"]
["in-capmkt","PolicyholdersAccountOtherIncome1Member","PolicyholdersAccountOtherIncome1Member","in-capmkt_PolicyholdersAccountOtherIncome1Member","nonnum:domainItemType","xbrli:item",null,"duration","true","true","1) This field is mandatory.\n2) Only numeric value allowed.\n3) Upto 2 decimal value allowed."]
["in-capmkt","PolicyholdersAccountOtherIncome2Member","PolicyholdersAccountOtherIncome2Member","in-capmkt_PolicyholdersAccountOtherIncome2Member","nonnum:domainItemType","xbrli:item",null,"duration","true","true","1) This field is mandatory.\n2) Only numeric value allowed.\n3) Upto 2 decimal value allowed."]
["in-capmkt","PolicyholdersAccountOtherIncome3Member","PolicyholdersAccountOtherIncome3Member","in-capmkt_PolicyholdersAccountOtherIncome3Member","nonnum:domainItemType","xbrli:item",null,"duration","true","true","1) This field is mandatory.\n2) Only numeric value allowed.\n3) Upto 2 decimal value allowed."]
["in-capmkt","PolicyholdersAccountOtherIncome4Member","PolicyholdersAccountOtherIncome4Member","in-capmkt_PolicyholdersAccountOtherIncome4Member","nonnum:domainItemType","xbrli:item",null,"duration","true","true","1) This field is mandatory.\n2) Only numeric value allowed.\n3) Upto 2 decimal value allowed."]
["in-capmkt","PolicyholdersAccountOtherIncome5Member","PolicyholdersAccountOtherIncome5Member","in-capmkt_PolicyholdersAccountOtherIncome5Member","nonnum:domainItemType","xbrli:item",null,"duration","true","true","1) This field is mandatory.\n2) Only numeric value allowed.\n3) Upto 2 decimal value allowed."]
["in-capmkt","PolicyholdersAccountOtherIncome6Member","PolicyholdersAccountOtherIncome6Member","in-capmkt_PolicyholdersAccountOtherIncome6Member","nonnum:domainItemType","xbrli:item",null,"duration","true","true","1) This field is mandatory.\n2) Only numeric value allowed.\n3) Upto 2 decimal value allowed."]
["in-capmkt","PolicyholdersAccountOtherIncome7Member","PolicyholdersAccountOtherIncome7Member","in-capmkt_PolicyholdersAccountOtherIncome7Member","nonnum:domainItemType","xbrli:item",null,"duration","true","true","1) This field is mandatory.\n2) Only numeric value allowed.\n3) Upto 2 decimal value allowed."]
["in-capmkt","PolicyholdersAccountOtherIncome8Member","PolicyholdersAccountOtherIncome8Member","in-capmkt_PolicyholdersAccountOtherIncome8Member","nonnum:domainItemType","xbrli:item",null,"duration","true","true","1) This field is mandatory.\n2) Only numeric value allowed.\n3) Upto 2 decimal value allowed."]
["in-capmkt","PolicyholdersAccountOtherIncome9Member","PolicyholdersAccountOtherIncome9Member","in-capmkt_PolicyholdersAccountOtherIncome9Member","nonnum:domainItemType","xbrli:item",null,"duration","true","true","1) This field is mandatory.\n2) Only numeric value allowed.\n3) Upto 2 decimal value allowed."]
["in-capmkt","PolicyholdersAccountOtherIncome10Member","PolicyholdersAccountOtherIncome10Member","in-capmkt_PolicyholdersAccountOtherIncome10Member","nonnum:domainItemType","xbrli:item",null,"duration","true","true","1) This field is mandatory.\n2) Only numeric value allowed.\n3) Upto 2 decimal value allowed."]
["in-capmkt","DetailsOfPolicyholdersAccountOtherIncomeLineItems","DetailsOfPolicyholdersAccountOtherIncomeLineItems","in-capmkt_DetailsOfPolicyholdersAccountOtherIncomeLineItems","xbrli:stringItemType","xbrli:item",null,"duration","true","true"]
["in-capmkt","DescriptionOfPolicyholdersAccountOtherIncome","DescriptionOfPolicyholdersAccountOtherIncome","in-capmkt_DescriptionOfPolicyholdersAccountOtherIncome","xbrli:stringItemType","xbrli:item",null,"duration","true","true"]
["in-capmkt","DetailsOfShareholdersAccountOtherIncomeAbstract","DetailsOfShareholdersAccountOtherIncomeAbstract","in-capmkt_DetailsOfShareholdersAccountOtherIncomeAbstract","xbrli:stringItemType","xbrli:item",null,"duration","true","true"]
["in-capmkt","DetailsOfShareholdersAccountOtherIncomeTable","DetailsOfShareholdersAccountOtherIncomeTable","in-capmkt_DetailsOfShareholdersAccountOtherIncomeTable","xbrli:stringItemType","xbrldt:hypercubeItem",null,"duration","true","true"]
["in-capmkt","DetailsOfShareholdersAccountOtherIncomeAxis","DetailsOfShareholdersAccountOtherIncomeAxis","in-capmkt_DetailsOfShareholdersAccountOtherIncomeAxis","xbrli:stringItemType","xbrldt:dimensionItem",null,"duration","true","true"]
["in-capmkt","ShareholdersAccountOtherIncomeMember","ShareholdersAccountOtherIncomeMember","in-capmkt_ShareholdersAccountOtherIncomeMember","nonnum:domainItemType","xbrli:item",null,"duration","true","true"]
["in-capmkt","ShareholdersAccountOtherIncome1Member","ShareholdersAccountOtherIncome1Member","in-capmkt_ShareholdersAccountOtherIncome1Member","nonnum:domainItemType","xbrli:item",null,"duration","true","true","1) This field is mandatory.\n2) Only numeric value allowed.\n3) Upto 2 decimal value allowed."]
["in-capmkt","ShareholdersAccountOtherIncome2Member","ShareholdersAccountOtherIncome2Member","in-capmkt_ShareholdersAccountOtherIncome2Member","nonnum:domainItemType","xbrli:item",null,"duration","true","true","1) This field is mandatory.\n2) Only numeric value allowed.\n3) Upto 2 decimal value allowed."]
["in-capmkt","ShareholdersAccountOtherIncome3Member","ShareholdersAccountOtherIncome3Member","in-capmkt_ShareholdersAccountOtherIncome3Member","nonnum:domainItemType","xbrli:item",null,"duration","true","true","1) This field is mandatory.\n2) Only numeric value allowed.\n3) Upto 2 decimal value allowed."]
["in-capmkt","ShareholdersAccountOtherIncome4Member","ShareholdersAccountOtherIncome4Member","in-capmkt_ShareholdersAccountOtherIncome4Member","nonnum:domainItemType","xbrli:item",null,"duration","true","true","1) This field is mandatory.\n2) Only numeric value allowed.\n3) Upto 2 decimal value allowed."]
["in-capmkt","ShareholdersAccountOtherIncome5Member","ShareholdersAccountOtherIncome5Member","in-capmkt_ShareholdersAccountOtherIncome5Member","nonnum:domainItemType","xbrli:item",null,"duration","true","true","1) This field is mandatory.\n2) Only numeric value allowed.\n3) Upto 2 decimal value allowed."]
["in-capmkt","ShareholdersAccountOtherIncome6Member","ShareholdersAccountOtherIncome6Member","in-capmkt_ShareholdersAccountOtherIncome6Member","nonnum:domainItemType","xbrli:item",null,"duration","true","true","1) This field is mandatory.\n2) Only numeric value allowed.\n3) Upto 2 decimal value allowed."]
["in-capmkt","ShareholdersAccountOtherIncome7Member","ShareholdersAccountOtherIncome7Member","in-capmkt_ShareholdersAccountOtherIncome7Member","nonnum:domainItemType","xbrli:item",null,"duration","true","true","1) This field is mandatory.\n2) Only numeric value allowed.\n3) Upto 2 decimal value allowed."]
["in-capmkt","ShareholdersAccountOtherIncome8Member","ShareholdersAccountOtherIncome8Member","in-capmkt_ShareholdersAccountOtherIncome8Member","nonnum:domainItemType","xbrli:item",null,"duration","true","true","1) This field is mandatory.\n2) Only numeric value allowed.\n3) Upto 2 decimal value allowed."]
["in-capmkt","ShareholdersAccountOtherIncome9Member","ShareholdersAccountOtherIncome9Member","in-capmkt_ShareholdersAccountOtherIncome9Member","nonnum:domainItemType","xbrli:item",null,"duration","true","true","1) This field is mandatory.\n2) Only numeric value allowed.\n3) Upto 2 decimal value allowed."]
["in-capmkt","ShareholdersAccountOtherIncome10Member","ShareholdersAccountOtherIncome10Member","in-capmkt_ShareholdersAccountOtherIncome10Member","nonnum:domainItemType","xbrli:item",null,"duration","true","true","1) This field is mandatory.\n2) Only numeric value allowed.\n3) Upto 2 decimal value allowed."]
["in-capmkt","DetailsOfShareholdersAccountOtherIncomeLineItems","DetailsOfShareholdersAccountOtherIncomeLineItems","in-capmkt_DetailsOfShareholdersAccountOtherIncomeLineItems","xbrli:stringItemType","xbrli:item",null,"duration","true","true"]
["in-capmkt","DescriptionOfShareholdersAccountOtherIncome","DescriptionOfShareholdersAccountOtherIncome","in-capmkt_DescriptionOfShareholdersAccountOtherIncome","xbrli:stringItemType","xbrli:item",null,"duration","true","true"]
["in-capmkt","ReportingOfGeneralInsuranceCompaniesSegmentWiseRevenueResultsAndCapitalEmployedAbstract","ReportingOfGeneralInsuranceCompaniesSegmentWiseRevenueResultsAndCapitalEmployedAbstract",{"$error":"#N/A"},{"$error":"#N/A"},"xbrli:item",null,{"$error":"#N/A"},"true","true"]
["in-capmkt","ReportingOfSegmentWiseRevenueResultsAndCapitalEmployedAbstract","ReportingOfSegmentWiseRevenueResultsAndCapitalEmployedAbstract",{"$error":"#N/A"},{"$error":"#N/A"},"xbrli:item",null,{"$error":"#N/A"},"true","true"]
["in-capmkt","DisclosuresRelatingToSegmentIncomeAbstract","DisclosuresRelatingToSegmentIncomeAbstract","in-capmkt_DisclosuresRelatingToSegmentIncomeAbstract","xbrli:stringItemType","xbrli:item",null,"duration","true","true"]
["in-capmkt","DisclosuresRelatingToSegmentIncomeTable","DisclosuresRelatingToSegmentIncomeTable","in-capmkt_DisclosuresRelatingToSegmentIncomeTable","xbrli:stringItemType","xbrldt:hypercubeItem",null,"duration","true","true"]
["in-capmkt","SegmentRevenueAxis","SegmentRevenueAxis","in-capmkt_SegmentRevenueAxis","xbrli:stringItemType","xbrldt:dimensionItem",null,"duration","true","true"]
["in-capmkt","DisclosuresRelatingToSegmentIncomeLineItems","DisclosuresRelatingToSegmentIncomeLineItems","in-capmkt_DisclosuresRelatingToSegmentIncomeLineItems","xbrli:stringItemType","xbrli:item",null,"duration","true","true"]
["in-capmkt","NetPremium","NetPremium","in-capmkt_NetPremium","xbrli:monetaryItemType","xbrli:item",null,"duration","true","true","1) This field is mandatory if value entered in other segment(s).\n2) If value is inserted then relevant filed is mandatory in other segments so kindly check all segments then validate the sheet."]
["in-capmkt","IncomeFormInvestments","IncomeFormInvestments","in-capmkt_IncomeFormInvestments","xbrli:monetaryItemType","xbrli:item",null,"duration","true","true","1) This field is mandatory if value entered in other segment(s).\n2) If value is inserted then relevant filed is mandatory in other segments so kindly check all segments then validate the sheet."]
["in-capmkt","DisclosureOfNotesOnSegmentIncomeExplanatoryTextBlock","DisclosureOfNotesOnSegmentIncomeExplanatoryTextBlock","in-capmkt_DisclosureOfNotesOnSegmentIncomeExplanatoryTextBlock","nonnum:textBlockItemType","xbrli:item",null,"instant","false","true"]
["in-capmkt","DisclosuresRelatingToSegmentPremiumDeficiencyAbstract","DisclosuresRelatingToSegmentPremiumDeficiencyAbstract",{"$error":"#N/A"},{"$error":"#N/A"},"xbrli:item",null,{"$error":"#N/A"},"true","true"]
["in-capmkt","DisclosuresRelatingToSegmentPremiumDeficiencyTable","DisclosuresRelatingToSegmentPremiumDeficiencyTable",{"$error":"#N/A"},{"$error":"#N/A"},"xbrldt:hypercubeItem",null,{"$error":"#N/A"},"true","true"]
["in-capmkt","SegmentPremiumDeficiencyAxis","SegmentPremiumDeficiencyAxis",{"$error":"#N/A"},{"$error":"#N/A"},"xbrldt:dimensionItem",null,{"$error":"#N/A"},"true","true"]
["in-capmkt","DisclosuresRelatingToSegmentPremiumDeficiencyLineItems","DisclosuresRelatingToSegmentPremiumDeficiencyLineItems",{"$error":"#N/A"},{"$error":"#N/A"},"xbrli:item",null,{"$error":"#N/A"},"true","true"]
["in-capmkt","PremiumDeficiency","PremiumDeficiency",{"$error":"#N/A"},{"$error":"#N/A"},"xbrli:item",null,{"$error":"#N/A"},"true","true","1) This field is mandatory.\n2) Only numeric value allowed.\n3) Upto 2 decimal value allowed."]
["in-capmkt","DisclosureOfNotesOnSegmentPremiumDeficiencyExplanatoryTextBlock","DisclosureOfNotesOnSegmentPremiumDeficiencyExplanatoryTextBlock",{"$error":"#N/A"},{"$error":"#N/A"},"xbrli:item",null,{"$error":"#N/A"},"true","true"]
["in-capmkt","DisclosuresRelatingToSegmentUnderwritingProfitOrLossAbstract","DisclosuresRelatingToSegmentUnderwritingProfitOrLossAbstract",{"$error":"#N/A"},{"$error":"#N/A"},"xbrli:item",null,{"$error":"#N/A"},"true","true"]
["in-capmkt","DisclosuresRelatingToSegmentUnderwritingProfitOrLossTable","DisclosuresRelatingToSegmentUnderwritingProfitOrLossTable",{"$error":"#N/A"},{"$error":"#N/A"},"xbrldt:hypercubeItem",null,{"$error":"#N/A"},"true","true"]
["in-capmkt","SegmentUnderwritingProfitOrLossAxis","SegmentUnderwritingProfitOrLossAxis",{"$error":"#N/A"},{"$error":"#N/A"},"xbrldt:dimensionItem",null,{"$error":"#N/A"},"true","true"]
["in-capmkt","DisclosuresRelatingToSegmentUnderwritingProfitOrLossLineItems","DisclosuresRelatingToSegmentUnderwritingProfitOrLossLineItems",{"$error":"#N/A"},{"$error":"#N/A"},"xbrli:item",null,{"$error":"#N/A"},"true","true"]
["in-capmkt","UnderwritingProfitOrLoss","UnderwritingProfitOrLoss",{"$error":"#N/A"},{"$error":"#N/A"},"xbrli:item",null,{"$error":"#N/A"},"true","true","1) This field is mandatory.\n2) Only numeric value allowed.\n3) Upto 2 decimal value allowed."]
["in-capmkt","DisclosureOfNotesOnSegmentUnderwritingProfitOrLossExplanatoryTextBlock","DisclosureOfNotesOnSegmentUnderwritingProfitOrLossExplanatoryTextBlock",{"$error":"#N/A"},{"$error":"#N/A"},"xbrli:item",null,{"$error":"#N/A"},"false","true"]
["in-capmkt","DisclosuresRelatingToSegmentOperatingProfitOrLossAbstract","DisclosuresRelatingToSegmentOperatingProfitOrLossAbstract",{"$error":"#N/A"},{"$error":"#N/A"},"xbrli:item",null,{"$error":"#N/A"},"true","true"]
["in-capmkt","DisclosuresRelatingToSegmentOperatingProfitOrLossTable","DisclosuresRelatingToSegmentOperatingProfitOrLossTable",{"$error":"#N/A"},{"$error":"#N/A"},"xbrldt:hypercubeItem",null,{"$error":"#N/A"},"true","true"]
["in-capmkt","SegmentOperatingProfitOrLossAxis","SegmentOperatingProfitOrLossAxis",{"$error":"#N/A"},{"$error":"#N/A"},"xbrldt:dimensionItem",null,{"$error":"#N/A"},"true","true"]
["in-capmkt","DisclosuresRelatingToSegmentOperatingProfitOrLossLineItems","DisclosuresRelatingToSegmentOperatingProfitOrLossLineItems",{"$error":"#N/A"},{"$error":"#N/A"},"xbrli:item",null,{"$error":"#N/A"},"true","true"]
["in-capmkt","OperatingProfitOrLoss","OperatingProfitOrLoss",{"$error":"#N/A"},{"$error":"#N/A"},"xbrli:item",null,{"$error":"#N/A"},"true","true","1) This field is mandatory.\n2) Only numeric value allowed.\n3) Upto 2 decimal value allowed."]
["in-capmkt","DisclosureOfNotesOnSegmentOperatingProfitOrLossExplanatoryTextBlock","DisclosureOfNotesOnSegmentOperatingProfitOrLossExplanatoryTextBlock",{"$error":"#N/A"},{"$error":"#N/A"},"xbrli:item",null,{"$error":"#N/A"},"false","true"]
["in-capmkt","DisclosuresRelatingToSegmentTechnicalLiabilitiesAbstract","DisclosuresRelatingToSegmentTechnicalLiabilitiesAbstract",{"$error":"#N/A"},{"$error":"#N/A"},"xbrli:item",null,{"$error":"#N/A"},"true","true"]
["in-capmkt","DisclosuresRelatingToSegmentTechnicalLiabilitiesTable","DisclosuresRelatingToSegmentTechnicalLiabilitiesTable",{"$error":"#N/A"},{"$error":"#N/A"},"xbrldt:hypercubeItem",null,{"$error":"#N/A"},"true","true"]
["in-capmkt","SegmentTechnicalLiabilitiesAxis","SegmentTechnicalLiabilitiesAxis",{"$error":"#N/A"},{"$error":"#N/A"},"xbrldt:dimensionItem",null,{"$error":"#N/A"},"true","true"]
["in-capmkt","ReportableSegmentsMember","ReportableSegmentsMember","in-capmkt_ReportableSegmentsMember","nonnum:domainItemType","xbrli:item",null,"duration","true","true"]
["in-capmkt","FireMember","FireMember",{"$error":"#N/A"},{"$error":"#N/A"},"xbrli:item",null,{"$error":"#N/A"},"true","true"]
["in-capmkt","MarineMember","MarineMember",{"$error":"#N/A"},{"$error":"#N/A"},"xbrli:item",null,{"$error":"#N/A"},"true","true"]
["in-capmkt","HealthIncludingPersonalAccidentMember","HealthIncludingPersonalAccidentMember",{"$error":"#N/A"},{"$error":"#N/A"},"xbrli:item",null,{"$error":"#N/A"},"true","true"]
["in-capmkt","HealthRetailMember","HealthRetailMember",{"$error":"#N/A"},{"$error":"#N/A"},"xbrli:item",null,{"$error":"#N/A"},"true","true"]
["in-capmkt","HealthGroupMember","HealthGroupMember",{"$error":"#N/A"},{"$error":"#N/A"},"xbrli:item",null,{"$error":"#N/A"},"true","true"]
["in-capmkt","HealthGovernmentSchemesMember","HealthGovernmentSchemesMember",{"$error":"#N/A"},{"$error":"#N/A"},"xbrli:item",null,{"$error":"#N/A"},"true","true"]
["in-capmkt","MotorMember","MotorMember",{"$error":"#N/A"},{"$error":"#N/A"},"xbrli:item",null,{"$error":"#N/A"},"true","true"]
["in-capmkt","MiscellaneousMember","MiscellaneousMember",{"$error":"#N/A"},{"$error":"#N/A"},"xbrli:item",null,{"$error":"#N/A"},"true","true"]
["in-capmkt","RetailMember","RetailMember",{"$error":"#N/A"},{"$error":"#N/A"},"xbrli:item",null,{"$error":"#N/A"},"true","true"]
["in-capmkt","GroupAndCorporateMember","GroupAndCorporateMember",{"$error":"#N/A"},{"$error":"#N/A"},"xbrli:item",null,{"$error":"#N/A"},"true","true"]
["in-capmkt","OtherSegmentsMember","OtherSegmentsMember",{"$error":"#N/A"},{"$error":"#N/A"},"xbrli:item",null,{"$error":"#N/A"},"true","true"]
["in-capmkt","OtherReportableSegments1Member","OtherReportableSegments1Member",{"$error":"#N/A"},{"$error":"#N/A"},"xbrli:item",null,{"$error":"#N/A"},"true","true","1) This field is mandatory.\n2) Only numeric value allowed.\n3) Upto 2 decimal value allowed."]
["in-capmkt","OtherReportableSegments2Member","OtherReportableSegments2Member",{"$error":"#N/A"},{"$error":"#N/A"},"xbrli:item",null,{"$error":"#N/A"},"true","true","1) This field is mandatory.\n2) Only numeric value allowed.\n3) Upto 2 decimal value allowed."]
["in-capmkt","OtherReportableSegments3Member","OtherReportableSegments3Member",{"$error":"#N/A"},{"$error":"#N/A"},"xbrli:item",null,{"$error":"#N/A"},"true","true","1) This field is mandatory.\n2) Only numeric value allowed.\n3) Upto 2 decimal value allowed."]
["in-capmkt","OtherReportableSegments4Member","OtherReportableSegments4Member",{"$error":"#N/A"},{"$error":"#N/A"},"xbrli:item",null,{"$error":"#N/A"},"true","true","1) This field is mandatory.\n2) Only numeric value allowed.\n3) Upto 2 decimal value allowed."]
["in-capmkt","OtherReportableSegments5Member","OtherReportableSegments5Member",{"$error":"#N/A"},{"$error":"#N/A"},"xbrli:item",null,{"$error":"#N/A"},"true","true","1) This field is mandatory.\n2) Only numeric value allowed.\n3) Upto 2 decimal value allowed."]
["in-capmkt","OtherReportableSegments6Member","OtherReportableSegments6Member",{"$error":"#N/A"},{"$error":"#N/A"},"xbrli:item",null,{"$error":"#N/A"},"true","true","1) This field is mandatory.\n2) Only numeric value allowed.\n3) Upto 2 decimal value allowed."]
["in-capmkt","OtherReportableSegments7Member","OtherReportableSegments7Member",{"$error":"#N/A"},{"$error":"#N/A"},"xbrli:item",null,{"$error":"#N/A"},"true","true","1) This field is mandatory.\n2) Only numeric value allowed.\n3) Upto 2 decimal value allowed."]
["in-capmkt","OtherReportableSegments8Member","OtherReportableSegments8Member",{"$error":"#N/A"},{"$error":"#N/A"},"xbrli:item",null,{"$error":"#N/A"},"true","true","1) This field is mandatory.\n2) Only numeric value allowed.\n3) Upto 2 decimal value allowed."]
["in-capmkt","OtherReportableSegments9Member","OtherReportableSegments9Member",{"$error":"#N/A"},{"$error":"#N/A"},"xbrli:item",null,{"$error":"#N/A"},"true","true","1) This field is mandatory.\n2) Only numeric value allowed.\n3) Upto 2 decimal value allowed."]
["in-capmkt","OtherReportableSegments10Member","OtherReportableSegments10Member",{"$error":"#N/A"},{"$error":"#N/A"},"xbrli:item",null,{"$error":"#N/A"},"true","true","1) This field is mandatory.\n2) Only numeric value allowed.\n3) Upto 2 decimal value allowed."]
["in-capmkt","UnallocatedMember","UnallocatedMember",{"$error":"#N/A"},{"$error":"#N/A"},"xbrli:item",null,{"$error":"#N/A"},"true","true"]
["in-capmkt","DisclosuresRelatingToSegmentTechnicalLiabilitiesLineItems","DisclosuresRelatingToSegmentTechnicalLiabilitiesLineItems",{"$error":"#N/A"},{"$error":"#N/A"},"xbrli:item",null,{"$error":"#N/A"},"true","true"]
["in-capmkt","DescriptionOfOtherReportableSegments","DescriptionOfOtherReportableSegments",{"$error":"#N/A"},{"$error":"#N/A"},"xbrli:item",null,{"$error":"#N/A"},"true","true"]
["in-capmkt","SegmentTechnicalLiabilities","SegmentTechnicalLiabilities",{"$error":"#N/A"},{"$error":"#N/A"},"xbrli:item",null,{"$error":"#N/A"},"true","true","1) This field is mandatory.\n2) Only numeric value allowed.\n3) Upto 2 decimal value allowed."]
["in-capmkt","DisclosureOfNotesOnSegmentTechnicalLiabilitiesExplanatoryTextBlock","DisclosureOfNotesOnSegmentTechnicalLiabilitiesExplanatoryTextBlock",{"$error":"#N/A"},{"$error":"#N/A"},"xbrli:item",null,{"$error":"#N/A"},"false","true"]
["in-capmkt","ReportingOfLifeInsuranceCompaniesSegmentWiseRevenueResultsAndCapitalEmployedAbstract","ReportingOfLifeInsuranceCompaniesSegmentWiseRevenueResultsAndCapitalEmployedAbstract","in-capmkt_ReportingOfLifeInsuranceCompaniesSegmentWiseRevenueResultsAndCapitalEmployedAbstract","xbrli:stringItemType","xbrli:item",null,"duration","true","true"]
["in-capmkt","DisclosuresRelatingToSegmentSurplusDeficitAbstract","DisclosuresRelatingToSegmentSurplusDeficitAbstract","in-capmkt_DisclosuresRelatingToSegmentSurplusDeficitAbstract","xbrli:stringItemType","xbrli:item",null,"duration","true","true"]
["in-capmkt","DisclosuresRelatingToSegmentSurplusDeficitTable","DisclosuresRelatingToSegmentSurplusDeficitTable","in-capmkt_DisclosuresRelatingToSegmentSurplusDeficitTable","xbrli:stringItemType","xbrldt:hypercubeItem",null,"duration","true","true"]
["in-capmkt","SegmentSurplusDeficitAxis","SegmentSurplusDeficitAxis","in-capmkt_SegmentSurplusDeficitAxis","xbrli:stringItemType","xbrldt:dimensionItem",null,"duration","true","true"]
["in-capmkt","DisclosuresRelatingToSegmentSurplusDeficitLineItems","DisclosuresRelatingToSegmentSurplusDeficitLineItems","in-capmkt_DisclosuresRelatingToSegmentSurplusDeficitLineItems","xbrli:stringItemType","xbrli:item",null,"duration","true","true"]
["in-capmkt","DisclosureOfNotesOnSegmentSurplusDeficitExplanatoryTextBlock","DisclosureOfNotesOnSegmentSurplusDeficitExplanatoryTextBlock","in-capmkt_DisclosureOfNotesOnSegmentSurplusDeficitExplanatoryTextBlock","nonnum:textBlockItemType","xbrli:item",null,"instant","false","true"]
["in-capmkt","DisclosuresRelatingToSegmentAssetsAbstract","DisclosuresRelatingToSegmentAssetsAbstract","in-capmkt_DisclosuresRelatingToSegmentAssetsAbstract","xbrli:stringItemType","xbrli:item",null,"duration","true","true"]
["in-capmkt","DisclosuresRelatingToSegmentAssetsTable","DisclosuresRelatingToSegmentAssetsTable","in-capmkt_DisclosuresRelatingToSegmentAssetsTable","xbrli:stringItemType","xbrldt:hypercubeItem",null,"duration","true","true"]
["in-capmkt","ReportableSegmentAssetsAxis","ReportableSegmentAssetsAxis","in-capmkt_ReportableSegmentAssetsAxis","xbrli:stringItemType","xbrldt:dimensionItem",null,"duration","true","true"]
["in-capmkt","DisclosuresRelatingToSegmentAssetsLineItems","DisclosuresRelatingToSegmentAssetsLineItems","in-capmkt_DisclosuresRelatingToSegmentAssetsLineItems","xbrli:stringItemType","xbrli:item",null,"duration","true","true"]
["in-capmkt","TypeOfPolicy","TypeOfPolicy",{"$error":"#N/A"},{"$error":"#N/A"},"xbrli:item",null,{"$error":"#N/A"},"true","true"]
["in-capmkt","ParticipantingNonParticipantingPolicies","ParticipantingNonParticipantingPolicies",{"$error":"#N/A"},{"$error":"#N/A"},"xbrli:item",null,{"$error":"#N/A"},"true","true"]
["in-capmkt","SegmentAssets","SegmentAssets","in-capmkt_SegmentAssets","xbrli:monetaryItemType","xbrli:item",null,"instant","true","true","1) This field is mandatory if value entered in other segment(s).\n2) If value is inserted then relevant filed is mandatory in other segments so kindly check all segments then validate the sheet.\n3) Upto 2 decimal value allowed"]
["in-capmkt","DisclosureOfNotesOnSegmentAssetsExplanatoryTextBlock","DisclosureOfNotesOnSegmentAssetsExplanatoryTextBlock","in-capmkt_DisclosureOfNotesOnSegmentAssetsExplanatoryTextBlock","nonnum:textBlockItemType","xbrli:item",null,"instant","false","true"]
["in-capmkt","DisclosuresRelatingToSegmentLiabilitiesAbstract","DisclosuresRelatingToSegmentLiabilitiesAbstract","in-capmkt_DisclosuresRelatingToSegmentLiabilitiesAbstract","xbrli:stringItemType","xbrli:item",null,"duration","true","true"]
["in-capmkt","DisclosuresRelatingToSegmentLiabilitiesTable","DisclosuresRelatingToSegmentLiabilitiesTable","in-capmkt_DisclosuresRelatingToSegmentLiabilitiesTable","xbrli:stringItemType","xbrldt:hypercubeItem",null,"duration","true","true"]
["in-capmkt","ReportableSegmentLiabilitiesAxis","ReportableSegmentLiabilitiesAxis","in-capmkt_ReportableSegmentLiabilitiesAxis","xbrli:stringItemType","xbrldt:dimensionItem",null,"duration","true","true"]
["in-capmkt","ReportableSegmentsMember1","ReportableSegmentsMember1","in-capmkt_ReportableSegmentsMember1","nonnum:domainItemType","xbrli:item",null,"duration","true","true"]
["in-capmkt","ReportableSegmentsMember2","ReportableSegmentsMember2","in-capmkt_ReportableSegmentsMember2","nonnum:domainItemType","xbrli:item",null,"duration","true","true"]
["in-capmkt","ReportableSegmentsMember3","ReportableSegmentsMember3","in-capmkt_ReportableSegmentsMember3","nonnum:domainItemType","xbrli:item",null,"duration","true","true"]
["in-capmkt","ReportableSegmentsMember4","ReportableSegmentsMember4","in-capmkt_ReportableSegmentsMember4","nonnum:domainItemType","xbrli:item",null,"duration","true","true"]
["in-capmkt","ReportableSegmentsMember5","ReportableSegmentsMember5","in-capmkt_ReportableSegmentsMember5","nonnum:domainItemType","xbrli:item",null,"duration","true","true"]
["in-capmkt","ReportableSegmentsMember6","ReportableSegmentsMember6","in-capmkt_ReportableSegmentsMember6","nonnum:domainItemType","xbrli:item",null,"duration","true","true"]
["in-capmkt","ReportableSegmentsMember7","ReportableSegmentsMember7","in-capmkt_ReportableSegmentsMember7","nonnum:domainItemType","xbrli:item",null,"duration","true","true"]
["in-capmkt","ReportableSegmentsMember8","ReportableSegmentsMember8","in-capmkt_ReportableSegmentsMember8","nonnum:domainItemType","xbrli:item",null,"duration","true","true"]
["in-capmkt","ReportableSegmentsMember9","ReportableSegmentsMember9","in-capmkt_ReportableSegmentsMember9","nonnum:domainItemType","xbrli:item",null,"duration","true","true"]
["in-capmkt","ReportableSegmentsMember10","ReportableSegmentsMember10","in-capmkt_ReportableSegmentsMember10","nonnum:domainItemType","xbrli:item",null,"duration","true","true"]
["in-capmkt","ReportableSegmentsMember11","ReportableSegmentsMember11","in-capmkt_ReportableSegmentsMember11","nonnum:domainItemType","xbrli:item",null,"duration","true","true"]
["in-capmkt","ReportableSegmentsMember12","ReportableSegmentsMember12","in-capmkt_ReportableSegmentsMember12","nonnum:domainItemType","xbrli:item",null,"duration","true","true"]
["in-capmkt","ReportableSegmentsMember13","ReportableSegmentsMember13","in-capmkt_ReportableSegmentsMember13","nonnum:domainItemType","xbrli:item",null,"duration","true","true"]
["in-capmkt","ReportableSegmentsMember14","ReportableSegmentsMember14","in-capmkt_ReportableSegmentsMember14","nonnum:domainItemType","xbrli:item",null,"duration","true","true"]
["in-capmkt","ReportableSegmentsMember15","ReportableSegmentsMember15","in-capmkt_ReportableSegmentsMember15","nonnum:domainItemType","xbrli:item",null,"duration","true","true"]
["in-capmkt","ReportableSegmentsMember16","ReportableSegmentsMember16","in-capmkt_ReportableSegmentsMember16","nonnum:domainItemType","xbrli:item",null,"duration","true","true"]
["in-capmkt","ReportableSegmentsMember17","ReportableSegmentsMember17","in-capmkt_ReportableSegmentsMember17","nonnum:domainItemType","xbrli:item",null,"duration","true","true"]
["in-capmkt","ReportableSegmentsMember18","ReportableSegmentsMember18","in-capmkt_ReportableSegmentsMember18","nonnum:domainItemType","xbrli:item",null,"duration","true","true"]
["in-capmkt","ReportableSegmentsMember19","ReportableSegmentsMember19","in-capmkt_ReportableSegmentsMember19","nonnum:domainItemType","xbrli:item",null,"duration","true","true"]
["in-capmkt","ReportableSegmentsMember20","ReportableSegmentsMember20","in-capmkt_ReportableSegmentsMember20","nonnum:domainItemType","xbrli:item",null,"duration","true","true"]
["in-capmkt","ReportableSegmentsMember21","ReportableSegmentsMember21","in-capmkt_ReportableSegmentsMember21","nonnum:domainItemType","xbrli:item",null,"duration","true","true"]
["in-capmkt","ReportableSegmentsMember22","ReportableSegmentsMember22","in-capmkt_ReportableSegmentsMember22","nonnum:domainItemType","xbrli:item",null,"duration","true","true"]
["in-capmkt","DisclosuresRelatingToSegmentLiabilitiesLineItems","DisclosuresRelatingToSegmentLiabilitiesLineItems","in-capmkt_DisclosuresRelatingToSegmentLiabilitiesLineItems","xbrli:stringItemType","xbrli:item",null,"duration","true","true"]
["in-capmkt","DescriptionOfReportableSegments","DescriptionOfReportableSegments","in-capmkt_DescriptionOfReportableSegments","xbrli:stringItemType","xbrli:item",null,"duration","true","true","1) This field is mandatory if value entered in other segment(s).\n2) If value is inserted then relevant filed is mandatory in other segments so kindly check all segments then validate the sheet."]
["in-capmkt","SegmentLiabilities","SegmentLiabilities","in-capmkt_SegmentLiabilities","xbrli:monetaryItemType","xbrli:item",null,"instant","true","true","1) This field is mandatory if value entered in other segment(s).\n2) If value is inserted then relevant filed is mandatory in other segments so kindly check all segments then validate the sheet.\n3) Upto 2 decimal value allowed"]
["in-capmkt","DisclosureOfNotesOnSegmentLiabilitiesExplanatoryTextBlock","DisclosureOfNotesOnSegmentLiabilitiesExplanatoryTextBlock","in-capmkt_DisclosureOfNotesOnSegmentLiabilitiesExplanatoryTextBlock","nonnum:textBlockItemType","xbrli:item",null,"instant","false","true"]
["in-capmkt","SubmissionOfFinancialResultsByGeneralInsuranceCompaniesFiledWithStockExchangesAbstract","SubmissionOfFinancialResultsByGeneralInsuranceCompaniesFiledWithStockExchangesAbstract",{"$error":"#N/A"},{"$error":"#N/A"},"xbrli:item",null,{"$error":"#N/A"},"true","true"]
["in-capmkt","OperatingResultsAbstract","OperatingResultsAbstract",{"$error":"#N/A"},{"$error":"#N/A"},"xbrli:item",null,{"$error":"#N/A"},"true","true"]
["in-capmkt","StatementOfOperatingProfitAndLossAbstract","StatementOfOperatingProfitAndLossAbstract",{"$error":"#N/A"},{"$error":"#N/A"},"xbrli:item",null,{"$error":"#N/A"},"true","true"]
["in-capmkt","OperatingIncomeAbstract","OperatingIncomeAbstract",{"$error":"#N/A"},{"$error":"#N/A"},"xbrli:item",null,{"$error":"#N/A"},"true","true"]
["in-capmkt","GrossPremiumsWritten","GrossPremiumsWritten",{"$error":"#N/A"},{"$error":"#N/A"},"xbrli:item",null,{"$error":"#N/A"},"true","true","1) This field is mandatory.\n2) Only numeric value allowed.\n3) Upto 2 decimal value allowed."]
["in-capmkt","NetPremiumWritten","NetPremiumWritten",{"$error":"#N/A"},{"$error":"#N/A"},"xbrli:item",null,{"$error":"#N/A"},"true","true","1) This field is mandatory.\n2) Only numeric value allowed.\n3) Upto 2 decimal value allowed."]
["in-capmkt","PremiumEarned","PremiumEarned",{"$error":"#N/A"},{"$error":"#N/A"},"xbrli:item",null,{"$error":"#N/A"},"true","true","1) This field is mandatory.\n2) Only numeric value allowed.\n3) Upto 2 decimal value allowed."]
["in-capmkt","OperatingIncome","OperatingIncome",{"$error":"#N/A"},{"$error":"#N/A"},"xbrli:item",null,{"$error":"#N/A"},"true","true","1) This field is mandatory.\n2) Only numeric value allowed.\n3) Upto 2 decimal value allowed."]
["in-capmkt","OperatingExpensesAbstract","OperatingExpensesAbstract",{"$error":"#N/A"},{"$error":"#N/A"},"xbrli:item",null,{"$error":"#N/A"},"true","true"]
["in-capmkt","CommissionsAndBrokerageNet","CommissionsAndBrokerageNet",{"$error":"#N/A"},{"$error":"#N/A"},"xbrli:item",null,{"$error":"#N/A"},"true","true","1) This field is mandatory.\n2) Only numeric value allowed.\n3) Upto 2 decimal value allowed."]
["in-capmkt","IncurredClaimsAbstract","IncurredClaimsAbstract",{"$error":"#N/A"},{"$error":"#N/A"},"xbrli:item",null,{"$error":"#N/A"},"true","true"]
["in-capmkt","ClaimsPaid","ClaimsPaid",{"$error":"#N/A"},{"$error":"#N/A"},"xbrli:item",null,{"$error":"#N/A"},"true","true","1) This field is mandatory.\n2) Only numeric value allowed.\n3) Upto 2 decimal value allowed."]
["in-capmkt","ChangeInOutstandingClaims","ChangeInOutstandingClaims",{"$error":"#N/A"},{"$error":"#N/A"},"xbrli:item",null,{"$error":"#N/A"},"true","true","1) This field is mandatory.\n2) Only numeric value allowed.\n3) Upto 2 decimal value allowed."]
["in-capmkt","IncurredClaims","IncurredClaims",{"$error":"#N/A"},{"$error":"#N/A"},"xbrli:item",null,{"$error":"#N/A"},"true","true","1) This field is mandatory.\n2) Only numeric value allowed.\n3) Upto 2 decimal value allowed."]
["in-capmkt","OperatingExpenses","OperatingExpenses",{"$error":"#N/A"},{"$error":"#N/A"},"xbrli:item",null,{"$error":"#N/A"},"true","true","1) This field is mandatory.\n2) Only numeric value allowed.\n3) Upto 2 decimal value allowed."]
["in-capmkt","TransferToProfitAndLossAccount","TransferToProfitAndLossAccount",{"$error":"#N/A"},{"$error":"#N/A"},"xbrli:item",null,{"$error":"#N/A"},"true","true","1) This field is mandatory.\n2) Only numeric value allowed.\n3) Upto 2 decimal value allowed."]
["in-capmkt","TransferToReserves","TransferToReserves",{"$error":"#N/A"},{"$error":"#N/A"},"xbrli:item",null,{"$error":"#N/A"},"true","true","1) This field is mandatory.\n2) Only numeric value allowed.\n3) Upto 2 decimal value allowed."]
["in-capmkt","NonOperatingResultsAbstract","NonOperatingResultsAbstract",{"$error":"#N/A"},{"$error":"#N/A"},"xbrli:item",null,{"$error":"#N/A"},"true","true"]
["in-capmkt","StatementOfNonOperatingProfitAndLossAbstract","StatementOfNonOperatingProfitAndLossAbstract",{"$error":"#N/A"},{"$error":"#N/A"},"xbrli:item",null,{"$error":"#N/A"},"true","true"]
["in-capmkt","IncomeInShareholdersAccountAbstract","IncomeInShareholdersAccountAbstract",{"$error":"#N/A"},{"$error":"#N/A"},"xbrli:item",null,{"$error":"#N/A"},"true","true"]
["in-capmkt","ShareholdersAccountTransferFromPolicyholdersFund","ShareholdersAccountTransferFromPolicyholdersFund",{"$error":"#N/A"},{"$error":"#N/A"},"xbrli:item",null,{"$error":"#N/A"},"true","true","1) This field is mandatory.\n2) Only numeric value allowed.\n3) Upto 2 decimal value allowed."]
["in-capmkt","ShareholdersAccountIncomeFromInvestments","ShareholdersAccountIncomeFromInvestments",{"$error":"#N/A"},{"$error":"#N/A"},"xbrli:item",null,{"$error":"#N/A"},"true","true","1) This field is mandatory.\n2) Only numeric value allowed.\n3) Upto 2 decimal value allowed."]
["in-capmkt","IncomeInShareholdersAccount","IncomeInShareholdersAccount",{"$error":"#N/A"},{"$error":"#N/A"},"xbrli:item",null,{"$error":"#N/A"},"true","true","1) This field is mandatory.\n2) Only numeric value allowed.\n3) Upto 2 decimal value allowed."]
["in-capmkt","NonOperatingExpenseAbstract","NonOperatingExpenseAbstract",{"$error":"#N/A"},{"$error":"#N/A"},"xbrli:item",null,{"$error":"#N/A"},"true","true"]
["in-capmkt","NonOperatingExpensesOtherThanThoseRelatedToInsuranceBusiness","NonOperatingExpensesOtherThanThoseRelatedToInsuranceBusiness",{"$error":"#N/A"},{"$error":"#N/A"},"xbrli:item",null,{"$error":"#N/A"},"true","true","1) This field is mandatory.\n2) Only numeric value allowed.\n3) Upto 2 decimal value allowed."]
["in-capmkt","NonOperatingProvisionsForDoubtfulDebtsIncludingBadDebtsWrittenOff","NonOperatingProvisionsForDoubtfulDebtsIncludingBadDebtsWrittenOff",{"$error":"#N/A"},{"$error":"#N/A"},"xbrli:item",null,{"$error":"#N/A"},"true","true","1) This field is mandatory.\n2) Only numeric value allowed.\n3) Upto 2 decimal value allowed."]
["in-capmkt","NonOperatingProvisionsForDiminutionInValueOfInvestments","NonOperatingProvisionsForDiminutionInValueOfInvestments",{"$error":"#N/A"},{"$error":"#N/A"},"xbrli:item",null,{"$error":"#N/A"},"true","true","1) This field is mandatory.\n2) Only numeric value allowed.\n3) Upto 2 decimal value allowed."]
["in-capmkt","NonOperatingExpense","NonOperatingExpense",{"$error":"#N/A"},{"$error":"#N/A"},"xbrli:item",null,{"$error":"#N/A"},"true","true","1) This field is mandatory.\n2) Only numeric value allowed.\n3) Upto 2 decimal value allowed."]
["in-capmkt","ProfitOrLossBeforeExtraordinaryItems","ProfitOrLossBeforeExtraordinaryItems",{"$error":"#N/A"},{"$error":"#N/A"},"xbrli:item",null,{"$error":"#N/A"},"true","true","1) This field is mandatory.\n2) Only numeric value allowed.\n3) Upto 2 decimal value allowed."]
["in-capmkt","ExtraordinaryItems","ExtraordinaryItems",{"$error":"#N/A"},{"$error":"#N/A"},"xbrli:item",null,{"$error":"#N/A"},"true","true","1) This field is mandatory.\n2) Only numeric value allowed.\n3) Upto 2 decimal value allowed."]
["in-capmkt","ProfitOrLossBeforeTax","ProfitOrLossBeforeTax",{"$error":"#N/A"},{"$error":"#N/A"},"xbrli:item",null,{"$error":"#N/A"},"true","true","1) This field is mandatory.\n2) Only numeric value allowed.\n3) Upto 2 decimal value allowed."]
["in-capmkt","ProfitLossAfterTax","ProfitLossAfterTax",{"$error":"#N/A"},{"$error":"#N/A"},"xbrli:item",null,{"$error":"#N/A"},"true","true","1) This field is mandatory.\n2) Only numeric value allowed.\n3) Upto 2 decimal value allowed."]
["in-capmkt","PaidUpEquityCapital","PaidUpEquityCapital",{"$error":"#N/A"},{"$error":"#N/A"},"xbrli:item",null,{"$error":"#N/A"},"true","true","1) This field is mandatory.\n2) Only numeric value allowed.\n3) Upto 2 decimal value allowed."]
["in-capmkt","FairValueChangeAccountAndRevaluationReserve","FairValueChangeAccountAndRevaluationReserve",{"$error":"#N/A"},{"$error":"#N/A"},"xbrli:item",null,{"$error":"#N/A"},"true","true","1) This field is mandatory.\n2) Only numeric value allowed.\n3) Upto 2 decimal value allowed."]
["in-capmkt","Shareholders","Shareholders",{"$error":"#N/A"},{"$error":"#N/A"},"xbrli:item",null,{"$error":"#N/A"},"true","true","1) This field is mandatory.\n2) Only numeric value allowed.\n3) Upto 2 decimal value allowed."]
["in-capmkt","PolicyholdersFund","PolicyholdersFund",{"$error":"#N/A"},{"$error":"#N/A"},"xbrli:item",null,{"$error":"#N/A"},"true","true","1) This field is mandatory.\n2) Only numeric value allowed.\n3) Upto 2 decimal value allowed."]
["in-capmkt","IncurredClaimRatio","IncurredClaimRatio",{"$error":"#N/A"},{"$error":"#N/A"},"xbrli:item",null,{"$error":"#N/A"},"true","true","1) This field is mandatory.\n2) Only numeric value allowed.\n3) Upto 2 decimal value allowed."]
["in-capmkt","NetRetentionRatio","NetRetentionRatio",{"$error":"#N/A"},{"$error":"#N/A"},"xbrli:item",null,{"$error":"#N/A"},"true","true","1) This field is mandatory.\n2) Only numeric value allowed.\n3) Upto 2 decimal value allowed."]
["in-capmkt","CombinedRatio","CombinedRatio",{"$error":"#N/A"},{"$error":"#N/A"},"xbrli:item",null,{"$error":"#N/A"},"true","true","1) This field is mandatory.\n2) Only numeric value allowed.\n3) Upto 2 decimal value allowed."]
["in-capmkt","YieldOnInvestmentsAbstract","YieldOnInvestmentsAbstract",{"$error":"#N/A"},{"$error":"#N/A"},"xbrli:item",null,{"$error":"#N/A"},"true","true"]
["in-capmkt","WithoutUnrealizedGains","WithoutUnrealizedGains",{"$error":"#N/A"},{"$error":"#N/A"},"xbrli:item",null,{"$error":"#N/A"},"true","true","1) This field is mandatory.\n2) Only numeric value allowed.\n3) Upto 2 decimal value allowed."]
["in-capmkt","WithUnrealisedGains","WithUnrealisedGains",{"$error":"#N/A"},{"$error":"#N/A"},"xbrli:item",null,{"$error":"#N/A"},"true","true","1) This field is mandatory.\n2) Only numeric value allowed.\n3) Upto 2 decimal value allowed."]
["in-capmkt","PublicShareholdingAbstract","PublicShareholdingAbstract",{"$error":"#N/A"},{"$error":"#N/A"},"xbrli:item",null,{"$error":"#N/A"},"true","true"]
["in-capmkt","NumberOfShares","NumberOfShares",{"$error":"#N/A"},{"$error":"#N/A"},"xbrli:item",null,{"$error":"#N/A"},"true","true"]
["in-capmkt","PercentageOfShareholding","PercentageOfShareholding",{"$error":"#N/A"},{"$error":"#N/A"},"xbrli:item",null,{"$error":"#N/A"},"true","true","1) This field is mandatory.\n2) Only numeric value allowed.\n3) Upto 2 decimal value allowed."]
["in-capmkt","PercentageOfGovernmentHolding","PercentageOfGovernmentHolding",{"$error":"#N/A"},{"$error":"#N/A"},"xbrli:item",null,{"$error":"#N/A"},"true","true","1) This field is mandatory.\n2) Only numeric value allowed.\n3) Upto 2 decimal value allowed."]
["in-capmkt","ShareApplicationMoneyReceivedPendingAllotmentOfShares","ShareApplicationMoneyReceivedPendingAllotmentOfShares","in-capmkt_ShareApplicationMoneyReceivedPendingAllotmentOfShares","xbrli:monetaryItemType","xbrli:item",null,"instant","true","true","1) This field is mandatory.\n2) Only numeric value allowed.\n3) Upto 2 decimal value allowed."]
["in-capmkt","CreditDebitFairValueChangeAccount","CreditDebitFairValueChangeAccount","in-capmkt_CreditDebitFairValueChangeAccount","xbrli:monetaryItemType","xbrli:item",null,"instant","true","true","1) This field is mandatory.\n2) Only numeric value allowed.\n3) Upto 2 decimal value allowed."]
["in-capmkt","PolicyholdersFundsAbstract","PolicyholdersFundsAbstract","in-capmkt_PolicyholdersFundsAbstract","xbrli:stringItemType","xbrli:item",null,"duration","true","true"]
["in-capmkt","CreditDebitFairValueChangeAccountPolicyholdersFunds","CreditDebitFairValueChangeAccountPolicyholdersFunds","in-capmkt_CreditDebitFairValueChangeAccountPolicyholdersFunds","xbrli:monetaryItemType","xbrli:item",null,"instant","true","true","1) This field is mandatory.\n2) Only numeric value allowed.\n3) Upto 2 decimal value allowed."]
["in-capmkt","PolicyLiabilities","PolicyLiabilities","in-capmkt_PolicyLiabilities","xbrli:monetaryItemType","xbrli:item",null,"instant","true","true","1) This field is mandatory.\n2) Only numeric value allowed.\n3) Upto 2 decimal value allowed."]
["in-capmkt","InsuranceReserve","InsuranceReserve","in-capmkt_InsuranceReserve","xbrli:monetaryItemType","xbrli:item",null,"instant","true","true","1) This field is mandatory.\n2) Only numeric value allowed.\n3) Upto 2 decimal value allowed."]
["in-capmkt","RevaluationReserveInvestmentProperty","RevaluationReserveInvestmentProperty","in-capmkt_RevaluationReserveInvestmentProperty","xbrli:monetaryItemType","xbrli:item",null,"instant","true","true","1) This field is mandatory.\n2) Only numeric value allowed.\n3) Upto 2 decimal value allowed."]
["in-capmkt","LinkedLiabilitiesAbstract","LinkedLiabilitiesAbstract","in-capmkt_LinkedLiabilitiesAbstract","xbrli:stringItemType","xbrli:item",null,"duration","true","true"]
["in-capmkt","ProvisionForLinkedLiabilities","ProvisionForLinkedLiabilities","in-capmkt_ProvisionForLinkedLiabilities","xbrli:monetaryItemType","xbrli:item",null,"instant","true","true","1) This field is mandatory.\n2) Only numeric value allowed.\n3) Upto 2 decimal value allowed."]
["in-capmkt","ChangeInFairvalueAccount","ChangeInFairvalueAccount","in-capmkt_ChangeInFairvalueAccount","xbrli:monetaryItemType","xbrli:item",null,"instant","true","true","1) This field is mandatory.\n2) Only numeric value allowed.\n3) Upto 2 decimal value allowed."]
["in-capmkt","FundsForDiscontinuedPoliciesAbstract","FundsForDiscontinuedPoliciesAbstract","in-capmkt_FundsForDiscontinuedPoliciesAbstract","xbrli:stringItemType","xbrli:item",null,"duration","true","true"]
["in-capmkt","DiscontinuedOnAccountOfNonPaymentOfPremium","DiscontinuedOnAccountOfNonPaymentOfPremium","in-capmkt_DiscontinuedOnAccountOfNonPaymentOfPremium","xbrli:monetaryItemType","xbrli:item",null,"instant","true","true","1) This field is mandatory.\n2) Only numeric value allowed.\n3) Upto 2 decimal value allowed."]
["in-capmkt","CreditDebitFairValueChangeAccountFundsForDiscontinuedPolicies","CreditDebitFairValueChangeAccountFundsForDiscontinuedPolicies","in-capmkt_CreditDebitFairValueChangeAccountFundsForDiscontinuedPolicies","xbrli:monetaryItemType","xbrli:item",null,"instant","true","true","1) This field is mandatory.\n2) Only numeric value allowed.\n3) Upto 2 decimal value allowed."]
["in-capmkt","OthersDiscontinuance","OthersDiscontinuance","in-capmkt_OthersDiscontinuance","xbrli:monetaryItemType","xbrli:item",null,"instant","true","true","1) This field is mandatory.\n2) Only numeric value allowed.\n3) Upto 2 decimal value allowed."]
["in-capmkt","LinkedLiabilities","LinkedLiabilities","in-capmkt_LinkedLiabilities","xbrli:monetaryItemType","xbrli:item",null,"instant","true","true","1) This field is mandatory.\n2) Only numeric value allowed.\n3) Upto 2 decimal value allowed."]
["in-capmkt","AssetsHeldToCoverLinkLiabilities","AssetsHeldToCoverLinkLiabilities","in-capmkt_AssetsHeldToCoverLinkLiabilities","xbrli:monetaryItemType","xbrli:item",null,"instant","true","true","1) This field is mandatory.\n2) Only numeric value allowed.\n3) Upto 2 decimal value allowed."]
["in-capmkt","TypeOfReport","TypeOfReport",{"$error":"#N/A"},{"$error":"#N/A"},"xbrli:item",null,{"$error":"#N/A"},"false","true"]
["in-capmkt","DateOfReport","DateOfReport",{"$error":"#N/A"},{"$error":"#N/A"},"xbrli:item",null,{"$error":"#N/A"},"false","true"]
["in-capmkt","DateOfListing","DateOfListing",{"$error":"#N/A"},{"$error":"#N/A"},"xbrli:item",null,{"$error":"#N/A"},"false","true"]
["in-capmkt","DateOfCapitalRestructuring","DateOfCapitalRestructuring",{"$error":"#N/A"},{"$error":"#N/A"},"xbrli:item",null,{"$error":"#N/A"},"false","true"]
["in-capmkt","CompanyRemarksExplanatory","CompanyRemarksExplanatory",{"$error":"#N/A"},{"$error":"#N/A"},"xbrli:item",null,{"$error":"#N/A"},"false","true"]
["in-capmkt","DisclosureOfUnitHoldingPatternAbstract","DisclosureOfUnitHoldingPatternAbstract",{"$error":"#N/A"},{"$error":"#N/A"},"xbrli:item",null,{"$error":"#N/A"},"true","true"]
["in-capmkt","DisclosureOfUnitHoldingPatternTable","DisclosureOfUnitHoldingPatternTable",{"$error":"#N/A"},{"$error":"#N/A"},"xbrldt:hypercubeItem",null,{"$error":"#N/A"},"true","true"]
["in-capmkt","OtherInstitutions7Member","OtherInstitutions7Member",{"$error":"#N/A"},{"$error":"#N/A"},"xbrli:item",null,{"$error":"#N/A"},"true","true"]
["in-capmkt","OtherInstitutions8Member","OtherInstitutions8Member",{"$error":"#N/A"},{"$error":"#N/A"},"xbrli:item",null,{"$error":"#N/A"},"true","true"]
["in-capmkt","OtherInstitutions9Member","OtherInstitutions9Member",{"$error":"#N/A"},{"$error":"#N/A"},"xbrli:item",null,{"$error":"#N/A"},"true","true"]
["in-capmkt","OtherInstitutions10Member","OtherInstitutions10Member",{"$error":"#N/A"},{"$error":"#N/A"},"xbrli:item",null,{"$error":"#N/A"},"true","true"]
["in-capmkt","OtherInstitutions11Member","OtherInstitutions11Member",{"$error":"#N/A"},{"$error":"#N/A"},"xbrli:item",null,{"$error":"#N/A"},"true","true"]
["in-capmkt","OtherInstitutions12Member","OtherInstitutions12Member",{"$error":"#N/A"},{"$error":"#N/A"},"xbrli:item",null,{"$error":"#N/A"},"true","true"]
["in-capmkt","OtherInstitutions13Member","OtherInstitutions13Member",{"$error":"#N/A"},{"$error":"#N/A"},"xbrli:item",null,{"$error":"#N/A"},"true","true"]
["in-capmkt","OtherInstitutions14Member","OtherInstitutions14Member",{"$error":"#N/A"},{"$error":"#N/A"},"xbrli:item",null,{"$error":"#N/A"},"true","true"]
["in-capmkt","OtherInstitutions15Member","OtherInstitutions15Member",{"$error":"#N/A"},{"$error":"#N/A"},"xbrli:item",null,{"$error":"#N/A"},"true","true"]
["in-capmkt","NonInstitutionsMember","NonInstitutionsMember",{"$error":"#N/A"},{"$error":"#N/A"},"xbrli:item",null,{"$error":"#N/A"},"true","true"]
["in-capmkt","CentralGovernmentOrStateGovernmentsOrPresidentOfIndiaNonInstitutionsMember","CentralGovernmentOrStateGovernmentsOrPresidentOfIndiaNonInstitutionsMember",{"$error":"#N/A"},{"$error":"#N/A"},"xbrli:item",null,{"$error":"#N/A"},"true","true"]
["in-capmkt","IndividualsNonInstitutionsMember","IndividualsNonInstitutionsMember",{"$error":"#N/A"},{"$error":"#N/A"},"xbrli:item",null,{"$error":"#N/A"},"true","true"]
["in-capmkt","NBFCsRegisteredWithRBINonInstitutionsMember","NBFCsRegisteredWithRBINonInstitutionsMember",{"$error":"#N/A"},{"$error":"#N/A"},"xbrli:item",null,{"$error":"#N/A"},"true","true"]
["in-capmkt","OtherNonInstitutionsMember","OtherNonInstitutionsMember",{"$error":"#N/A"},{"$error":"#N/A"},"xbrli:item",null,{"$error":"#N/A"},"true","true"]
["in-capmkt","OtherNonInstitutions1Member","OtherNonInstitutions1Member",{"$error":"#N/A"},{"$error":"#N/A"},"xbrli:item",null,{"$error":"#N/A"},"true","true"]
["in-capmkt","OtherNonInstitutions2Member","OtherNonInstitutions2Member",{"$error":"#N/A"},{"$error":"#N/A"},"xbrli:item",null,{"$error":"#N/A"},"true","true"]
["in-capmkt","OtherNonInstitutions3Member","OtherNonInstitutions3Member",{"$error":"#N/A"},{"$error":"#N/A"},"xbrli:item",null,{"$error":"#N/A"},"true","true"]
["in-capmkt","OtherNonInstitutions4Member","OtherNonInstitutions4Member",{"$error":"#N/A"},{"$error":"#N/A"},"xbrli:item",null,{"$error":"#N/A"},"true","true"]
["in-capmkt","OtherNonInstitutions5Member","OtherNonInstitutions5Member",{"$error":"#N/A"},{"$error":"#N/A"},"xbrli:item",null,{"$error":"#N/A"},"true","true"]
["in-capmkt","OtherNonInstitutions6Member","OtherNonInstitutions6Member",{"$error":"#N/A"},{"$error":"#N/A"},"xbrli:item",null,{"$error":"#N/A"},"true","true"]
["in-capmkt","OtherNonInstitutions7Member","OtherNonInstitutions7Member",{"$error":"#N/A"},{"$error":"#N/A"},"xbrli:item",null,{"$error":"#N/A"},"true","true"]
["in-capmkt","OtherNonInstitutions8Member","OtherNonInstitutions8Member",{"$error":"#N/A"},{"$error":"#N/A"},"xbrli:item",null,{"$error":"#N/A"},"true","true"]
["in-capmkt","OtherNonInstitutions9Member","OtherNonInstitutions9Member",{"$error":"#N/A"},{"$error":"#N/A"},"xbrli:item",null,{"$error":"#N/A"},"true","true"]
["in-capmkt","OtherNonInstitutions10Member","OtherNonInstitutions10Member",{"$error":"#N/A"},{"$error":"#N/A"},"xbrli:item",null,{"$error":"#N/A"},"true","true"]
["in-capmkt","OtherNonInstitutions11Member","OtherNonInstitutions11Member",{"$error":"#N/A"},{"$error":"#N/A"},"xbrli:item",null,{"$error":"#N/A"},"true","true"]
["in-capmkt","OtherNonInstitutions12Member","OtherNonInstitutions12Member",{"$error":"#N/A"},{"$error":"#N/A"},"xbrli:item",null,{"$error":"#N/A"},"true","true"]
["in-capmkt","OtherNonInstitutions13Member","OtherNonInstitutions13Member",{"$error":"#N/A"},{"$error":"#N/A"},"xbrli:item",null,{"$error":"#N/A"},"true","true"]
["in-capmkt","OtherNonInstitutions14Member","OtherNonInstitutions14Member",{"$error":"#N/A"},{"$error":"#N/A"},"xbrli:item",null,{"$error":"#N/A"},"true","true"]
["in-capmkt","OtherNonInstitutions15Member","OtherNonInstitutions15Member",{"$error":"#N/A"},{"$error":"#N/A"},"xbrli:item",null,{"$error":"#N/A"},"true","true"]
["in-capmkt","DisclosureOfUnitHoldingPatternLineItems","DisclosureOfUnitHoldingPatternLineItems",{"$error":"#N/A"},{"$error":"#N/A"},"xbrli:item",null,{"$error":"#N/A"},"true","true"]
["in-capmkt","NatureOfOther","NatureOfOther",{"$error":"#N/A"},{"$error":"#N/A"},"xbrli:item",null,{"$error":"#N/A"},"false","true"]
["in-capmkt","NumberOfUnitsHeld","NumberOfUnitsHeld",{"$error":"#N/A"},{"$error":"#N/A"},"xbrli:item",null,{"$error":"#N/A"},"false","true"]
["in-capmkt","AsAPercentageOfTotalOutStandingUnits","AsAPercentageOfTotalOutStandingUnits",{"$error":"#N/A"},{"$error":"#N/A"},"xbrli:item",null,{"$error":"#N/A"},"false","true","1) This field is mandatory.\n2) Only numeric value allowed.\n3) Upto 2 decimal value allowed."]
["in-capmkt","OtherIndian16Member","OtherIndian16Member",{"$error":"#N/A"},{"$error":"#N/A"},"xbrli:item",null,{"$error":"#N/A"},"true","true"]
["in-capmkt","OtherIndian17Member","OtherIndian17Member",{"$error":"#N/A"},{"$error":"#N/A"},"xbrli:item",null,{"$error":"#N/A"},"true","true"]
["in-capmkt","OtherIndian18Member","OtherIndian18Member",{"$error":"#N/A"},{"$error":"#N/A"},"xbrli:item",null,{"$error":"#N/A"},"true","true"]
["in-capmkt","CategoryOfUnitHoldingPatternDetailsAxis","CategoryOfUnitHoldingPatternDetailsAxis",{"$error":"#N/A"},{"$error":"#N/A"},"xbrldt:dimensionItem",null,{"$error":"#N/A"},"true","true"]
["in-capmkt","TotalUnitsOutstandingMember","TotalUnitsOutstandingMember",{"$error":"#N/A"},{"$error":"#N/A"},"xbrli:item",null,{"$error":"#N/A"},"true","true"]
["in-capmkt","UnitHoldingOfSponsorAndSponsorGroupMember","UnitHoldingOfSponsorAndSponsorGroupMember",{"$error":"#N/A"},{"$error":"#N/A"},"xbrli:item",null,{"$error":"#N/A"},"true","true"]
["in-capmkt","IndianMember","IndianMember",{"$error":"#N/A"},{"$error":"#N/A"},"xbrli:item",null,{"$error":"#N/A"},"true","true"]
["in-capmkt","IndividualsOrHUFMember","IndividualsOrHUFMember",{"$error":"#N/A"},{"$error":"#N/A"},"xbrli:item",null,{"$error":"#N/A"},"true","true"]
["in-capmkt","CentralGovernmentOrStateGovernmentMember","CentralGovernmentOrStateGovernmentMember",{"$error":"#N/A"},{"$error":"#N/A"},"xbrli:item",null,{"$error":"#N/A"},"true","true"]
["in-capmkt","FinancialInstitutionsBanksMember","FinancialInstitutionsBanksMember",{"$error":"#N/A"},{"$error":"#N/A"},"xbrli:item",null,{"$error":"#N/A"},"true","true"]
["in-capmkt","OtherIndianMember","OtherIndianMember",{"$error":"#N/A"},{"$error":"#N/A"},"xbrli:item",null,{"$error":"#N/A"},"true","true"]
["in-capmkt","OtherIndian1Member","OtherIndian1Member",{"$error":"#N/A"},{"$error":"#N/A"},"xbrli:item",null,{"$error":"#N/A"},"true","true"]
["in-capmkt","OtherIndian2Member","OtherIndian2Member",{"$error":"#N/A"},{"$error":"#N/A"},"xbrli:item",null,{"$error":"#N/A"},"true","true"]
["in-capmkt","OtherIndian3Member","OtherIndian3Member",{"$error":"#N/A"},{"$error":"#N/A"},"xbrli:item",null,{"$error":"#N/A"},"true","true"]
["in-capmkt","OtherIndian4Member","OtherIndian4Member",{"$error":"#N/A"},{"$error":"#N/A"},"xbrli:item",null,{"$error":"#N/A"},"true","true"]
["in-capmkt","OtherIndian5Member","OtherIndian5Member",{"$error":"#N/A"},{"$error":"#N/A"},"xbrli:item",null,{"$error":"#N/A"},"true","true"]
["in-capmkt","OtherIndian6Member","OtherIndian6Member",{"$error":"#N/A"},{"$error":"#N/A"},"xbrli:item",null,{"$error":"#N/A"},"true","true"]
["in-capmkt","OtherIndian7Member","OtherIndian7Member",{"$error":"#N/A"},{"$error":"#N/A"},"xbrli:item",null,{"$error":"#N/A"},"true","true"]
["in-capmkt","OtherIndian8Member","OtherIndian8Member",{"$error":"#N/A"},{"$error":"#N/A"},"xbrli:item",null,{"$error":"#N/A"},"true","true"]
["in-capmkt","OtherIndian9Member","OtherIndian9Member",{"$error":"#N/A"},{"$error":"#N/A"},"xbrli:item",null,{"$error":"#N/A"},"true","true"]
["in-capmkt","OtherIndian10Member","OtherIndian10Member",{"$error":"#N/A"},{"$error":"#N/A"},"xbrli:item",null,{"$error":"#N/A"},"true","true"]
["in-capmkt","OtherIndian11Member","OtherIndian11Member",{"$error":"#N/A"},{"$error":"#N/A"},"xbrli:item",null,{"$error":"#N/A"},"true","true"]
["in-capmkt","OtherIndian12Member","OtherIndian12Member",{"$error":"#N/A"},{"$error":"#N/A"},"xbrli:item",null,{"$error":"#N/A"},"true","true"]
["in-capmkt","OtherIndian13Member","OtherIndian13Member",{"$error":"#N/A"},{"$error":"#N/A"},"xbrli:item",null,{"$error":"#N/A"},"true","true"]
["in-capmkt","OtherIndian14Member","OtherIndian14Member",{"$error":"#N/A"},{"$error":"#N/A"},"xbrli:item",null,{"$error":"#N/A"},"true","true"]
["in-capmkt","OtherIndian15Member","OtherIndian15Member",{"$error":"#N/A"},{"$error":"#N/A"},"xbrli:item",null,{"$error":"#N/A"},"true","true"]
["in-capmkt","ForeignMember","ForeignMember",{"$error":"#N/A"},{"$error":"#N/A"},"xbrli:item",null,{"$error":"#N/A"},"true","true"]
["in-capmkt","IndividualsNonResidentIndiansOrForeignIndividualsMember","IndividualsNonResidentIndiansOrForeignIndividualsMember",{"$error":"#N/A"},{"$error":"#N/A"},"xbrli:item",null,{"$error":"#N/A"},"true","true"]
["in-capmkt","ForeignGovernmentMember","ForeignGovernmentMember",{"$error":"#N/A"},{"$error":"#N/A"},"xbrli:item",null,{"$error":"#N/A"},"true","true"]
["in-capmkt","ForeignInstitutionsMember","ForeignInstitutionsMember",{"$error":"#N/A"},{"$error":"#N/A"},"xbrli:item",null,{"$error":"#N/A"},"true","true"]
["in-capmkt","ForeignPortfolioInvestorsMember","ForeignPortfolioInvestorsMember",{"$error":"#N/A"},{"$error":"#N/A"},"xbrli:item",null,{"$error":"#N/A"},"true","true"]
["in-capmkt","OtherForeignMember","OtherForeignMember",{"$error":"#N/A"},{"$error":"#N/A"},"xbrli:item",null,{"$error":"#N/A"},"true","true"]
["in-capmkt","OtherForeign1Member","OtherForeign1Member",{"$error":"#N/A"},{"$error":"#N/A"},"xbrli:item",null,{"$error":"#N/A"},"true","true"]
["in-capmkt","OtherForeign2Member","OtherForeign2Member",{"$error":"#N/A"},{"$error":"#N/A"},"xbrli:item",null,{"$error":"#N/A"},"true","true"]
["in-capmkt","OtherForeign3Member","OtherForeign3Member",{"$error":"#N/A"},{"$error":"#N/A"},"xbrli:item",null,{"$error":"#N/A"},"true","true"]
["in-capmkt","OtherForeign4Member","OtherForeign4Member",{"$error":"#N/A"},{"$error":"#N/A"},"xbrli:item",null,{"$error":"#N/A"},"true","true"]
["in-capmkt","OtherForeign5Member","OtherForeign5Member",{"$error":"#N/A"},{"$error":"#N/A"},"xbrli:item",null,{"$error":"#N/A"},"true","true"]
["in-capmkt","OtherForeign6Member","OtherForeign6Member",{"$error":"#N/A"},{"$error":"#N/A"},"xbrli:item",null,{"$error":"#N/A"},"true","true"]
["in-capmkt","OtherForeign7Member","OtherForeign7Member",{"$error":"#N/A"},{"$error":"#N/A"},"xbrli:item",null,{"$error":"#N/A"},"true","true"]
["in-capmkt","OtherForeign8Member","OtherForeign8Member",{"$error":"#N/A"},{"$error":"#N/A"},"xbrli:item",null,{"$error":"#N/A"},"true","true"]
["in-capmkt","OtherForeign9Member","OtherForeign9Member",{"$error":"#N/A"},{"$error":"#N/A"},"xbrli:item",null,{"$error":"#N/A"},"true","true"]
["in-capmkt","OtherForeign10Member","OtherForeign10Member",{"$error":"#N/A"},{"$error":"#N/A"},"xbrli:item",null,{"$error":"#N/A"},"true","true"]
["in-capmkt","OtherForeign11Member","OtherForeign11Member",{"$error":"#N/A"},{"$error":"#N/A"},"xbrli:item",null,{"$error":"#N/A"},"true","true"]
["in-capmkt","OtherForeign12Member","OtherForeign12Member",{"$error":"#N/A"},{"$error":"#N/A"},"xbrli:item",null,{"$error":"#N/A"},"true","true"]
["in-capmkt","OtherForeign13Member","OtherForeign13Member",{"$error":"#N/A"},{"$error":"#N/A"},"xbrli:item",null,{"$error":"#N/A"},"true","true"]
["in-capmkt","OtherForeign14Member","OtherForeign14Member",{"$error":"#N/A"},{"$error":"#N/A"},"xbrli:item",null,{"$error":"#N/A"},"true","true"]
["in-capmkt","OtherForeign15Member","OtherForeign15Member",{"$error":"#N/A"},{"$error":"#N/A"},"xbrli:item",null,{"$error":"#N/A"},"true","true"]
["in-capmkt","PublicHoldingMember","PublicHoldingMember",{"$error":"#N/A"},{"$error":"#N/A"},"xbrli:item",null,{"$error":"#N/A"},"true","true"]
["in-capmkt","InstitutionsMember","InstitutionsMember",{"$error":"#N/A"},{"$error":"#N/A"},"xbrli:item",null,{"$error":"#N/A"},"true","true"]
["in-capmkt","MutualFundsInstitutionsMember","MutualFundsInstitutionsMember",{"$error":"#N/A"},{"$error":"#N/A"},"xbrli:item",null,{"$error":"#N/A"},"true","true"]
["in-capmkt","FinancialInstitutionsOrBanksInstitutionsMember","FinancialInstitutionsOrBanksInstitutionsMember",{"$error":"#N/A"},{"$error":"#N/A"},"xbrli:item",null,{"$error":"#N/A"},"true","true"]
["in-capmkt","CentralGovernmentOrStateGovernmentsMember","CentralGovernmentOrStateGovernmentsMember",{"$error":"#N/A"},{"$error":"#N/A"},"xbrli:item",null,{"$error":"#N/A"},"true","true"]
["in-capmkt","VentureCapitalFundsInstitutionsMember","VentureCapitalFundsInstitutionsMember",{"$error":"#N/A"},{"$error":"#N/A"},"xbrli:item",null,{"$error":"#N/A"},"true","true"]
["in-capmkt","InsuranceCompaniesInstitutionsMember","InsuranceCompaniesInstitutionsMember",{"$error":"#N/A"},{"$error":"#N/A"},"xbrli:item",null,{"$error":"#N/A"},"true","true"]
["in-capmkt","ProvidentOrPensionFundsInstitutionsMember","ProvidentOrPensionFundsInstitutionsMember",{"$error":"#N/A"},{"$error":"#N/A"},"xbrli:item",null,{"$error":"#N/A"},"true","true"]
["in-capmkt","ForeignPortfolioInvestorsInstitutionsMember","ForeignPortfolioInvestorsInstitutionsMember",{"$error":"#N/A"},{"$error":"#N/A"},"xbrli:item",null,{"$error":"#N/A"},"true","true"]
["in-capmkt","ForeignVentureCapitalInvestorsInstitutionsMember","ForeignVentureCapitalInvestorsInstitutionsMember",{"$error":"#N/A"},{"$error":"#N/A"},"xbrli:item",null,{"$error":"#N/A"},"true","true"]
["in-capmkt","OtherInstitutionsMember","OtherInstitutionsMember",{"$error":"#N/A"},{"$error":"#N/A"},"xbrli:item",null,{"$error":"#N/A"},"true","true"]
["in-capmkt","OtherInstitutions1Member","OtherInstitutions1Member",{"$error":"#N/A"},{"$error":"#N/A"},"xbrli:item",null,{"$error":"#N/A"},"true","true"]
["in-capmkt","OtherInstitutions2Member","OtherInstitutions2Member",{"$error":"#N/A"},{"$error":"#N/A"},"xbrli:item",null,{"$error":"#N/A"},"true","true"]
["in-capmkt","OtherInstitutions3Member","OtherInstitutions3Member",{"$error":"#N/A"},{"$error":"#N/A"},"xbrli:item",null,{"$error":"#N/A"},"true","true"]
["in-capmkt","OtherInstitutions4Member","OtherInstitutions4Member",{"$error":"#N/A"},{"$error":"#N/A"},"xbrli:item",null,{"$error":"#N/A"},"true","true"]
["in-capmkt","OtherInstitutions5Member","OtherInstitutions5Member",{"$error":"#N/A"},{"$error":"#N/A"},"xbrli:item",null,{"$error":"#N/A"},"true","true"]
["in-capmkt","OtherInstitutions6Member","OtherInstitutions6Member",{"$error":"#N/A"},{"$error":"#N/A"},"xbrli:item",null,{"$error":"#N/A"},"true","true"]
["in-capmkt","OtherIndian19Member","OtherIndian19Member",{"$error":"#N/A"},{"$error":"#N/A"},"xbrli:item",null,{"$error":"#N/A"},"true","true"]
["in-capmkt","OtherIndian20Member","OtherIndian20Member",{"$error":"#N/A"},{"$error":"#N/A"},"xbrli:item",null,{"$error":"#N/A"},"true","true"]
["in-capmkt","OtherIndian21Member","OtherIndian21Member",{"$error":"#N/A"},{"$error":"#N/A"},"xbrli:item",null,{"$error":"#N/A"},"true","true"]
["in-capmkt","OtherIndian22Member","OtherIndian22Member",{"$error":"#N/A"},{"$error":"#N/A"},"xbrli:item",null,{"$error":"#N/A"},"true","true"]
["in-capmkt","OtherIndian23Member","OtherIndian23Member",{"$error":"#N/A"},{"$error":"#N/A"},"xbrli:item",null,{"$error":"#N/A"},"true","true"]
["in-capmkt","OtherIndian24Member","OtherIndian24Member",{"$error":"#N/A"},{"$error":"#N/A"},"xbrli:item",null,{"$error":"#N/A"},"true","true"]
["in-capmkt","OtherIndian25Member","OtherIndian25Member",{"$error":"#N/A"},{"$error":"#N/A"},"xbrli:item",null,{"$error":"#N/A"},"true","true"]
["in-capmkt","OtherIndian26Member","OtherIndian26Member",{"$error":"#N/A"},{"$error":"#N/A"},"xbrli:item",null,{"$error":"#N/A"},"true","true"]
["in-capmkt","OtherIndian27Member","OtherIndian27Member",{"$error":"#N/A"},{"$error":"#N/A"},"xbrli:item",null,{"$error":"#N/A"},"true","true"]
["in-capmkt","OtherIndian28Member","OtherIndian28Member",{"$error":"#N/A"},{"$error":"#N/A"},"xbrli:item",null,{"$error":"#N/A"},"true","true"]
["in-capmkt","OtherIndian29Member","OtherIndian29Member",{"$error":"#N/A"},{"$error":"#N/A"},"xbrli:item",null,{"$error":"#N/A"},"true","true"]
["in-capmkt","OtherIndian30Member","OtherIndian30Member",{"$error":"#N/A"},{"$error":"#N/A"},"xbrli:item",null,{"$error":"#N/A"},"true","true"]
["in-capmkt","OtherIndian31Member","OtherIndian31Member",{"$error":"#N/A"},{"$error":"#N/A"},"xbrli:item",null,{"$error":"#N/A"},"true","true"]
["in-capmkt","OtherIndian32Member","OtherIndian32Member",{"$error":"#N/A"},{"$error":"#N/A"},"xbrli:item",null,{"$error":"#N/A"},"true","true"]
["in-capmkt","OtherIndian33Member","OtherIndian33Member",{"$error":"#N/A"},{"$error":"#N/A"},"xbrli:item",null,{"$error":"#N/A"},"true","true"]
["in-capmkt","OtherIndian34Member","OtherIndian34Member",{"$error":"#N/A"},{"$error":"#N/A"},"xbrli:item",null,{"$error":"#N/A"},"true","true"]
["in-capmkt","OtherIndian35Member","OtherIndian35Member",{"$error":"#N/A"},{"$error":"#N/A"},"xbrli:item",null,{"$error":"#N/A"},"true","true"]
["in-capmkt","OtherIndian36Member","OtherIndian36Member",{"$error":"#N/A"},{"$error":"#N/A"},"xbrli:item",null,{"$error":"#N/A"},"true","true"]
["in-capmkt","OtherIndian37Member","OtherIndian37Member",{"$error":"#N/A"},{"$error":"#N/A"},"xbrli:item",null,{"$error":"#N/A"},"true","true"]
["in-capmkt","OtherIndian38Member","OtherIndian38Member",{"$error":"#N/A"},{"$error":"#N/A"},"xbrli:item",null,{"$error":"#N/A"},"true","true"]
["in-capmkt","OtherIndian39Member","OtherIndian39Member",{"$error":"#N/A"},{"$error":"#N/A"},"xbrli:item",null,{"$error":"#N/A"},"true","true"]
["in-capmkt","OtherIndian40Member","OtherIndian40Member",{"$error":"#N/A"},{"$error":"#N/A"},"xbrli:item",null,{"$error":"#N/A"},"true","true"]
["in-capmkt","OtherIndian41Member","OtherIndian41Member",{"$error":"#N/A"},{"$error":"#N/A"},"xbrli:item",null,{"$error":"#N/A"},"true","true"]
["in-capmkt","OtherIndian42Member","OtherIndian42Member",{"$error":"#N/A"},{"$error":"#N/A"},"xbrli:item",null,{"$error":"#N/A"},"true","true"]
["in-capmkt","OtherIndian43Member","OtherIndian43Member",{"$error":"#N/A"},{"$error":"#N/A"},"xbrli:item",null,{"$error":"#N/A"},"true","true"]
["in-capmkt","OtherIndian44Member","OtherIndian44Member",{"$error":"#N/A"},{"$error":"#N/A"},"xbrli:item",null,{"$error":"#N/A"},"true","true"]
["in-capmkt","OtherIndian45Member","OtherIndian45Member",{"$error":"#N/A"},{"$error":"#N/A"},"xbrli:item",null,{"$error":"#N/A"},"true","true"]
["in-capmkt","OtherIndian46Member","OtherIndian46Member",{"$error":"#N/A"},{"$error":"#N/A"},"xbrli:item",null,{"$error":"#N/A"},"true","true"]
["in-capmkt","OtherIndian47Member","OtherIndian47Member",{"$error":"#N/A"},{"$error":"#N/A"},"xbrli:item",null,{"$error":"#N/A"},"true","true"]
["in-capmkt","OtherIndian48Member","OtherIndian48Member",{"$error":"#N/A"},{"$error":"#N/A"},"xbrli:item",null,{"$error":"#N/A"},"true","true"]
["in-capmkt","OtherIndian49Member","OtherIndian49Member",{"$error":"#N/A"},{"$error":"#N/A"},"xbrli:item",null,{"$error":"#N/A"},"true","true"]
["in-capmkt","OtherIndian50Member","OtherIndian50Member",{"$error":"#N/A"},{"$error":"#N/A"},"xbrli:item",null,{"$error":"#N/A"},"true","true"]
["in-capmkt","OtherForeign16Member","OtherForeign16Member",{"$error":"#N/A"},{"$error":"#N/A"},"xbrli:item",null,{"$error":"#N/A"},"true","true"]
["in-capmkt","OtherForeign17Member","OtherForeign17Member",{"$error":"#N/A"},{"$error":"#N/A"},"xbrli:item",null,{"$error":"#N/A"},"true","true"]
["in-capmkt","OtherForeign18Member","OtherForeign18Member",{"$error":"#N/A"},{"$error":"#N/A"},"xbrli:item",null,{"$error":"#N/A"},"true","true"]
["in-capmkt","OtherForeign19Member","OtherForeign19Member",{"$error":"#N/A"},{"$error":"#N/A"},"xbrli:item",null,{"$error":"#N/A"},"true","true"]
["in-capmkt","OtherForeign20Member","OtherForeign20Member",{"$error":"#N/A"},{"$error":"#N/A"},"xbrli:item",null,{"$error":"#N/A"},"true","true"]
["in-capmkt","OtherForeign21Member","OtherForeign21Member",{"$error":"#N/A"},{"$error":"#N/A"},"xbrli:item",null,{"$error":"#N/A"},"true","true"]
["in-capmkt","OtherForeign22Member","OtherForeign22Member",{"$error":"#N/A"},{"$error":"#N/A"},"xbrli:item",null,{"$error":"#N/A"},"true","true"]
["in-capmkt","OtherForeign23Member","OtherForeign23Member",{"$error":"#N/A"},{"$error":"#N/A"},"xbrli:item",null,{"$error":"#N/A"},"true","true"]
["in-capmkt","OtherForeign24Member","OtherForeign24Member",{"$error":"#N/A"},{"$error":"#N/A"},"xbrli:item",null,{"$error":"#N/A"},"true","true"]
["in-capmkt","OtherForeign25Member","OtherForeign25Member",{"$error":"#N/A"},{"$error":"#N/A"},"xbrli:item",null,{"$error":"#N/A"},"true","true"]
["in-capmkt","OtherForeign26Member","OtherForeign26Member",{"$error":"#N/A"},{"$error":"#N/A"},"xbrli:item",null,{"$error":"#N/A"},"true","true"]
["in-capmkt","OtherForeign27Member","OtherForeign27Member",{"$error":"#N/A"},{"$error":"#N/A"},"xbrli:item",null,{"$error":"#N/A"},"true","true"]
["in-capmkt","OtherForeign28Member","OtherForeign28Member",{"$error":"#N/A"},{"$error":"#N/A"},"xbrli:item",null,{"$error":"#N/A"},"true","true"]
["in-capmkt","OtherForeign29Member","OtherForeign29Member",{"$error":"#N/A"},{"$error":"#N/A"},"xbrli:item",null,{"$error":"#N/A"},"true","true"]
["in-capmkt","OtherForeign30Member","OtherForeign30Member",{"$error":"#N/A"},{"$error":"#N/A"},"xbrli:item",null,{"$error":"#N/A"},"true","true"]
["in-capmkt","OtherForeign31Member","OtherForeign31Member",{"$error":"#N/A"},{"$error":"#N/A"},"xbrli:item",null,{"$error":"#N/A"},"true","true"]
["in-capmkt","OtherForeign32Member","OtherForeign32Member",{"$error":"#N/A"},{"$error":"#N/A"},"xbrli:item",null,{"$error":"#N/A"},"true","true"]
["in-capmkt","OtherForeign33Member","OtherForeign33Member",{"$error":"#N/A"},{"$error":"#N/A"},"xbrli:item",null,{"$error":"#N/A"},"true","true"]
["in-capmkt","OtherForeign34Member","OtherForeign34Member",{"$error":"#N/A"},{"$error":"#N/A"},"xbrli:item",null,{"$error":"#N/A"},"true","true"]
["in-capmkt","OtherForeign35Member","OtherForeign35Member",{"$error":"#N/A"},{"$error":"#N/A"},"xbrli:item",null,{"$error":"#N/A"},"true","true"]
["in-capmkt","OtherForeign36Member","OtherForeign36Member",{"$error":"#N/A"},{"$error":"#N/A"},"xbrli:item",null,{"$error":"#N/A"},"true","true"]
["in-capmkt","OtherForeign37Member","OtherForeign37Member",{"$error":"#N/A"},{"$error":"#N/A"},"xbrli:item",null,{"$error":"#N/A"},"true","true"]
["in-capmkt","OtherForeign38Member","OtherForeign38Member",{"$error":"#N/A"},{"$error":"#N/A"},"xbrli:item",null,{"$error":"#N/A"},"true","true"]
["in-capmkt","OtherForeign39Member","OtherForeign39Member",{"$error":"#N/A"},{"$error":"#N/A"},"xbrli:item",null,{"$error":"#N/A"},"true","true"]
["in-capmkt","OtherForeign40Member","OtherForeign40Member",{"$error":"#N/A"},{"$error":"#N/A"},"xbrli:item",null,{"$error":"#N/A"},"true","true"]
["in-capmkt","OtherForeign41Member","OtherForeign41Member",{"$error":"#N/A"},{"$error":"#N/A"},"xbrli:item",null,{"$error":"#N/A"},"true","true"]
["in-capmkt","OtherForeign42Member","OtherForeign42Member",{"$error":"#N/A"},{"$error":"#N/A"},"xbrli:item",null,{"$error":"#N/A"},"true","true"]
["in-capmkt","OtherForeign43Member","OtherForeign43Member",{"$error":"#N/A"},{"$error":"#N/A"},"xbrli:item",null,{"$error":"#N/A"},"true","true"]
["in-capmkt","OtherForeign44Member","OtherForeign44Member",{"$error":"#N/A"},{"$error":"#N/A"},"xbrli:item",null,{"$error":"#N/A"},"true","true"]
["in-capmkt","OtherForeign45Member","OtherForeign45Member",{"$error":"#N/A"},{"$error":"#N/A"},"xbrli:item",null,{"$error":"#N/A"},"true","true"]
["in-capmkt","OtherForeign46Member","OtherForeign46Member",{"$error":"#N/A"},{"$error":"#N/A"},"xbrli:item",null,{"$error":"#N/A"},"true","true"]
["in-capmkt","OtherForeign47Member","OtherForeign47Member",{"$error":"#N/A"},{"$error":"#N/A"},"xbrli:item",null,{"$error":"#N/A"},"true","true"]
["in-capmkt","OtherForeign48Member","OtherForeign48Member",{"$error":"#N/A"},{"$error":"#N/A"},"xbrli:item",null,{"$error":"#N/A"},"true","true"]
["in-capmkt","OtherForeign49Member","OtherForeign49Member",{"$error":"#N/A"},{"$error":"#N/A"},"xbrli:item",null,{"$error":"#N/A"},"true","true"]
["in-capmkt","OtherForeign50Member","OtherForeign50Member",{"$error":"#N/A"},{"$error":"#N/A"},"xbrli:item",null,{"$error":"#N/A"},"true","true"]
["in-capmkt","OtherInstitutions16Member","OtherInstitutions16Member",{"$error":"#N/A"},{"$error":"#N/A"},"xbrli:item",null,{"$error":"#N/A"},"true","true"]
["in-capmkt","OtherInstitutions17Member","OtherInstitutions17Member",{"$error":"#N/A"},{"$error":"#N/A"},"xbrli:item",null,{"$error":"#N/A"},"true","true"]
["in-capmkt","OtherInstitutions18Member","OtherInstitutions18Member",{"$error":"#N/A"},{"$error":"#N/A"},"xbrli:item",null,{"$error":"#N/A"},"true","true"]
["in-capmkt","OtherInstitutions19Member","OtherInstitutions19Member",{"$error":"#N/A"},{"$error":"#N/A"},"xbrli:item",null,{"$error":"#N/A"},"true","true"]
["in-capmkt","OtherInstitutions20Member","OtherInstitutions20Member",{"$error":"#N/A"},{"$error":"#N/A"},"xbrli:item",null,{"$error":"#N/A"},"true","true"]
["in-capmkt","OtherInstitutions21Member","OtherInstitutions21Member",{"$error":"#N/A"},{"$error":"#N/A"},"xbrli:item",null,{"$error":"#N/A"},"true","true"]
["in-capmkt","OtherInstitutions22Member","OtherInstitutions22Member",{"$error":"#N/A"},{"$error":"#N/A"},"xbrli:item",null,{"$error":"#N/A"},"true","true"]
["in-capmkt","OtherInstitutions23Member","OtherInstitutions23Member",{"$error":"#N/A"},{"$error":"#N/A"},"xbrli:item",null,{"$error":"#N/A"},"true","true"]
["in-capmkt","OtherInstitutions24Member","OtherInstitutions24Member",{"$error":"#N/A"},{"$error":"#N/A"},"xbrli:item",null,{"$error":"#N/A"},"true","true"]
["in-capmkt","OtherInstitutions25Member","OtherInstitutions25Member",{"$error":"#N/A"},{"$error":"#N/A"},"xbrli:item",null,{"$error":"#N/A"},"true","true"]
["in-capmkt","OtherInstitutions26Member","OtherInstitutions26Member",{"$error":"#N/A"},{"$error":"#N/A"},"xbrli:item",null,{"$error":"#N/A"},"true","true"]
["in-capmkt","OtherInstitutions27Member","OtherInstitutions27Member",{"$error":"#N/A"},{"$error":"#N/A"},"xbrli:item",null,{"$error":"#N/A"},"true","true"]
["in-capmkt","OtherInstitutions28Member","OtherInstitutions28Member",{"$error":"#N/A"},{"$error":"#N/A"},"xbrli:item",null,{"$error":"#N/A"},"true","true"]
["in-capmkt","OtherInstitutions29Member","OtherInstitutions29Member",{"$error":"#N/A"},{"$error":"#N/A"},"xbrli:item",null,{"$error":"#N/A"},"true","true"]
["in-capmkt","OtherInstitutions30Member","OtherInstitutions30Member",{"$error":"#N/A"},{"$error":"#N/A"},"xbrli:item",null,{"$error":"#N/A"},"true","true"]
["in-capmkt","OtherInstitutions31Member","OtherInstitutions31Member",{"$error":"#N/A"},{"$error":"#N/A"},"xbrli:item",null,{"$error":"#N/A"},"true","true"]
["in-capmkt","OtherInstitutions32Member","OtherInstitutions32Member",{"$error":"#N/A"},{"$error":"#N/A"},"xbrli:item",null,{"$error":"#N/A"},"true","true"]
["in-capmkt","OtherInstitutions33Member","OtherInstitutions33Member",{"$error":"#N/A"},{"$error":"#N/A"},"xbrli:item",null,{"$error":"#N/A"},"true","true"]
["in-capmkt","OtherInstitutions34Member","OtherInstitutions34Member",{"$error":"#N/A"},{"$error":"#N/A"},"xbrli:item",null,{"$error":"#N/A"},"true","true"]
["in-capmkt","OtherInstitutions35Member","OtherInstitutions35Member",{"$error":"#N/A"},{"$error":"#N/A"},"xbrli:item",null,{"$error":"#N/A"},"true","true"]
["in-capmkt","OtherInstitutions36Member","OtherInstitutions36Member",{"$error":"#N/A"},{"$error":"#N/A"},"xbrli:item",null,{"$error":"#N/A"},"true","true"]
["in-capmkt","OtherInstitutions37Member","OtherInstitutions37Member",{"$error":"#N/A"},{"$error":"#N/A"},"xbrli:item",null,{"$error":"#N/A"},"true","true"]
["in-capmkt","OtherInstitutions38Member","OtherInstitutions38Member",{"$error":"#N/A"},{"$error":"#N/A"},"xbrli:item",null,{"$error":"#N/A"},"true","true"]
["in-capmkt","OtherInstitutions39Member","OtherInstitutions39Member",{"$error":"#N/A"},{"$error":"#N/A"},"xbrli:item",null,{"$error":"#N/A"},"true","true"]
["in-capmkt","OtherInstitutions40Member","OtherInstitutions40Member",{"$error":"#N/A"},{"$error":"#N/A"},"xbrli:item",null,{"$error":"#N/A"},"true","true"]
["in-capmkt","OtherInstitutions41Member","OtherInstitutions41Member",{"$error":"#N/A"},{"$error":"#N/A"},"xbrli:item",null,{"$error":"#N/A"},"true","true"]
["in-capmkt","OtherInstitutions42Member","OtherInstitutions42Member",{"$error":"#N/A"},{"$error":"#N/A"},"xbrli:item",null,{"$error":"#N/A"},"true","true"]
["in-capmkt","OtherInstitutions43Member","OtherInstitutions43Member",{"$error":"#N/A"},{"$error":"#N/A"},"xbrli:item",null,{"$error":"#N/A"},"true","true"]
["in-capmkt","OtherInstitutions44Member","OtherInstitutions44Member",{"$error":"#N/A"},{"$error":"#N/A"},"xbrli:item",null,{"$error":"#N/A"},"true","true"]
["in-capmkt","OtherInstitutions45Member","OtherInstitutions45Member",{"$error":"#N/A"},{"$error":"#N/A"},"xbrli:item",null,{"$error":"#N/A"},"true","true"]
["in-capmkt","OtherInstitutions46Member","OtherInstitutions46Member",{"$error":"#N/A"},{"$error":"#N/A"},"xbrli:item",null,{"$error":"#N/A"},"true","true"]
["in-capmkt","OtherInstitutions47Member","OtherInstitutions47Member",{"$error":"#N/A"},{"$error":"#N/A"},"xbrli:item",null,{"$error":"#N/A"},"true","true"]
["in-capmkt","OtherInstitutions48Member","OtherInstitutions48Member",{"$error":"#N/A"},{"$error":"#N/A"},"xbrli:item",null,{"$error":"#N/A"},"true","true"]
["in-capmkt","OtherInstitutions49Member","OtherInstitutions49Member",{"$error":"#N/A"},{"$error":"#N/A"},"xbrli:item",null,{"$error":"#N/A"},"true","true"]
["in-capmkt","OtherInstitutions50Member","OtherInstitutions50Member",{"$error":"#N/A"},{"$error":"#N/A"},"xbrli:item",null,{"$error":"#N/A"},"true","true"]
["in-capmkt","OtherNonInstitutions16Member","OtherNonInstitutions16Member",{"$error":"#N/A"},{"$error":"#N/A"},"xbrli:item",null,{"$error":"#N/A"},"true","true"]
["in-capmkt","OtherNonInstitutions17Member","OtherNonInstitutions17Member",{"$error":"#N/A"},{"$error":"#N/A"},"xbrli:item",null,{"$error":"#N/A"},"true","true"]
["in-capmkt","OtherNonInstitutions18Member","OtherNonInstitutions18Member",{"$error":"#N/A"},{"$error":"#N/A"},"xbrli:item",null,{"$error":"#N/A"},"true","true"]
["in-capmkt","OtherNonInstitutions19Member","OtherNonInstitutions19Member",{"$error":"#N/A"},{"$error":"#N/A"},"xbrli:item",null,{"$error":"#N/A"},"true","true"]
["in-capmkt","OtherNonInstitutions20Member","OtherNonInstitutions20Member",{"$error":"#N/A"},{"$error":"#N/A"},"xbrli:item",null,{"$error":"#N/A"},"true","true"]
["in-capmkt","OtherNonInstitutions21Member","OtherNonInstitutions21Member",{"$error":"#N/A"},{"$error":"#N/A"},"xbrli:item",null,{"$error":"#N/A"},"true","true"]
["in-capmkt","OtherNonInstitutions22Member","OtherNonInstitutions22Member",{"$error":"#N/A"},{"$error":"#N/A"},"xbrli:item",null,{"$error":"#N/A"},"true","true"]
["in-capmkt","OtherNonInstitutions23Member","OtherNonInstitutions23Member",{"$error":"#N/A"},{"$error":"#N/A"},"xbrli:item",null,{"$error":"#N/A"},"true","true"]
["in-capmkt","OtherNonInstitutions24Member","OtherNonInstitutions24Member",{"$error":"#N/A"},{"$error":"#N/A"},"xbrli:item",null,{"$error":"#N/A"},"true","true"]
["in-capmkt","OtherNonInstitutions25Member","OtherNonInstitutions25Member",{"$error":"#N/A"},{"$error":"#N/A"},"xbrli:item",null,{"$error":"#N/A"},"true","true"]
["in-capmkt","OtherNonInstitutions26Member","OtherNonInstitutions26Member",{"$error":"#N/A"},{"$error":"#N/A"},"xbrli:item",null,{"$error":"#N/A"},"true","true"]
["in-capmkt","OtherNonInstitutions27Member","OtherNonInstitutions27Member",{"$error":"#N/A"},{"$error":"#N/A"},"xbrli:item",null,{"$error":"#N/A"},"true","true"]
["in-capmkt","OtherNonInstitutions28Member","OtherNonInstitutions28Member",{"$error":"#N/A"},{"$error":"#N/A"},"xbrli:item",null,{"$error":"#N/A"},"true","true"]
["in-capmkt","OtherNonInstitutions29Member","OtherNonInstitutions29Member",{"$error":"#N/A"},{"$error":"#N/A"},"xbrli:item",null,{"$error":"#N/A"},"true","true"]
["in-capmkt","OtherNonInstitutions30Member","OtherNonInstitutions30Member",{"$error":"#N/A"},{"$error":"#N/A"},"xbrli:item",null,{"$error":"#N/A"},"true","true"]
["in-capmkt","OtherNonInstitutions31Member","OtherNonInstitutions31Member",{"$error":"#N/A"},{"$error":"#N/A"},"xbrli:item",null,{"$error":"#N/A"},"true","true"]
["in-capmkt","OtherNonInstitutions32Member","OtherNonInstitutions32Member",{"$error":"#N/A"},{"$error":"#N/A"},"xbrli:item",null,{"$error":"#N/A"},"true","true"]
["in-capmkt","OtherNonInstitutions33Member","OtherNonInstitutions33Member",{"$error":"#N/A"},{"$error":"#N/A"},"xbrli:item",null,{"$error":"#N/A"},"true","true"]
["in-capmkt","OtherNonInstitutions34Member","OtherNonInstitutions34Member",{"$error":"#N/A"},{"$error":"#N/A"},"xbrli:item",null,{"$error":"#N/A"},"true","true"]
["in-capmkt","OtherNonInstitutions35Member","OtherNonInstitutions35Member",{"$error":"#N/A"},{"$error":"#N/A"},"xbrli:item",null,{"$error":"#N/A"},"true","true"]
["in-capmkt","OtherNonInstitutions36Member","OtherNonInstitutions36Member",{"$error":"#N/A"},{"$error":"#N/A"},"xbrli:item",null,{"$error":"#N/A"},"true","true"]
["in-capmkt","OtherNonInstitutions37Member","OtherNonInstitutions37Member",{"$error":"#N/A"},{"$error":"#N/A"},"xbrli:item",null,{"$error":"#N/A"},"true","true"]
["in-capmkt","OtherNonInstitutions38Member","OtherNonInstitutions38Member",{"$error":"#N/A"},{"$error":"#N/A"},"xbrli:item",null,{"$error":"#N/A"},"true","true"]
["in-capmkt","OtherNonInstitutions39Member","OtherNonInstitutions39Member",{"$error":"#N/A"},{"$error":"#N/A"},"xbrli:item",null,{"$error":"#N/A"},"true","true"]
["in-capmkt","OtherNonInstitutions40Member","OtherNonInstitutions40Member",{"$error":"#N/A"},{"$error":"#N/A"},"xbrli:item",null,{"$error":"#N/A"},"true","true"]
["in-capmkt","OtherNonInstitutions41Member","OtherNonInstitutions41Member",{"$error":"#N/A"},{"$error":"#N/A"},"xbrli:item",null,{"$error":"#N/A"},"true","true"]
["in-capmkt","OtherNonInstitutions42Member","OtherNonInstitutions42Member",{"$error":"#N/A"},{"$error":"#N/A"},"xbrli:item",null,{"$error":"#N/A"},"true","true"]
["in-capmkt","OtherNonInstitutions43Member","OtherNonInstitutions43Member",{"$error":"#N/A"},{"$error":"#N/A"},"xbrli:item",null,{"$error":"#N/A"},"true","true"]
["in-capmkt","OtherNonInstitutions44Member","OtherNonInstitutions44Member",{"$error":"#N/A"},{"$error":"#N/A"},"xbrli:item",null,{"$error":"#N/A"},"true","true"]
["in-capmkt","OtherNonInstitutions45Member","OtherNonInstitutions45Member",{"$error":"#N/A"},{"$error":"#N/A"},"xbrli:item",null,{"$error":"#N/A"},"true","true"]
["in-capmkt","OtherNonInstitutions46Member","OtherNonInstitutions46Member",{"$error":"#N/A"},{"$error":"#N/A"},"xbrli:item",null,{"$error":"#N/A"},"true","true"]
["in-capmkt","OtherNonInstitutions47Member","OtherNonInstitutions47Member",{"$error":"#N/A"},{"$error":"#N/A"},"xbrli:item",null,{"$error":"#N/A"},"true","true"]
["in-capmkt","OtherNonInstitutions48Member","OtherNonInstitutions48Member",{"$error":"#N/A"},{"$error":"#N/A"},"xbrli:item",null,{"$error":"#N/A"},"true","true"]
["in-capmkt","OtherNonInstitutions49Member","OtherNonInstitutions49Member",{"$error":"#N/A"},{"$error":"#N/A"},"xbrli:item",null,{"$error":"#N/A"},"true","true"]
["in-capmkt","OtherNonInstitutions50Member","OtherNonInstitutions50Member",{"$error":"#N/A"},{"$error":"#N/A"},"xbrli:item",null,{"$error":"#N/A"},"true","true"]
["in-capmkt","DisclosureOfUnitHoldingPatternTableNotAll","DisclosureOfUnitHoldingPatternTableNotAll",{"$error":"#N/A"},{"$error":"#N/A"},"xbrldt:hypercubeItem",null,{"$error":"#N/A"},"true","true"]
["in-capmkt","ProvisionForTaxesAbstract","ProvisionForTaxesAbstract",{"$error":"#N/A"},{"$error":"#N/A"},"xbrli:item",null,{"$error":"#N/A"},"false","true"]
["in-capmkt","CurrentLiabilitiesAndProvisions","CurrentLiabilitiesAndProvisions","in-capmkt_CurrentLiabilitiesAndProvisions","xbrli:monetaryItemType","xbrli:item",null,"instant","true","true","1) This field is mandatory.\n2) Only numeric value allowed.\n3) Upto 2 decimal value allowed."]
["in-capmkt","InvestmentsPolicyholders","InvestmentsPolicyholders","in-capmkt_InvestmentsPolicyholders","xbrli:monetaryItemType","xbrli:item",null,"instant","true","true","1) This field is mandatory.\n2) Only numeric value allowed.\n3) Upto 2 decimal value allowed."]
["in-capmkt","AssetsHeldToCoverLinkLiabilities","AssetsHeldToCoverLinkLiabilities","in-capmkt_AssetsHeldToCoverLinkLiabilities","xbrli:monetaryItemType","xbrli:item",null,"instant","true","true","1) This field is mandatory.\n2) Only numeric value allowed.\n3) Upto 2 decimal value allowed."]
["in-capmkt","Loans","Loans","in-capmkt_Loans","xbrli:monetaryItemType","xbrli:item",null,"instant","true","true","1) This field is mandatory.\n2) Only numeric value allowed.\n3) Upto 2 decimal value allowed."]
["in-capmkt","FixedAssets","FixedAssets","in-capmkt_FixedAssets","xbrli:monetaryItemType","xbrli:item",null,"instant","false","true","1) This field is mandatory.\n2) Only numeric value allowed.\n3) Upto 2 decimal value allowed."]
["in-capmkt","DeferredTaxAsset","DeferredTaxAsset","in-capmkt_DeferredTaxAsset","xbrli:monetaryItemType","xbrli:item",null,"instant","true","true","1) This field is mandatory.\n2) Only numeric value allowed.\n3) Upto 2 decimal value allowed."]
["in-capmkt","NetCurrentAssetsAbstract","NetCurrentAssetsAbstract","in-capmkt_NetCurrentAssetsAbstract","xbrli:stringItemType","xbrli:item",null,"duration","true","true"]
["in-capmkt","CurrentAssetsAbstract","CurrentAssetsAbstract","in-capmkt_CurrentAssetsAbstract","xbrli:stringItemType","xbrli:item",null,"duration","true","true"]
["in-capmkt","CashAndBankBalances","CashAndBankBalances","in-capmkt_CashAndBankBalances","xbrli:monetaryItemType","xbrli:item",null,"instant","true","true","1) This field is mandatory.\n2) Only numeric value allowed.\n3) Upto 2 decimal value allowed."]
["in-capmkt","AdvancesAndOtherAssets","AdvancesAndOtherAssets","in-capmkt_AdvancesAndOtherAssets","xbrli:monetaryItemType","xbrli:item",null,"instant","true","true","1) This field is mandatory.\n2) Only numeric value allowed.\n3) Upto 2 decimal value allowed."]
["in-capmkt","CurrentAssets","CurrentAssets","in-capmkt_CurrentAssets","xbrli:monetaryItemType","xbrli:item",null,"instant","false","true","1) This field is mandatory.\n2) Only numeric value allowed.\n3) Upto 2 decimal value allowed."]
["in-capmkt","CurrentLiabilitiesAbstract","CurrentLiabilitiesAbstract","in-capmkt_CurrentLiabilitiesAbstract","xbrli:stringItemType","xbrli:item",null,"duration","true","true"]
["in-capmkt","CurrentLiabilities","CurrentLiabilities","in-capmkt_CurrentLiabilities","xbrli:monetaryItemType","xbrli:item",null,"instant","false","true","1) This field is mandatory.\n2) Only numeric value allowed.\n3) Upto 2 decimal value allowed."]
["in-capmkt","Provisions","Provisions","in-capmkt_Provisions","xbrli:monetaryItemType","xbrli:item",null,"instant","false","true","1) This field is mandatory.\n2) Only numeric value allowed.\n3) Upto 2 decimal value allowed."]
["in-capmkt","CurrentLiabilitiesAndProvisions","CurrentLiabilitiesAndProvisions","in-capmkt_CurrentLiabilitiesAndProvisions","xbrli:monetaryItemType","xbrli:item",null,"instant","true","true","1) This field is mandatory.\n2) Only numeric value allowed.\n3) Upto 2 decimal value allowed."]
["in-capmkt","NetCurrentAssets","NetCurrentAssets","in-capmkt_NetCurrentAssets","xbrli:monetaryItemType","xbrli:item",null,"instant","false","true","1) This field is mandatory.\n2) Only numeric value allowed.\n3) Upto 2 decimal value allowed."]
["in-capmkt","MiscellaneousExpenditureToTheExtentNotWrittenOffOrAdjusted","MiscellaneousExpenditureToTheExtentNotWrittenOffOrAdjusted","in-capmkt_MiscellaneousExpenditureToTheExtentNotWrittenOffOrAdjusted","xbrli:monetaryItemType","xbrli:item",null,"instant","false","true","1) This field is mandatory.\n2) Only numeric value allowed.\n3) Upto 2 decimal value allowed."]
["in-capmkt","DebitBalanceInProfitAndLossAccountShareholdersAccount","DebitBalanceInProfitAndLossAccountShareholdersAccount","in-capmkt_DebitBalanceInProfitAndLossAccountShareholdersAccount","xbrli:monetaryItemType","xbrli:item",null,"instant","false","true","1) This field is mandatory.\n2) Only numeric value allowed.\n3) Upto 2 decimal value allowed."]
["in-capmkt","ApplicationOfFunds","ApplicationOfFunds","in-capmkt_ApplicationOfFunds","xbrli:monetaryItemType","xbrli:item",null,"instant","false","true","1) This field is mandatory.\n2) Only numeric value allowed.\n3) Upto 2 decimal value allowed."]
["in-capmkt","ContigentLiabilities","ContigentLiabilities","in-capmkt_ContigentLiabilities","xbrli:monetaryItemType","xbrli:item",null,"instant","false","true","1) This field is mandatory.\n2) Only numeric value allowed.\n3) Upto 2 decimal value allowed."]
["in-capmkt","DisclosureOfNotesToBalanceSheetExplanatoryTextBlock","DisclosureOfNotesToBalanceSheetExplanatoryTextBlock","in-capmkt_DisclosureOfNotesToBalanceSheetExplanatoryTextBlock","nonnum:textBlockItemType","xbrli:item",null,"instant","false","true"]
["Definition",null,"[9000] Shareholders account other income",null,null,null,null,{"$error":"#N/A"}]
["prefix","label","name","id","type","substitutionGroup","balance",{"$error":"#N/A"},"nillable"]
["in-capmkt","Details of shareholders account other income [Abstract]","DetailsOfShareholdersAccountOtherIncomeAbstract","in-capmkt_DetailsOfShareholdersAccountOtherIncomeAbstract","xbrli:stringItemType","xbrli:item","","duration","true"]
["in-capmkt","Details of shareholders account other income [Table]","DetailsOfShareholdersAccountOtherIncomeTable","in-capmkt_DetailsOfShareholdersAccountOtherIncomeTable","xbrli:stringItemType","xbrldt:hypercubeItem","","duration","true"]
["in-capmkt","Details of shareholders account other income [Axis]","DetailsOfShareholdersAccountOtherIncomeAxis","in-capmkt_DetailsOfShareholdersAccountOtherIncomeAxis","xbrli:stringItemType","xbrldt:dimensionItem","","duration","true"]
["in-capmkt","Shareholders account other income [Member]","ShareholdersAccountOtherIncomeMember","in-capmkt_ShareholdersAccountOtherIncomeMember","nonnum:domainItemType","xbrli:item","","duration","true"]
["in-capmkt","Shareholders account other income 1 [Member]","ShareholdersAccountOtherIncome1Member","in-capmkt_ShareholdersAccountOtherIncome1Member","nonnum:domainItemType","xbrli:item","","duration","true",null,"1) This field is mandatory.\n2) Only numeric value allowed.\n3) Upto 2 decimal value allowed."]
["in-capmkt","Shareholders account other income 2 [Member]","ShareholdersAccountOtherIncome2Member","in-capmkt_ShareholdersAccountOtherIncome2Member","nonnum:domainItemType","xbrli:item","","duration","true",null,"1) This field is mandatory.\n2) Only numeric value allowed.\n3) Upto 2 decimal value allowed."]
["in-capmkt","Shareholders account other income 3 [Member]","ShareholdersAccountOtherIncome3Member","in-capmkt_ShareholdersAccountOtherIncome3Member","nonnum:domainItemType","xbrli:item","","duration","true",null,"1) This field is mandatory.\n2) Only numeric value allowed.\n3) Upto 2 decimal value allowed."]
["in-capmkt","Shareholders account other income 4 [Member]","ShareholdersAccountOtherIncome4Member","in-capmkt_ShareholdersAccountOtherIncome4Member","nonnum:domainItemType","xbrli:item","","duration","true",null,"1) This field is mandatory.\n2) Only numeric value allowed.\n3) Upto 2 decimal value allowed."]
["in-capmkt","Shareholders account other income 5 [Member]","ShareholdersAccountOtherIncome5Member","in-capmkt_ShareholdersAccountOtherIncome5Member","nonnum:domainItemType","xbrli:item","","duration","true",null,"1) This field is mandatory.\n2) Only numeric value allowed.\n3) Upto 2 decimal value allowed."]
["in-capmkt","Shareholders account other income 6 [Member]","ShareholdersAccountOtherIncome6Member","in-capmkt_ShareholdersAccountOtherIncome6Member","nonnum:domainItemType","xbrli:item","","duration","true",null,"1) This field is mandatory.\n2) Only numeric value allowed.\n3) Upto 2 decimal value allowed."]
["in-capmkt","Shareholders account other income 7 [Member]","ShareholdersAccountOtherIncome7Member","in-capmkt_ShareholdersAccountOtherIncome7Member","nonnum:domainItemType","xbrli:item","","duration","true",null,"1) This field is mandatory.\n2) Only numeric value allowed.\n3) Upto 2 decimal value allowed."]
["in-capmkt","Shareholders account other income 8 [Member]","ShareholdersAccountOtherIncome8Member","in-capmkt_ShareholdersAccountOtherIncome8Member","nonnum:domainItemType","xbrli:item","","duration","true",null,"1) This field is mandatory.\n2) Only numeric value allowed.\n3) Upto 2 decimal value allowed."]
["in-capmkt","Shareholders account other income 9 [Member]","ShareholdersAccountOtherIncome9Member","in-capmkt_ShareholdersAccountOtherIncome9Member","nonnum:domainItemType","xbrli:item","","duration","true",null,"1) This field is mandatory.\n2) Only numeric value allowed.\n3) Upto 2 decimal value allowed."]
["in-capmkt","Shareholders account other income 10 [Member]","ShareholdersAccountOtherIncome10Member","in-capmkt_ShareholdersAccountOtherIncome10Member","nonnum:domainItemType","xbrli:item","","duration","true",null,"1) This field is mandatory.\n2) Only numeric value allowed.\n3) Upto 2 decimal value allowed."]
["in-capmkt","Details of shareholders account other income [Line items]","DetailsOfShareholdersAccountOtherIncomeLineItems","in-capmkt_DetailsOfShareholdersAccountOtherIncomeLineItems","xbrli:stringItemType","xbrli:item","","duration","true"]
["in-capmkt","Description of shareholders account other income","DescriptionOfShareholdersAccountOtherIncome","in-capmkt_DescriptionOfShareholdersAccountOtherIncome","xbrli:stringItemType","xbrli:item","","duration","true"]
["in-capmkt","Shareholders account other income","ShareholdersAccountOtherIncome","in-capmkt_ShareholdersAccountOtherIncome","xbrli:monetaryItemType","xbrli:item","credit","duration","true",null,"1) This field is mandatory.\n2) Only numeric value allowed.\n3) Upto 2 decimal value allowed."]
["",null,null,null,null,null,null,{"$error":"#N/A"}]
["",null,null,null,null,null,null,{"$error":"#N/A"}]
["LinkRole",null,"http://www.bseindia.com/xbrl/insurance/role/in-capmkt-roles/GeneralInformationAboutTheCompany_5000",null,null,null,null,{"$error":"#N/A"}]
["Definition",null,"[5000] General information about the company",null,null,null,null,{"$error":"#N/A"}]
["prefix","label","name","id","type","substitutionGroup","balance",{"$error":"#N/A"},"nillable"]
["in-capmkt","General information about the company [Abstract]","GeneralInformationAboutTheCompanyAbstract",{"$error":"#N/A"},{"$error":"#N/A"},"xbrli:item","",{"$error":"#N/A"},"true"]
["in-capmkt","Scrip code","BSEScripCode",{"$error":"#N/A"},{"$error":"#N/A"},"xbrli:item","",{"$error":"#N/A"},"true",null,"This is a mandatory field. Should be valid SCRIP CODE  as per BSE Scrip Code Format. "]
["in-capmkt"," NSE Symbol","NSESymbol",{"$error":"#N/A"},{"$error":"#N/A"},"xbrli:item","",{"$error":"#N/A"},"true",null,"Nse symbol must be length of 12"]
["in-capmkt","MSEI symbol","MSEISymbol","in-capmkt_MSEISymbol","xbrli:stringItemType","xbrli:item","","duration","true"]
["in-capmkt","Name of company","NameOfTheCompany","in-capmkt_NameOfTheCompany","xbrli:stringItemType","xbrli:item","","duration","true",null,"This field is mandatory."]
["in-capmkt","ISIN","ISIN","in-capmkt_ISIN","in-capmkt-types:ISIN","xbrli:item","","duration","true"]
["in-capmkt","Description of presentation currency","DescriptionOfPresentationCurrency","in-capmkt_DescriptionOfPresentationCurrency","xbrli:stringItemType","xbrli:item","","duration","true"]
["in-capmkt","Level of rounding","LevelOfRounding","in-capmkt_LevelOfRounding","in-capmkt-types:LevelOfRounding","xbrli:item","","duration",false,null,"1) This field is mandatory.\n2) Please select from dropdown only."]
["in-capmkt","Date of start of financial year","Dateofstartoffinancialyear","in-capmkt_DateOfStartOfFinancialYear","xbrli:dateItemType",null,null,"duration"]
["in-capmkt","Date of end of financial year","Dateofendoffinancialyear","in-capmkt_DateOfEndOfFinancialYear","xbrli:dateItemType",null,null,"duration"]
["in-capmkt","Date of board meeting when results were approved","Dateofboardmeetingwhenresultswereapproved",{"$error":"#N/A"},{"$error":"#N/A"},null,null,{"$error":"#N/A"},null,null,"1)Date on which prior intimation of the meeting for considering financial results was informed to the exchange must be on or before \"Date of board meeting when results were approved\".\n2)Date should be within \"Start date and time of board meeting\" and \" End date and time of board meeting\".\n3)\"Date on which prior intimation of the meeting for considering financial results was informed to the exchange\" shall be later than \"Date of board meeting when results were approved\" and shall not be before the current financial year."]
["in-capmkt","Date on which prior intimation of the meeting for considering financial results was informed to the exchange","Dateonwhichpriorintimationofthemeetingforconsideringfinancialresultswasinformedtotheexchange","in-capmkt_DateOnWhichPriorIntimationOfTheMeetingForConsideringFinancialResultsWasInformedToTheExchange","xbrli:dateItemType",null,null,"duration",null,null,"\"Date on which prior intimation of the meeting for considering financial results was informed to the exchange\" must be on or before \"Date of board meeting when results were approved\"."]
["in-capmkt","Reporting Quarter","ReportingQuarter","in-capmkt_ReportingQuarter","in-capmkt-types:ReportingPeriod",null,null,"duration"]
["in-capmkt","Nature of report standalone or consolidated","Natureofreportstandaloneorconsolidated",{"$error":"#N/A"},{"$error":"#N/A"},null,null,{"$error":"#N/A"}]
["in-capmkt","Whether results are audited or unaudited","Whetherresultsareauditedorunaudited","in-capmkt_WhetherResultsAreAuditedOrUnaudited","in-capmkt-types:AuditedUnaudited",null,null,"duration"]
["in-capmkt","Declaration of unmodified opinion or statement on impact of audit qualification","Declarationofunmodifiedopinionorstatementonimpactofauditqualification","in-capmkt_DeclarationOfUnmodifiedOpinionOrStatementOnImpactOfAuditQualification","in-capmkt-types:DeclarationOfImpactOfAuditQalification",null,null,"duration"]
["in-capmkt","Start date and time of board meeting","StartTimeOfBoardMeeting","in-capmkt_StartTimeOfBoardMeeting","xbrli:timeItemType","xbrli:item","","duration","true"]
["in-capmkt","End date and time of board meeting","EndTimeOfBoardMeeting","in-capmkt_EndTimeOfBoardMeeting","xbrli:timeItemType","xbrli:item","","duration","true",null,"\"End time of board meeting\" must be greater than \"Start time of board meeting\""]
["in-capmkt","Type Of Insurance","TypeOfInsurance","in-capmkt_TypeOfInsurance","in-capmkt-types:TypeOfInsurance","xbrli:item",null,"instant"]
["in-capmkt","Start date of board meeting","DateOfStartOfBoardMeeting","in-capmkt_DateOfStartOfBoardMeeting","xbrli:dateItemType",null,null,"duration",null,null,"Start date of board meeting would be the next quarter then the reporting quarter (e.g. if results are submitted for June, quarter start time and end time would be from July)."]
["in-capmkt","End date of board meeting","DateOfEndOfBoardMeeting","in-capmkt_DateOfEndOfBoardMeeting","xbrli:dateItemType",null,null,"duration",null,null,"End date of board meeting must be after or same day of start date of bord meeting and would be the next quarter then the reporting quarter (e.g. if results are submitted for June, quarter start time and end time would be from July) and shall not be earlier than Date of Prior Intimation."]
["in-capmkt","Date of start of reporting period","DateOfStartOfReportingPeriod","in-capmkt_DateOfStartOfReportingPeriod","xbrli:dateItemType",null,null,"duration"]
["in-capmkt","Date of end of reporting period","DateOfEndOfReportingPeriod","in-capmkt_DateOfEndOfReportingPeriod","xbrli:dateItemType","substitutionGroup","balance","duration"]
["in-capmkt","Share capital                ","Sharecapital","in-capmkt_ShareCapital","xbrli:monetaryItemType","xbrli:item","","instant",null,null,"1) This field is mandatory.\n2) Only numeric value allowed.\n3) Upto 2 decimal value allowed."]
["in-capmkt","Share application money received pending allotment of shares","Shareapplicationmoneyreceivedpendingallotmentofshares","in-capmkt_ShareApplicationMoneyReceivedPendingAllotmentOfShares","xbrli:monetaryItemType","xbrli:item",null,"instant",null,null,"1) This field is mandatory.\n2) Only numeric value allowed.\n3) Upto 2 decimal value allowed."]
["in-capmkt","Reserves and surplus","Reservesandsurplus","in-capmkt_ReservesAndSurplus","xbrli:monetaryItemType","xbrli:item",null,"instant",null,null,"1) This field is mandatory.\n2) Only numeric value allowed.\n3) Upto 2 decimal value allowed."]
["in-capmkt","Credit (Debit) Fair value change account","CDFairvaluechangeaccount",{"$error":"#N/A"},{"$error":"#N/A"},"xbrli:item",null,{"$error":"#N/A"},null,null,"1) This field is mandatory.\n2) Only numeric value allowed.\n3) Upto 2 decimal value allowed."]
["in-capmkt","Borrowings","Borrowings","in-capmkt_Borrowings","xbrli:monetaryItemType","xbrli:item",null,"instant",null,null,"1) This field is mandatory.\n2) Only numeric value allowed.\n3) Upto 2 decimal value allowed."]
["in-capmkt","Credit (Debit) Fair value change account","CreditFairvaluechangeaccount",{"$error":"#N/A"},{"$error":"#N/A"},"xbrli:item",null,{"$error":"#N/A"},null,null,"1) This field is mandatory.\n2) Only numeric value allowed.\n3) Upto 2 decimal value allowed."]
["in-capmkt","Sub Total","SubTotal",{"$error":"#N/A"},{"$error":"#N/A"},"xbrli:item",null,{"$error":"#N/A"},null,null,"1) This field is mandatory.\n2) Only numeric value allowed.\n3) Upto 2 decimal value allowed."]
["in-capmkt","Policy Liabilities","PolicyLiabilities","in-capmkt_PolicyLiabilities","xbrli:monetaryItemType","xbrli:item",null,"instant",null,null,"1) This field is mandatory.\n2) Only numeric value allowed.\n3) Upto 2 decimal value allowed."]
["in-capmkt","Insurance Reserve","InsuranceReserve","in-capmkt_InsuranceReserve","xbrli:monetaryItemType","xbrli:item",null,"instant",null,null,"1) This field is mandatory.\n2) Only numeric value allowed.\n3) Upto 2 decimal value allowed."]
["in-capmkt","Revaluation reserve - Investment property","Revaluationreserve",{"$error":"#N/A"},{"$error":"#N/A"},"xbrli:item",null,{"$error":"#N/A"},null,null,"1) This field is mandatory.\n2) Only numeric value allowed.\n3) Upto 2 decimal value allowed."]
["in-capmkt","Provision for Linked Liabilities","ProvisionforLinkedLiabilities","in-capmkt_ProvisionForLinkedLiabilities","xbrli:monetaryItemType","xbrli:item",null,"instant",null,null,"1) This field is mandatory.\n2) Only numeric value allowed.\n3) Upto 2 decimal value allowed."]
["in-capmkt","Change in fairvalue account","Changeinfairvalueaccount","in-capmkt_ChangeInFairvalueAccount","xbrli:monetaryItemType","xbrli:item",null,"instant",null,null,"1) This field is mandatory.\n2) Only numeric value allowed.\n3) Upto 2 decimal value allowed."]
["in-capmkt","(i) Discontinued on account of non-payment of premium","Discontinuedonaccountofnonpaymentofpremium","in-capmkt_DiscontinuedOnAccountOfNonPaymentOfPremium","xbrli:monetaryItemType","xbrli:item",null,"instant",null,null,"1) This field is mandatory.\n2) Only numeric value allowed.\n3) Upto 2 decimal value allowed."]
["in-capmkt","(ii) Credit (Debit) Fair value change account","Cashandbankbalances","in-capmkt_CashAndBankBalances","xbrli:monetaryItemType","xbrli:item",null,"instant",null,null,"1) This field is mandatory.\n2) Only numeric value allowed.\n3) Upto 2 decimal value allowed."]
["in-capmkt","(iii) Others discontinuance","Othersdiscontinuance","in-capmkt_OthersDiscontinuance","xbrli:monetaryItemType","xbrli:item",null,"instant",null,null,"1) This field is mandatory.\n2) Only numeric value allowed.\n3) Upto 2 decimal value allowed."]
["in-capmkt","Total Linked Liabilities","TotalLinkedLiabilities",{"$error":"#N/A"},{"$error":"#N/A"},"xbrli:item",null,{"$error":"#N/A"},null,null,"1) This field is mandatory.\n2) Only numeric value allowed.\n3) Upto 2 decimal value allowed."]
["in-capmkt","Sub Total","SubTotal1",{"$error":"#N/A"},{"$error":"#N/A"},"xbrli:item",null,{"$error":"#N/A"},null,null,"1) This field is mandatory.\n2) Only numeric value allowed.\n3) Upto 2 decimal value allowed."]
["in-capmkt","Funds for Future Appropriations","FundsforFutureAppropriations","in-capmkt_FundsForFutureAppropriations","xbrli:monetaryItemType","xbrli:item",null,"instant",null,null,"1) This field is mandatory.\n2) Only numeric value allowed.\n3) Upto 2 decimal value allowed."]
["in-capmkt","Total Sources of Funds","TotalSourcesofFunds",{"$error":"#N/A"},{"$error":"#N/A"},"xbrli:item",null,{"$error":"#N/A"},null,null,"1) This field is mandatory.\n2) Only numeric value allowed.\n3) Upto 2 decimal value allowed."]
["in-capmkt","Investments shareholders","Investmentsshareholders","in-capmkt_InvestmentsShareholders","xbrli:monetaryItemType","xbrli:item",null,"instant",null,null,"1) This field is mandatory.\n2) Only numeric value allowed.\n3) Upto 2 decimal value allowed."]
["in-capmkt","Investments policyholders","Investmentspolicyholders","in-capmkt_InvestmentsPolicyholders","xbrli:monetaryItemType","xbrli:item",null,"instant",null,null,"1) This field is mandatory.\n2) Only numeric value allowed.\n3) Upto 2 decimal value allowed."]
["in-capmkt","Assets Held to cover link Liabilities","AssetsHeldtocoverlinkLiabilities","in-capmkt_AssetsHeldToCoverLinkLiabilities","xbrli:monetaryItemType","xbrli:item",null,"instant",null,null,"1) This field is mandatory.\n2) Only numeric value allowed.\n3) Upto 2 decimal value allowed."]
["in-capmkt","Loans","Loans","in-capmkt_Loans","xbrli:monetaryItemType","xbrli:item",null,"instant",null,null,"1) This field is mandatory.\n2) Only numeric value allowed.\n3) Upto 2 decimal value allowed."]
["in-capmkt","Fixed assets","Fixedassets","in-capmkt_FixedAssets","xbrli:monetaryItemType","xbrli:item",null,"instant",null,null,"1) This field is mandatory.\n2) Only numeric value allowed.\n3) Upto 2 decimal value allowed."]
["in-capmkt","Deferred Tax Asset","DeferredTaxAsset","in-capmkt_DeferredTaxAsset","xbrli:monetaryItemType","xbrli:item",null,"instant",null,null,"1) This field is mandatory.\n2) Only numeric value allowed.\n3) Upto 2 decimal value allowed."]
["in-capmkt","Cash and bank balances","Cashandbankbalances","in-capmkt_CashAndBankBalances","xbrli:monetaryItemType","xbrli:item",null,"instant"]
["in-capmkt","Advances and other assets","OpeningBalanceandApproproationsfromPAT",{"$error":"#N/A"},{"$error":"#N/A"},"xbrli:item",null,{"$error":"#N/A"},null,null,"1) This field is mandatory.\n2) Only numeric value allowed.\n3) Upto 2 decimal value allowed."]
["in-capmkt","Sub-total (a)","Subtotala",{"$error":"#N/A"},{"$error":"#N/A"},"xbrli:item",null,{"$error":"#N/A"},null,null,"1) This field is mandatory.\n2) Only numeric value allowed.\n3) Upto 2 decimal value allowed."]
["in-capmkt","Current liabilities","Currentliabilities","in-capmkt_CurrentLiabilities","xbrli:monetaryItemType","xbrli:item",null,"instant",null,null,"1) This field is mandatory.\n2) Only numeric value allowed.\n3) Upto 2 decimal value allowed."]
["in-capmkt","Provisions","Provisions","in-capmkt_Provisions","xbrli:monetaryItemType","xbrli:item",null,"instant",null,null,"1) This field is mandatory.\n2) Only numeric value allowed.\n3) Upto 2 decimal value allowed."]
["in-capmkt","Net current assets (c) = (a – b)","Netcurrentassets","in-capmkt_NetCurrentAssets","xbrli:monetaryItemType","xbrli:item",null,"instant",null,null,"1) This field is mandatory.\n2) Only numeric value allowed.\n3) Upto 2 decimal value allowed."]
["in-capmkt","Miscellaneous expenditure (to the extent not written off or adjusted)","Miscellaneousexpenditure",{"$error":"#N/A"},{"$error":"#N/A"},"xbrli:item",null,{"$error":"#N/A"},null,null,"1) This field is mandatory.\n2) Only numeric value allowed.\n3) Upto 2 decimal value allowed."]
["in-capmkt","Debit balance in profit & loss account (shareholders’ account)","Debitbalanceinprofitlossaccount",{"$error":"#N/A"},{"$error":"#N/A"},"xbrli:item",null,{"$error":"#N/A"},null,null,"1) This field is mandatory.\n2) Only numeric value allowed.\n3) Upto 2 decimal value allowed."]
["in-capmkt","Total","Total",{"$error":"#N/A"},{"$error":"#N/A"},"xbrli:item",null,{"$error":"#N/A"},null,null,"1) This field is mandatory.\n2) Only numeric value allowed.\n3) Upto 2 decimal value allowed."]
["in-capmkt","Contigent Liabilities","ContigentLiabilities","in-capmkt_ContigentLiabilities","xbrli:monetaryItemType","xbrli:item",null,"instant",null,null,"1) This field is mandatory.\n2) Only numeric value allowed.\n3) Upto 2 decimal value allowed."]
["in-capmkt","Whether accounts are audited or unaudited","Whetheraccountsareauditedorunaudited",{"$error":"#N/A"},{"$error":"#N/A"},"xbrli:item",null,{"$error":"#N/A"}]
["in-capmkt","Opening Balance and Approproations from PAT (Net)","OpeningBalanceandApproproationsfromPAT",{"$error":"#N/A"},{"$error":"#N/A"},"xbrli:item",null,{"$error":"#N/A"},null,null,"1) This field is mandatory.\n2) Only numeric value allowed.\n3) Upto 2 decimal value allowed."]
["in-capmkt","Net NPAs","NetNPAs",{"$error":"#N/A"},{"$error":"#N/A"},"xbrli:item",null,{"$error":"#N/A"},null,null,"1) This field is mandatory.\n2) Only numeric value allowed.\n3) Upto 2 decimal value allowed."]
["in-capmkt","Percentage of net NPAs","PercentageofnetNPAs",{"$error":"#N/A"},{"$error":"#N/A"},"xbrli:item",null,{"$error":"#N/A"},null,null,"1) This field is mandatory.\n2) Only numeric value allowed.\n3) Upto 2 decimal value allowed."]
["in-capmkt","No of investor complaints pending at the beginning of the period","Noofinvestorcomplaintspendingatthebeginningoftheperiod",{"$error":"#N/A"},{"$error":"#N/A"},"xbrli:item",null,{"$error":"#N/A"},null,null,"1) This field is mandatory.\n2) Only numeric value allowed.\n3) Upto 2 decimal value allowed."]
["in-capmkt","No of investor complaints during the period","Noofinvestorcomplaintsduringtheperiod","in-capmkt_NoOfInvestorComplaintsDuringThePeriod","xbrli:integerItemType","xbrli:item",null,"duration",null,null,"1) This field is mandatory.\n2) Only numeric value allowed.\n3) Upto 2 decimal value allowed."]
["in-capmkt","No of investor complaints disposed off during the period","Noofinvestorcomplaintsdisposedoffduringtheperiod","in-capmkt_NoOfInvestorComplaintsDisposedOffDuringThePeriod","xbrli:integerItemType","xbrli:item",null,"duration",null,null,"1) This field is mandatory.\n2) Only numeric value allowed.\n3) Upto 2 decimal value allowed."]
["in-capmkt","No of investor complaints remaining unresolved at the end of the period","Noofinvestorcomplaintsremainingunresolvedattheendoftheperiod",{"$error":"#N/A"},{"$error":"#N/A"},"xbrli:item",null,{"$error":"#N/A"},null,null,"1) This field is mandatory.\n2) Only numeric value allowed.\n3) Upto 2 decimal value allowed."]
["in-capmkt","Notes Format for financial results by general insurance companies filed with stock exchanges","NotesFormatforfinancialresultsbygeneralinsurancecompaniesfiledwithstockexchanges",{"$error":"#N/A"},{"$error":"#N/A"},"xbrli:item",null,{"$error":"#N/A"}]
["in-capmkt","Notes to the Balance Sheet","NotestotheBalanceSheet",{"$error":"#N/A"},{"$error":"#N/A"},"xbrli:item",null,{"$error":"#N/A"}]
["in-capmkt","Goods & Service tax charge on linked charges","GoodsServicetaxchargeonlinkedcharges",{"$error":"#N/A"},{"$error":"#N/A"},null,null,{"$error":"#N/A"},null,null,"1) This field is mandatory.\n2) Only numeric value allowed.\n3) Upto 2 decimal value allowed."]
[null,"Current Tax","CurrentTax","in-capmkt_CurrentTax","xbrli:monetaryItemType",null,null,"duration",null,null,"1) This field is mandatory.\n2) Only numeric value allowed.\n3) Upto 2 decimal value allowed."]
[null,"Deffered Tax","DefferedTax","in-capmkt_DefferedTax","xbrli:monetaryItemType",null,null,"duration",null,null,"1) This field is mandatory.\n2) Only numeric value allowed.\n3) Upto 2 decimal value allowed."]
[null,"Total provision of taxes","Totalprovisionoftaxes",{"$error":"#N/A"},{"$error":"#N/A"},null,null,{"$error":"#N/A"},null,null,"1) This field is mandatory.\n2) Only numeric value allowed.\n3) Upto 2 decimal value allowed."]
[null,"Benefits Paid 6(Net)2","BenefitsPaid",{"$error":"#N/A"},{"$error":"#N/A"},null,null,{"$error":"#N/A"},null,null,"1) This field is mandatory.\n2) Only numeric value allowed.\n3) Upto 2 decimal value allowed."]
[null,"Net Surplus(Deficit)","NetSurplus",{"$error":"#N/A"},{"$error":"#N/A"},null,null,{"$error":"#N/A"},null,null,"Transferred to Shareholders A/c + Funds for Future Appropriation= Net Surplus(Deficit)"]
[null,"Transferred to Shareholders A/c","TransferredtoShareholders",{"$error":"#N/A"},{"$error":"#N/A"},null,null,{"$error":"#N/A"},null,null,"1) This field is mandatory.\n2) Only numeric value allowed.\n3) Upto 2 decimal value allowed."]
[null,"Terminal bonus paid","Terminalbonuspaid","in-capmkt_TerminalBonusPaid","xbrli:monetaryItemType",null,null,"duration",null,null,"1) This field is mandatory.\n2) Only numeric value allowed.\n3) Upto 2 decimal value allowed."]
[null,"Total Surplus (Deficit )","TotalSurplus",{"$error":"#N/A"},{"$error":"#N/A"},null,null,{"$error":"#N/A"},null,null,"1) This field is mandatory.\n2) Only numeric value allowed.\n3) Upto 2 decimal value allowed."]
[null,"Transfer from Policyholders' Account","TransferfromPolicyholderAccount",{"$error":"#N/A"},{"$error":"#N/A"},null,null,{"$error":"#N/A"},null,null,"1) This field is mandatory.\n2) Only numeric value allowed.\n3) Upto 2 decimal value allowed."]
[null,"Profit/ (loss) before tax","Profitlossbeforetax","in-capmkt_ProfitLossBeforeTax","xbrli:monetaryItemType",null,null,"duration",null,null,"1) This field is mandatory.\n2) Only numeric value allowed.\n3) Upto 2 decimal value allowed."]
[null,"Profit / (loss) after tax and before Extraordinary Items","ProfitlossaftertaxandbeforeExtraordinaryItems",{"$error":"#N/A"},{"$error":"#N/A"},null,null,{"$error":"#N/A"},null,null,"1) This field is mandatory.\n2) Only numeric value allowed.\n3) Upto 2 decimal value allowed."]
[null,"Profit/ (loss) after tax and Extraordinary Items","ProfitaftertaxandExtraordinaryItems",{"$error":"#N/A"},{"$error":"#N/A"},null,null,{"$error":"#N/A"},null,null,"1) This field is mandatory.\n2) Only numeric value allowed.\n3) Upto 2 decimal value allowed."]
[null,"Profit/(Loss) carried to  Balance Sheet","ProfitLosscarriedtoBalanceSheet","in-capmkt_ProfitLossCarriedToBalanceSheet","xbrli:monetaryItemType",null,null,"duration",null,null,"1) This field is mandatory.\n2) Only numeric value allowed.\n3) Upto 2 decimal value allowed."]
[null,"Paid up equity share capital","Paidupequitysharecapital","in-capmkt_PaidUpEquityShareCapital","xbrli:monetaryItemType",null,null,"instant",null,null,"1) This field is mandatory.\n2) Only numeric value allowed.\n3) Upto 2 decimal value allowed."]
[null,"Reserve & Surplus (excluding Revaluation Reserve)","ReserveSurplus",{"$error":"#N/A"},{"$error":"#N/A"},null,null,{"$error":"#N/A"},null,null,"1) This field is mandatory.\n2) Only numeric value allowed.\n3) Upto 2 decimal value allowed."]
[null,"Fair Value Change Account and Revaluation Reserve (Shareholders)","FairValueChangeAccountandRevaluatioReserve",{"$error":"#N/A"},{"$error":"#N/A"},null,null,{"$error":"#N/A"},null,null,"1) This field is mandatory.\n2) Only numeric value allowed.\n3) Upto 2 decimal value allowed."]
[null,"Policyholder’s liabilities to shareholders’ fund","Policyholderliabilitiestoshareholderfund",{"$error":"#N/A"},{"$error":"#N/A"},null,null,{"$error":"#N/A"},null,null,"1) This field is mandatory.\n2) Only numeric value allowed.\n3) Upto 2 decimal value allowed."]
[null,"Basic and diluted EPS before extraordinary items (net of tax expense) for the period (not to be annualized)","BasicanddilutedEPSbeforeextraordinaryitems",{"$error":"#N/A"},{"$error":"#N/A"},null,null,{"$error":"#N/A"},null,null,"1) This field is mandatory.\n2) Only numeric value allowed.\n3) Upto 2 decimal value allowed."]
[null,"Basic and diluted EPS  after extraordinary items (net of tax expense) for the period (not to be annualized)","BasicanddilutedEPSafterextraordinaryitems",{"$error":"#N/A"},{"$error":"#N/A"},null,null,{"$error":"#N/A"},null,null,"1) This field is mandatory.\n2) Only numeric value allowed.\n3) Upto 2 decimal value allowed."]
[null,"Without unrealised gains","Withoutunrealisedgains",{"$error":"#N/A"},{"$error":"#N/A"},null,null,{"$error":"#N/A"},null,null,"1) This field is mandatory.\n2) Only numeric value allowed.\n3) Upto 2 decimal value allowed."]
[null,"13th Month","monthof13",{"$error":"#N/A"},{"$error":"#N/A"},null,null,{"$error":"#N/A"},null,null,"1) This field is mandatory.\n2) Only numeric value allowed.\n3) Upto 2 decimal value allowed."]
[null,"25th Month","monthof25",{"$error":"#N/A"},{"$error":"#N/A"},null,null,{"$error":"#N/A"},null,null,"1) This field is mandatory.\n2) Only numeric value allowed.\n3) Upto 2 decimal value allowed."]
[null,"37th Month","monthof37",{"$error":"#N/A"},{"$error":"#N/A"},null,null,{"$error":"#N/A"},null,null,"1) This field is mandatory.\n2) Only numeric value allowed.\n3) Upto 2 decimal value allowed."]
[null,"49th Month","monthof49",{"$error":"#N/A"},{"$error":"#N/A"},null,null,{"$error":"#N/A"},null,null,"1) This field is mandatory.\n2) Only numeric value allowed.\n3) Upto 2 decimal value allowed."]
[null,"61st Month","monthof61",{"$error":"#N/A"},{"$error":"#N/A"},null,null,{"$error":"#N/A"},null,null,"1) This field is mandatory.\n2) Only numeric value allowed.\n3) Upto 2 decimal value allowed."]
[null,"Percentage of shares held by Government of India (in case of public sector insurance companies)","PercentageofsharesheldbyGovernment",{"$error":"#N/A"},{"$error":"#N/A"},null,null,{"$error":"#N/A"},null,null,"1) This field is mandatory.\n2) Only numeric value allowed.\n3) Upto 2 decimal value allowed."]
[null,"Name of segment","Nameofsegment",{"$error":"#N/A"},{"$error":"#N/A"},null,null,{"$error":"#N/A"}]
[null,"Type of policy","Typeofpolicy",{"$error":"#N/A"},{"$error":"#N/A"},null,null,{"$error":"#N/A"}]
[null,"Participanting /Non-participanting Policies","ParNonparPolicies",{"$error":"#N/A"},{"$error":"#N/A"},null,null,{"$error":"#N/A"}]
[null,"Transfer of funds from shareholders' account","Transferoffundsfromshareholdersaccount","in-capmkt_TransferOfFundsFromShareholdersAccount","xbrli:monetaryItemType",null,null,"duration",null,null,"1) This field is mandatory.\n2) Only numeric value allowed.\n3) Upto 2 decimal value allowed."]
["in-capmkt","NonLinkedParticipatingPolicyholdersFundGrossNPAs","NonLinkedParticipatingPolicyholdersFundGrossNPAs","in-capmkt_NonLinkedParticipatingPolicyholdersFundGrossNPAs","xbrli:monetaryItemType","xbrli:item",null,"duration","false","true","1) This field is mandatory.\n2) Only numeric value allowed.\n3) Upto 2 decimal value allowed."]
["in-capmkt","NonLinkedNonParticipatingPolicyholdersFundGrossNPAs","NonLinkedNonParticipatingPolicyholdersFundGrossNPAs","in-capmkt_NonLinkedNonParticipatingPolicyholdersFundGrossNPAs","xbrli:monetaryItemType","xbrli:item",null,"duration","false","true","1) This field is mandatory.\n2) Only numeric value allowed.\n3) Upto 2 decimal value allowed."]
["in-capmkt","LinkedParticipatingPolicyholdersFundGrossNPAs","LinkedParticipatingPolicyholdersFundGrossNPAs","in-capmkt_LinkedParticipatingPolicyholdersFundGrossNPAs","xbrli:monetaryItemType","xbrli:item",null,"duration","false","true","1) This field is mandatory.\n2) Only numeric value allowed.\n3) Upto 2 decimal value allowed."]
["in-capmkt","LinkedNonParticipatingPolicyholdersFundGrossNPAs","LinkedNonParticipatingPolicyholdersFundGrossNPAs","in-capmkt_LinkedNonParticipatingPolicyholdersFundGrossNPAs","xbrli:monetaryItemType","xbrli:item",null,"duration","false","true","1) This field is mandatory.\n2) Only numeric value allowed.\n3) Upto 2 decimal value allowed."]
["in-capmkt","NonLinkedParticipatingPolicyholdersFundNetNPAs","NonLinkedParticipatingPolicyholdersFundNetNPAs","in-capmkt_NonLinkedParticipatingPolicyholdersFundNetNPAs","xbrli:monetaryItemType","xbrli:item",null,"duration","false","true","1) This field is mandatory.\n2) Only numeric value allowed.\n3) Upto 2 decimal value allowed."]
["in-capmkt","NonLinkedNonParticipatingPolicyholdersFundNetNPAs","NonLinkedNonParticipatingPolicyholdersFundNetNPAs","in-capmkt_NonLinkedNonParticipatingPolicyholdersFundNetNPAs","xbrli:monetaryItemType","xbrli:item",null,"duration","false","true","1) This field is mandatory.\n2) Only numeric value allowed.\n3) Upto 2 decimal value allowed."]
["in-capmkt","LinkedParticipatingPolicyholdersFundNetNPAs","LinkedParticipatingPolicyholdersFundNetNPAs","in-capmkt_LinkedParticipatingPolicyholdersFundNetNPAs","xbrli:monetaryItemType","xbrli:item",null,"duration","false","true","1) This field is mandatory.\n2) Only numeric value allowed.\n3) Upto 2 decimal value allowed."]
["in-capmkt","LinkedNonParticipatingPolicyholdersFundNetNPAs","LinkedNonParticipatingPolicyholdersFundNetNPAs","in-capmkt_LinkedNonParticipatingPolicyholdersFundNetNPAs","xbrli:monetaryItemType","xbrli:item",null,"duration","false","true","1) This field is mandatory.\n2) Only numeric value allowed.\n3) Upto 2 decimal value allowed."]
["in-capmkt","NonLinkedParticipatingPolicyholdersFundPercentageOfGrossNPAs","NonLinkedParticipatingPolicyholdersFundPercentageOfGrossNPAs","in-capmkt_NonLinkedParticipatingPolicyholdersFundPercentageOfGrossNPAs","num:percentItemType","xbrli:item",null,"duration","false","true","1) This field is mandatory.\n2) Only numeric value allowed.\n3) Upto 2 decimal value allowed."]
["in-capmkt","NonLinkedNonParticipatingPolicyholdersFundPercentageOfGrossNPAs","NonLinkedNonParticipatingPolicyholdersFundPercentageOfGrossNPAs","in-capmkt_NonLinkedNonParticipatingPolicyholdersFundPercentageOfGrossNPAs","num:percentItemType","xbrli:item",null,"duration","false","true","1) This field is mandatory.\n2) Only numeric value allowed.\n3) Upto 2 decimal value allowed."]
["in-capmkt","LinkedParticipatingPolicyholdersFundPercentageOfGrossNPAs","LinkedParticipatingPolicyholdersFundPercentageOfGrossNPAs","in-capmkt_LinkedParticipatingPolicyholdersFundPercentageOfGrossNPAs","num:percentItemType","xbrli:item",null,"duration","false","true","1) This field is mandatory.\n2) Only numeric value allowed.\n3) Upto 2 decimal value allowed."]
["in-capmkt","LinkedNonParticipatingPolicyholdersFundPercentageOfGrossNPAs","LinkedNonParticipatingPolicyholdersFundPercentageOfGrossNPAs","in-capmkt_LinkedNonParticipatingPolicyholdersFundPercentageOfGrossNPAs","num:percentItemType","xbrli:item",null,"duration","false","true","1) This field is mandatory.\n2) Only numeric value allowed.\n3) Upto 2 decimal value allowed."]
["in-capmkt","NonLinkedParticipatingPolicyholdersFundPercentageOfNetNPAs","NonLinkedParticipatingPolicyholdersFundPercentageOfNetNPAs","in-capmkt_NonLinkedParticipatingPolicyholdersFundPercentageOfNetNPAs","num:percentItemType","xbrli:item",null,"duration","false","true","1) This field is mandatory.\n2) Only numeric value allowed.\n3) Upto 2 decimal value allowed."]
["in-capmkt","NonLinkedNonParticipatingPolicyholdersFundPercentageOfNetNPAs","NonLinkedNonParticipatingPolicyholdersFundPercentageOfNetNPAs","in-capmkt_NonLinkedNonParticipatingPolicyholdersFundPercentageOfNetNPAs","num:percentItemType","xbrli:item",null,"duration","false","true","1) This field is mandatory.\n2) Only numeric value allowed.\n3) Upto 2 decimal value allowed."]
["in-capmkt","LinkedParticipatingPolicyholdersFundPercentageOfNetNPAs","LinkedParticipatingPolicyholdersFundPercentageOfNetNPAs","in-capmkt_LinkedParticipatingPolicyholdersFundPercentageOfNetNPAs","num:percentItemType","xbrli:item",null,"duration","false","true","1) This field is mandatory.\n2) Only numeric value allowed.\n3) Upto 2 decimal value allowed."]
["in-capmkt","LinkedNonParticipatingPolicyholdersFundPercentageOfNetNPAs","LinkedNonParticipatingPolicyholdersFundPercentageOfNetNPAs","in-capmkt_LinkedNonParticipatingPolicyholdersFundPercentageOfNetNPAs","num:percentItemType","xbrli:item",null,"duration","false","true","1) This field is mandatory.\n2) Only numeric value allowed.\n3) Upto 2 decimal value allowed."]
["in-capmkt",null,"Cash Flow Direct",null,null,null,null,{"$error":"#N/A"}]
["in-capmkt","Statement of cash flows [Abstract]","StatementOfCashFlowsAbstract","in-capmkt_StatementOfCashFlowsAbstract","xbrli:stringItemType",null,null,"duration"]
["in-capmkt","Cash flows from used in operating activities [Abstract]","CashFlowsFromUsedInOperatingActivitiesAbstract","in-capmkt_CashFlowsFromUsedInOperatingActivitiesAbstract","xbrli:stringItemType",null,null,"duration"]
["in-capmkt","Classes of cash receipts from operating activities [Abstract]","ClassesOfCashReceiptsFromOperatingActivitiesAbstract","in-capmkt_ClassesOfCashReceiptsFromOperatingActivitiesAbstract","xbrli:stringItemType",null,null,"duration"]
["in-capmkt","Receipts from sales of goods and rendering of services","ReceiptsFromSalesOfGoodsAndRenderingOfServices","in-capmkt_ReceiptsFromSalesOfGoodsAndRenderingOfServices","xbrli:monetaryItemType",null,null,"duration",null,null,"1) This field is mandatory.\n2) Only numeric value allowed.\n3) Upto 2 decimal value allowed."]
["in-capmkt","Receipts from royalties fees, commissions and other revenue","ReceiptsFromRoyaltiesFeesCommissionsAndOtherRevenue","in-capmkt_ReceiptsFromRoyaltiesFeesCommissionsAndOtherRevenue","xbrli:monetaryItemType",null,null,"duration",null,null,"1) This field is mandatory.\n2) Only numeric value allowed.\n3) Upto 2 decimal value allowed."]
["in-capmkt","Receipts from contracts held for dealing or trading purpose","ReceiptsFromContractsHeldForDealingOrTradingPurpose","in-capmkt_ReceiptsFromContractsHeldForDealingOrTradingPurpose","xbrli:monetaryItemType",null,null,"duration",null,null,"1) This field is mandatory.\n2) Only numeric value allowed.\n3) Upto 2 decimal value allowed."]
["in-capmkt","Receipts from premiums and claims annuities and other policy benefits","ReceiptsFromPremiumsAndClaimsAnnuitiesAndOtherPolicyBenefits","in-capmkt_ReceiptsFromPremiumsAndClaimsAnnuitiesAndOtherPolicyBenefits","xbrli:monetaryItemType",null,null,"duration",null,null,"1) This field is mandatory.\n2) Only numeric value allowed.\n3) Upto 2 decimal value allowed."]
["in-capmkt","Receipts from rents and subsequent sales of assets held for rental to others and subsequently held for sale","ReceiptsFromRentsAndSubsequentSalesOfAssetsHeldForRentalToOthersAndSubsequentlyHeldForSale","in-capmkt_ReceiptsFromRentsAndSubsequentSalesOfAssetsHeldForRentalToOthersAndSubsequentlyHeldForSale","xbrli:monetaryItemType",null,null,"duration",null,null,"1) This field is mandatory.\n2) Only numeric value allowed.\n3) Upto 2 decimal value allowed."]
["in-capmkt","Other cash receipts from operating activities","OtherCashReceiptsFromOperatingActivities","in-capmkt_OtherCashReceiptsFromOperatingActivities","xbrli:monetaryItemType",null,null,"duration",null,null,"1) This field is mandatory.\n2) Only numeric value allowed.\n3) Upto 2 decimal value allowed."]
["in-capmkt","Classes of cash payments from operating activities [Abstract]","ClassesOfCashPaymentsFromOperatingActivitiesAbstract","in-capmkt_ClassesOfCashPaymentsFromOperatingActivitiesAbstract","xbrli:stringItemType",null,null,"duration"]
["in-capmkt","Payments to suppliers for goods and services","PaymentsToSuppliersForGoodsAndServices","in-capmkt_PaymentsToSuppliersForGoodsAndServices","xbrli:monetaryItemType",null,null,"duration",null,null,"1) This field is mandatory.\n2) Only numeric value allowed.\n3) Upto 2 decimal value allowed."]
["in-capmkt","Payments from contracts held for dealing or trading purpose","PaymentsFromContractsHeldForDealingOrTradingPurpose","in-capmkt_PaymentsFromContractsHeldForDealingOrTradingPurpose","xbrli:monetaryItemType",null,null,"duration",null,null,"1) This field is mandatory.\n2) Only numeric value allowed.\n3) Upto 2 decimal value allowed."]
["in-capmkt","Payments to and on behalf of employees","PaymentsToAndOnBehalfOfEmployees","in-capmkt_PaymentsToAndOnBehalfOfEmployees","xbrli:monetaryItemType",null,null,"duration",null,null,"1) This field is mandatory.\n2) Only numeric value allowed.\n3) Upto 2 decimal value allowed."]
["in-capmkt","Payments for premiums and claims, annuities and other policy benefits","PaymentsForPremiumsAndClaimsAnnuitiesAndOtherPolicyBenefits","in-capmkt_PaymentsForPremiumsAndClaimsAnnuitiesAndOtherPolicyBenefits","xbrli:monetaryItemType",null,null,"duration",null,null,"1) This field is mandatory.\n2) Only numeric value allowed.\n3) Upto 2 decimal value allowed."]
["in-capmkt","Payments to manufacture or acquire assets held for rental to others and subsequently held for sale","PaymentsToManufactureOrAcquireAssetsHeldForRentalToOthersAndSubsequentlyHeldForSale","in-capmkt_PaymentsToManufactureOrAcquireAssetsHeldForRentalToOthersAndSubsequentlyHeldForSale","xbrli:monetaryItemType",null,null,"duration",null,null,"1) This field is mandatory.\n2) Only numeric value allowed.\n3) Upto 2 decimal value allowed."]
["in-capmkt","Other cash payments from operating activities","OtherCashPaymentsFromOperatingActivities","in-capmkt_OtherCashPaymentsFromOperatingActivities","xbrli:monetaryItemType",null,null,"duration",null,null,"1) This field is mandatory.\n2) Only numeric value allowed.\n3) Upto 2 decimal value allowed."]
["in-capmkt","Net cash flows from (used in) operations operating activities","CashFlowsFromUsedInOperations","in-capmkt_CashFlowsFromUsedInOperations","xbrli:monetaryItemType",null,null,"duration",null,null,"1) This field is mandatory.\n2) Only numeric value allowed.\n3) Upto 2 decimal value allowed."]
["in-capmkt","Dividends received operating activities","DividendsReceivedClassifiedAsOperatingActivities","in-capmkt_DividendsReceivedClassifiedAsOperatingActivities","xbrli:monetaryItemType",null,null,"duration",null,null,"1) This field is mandatory.\n2) Only numeric value allowed.\n3) Upto 2 decimal value allowed."]
["in-capmkt","Interest paid operating activities","InterestPaidClassifiedAsOperatingActivities","in-capmkt_InterestPaidClassifiedAsOperatingActivities","xbrli:monetaryItemType",null,null,"duration",null,null,"1) This field is mandatory.\n2) Only numeric value allowed.\n3) Upto 2 decimal value allowed."]
["in-capmkt","Interest received operating activities","InterestReceivedClassifiedAsOperatingActivities","in-capmkt_InterestReceivedClassifiedAsOperatingActivities","xbrli:monetaryItemType",null,null,"duration",null,null,"1) This field is mandatory.\n2) Only numeric value allowed.\n3) Upto 2 decimal value allowed."]
["in-capmkt","Income taxes paid (refund) operating activities","IncomeTaxesPaidRefundClassifiedAsOperatingActivities","in-capmkt_IncomeTaxesPaidRefundClassifiedAsOperatingActivities","xbrli:monetaryItemType",null,null,"duration",null,null,"1) This field is mandatory.\n2) Only numeric value allowed.\n3) Upto 2 decimal value allowed."]
["in-capmkt","Other inflows (outflows) of cash operating activities","OtherInflowsOutflowsOfCashClassifiedAsOperatingActivities","in-capmkt_OtherInflowsOutflowsOfCashClassifiedAsOperatingActivities","xbrli:monetaryItemType",null,null,"duration",null,null,"1) This field is mandatory.\n2) Only numeric value allowed.\n3) Upto 2 decimal value allowed."]
["in-capmkt","Net cash flows from (used in) operating activities","CashFlowsFromUsedInOperatingActivities","in-capmkt_CashFlowsFromUsedInOperatingActivities","xbrli:monetaryItemType",null,null,"duration",null,null,"1) This field is mandatory.\n2) Only numeric value allowed.\n3) Upto 2 decimal value allowed."]
["in-capmkt","Cash flows from used in investing activities [Abstract]","CashFlowsFromUsedInInvestingActivitiesAbstract","in-capmkt_CashFlowsFromUsedInInvestingActivitiesAbstract","xbrli:stringItemType",null,null,"duration"]
["in-capmkt","Cash flows from losing control of subsidiaries or other businesses investing activities","CashFlowsFromLosingControlOfSubsidiariesOrOtherBusinessesClassifiedAsInvestingActivities","in-capmkt_CashFlowsFromLosingControlOfSubsidiariesOrOtherBusinessesClassifiedAsInvestingActivities","xbrli:monetaryItemType",null,null,"duration",null,null,"1) This field is mandatory.\n2) Only numeric value allowed.\n3) Upto 2 decimal value allowed."]
["in-capmkt","Cash flows used in obtaining control of subsidiaries or other businesses investing activities","CashFlowsUsedInObtainingControlOfSubsidiariesOrOtherBusinessesClassifiedAsInvestingActivities","in-capmkt_CashFlowsUsedInObtainingControlOfSubsidiariesOrOtherBusinessesClassifiedAsInvestingActivities","xbrli:monetaryItemType",null,null,"duration",null,null,"1) This field is mandatory.\n2) Only numeric value allowed.\n3) Upto 2 decimal value allowed."]
["in-capmkt","Other cash receipts from sales of equity or debt instruments of other entities investing activities","OtherCashReceiptsFromSalesOfEquityOrDebtInstrumentsOfOtherEntitiesClassifiedAsInvestingActivities","in-capmkt_OtherCashReceiptsFromSalesOfEquityOrDebtInstrumentsOfOtherEntitiesClassifiedAsInvestingActivities","xbrli:monetaryItemType",null,null,"duration",null,null,"1) This field is mandatory.\n2) Only numeric value allowed.\n3) Upto 2 decimal value allowed."]
["in-capmkt","Other cash payments to acquire equity or debt instruments of other entities investing activities","OtherCashPaymentsToAcquireEquityOrDebtInstrumentsOfOtherEntitiesClassifiedAsInvestingActivities","in-capmkt_OtherCashPaymentsToAcquireEquityOrDebtInstrumentsOfOtherEntitiesClassifiedAsInvestingActivities","xbrli:monetaryItemType",null,null,"duration",null,null,"1) This field is mandatory.\n2) Only numeric value allowed.\n3) Upto 2 decimal value allowed."]
["in-capmkt","Other cash receipts from sales of interests in joint ventures investing activities","OtherCashReceiptsFromSalesOfInterestsInJointVenturesClassifiedAsInvestingActivities","in-capmkt_OtherCashReceiptsFromSalesOfInterestsInJointVenturesClassifiedAsInvestingActivities","xbrli:monetaryItemType",null,null,"duration",null,null,"1) This field is mandatory.\n2) Only numeric value allowed.\n3) Upto 2 decimal value allowed."]
["in-capmkt","Other cash payments to acquire interests in joint ventures investing activities","OtherCashPaymentsToAcquireInterestsInJointVenturesClassifiedAsInvestingActivities","in-capmkt_OtherCashPaymentsToAcquireInterestsInJointVenturesClassifiedAsInvestingActivities","xbrli:monetaryItemType",null,null,"duration",null,null,"1) This field is mandatory.\n2) Only numeric value allowed.\n3) Upto 2 decimal value allowed."]
["in-capmkt","Proceeds from sales of property, plant and equipment investing activities","ProceedsFromSalesOfPropertyPlantAndEquipmentClassifiedAsInvestingActivities","in-capmkt_ProceedsFromSalesOfPropertyPlantAndEquipmentClassifiedAsInvestingActivities","xbrli:monetaryItemType",null,null,"duration",null,null,"1) This field is mandatory.\n2) Only numeric value allowed.\n3) Upto 2 decimal value allowed."]
["in-capmkt","Purchase of property, plant and equipment investing activities","PurchaseOfPropertyPlantAndEquipmentClassifiedAsInvestingActivities","in-capmkt_PurchaseOfPropertyPlantAndEquipmentClassifiedAsInvestingActivities","xbrli:monetaryItemType",null,null,"duration",null,null,"1) This field is mandatory.\n2) Only numeric value allowed.\n3) Upto 2 decimal value allowed."]
["in-capmkt","Proceeds from sales of investment property investing activities","ProceedsFromSalesOfInvestmentPropertyClassifiedAsInvestingActivities","in-capmkt_ProceedsFromSalesOfInvestmentPropertyClassifiedAsInvestingActivities","xbrli:monetaryItemType",null,null,"duration",null,null,"1) This field is mandatory.\n2) Only numeric value allowed.\n3) Upto 2 decimal value allowed."]
["in-capmkt","Purchase of investment property investing activities","PurchaseOfInvestmentPropertyClassifiedAsInvestingActivities","in-capmkt_PurchaseOfInvestmentPropertyClassifiedAsInvestingActivities","xbrli:monetaryItemType",null,null,"duration",null,null,"1) This field is mandatory.\n2) Only numeric value allowed.\n3) Upto 2 decimal value allowed."]
["in-capmkt","Proceeds from sales of goodwill investing activities","ProceedsFromSalesOfGoodwillClassifiedAsInvestingActivities","in-capmkt_ProceedsFromSalesOfGoodwillClassifiedAsInvestingActivities","xbrli:monetaryItemType",null,null,"duration",null,null,"1) This field is mandatory.\n2) Only numeric value allowed.\n3) Upto 2 decimal value allowed."]
["in-capmkt","Purchase of goodwill investing activities","PurchaseOfGoodwillClassifiedAsInvestingActivities","in-capmkt_PurchaseOfGoodwillClassifiedAsInvestingActivities","xbrli:monetaryItemType",null,null,"duration",null,null,"1) This field is mandatory.\n2) Only numeric value allowed.\n3) Upto 2 decimal value allowed."]
["in-capmkt","Proceeds from sales of intangible assets investing activities","ProceedsFromSalesOfIntangibleAssetsClassifiedAsInvestingActivities","in-capmkt_ProceedsFromSalesOfIntangibleAssetsClassifiedAsInvestingActivities","xbrli:monetaryItemType",null,null,"duration",null,null,"1) This field is mandatory.\n2) Only numeric value allowed.\n3) Upto 2 decimal value allowed."]
["in-capmkt","Purchase of intangible assets investing activities","PurchaseOfIntangibleAssetsClassifiedAsInvestingActivities","in-capmkt_PurchaseOfIntangibleAssetsClassifiedAsInvestingActivities","xbrli:monetaryItemType",null,null,"duration",null,null,"1) This field is mandatory.\n2) Only numeric value allowed.\n3) Upto 2 decimal value allowed."]
["in-capmkt","Proceeds from biological assets other than bearer plants investing activities","ProceedsFromBiologicalAssetsOtherThanBearerPlantsClassifiedAsInvestingActivities","in-capmkt_ProceedsFromBiologicalAssetsOtherThanBearerPlantsClassifiedAsInvestingActivities","xbrli:monetaryItemType",null,null,"duration",null,null,"1) This field is mandatory.\n2) Only numeric value allowed.\n3) Upto 2 decimal value allowed."]
["in-capmkt","Purchase of biological assets other than bearer plants investing activities","PurchaseOfBiologicalAssetsOtherThanBearerPlantsClassifiedAsInvestingActivities","in-capmkt_PurchaseOfBiologicalAssetsOtherThanBearerPlantsClassifiedAsInvestingActivities","xbrli:monetaryItemType",null,null,"duration",null,null,"1) This field is mandatory.\n2) Only numeric value allowed.\n3) Upto 2 decimal value allowed."]
["in-capmkt","Proceeds from sales of other long-term assets investing activities","ProceedsFromSalesOfOtherLongTermAssetsClassifiedAsInvestingActivities","in-capmkt_ProceedsFromSalesOfOtherLongTermAssetsClassifiedAsInvestingActivities","xbrli:monetaryItemType",null,null,"duration",null,null,"1) This field is mandatory.\n2) Only numeric value allowed.\n3) Upto 2 decimal value allowed."]
["in-capmkt","Purchase of other long-term assets investing activities","PurchaseOfOtherLongTermAssetsClassifiedAsInvestingActivities","in-capmkt_PurchaseOfOtherLongTermAssetsClassifiedAsInvestingActivities","xbrli:monetaryItemType",null,null,"duration",null,null,"1) This field is mandatory.\n2) Only numeric value allowed.\n3) Upto 2 decimal value allowed."]
["in-capmkt","Cash advances and loans made to other parties investing activities","CashAdvancesAndLoansMadeToOtherPartiesClassifiedAsInvestingActivities","in-capmkt_CashAdvancesAndLoansMadeToOtherPartiesClassifiedAsInvestingActivities","xbrli:monetaryItemType",null,null,"duration",null,null,"1) This field is mandatory.\n2) Only numeric value allowed.\n3) Upto 2 decimal value allowed."]
["in-capmkt","Cash receipts from repayment of advances and loans made to other parties investing activities","CashReceiptsFromRepaymentOfAdvancesAndLoansMadeToOtherPartiesClassifiedAsInvestingActivities","in-capmkt_CashReceiptsFromRepaymentOfAdvancesAndLoansMadeToOtherPartiesClassifiedAsInvestingActivities","xbrli:monetaryItemType",null,null,"duration",null,null,"1) This field is mandatory.\n2) Only numeric value allowed.\n3) Upto 2 decimal value allowed."]
["in-capmkt","Cash payments for future contracts, forward contracts, option contracts and swap contracts investing activities","CashPaymentsForFutureContractsForwardContractsOptionContractsAndSwapContractsClassifiedAsInvestingActivities","in-capmkt_CashPaymentsForFutureContractsForwardContractsOptionContractsAndSwapContractsClassifiedAsInvestingActivities","xbrli:monetaryItemType",null,null,"duration",null,null,"1) This field is mandatory.\n2) Only numeric value allowed.\n3) Upto 2 decimal value allowed."]
["in-capmkt","Cash receipts from future contracts, forward contracts, option contracts and swap contracts investing activities","CashReceiptsFromFutureContractsForwardContractsOptionContractsAndSwapContractsClassifiedAsInvestingActivities","in-capmkt_CashReceiptsFromFutureContractsForwardContractsOptionContractsAndSwapContractsClassifiedAsInvestingActivities","xbrli:monetaryItemType",null,null,"duration",null,null,"1) This field is mandatory.\n2) Only numeric value allowed.\n3) Upto 2 decimal value allowed."]
["in-capmkt","Dividends received investing activities","DividendsReceivedClassifiedAsInvestingActivities","in-capmkt_DividendsReceivedClassifiedAsInvestingActivities","xbrli:monetaryItemType",null,null,"duration",null,null,"1) This field is mandatory.\n2) Only numeric value allowed.\n3) Upto 2 decimal value allowed."]
["in-capmkt","Interest received investing activities","InterestReceivedClassifiedAsInvestingActivities","in-capmkt_InterestReceivedClassifiedAsInvestingActivities","xbrli:monetaryItemType",null,null,"duration",null,null,"1) This field is mandatory.\n2) Only numeric value allowed.\n3) Upto 2 decimal value allowed."]
["in-capmkt","Income taxes paid (refund) investing activities","IncomeTaxesPaidRefundClassifiedAsInvestingActivities","in-capmkt_IncomeTaxesPaidRefundClassifiedAsInvestingActivities","xbrli:monetaryItemType",null,null,"duration",null,null,"1) This field is mandatory.\n2) Only numeric value allowed.\n3) Upto 2 decimal value allowed."]
["in-capmkt","Other inflows (outflows) of cash investing activities","OtherInflowsOutflowsOfCashClassifiedAsInvestingActivities","in-capmkt_OtherInflowsOutflowsOfCashClassifiedAsInvestingActivities","xbrli:monetaryItemType",null,null,"duration",null,null,"1) This field is mandatory.\n2) Only numeric value allowed.\n3) Upto 2 decimal value allowed."]
["in-capmkt","Proceeds from government grants investing activities","ProceedsFromGovernmentGrantsClassifiedAsInvestingActivities","in-capmkt_ProceedsFromGovernmentGrantsClassifiedAsInvestingActivities","xbrli:monetaryItemType",null,null,"duration",null,null,"1) This field is mandatory.\n2) Only numeric value allowed.\n3) Upto 2 decimal value allowed."]
["in-capmkt","Net cash flows from (used in) investing activities","CashFlowsFromUsedInInvestingActivities","in-capmkt_CashFlowsFromUsedInInvestingActivities","xbrli:monetaryItemType",null,null,"duration",null,null,"1) This field is mandatory.\n2) Only numeric value allowed.\n3) Upto 2 decimal value allowed."]
["in-capmkt","Cash flows from used in financing activities [Abstract]","CashFlowsFromUsedInFinancingActivitiesAbstract","in-capmkt_CashFlowsFromUsedInFinancingActivitiesAbstract","xbrli:stringItemType",null,null,"duration"]
["in-capmkt","Proceeds from changes in ownership interests in subsidiaries that do not result in loss of control","ProceedsFromChangesInOwnershipInterestsInSubsidiaries","in-capmkt_ProceedsFromChangesInOwnershipInterestsInSubsidiaries","xbrli:monetaryItemType",null,null,"duration",null,null,"1) This field is mandatory.\n2) Only numeric value allowed.\n3) Upto 2 decimal value allowed."]
["in-capmkt","Payments from changes in ownership interests in subsidiaries that do not result in loss of control","PaymentsFromChangesInOwnershipInterestsInSubsidiaries","in-capmkt_PaymentsFromChangesInOwnershipInterestsInSubsidiaries","xbrli:monetaryItemType",null,null,"duration",null,null,"1) This field is mandatory.\n2) Only numeric value allowed.\n3) Upto 2 decimal value allowed."]
["in-capmkt","Proceeds from issuing shares financing activities","ProceedsFromIssuingSharesClassifiedAsFinancingActivities","in-capmkt_ProceedsFromIssuingSharesClassifiedAsFinancingActivities","xbrli:monetaryItemType",null,null,"duration",null,null,"1) This field is mandatory.\n2) Only numeric value allowed.\n3) Upto 2 decimal value allowed."]
["in-capmkt","Proceeds from issuing other equity instruments financing activities","ProceedsFromIssuingOtherEquityInstruments","in-capmkt_ProceedsFromIssuingOtherEquityInstruments","xbrli:monetaryItemType",null,null,"duration",null,null,"1) This field is mandatory.\n2) Only numeric value allowed.\n3) Upto 2 decimal value allowed."]
["in-capmkt","Payments to acquire or redeem entity's shares financing activities","PaymentsToAcquireOrRedeemEntitysShares","in-capmkt_PaymentsToAcquireOrRedeemEntitysShares","xbrli:monetaryItemType",null,null,"duration",null,null,"1) This field is mandatory.\n2) Only numeric value allowed.\n3) Upto 2 decimal value allowed."]
["in-capmkt","Payments of other equity instruments financing activities","PaymentsOfOtherEquityInstruments","in-capmkt_PaymentsOfOtherEquityInstruments","xbrli:monetaryItemType",null,null,"duration",null,null,"1) This field is mandatory.\n2) Only numeric value allowed.\n3) Upto 2 decimal value allowed."]
["in-capmkt","Proceeds from exercise of stock options financing activities","ProceedsFromExerciseOfStockOptions","in-capmkt_ProceedsFromExerciseOfStockOptions","xbrli:monetaryItemType",null,null,"duration",null,null,"1) This field is mandatory.\n2) Only numeric value allowed.\n3) Upto 2 decimal value allowed."]
["in-capmkt","Proceeds from issuing debentures notes bonds etc financing activities","ProceedsFromIssuingDebenturesNotesBondsEtc","in-capmkt_ProceedsFromIssuingDebenturesNotesBondsEtc","xbrli:monetaryItemType",null,null,"duration",null,null,"1) This field is mandatory.\n2) Only numeric value allowed.\n3) Upto 2 decimal value allowed."]
["in-capmkt","Proceeds from borrowings financing activities","ProceedsFromBorrowingsClassifiedAsFinancingActivities","in-capmkt_ProceedsFromBorrowingsClassifiedAsFinancingActivities","xbrli:monetaryItemType",null,null,"duration",null,null,"1) This field is mandatory.\n2) Only numeric value allowed.\n3) Upto 2 decimal value allowed."]
["in-capmkt","Repayments of borrowings financing activities","RepaymentsOfBorrowingsClassifiedAsFinancingActivities","in-capmkt_RepaymentsOfBorrowingsClassifiedAsFinancingActivities","xbrli:monetaryItemType",null,null,"duration",null,null,"1) This field is mandatory.\n2) Only numeric value allowed.\n3) Upto 2 decimal value allowed."]
["in-capmkt","Payments of finance lease liabilities financing activities","PaymentsFromChangesInOwnershipInterestsInSubsidiaries","in-capmkt_PaymentsFromChangesInOwnershipInterestsInSubsidiaries","xbrli:monetaryItemType",null,null,"duration",null,null,"1) This field is mandatory.\n2) Only numeric value allowed.\n3) Upto 2 decimal value allowed."]
["in-capmkt","Payments of lease liabilities financing activities","PaymentsOfLeaseLiabilitiesClassifiedAsFinancingActivities","in-capmkt_PaymentsOfLeaseLiabilitiesClassifiedAsFinancingActivities","xbrli:monetaryItemType",null,null,"duration",null,null,"1) This field is mandatory.\n2) Only numeric value allowed.\n3) Upto 2 decimal value allowed."]
["in-capmkt","Dividends paid financing activities","DividendsPaidClassifiedAsFinancingActivities","in-capmkt_DividendsPaidClassifiedAsFinancingActivities","xbrli:monetaryItemType",null,null,"duration",null,null,"1) This field is mandatory.\n2) Only numeric value allowed.\n3) Upto 2 decimal value allowed."]
["in-capmkt","Interest paid financing activities","InterestPaidClassifiedAsFinancingActivities","in-capmkt_InterestPaidClassifiedAsFinancingActivities","xbrli:monetaryItemType",null,null,"duration",null,null,"1) This field is mandatory.\n2) Only numeric value allowed.\n3) Upto 2 decimal value allowed."]
["in-capmkt","Income taxes paid (refund) financing activities","IncomeTaxesPaidRefundClassifiedAsFinancingActivities","in-capmkt_IncomeTaxesPaidRefundClassifiedAsFinancingActivities","xbrli:monetaryItemType",null,null,"duration",null,null,"1) This field is mandatory.\n2) Only numeric value allowed.\n3) Upto 2 decimal value allowed."]
["in-capmkt","Other inflows (outflows) of cash financing activities","OtherInflowsOutflowsOfCashClassifiedAsFinancingActivities","in-capmkt_OtherInflowsOutflowsOfCashClassifiedAsFinancingActivities","xbrli:monetaryItemType",null,null,"duration",null,null,"1) This field is mandatory.\n2) Only numeric value allowed.\n3) Upto 2 decimal value allowed."]
["in-capmkt","Net cash flows from (used in) financing activities","CashFlowsFromUsedInFinancingActivities","in-capmkt_CashFlowsFromUsedInFinancingActivities","xbrli:monetaryItemType",null,null,"duration",null,null,"1) This field is mandatory.\n2) Only numeric value allowed.\n3) Upto 2 decimal value allowed."]
["in-capmkt","Net increase (decrease) in cash and cash equivalents before effect of exchange rate changes","IncreaseDecreaseInCashAndCashEquivalentsBeforeEffectOfExchangeRateChanges","in-capmkt_IncreaseDecreaseInCashAndCashEquivalentsBeforeEffectOfExchangeRateChanges","xbrli:monetaryItemType",null,null,"duration",null,null,"1) This field is mandatory.\n2) Only numeric value allowed.\n3) Upto 2 decimal value allowed."]
["in-capmkt","Effect of exchange rate changes on cash and cash equivalents [Abstract]","EffectOfExchangeRateChangesOnCashAndCashEquivalentsAbstract","in-capmkt_EffectOfExchangeRateChangesOnCashAndCashEquivalentsAbstract","xbrli:stringItemType",null,null,"duration"]
["in-capmkt","Effect of exchange rate changes on cash and cash equivalents","EffectOfExchangeRateChangesOnCashAndCashEquivalents","in-capmkt_EffectOfExchangeRateChangesOnCashAndCashEquivalents","xbrli:monetaryItemType",null,null,"duration",null,null,"1) This field is mandatory.\n2) Only numeric value allowed.\n3) Upto 2 decimal value allowed."]
["in-capmkt","Net increase (decrease) in cash and cash equivalents","IncreaseDecreaseInCashAndCashEquivalents","in-capmkt_IncreaseDecreaseInCashAndCashEquivalents","xbrli:monetaryItemType",null,null,"duration",null,null,"1) This field is mandatory.\n2) Only numeric value allowed.\n3) Upto 2 decimal value allowed."]
["in-capmkt","Cash and cash equivalents cash flow statement at beginning of period","CashAndCashEquivalentsCashFlowStatement","in-capmkt_CashAndCashEquivalentsCashFlowStatement","xbrli:monetaryItemType",null,null,"instant",null,null,"1) This field is mandatory.\n2) Only numeric value allowed.\n3) Upto 2 decimal value allowed."]
["in-capmkt","Cash and cash equivalents cash flow statement at end of period","CashAndCashEquivalentsCashFlowStatement","in-capmkt_CashAndCashEquivalentsCashFlowStatement","xbrli:monetaryItemType",null,null,"instant",null,null,"1) This field is mandatory.\n2) Only numeric value allowed.\n3) Upto 2 decimal value allowed."]
["in-capmkt",null,"Cash Flow Indirect",{"$error":"#N/A"},null,null,null,{"$error":"#N/A"}]
["in-capmkt","Profit before tax indirect","ProfitBeforeTax","in-capmkt_ProfitBeforeTax","xbrli:monetaryItemType",null,null,"duration",null,null,"1) This field is mandatory.\n2) Only numeric value allowed.\n3) Upto 2 decimal value allowed."]
["in-capmkt","Adjustments for reconcile profit (loss) [Abstract]","AdjustmentsForReconcileProfitLossAbstract","in-capmkt_AdjustmentsForReconcileProfitLossAbstract","xbrli:stringItemType",null,null,"duration"]
["in-capmkt","Adjustments for finance costs","AdjustmentsForFinanceCosts","in-capmkt_AdjustmentsForFinanceCosts","xbrli:monetaryItemType",null,null,"duration",null,null,"1) This is a mandatory field.\n2) Only numeric value allowed.\n3) Upto 2 decimal value allowed."]
["in-capmkt","Adjustments for decrease (increase) in inventories","AdjustmentsForDecreaseIncreaseInInventories","in-capmkt_AdjustmentsForDecreaseIncreaseInInventories","xbrli:monetaryItemType",null,null,"duration",null,null,"1) This is a mandatory field.\n2) Only numeric value allowed.\n3) Upto 2 decimal value allowed."]
["in-capmkt","Adjustments for decrease (increase) in trade receivables, current","AdjustmentsForDecreaseIncreaseInTradeReceivablesCurrent","in-capmkt_AdjustmentsForDecreaseIncreaseInTradeReceivablesCurrent","xbrli:monetaryItemType",null,null,"duration",null,null,"1) This is a mandatory field.\n2) Only numeric value allowed.\n3) Upto 2 decimal value allowed."]
["in-capmkt","Adjustments for decrease (increase) in trade receivables, non-current","AdjustmentsForDecreaseIncreaseInTradeReceivablesNoncurrent","in-capmkt_AdjustmentsForDecreaseIncreaseInTradeReceivablesNoncurrent","xbrli:monetaryItemType",null,null,"duration",null,null,"1) This is a mandatory field.\n2) Only numeric value allowed.\n3) Upto 2 decimal value allowed."]
["in-capmkt","Adjustments for decrease (increase) in other current assets","AdjustmentsForDecreaseIncreaseInOtherCurrentAssets","in-capmkt_AdjustmentsForDecreaseIncreaseInOtherCurrentAssets","xbrli:monetaryItemType",null,null,"duration",null,null,"1) This is a mandatory field.\n2) Only numeric value allowed.\n3) Upto 2 decimal value allowed."]
["in-capmkt","Adjustments for decrease (increase) in other non-current assets","AdjustmentsForDecreaseIncreaseInOtherNoncurrentAssets","in-capmkt_AdjustmentsForDecreaseIncreaseInOtherNoncurrentAssets","xbrli:monetaryItemType",null,null,"duration",null,null,"1) This is a mandatory field.\n2) Only numeric value allowed.\n3) Upto 2 decimal value allowed."]
["in-capmkt","Adjustments for other financial assets, non-current","AdjustmentsForOtherFinancialAssetsNoncurrent","in-capmkt_AdjustmentsForOtherFinancialAssetsNoncurrent","xbrli:monetaryItemType",null,null,"duration",null,null,"1) This is a mandatory field.\n2) Only numeric value allowed.\n3) Upto 2 decimal value allowed."]
["in-capmkt","Adjustments for other financial assets, current","AdjustmentsForOtherFinancialAssetsCurrent","in-capmkt_AdjustmentsForOtherFinancialAssetsCurrent","xbrli:monetaryItemType",null,null,"duration",null,null,"1) This is a mandatory field.\n2) Only numeric value allowed.\n3) Upto 2 decimal value allowed."]
["in-capmkt","Adjustments for other bank balances","AdjustmentsForOtherBankBalances","in-capmkt_AdjustmentsForOtherBankBalances","xbrli:monetaryItemType",null,null,"duration",null,null,"1) This field is mandatory.\n2) Only numeric value allowed.\n3) Upto 2 decimal value allowed."]
["in-capmkt","Adjustments for increase (decrease) in trade payables, current","AdjustmentsForIncreaseDecreaseInTradePayablesCurrent","in-capmkt_AdjustmentsForIncreaseDecreaseInTradePayablesCurrent","xbrli:monetaryItemType",null,null,"duration",null,null,"1) This is a mandatory field.\n2) Only numeric value allowed.\n3) Upto 2 decimal value allowed."]
["in-capmkt","Adjustments for increase (decrease) in trade payables, non-current","AdjustmentsForIncreaseDecreaseInTradePayablesNoncurrent","in-capmkt_AdjustmentsForIncreaseDecreaseInTradePayablesNoncurrent","xbrli:monetaryItemType",null,null,"duration",null,null,"1) This is a mandatory field.\n2) Only numeric value allowed.\n3) Upto 2 decimal value allowed."]
["in-capmkt","Adjustments for increase (decrease) in other current liabilities","AdjustmentsForIncreaseDecreaseInOtherCurrentLiabilities","in-capmkt_AdjustmentsForIncreaseDecreaseInOtherCurrentLiabilities","xbrli:monetaryItemType",null,null,"duration",null,null,"1) This is a mandatory field.\n2) Only numeric value allowed.\n3) Upto 2 decimal value allowed."]
["in-capmkt","Adjustments for increase (decrease) in other non-current liabilities","AdjustmentsForIncreaseDecreaseInOtherNoncurrentLiabilities","in-capmkt_AdjustmentsForIncreaseDecreaseInOtherNoncurrentLiabilities","xbrli:monetaryItemType",null,null,"duration",null,null,"1) This is a mandatory field.\n2) Only numeric value allowed.\n3) Upto 2 decimal value allowed."]
["in-capmkt","Adjustments for depreciation and amortisation expense","AdjustmentsForDepreciationAndAmortisationExpense","in-capmkt_AdjustmentsForDepreciationAndAmortisationExpense","xbrli:monetaryItemType",null,null,"duration",null,null,"1) This is a mandatory field.\n2) Only numeric value allowed.\n3) Upto 2 decimal value allowed."]
["in-capmkt","Adjustments for impairment loss reversal of impairment loss recognised in profit or loss","AdjustmentsForImpairmentLossReversalOfImpairmentLossRecognisedInProfitOrLoss","in-capmkt_AdjustmentsForImpairmentLossReversalOfImpairmentLossRecognisedInProfitOrLoss","xbrli:monetaryItemType",null,null,"duration",null,null,"1) This is a mandatory field.\n2) Only numeric value allowed.\n3) Upto 2 decimal value allowed."]
["in-capmkt","Adjustments for provisions, current","AdjustmentsForProvisionsCurrent","in-capmkt_AdjustmentsForProvisionsCurrent","xbrli:monetaryItemType",null,null,"duration",null,null,"1) This is a mandatory field.\n2) Only numeric value allowed.\n3) Upto 2 decimal value allowed."]
["in-capmkt","Adjustments for provisions, non-current","AdjustmentsForProvisionsNoncurrent","in-capmkt_AdjustmentsForProvisionsNoncurrent","xbrli:monetaryItemType",null,null,"duration",null,null,"1) This is a mandatory field.\n2) Only numeric value allowed.\n3) Upto 2 decimal value allowed."]
["in-capmkt","Adjustments for other financial liabilities, current","AdjustmentsForOtherFinancialLiabilitiesCurrent","in-capmkt_AdjustmentsForOtherFinancialLiabilitiesCurrent","xbrli:monetaryItemType",null,null,"duration",null,null,"1) This is a mandatory field.\n2) Only numeric value allowed.\n3) Upto 2 decimal value allowed."]
["in-capmkt","Adjustments for other financial liabilities, non-current","AdjustmentsForOtherFinancialLiabilitiesNoncurrent","in-capmkt_AdjustmentsForOtherFinancialLiabilitiesNoncurrent","xbrli:monetaryItemType",null,null,"duration",null,null,"1) This is a mandatory field.\n2) Only numeric value allowed.\n3) Upto 2 decimal value allowed."]
["in-capmkt","Adjustments for unrealised foreign exchange losses gains","AdjustmentsForUnrealisedForeignExchangeLossesGains","in-capmkt_AdjustmentsForUnrealisedForeignExchangeLossesGains","xbrli:monetaryItemType",null,null,"duration",null,null,"1) This is a mandatory field.\n2) Only numeric value allowed.\n3) Upto 2 decimal value allowed."]
["in-capmkt","Adjustments for dividend income","AdjustmentsForDividendIncome","in-capmkt_AdjustmentsForDividendIncome","xbrli:monetaryItemType",null,null,"duration",null,null,"1) This is a mandatory field.\n2) Only numeric value allowed.\n3) Upto 2 decimal value allowed."]
["in-capmkt","Adjustments for interest income","AdjustmentsForInterestIncome","in-capmkt_AdjustmentsForInterestIncome","xbrli:monetaryItemType",null,null,"duration",null,null,"1) This is a mandatory field.\n2) Only numeric value allowed.\n3) Upto 2 decimal value allowed."]
["in-capmkt","Adjustments for share-based payments","AdjustmentsForSharebasedPayments","in-capmkt_AdjustmentsForSharebasedPayments","xbrli:monetaryItemType",null,null,"duration",null,null,"1) This is a mandatory field.\n2) Only numeric value allowed.\n3) Upto 2 decimal value allowed."]
["in-capmkt","Adjustments for fair value losses (gains)","AdjustmentsForFairValueGainsLosses","in-capmkt_AdjustmentsForFairValueGainsLosses","xbrli:monetaryItemType",null,null,"duration",null,null,"1) This is a mandatory field.\n2) Only numeric value allowed.\n3) Upto 2 decimal value allowed."]
["in-capmkt","Adjustments for undistributed profits of associates","AdjustmentsForUndistributedProfitsOfAssociates","in-capmkt_AdjustmentsForUndistributedProfitsOfAssociates","xbrli:monetaryItemType",null,null,"duration",null,null,"1) This is a mandatory field.\n2) Only numeric value allowed.\n3) Upto 2 decimal value allowed."]
["in-capmkt","Other adjustments for which cash effects are investing or financing cash flow","OtherAdjustmentsForWhichCashEffectsAreInvestingOrFinancingCashFlow","in-capmkt_OtherAdjustmentsForWhichCashEffectsAreInvestingOrFinancingCashFlow","xbrli:monetaryItemType",null,null,"duration",null,null,"1) This is a mandatory field.\n2) Only numeric value allowed.\n3) Upto 2 decimal value allowed."]
["in-capmkt","Other adjustments to reconcile profit (loss)","OtherAdjustmentsToReconcileProfitLoss","in-capmkt_OtherAdjustmentsToReconcileProfitLoss","xbrli:monetaryItemType",null,null,"duration",null,null,"1) This is a mandatory field.\n2) Only numeric value allowed.\n3) Upto 2 decimal value allowed."]
["in-capmkt","Other adjustments for non-cash items","OtherAdjustmentsForNoncashItems","in-capmkt_OtherAdjustmentsForNoncashItems","xbrli:monetaryItemType",null,null,"duration",null,null,"1) This is a mandatory field.\n2) Only numeric value allowed.\n3) Upto 2 decimal value allowed."]
["in-capmkt","Share of profit and loss from partnership firm or association of persons or limited liability partnerships","ShareOfProfitAndLossFromPartnershipFirmOrAssociationOfPersonsOrLimitedLiabilityPartnerships","in-capmkt_ShareOfProfitAndLossFromPartnershipFirmOrAssociationOfPersonsOrLimitedLiabilityPartnerships","xbrli:monetaryItemType",null,null,"duration",null,null,"1) This is a mandatory field.\n2) Only numeric value allowed.\n3) Upto 2 decimal value allowed."]
["in-capmkt","Total adjustments for reconcile profit (loss)","AdjustmentsForReconcileProfitLoss","in-capmkt_AdjustmentsForReconcileProfitLoss","xbrli:monetaryItemType",null,null,"duration",null,null,"1) This is a mandatory field.\n2) Only numeric value allowed.\n3) Upto 2 decimal value allowed."]
["in-capmkt","Proceeds from sales of intangible assets under development","ProceedsFromSalesOfIntangibleAssetsUnderDevelopment","in-capmkt_ProceedsFromSalesOfIntangibleAssetsUnderDevelopment","xbrli:monetaryItemType",null,null,"duration",null,null,"1) This is a mandatory field.\n2) Only numeric value allowed.\n3) Upto 2 decimal value allowed."]
["in-capmkt","Purchase of intangible assets under development","PurchaseOfIntangibleAssetsUnderDevelopment","in-capmkt_PurchaseOfIntangibleAssetsUnderDevelopment","xbrli:monetaryItemType",null,null,"duration",null,null,"1) This is a mandatory field.\n2) Only numeric value allowed.\n3) Upto 2 decimal value allowed."]
["in-capmkt","Cash flows from used in financing activities [Abstract]","CashFlowsFromUsedInFinancingActivitiesAbstract","in-capmkt_CashFlowsFromUsedInFinancingActivitiesAbstract","xbrli:stringItemType",null,null,"duration"]
["in-capmkt","Proceeds from changes in ownership interests in subsidiaries","ProceedsFromChangesInOwnershipInterestsInSubsidiaries","in-capmkt_ProceedsFromChangesInOwnershipInterestsInSubsidiaries","xbrli:monetaryItemType",null,null,"duration",null,null,"1) This field is mandatory.\n2) Only numeric value allowed.\n3) Upto 2 decimal value allowed."]
["in-capmkt","Payments from changes in ownership interests in subsidiaries","PaymentsFromChangesInOwnershipInterestsInSubsidiaries","in-capmkt_PaymentsFromChangesInOwnershipInterestsInSubsidiaries","xbrli:monetaryItemType",null,null,"duration",null,null,"1) This field is mandatory.\n2) Only numeric value allowed.\n3) Upto 2 decimal value allowed."]
["in-capmkt","Cash receipts from share of profits of partnership firm or association of persons or limited liability partnerships","CashReceiptsFromShareOfProfitsOfPartnershipFirmOrAssociationOfPersonsOrLimitedLiabilityPartnerships","in-capmkt_CashReceiptsFromShareOfProfitsOfPartnershipFirmOrAssociationOfPersonsOrLimitedLiabilityPartnerships","xbrli:monetaryItemType",null,null,"duration",null,null,"1) This field is mandatory.\n2) Only numeric value allowed.\n3) Upto 2 decimal value allowed."]
["in-capmkt","Cash payment for investment in partnership firm or association of persons or limited liability partnerships","CashPaymentForInvestmentInPartnershipFirmOrAssociationOfPersonsOrLimitedLiabilityPartnerships","in-capmkt_CashPaymentForInvestmentInPartnershipFirmOrAssociationOfPersonsOrLimitedLiabilityPartnerships","xbrli:monetaryItemType",null,null,"duration",null,null,"1) This field is mandatory.\n2) Only numeric value allowed.\n3) Upto 2 decimal value allowed."]
["in-capmkt","Whether cash flow statement is applicable on company","WhetherCashFlowStatementIsApplicableOnCompany","in-capmkt_WhetherCashFlowStatementIsApplicableOnCompany","xbrli:booleanItemType",null,null,"duration",null,null,"1) This field is mandatory, if \"Second quarter\" or \"Fourth quarter\" or \"Half yearly\" or \"Yearly\" selected in \"Reporting Quarter\" field.\n2) Please select from dropdown only."]
["in-capmkt","Type of cash flow statement","TypeOfCashFlowStatement","in-capmkt_TypeOfCashFlowStatement","xbrli:stringItemType",null,null,"duration"]
["in-capmkt","Type of cash flow statement","TypeOfCashFlowStatement","in-capmkt_TypeOfCashFlowStatement","xbrli:stringItemType",null,null,"duration",null,null,"1) This field is mandatory, if \"Yes\" selected in \"Whether cash flow statement is applicable on company\" field.\n2) Please select from dropdown only."]
[null,"Reporting Type","TypeOfReportingPeriod","in-capmkt_TypeOfReportingPeriod","in-bse-fin-types:ReportingPeriodType",null,null,"duration",null,null,"1) This field is mandatory.\n2) Please select from dropdown only."]
[null,"Class of security","ClassOfSecurity","in-capmkt_ClassOfSecurity","in-capmkt-types:ClassOfSecurity",null,null,"duration",null,null,"1) This field is mandatory.\n2) Please select from dropdown only."]
[null,null,null,null,null,null,null,{"$error":"#N/A"}]
["WhetherCapitalRedemptionReservesApplicableOrNotApplicable","WhetherCapitalRedemptionReservesApplicableOrNotApplicable",{"$error":"#N/A"},{"$error":"#N/A"},{"$error":"#N/A"},null,null,{"$error":"#N/A"}]
["CapitalRedemptionReserves","CapitalRedemptionReserves",{"$error":"#N/A"},{"$error":"#N/A"},{"$error":"#N/A"},null,null,{"$error":"#N/A"}]
["WhetherDebentureRedemptionReserveApplicableOrNotApplicable","WhetherDebentureRedemptionReserveApplicableOrNotApplicable",{"$error":"#N/A"},{"$error":"#N/A"},{"$error":"#N/A"},null,null,{"$error":"#N/A"}]
["DebentureRedemptionReserve","DebentureRedemptionReserve",{"$error":"#N/A"},{"$error":"#N/A"},{"$error":"#N/A"},null,null,{"$error":"#N/A"}]
["NetWorthOfCompany","NetWorthOfCompany",{"$error":"#N/A"},{"$error":"#N/A"},{"$error":"#N/A"},null,null,{"$error":"#N/A"}]
["WhetherCurrentRatioApplicableOrNotApplicable","WhetherCurrentRatioApplicableOrNotApplicable",{"$error":"#N/A"},{"$error":"#N/A"},{"$error":"#N/A"},null,null,{"$error":"#N/A"}]
["CurrentRatio","CurrentRatio",{"$error":"#N/A"},{"$error":"#N/A"},{"$error":"#N/A"},null,null,{"$error":"#N/A"}]
["WhetherLongTermDebtToWorkingCapitalApplicableOrNotApplicable","WhetherLongTermDebtToWorkingCapitalApplicableOrNotApplicable",{"$error":"#N/A"},{"$error":"#N/A"},{"$error":"#N/A"},null,null,{"$error":"#N/A"}]
["LongTermDebtToWorkingCapital","LongTermDebtToWorkingCapital",{"$error":"#N/A"},{"$error":"#N/A"},{"$error":"#N/A"},null,null,{"$error":"#N/A"}]
["WhetherBadDebtsToAccountReceivableRatioApplicableOrNotApplicable","WhetherBadDebtsToAccountReceivableRatioApplicableOrNotApplicable",{"$error":"#N/A"},{"$error":"#N/A"},{"$error":"#N/A"},null,null,{"$error":"#N/A"}]
["BadDebtsToAccountReceivableRatio","BadDebtsToAccountReceivableRatio",{"$error":"#N/A"},{"$error":"#N/A"},{"$error":"#N/A"},null,null,{"$error":"#N/A"}]
["WhetherCurrentLiabilityRatioApplicableOrNotApplicable","WhetherCurrentLiabilityRatioApplicableOrNotApplicable",{"$error":"#N/A"},{"$error":"#N/A"},{"$error":"#N/A"},null,null,{"$error":"#N/A"}]
["CurrentLiabilityRatio","CurrentLiabilityRatio",{"$error":"#N/A"},{"$error":"#N/A"},{"$error":"#N/A"},null,null,{"$error":"#N/A"}]
["WhetherTotalDebtsToTotalAssetsApplicableOrNotApplicable","WhetherTotalDebtsToTotalAssetsApplicableOrNotApplicable",{"$error":"#N/A"},{"$error":"#N/A"},{"$error":"#N/A"},null,null,{"$error":"#N/A"}]
["TotalDebtsToTotalAssets","TotalDebtsToTotalAssets",{"$error":"#N/A"},{"$error":"#N/A"},{"$error":"#N/A"},null,null,{"$error":"#N/A"}]
["WhetherDebtorsTurnoverApplicableOrNotApplicable","WhetherDebtorsTurnoverApplicableOrNotApplicable",{"$error":"#N/A"},{"$error":"#N/A"},{"$error":"#N/A"},null,null,{"$error":"#N/A"}]
["DebtorsTurnover","DebtorsTurnover",{"$error":"#N/A"},{"$error":"#N/A"},{"$error":"#N/A"},null,null,{"$error":"#N/A"}]
["WhetherInventoryTurnoverApplicableOrNotApplicable","WhetherInventoryTurnoverApplicableOrNotApplicable",{"$error":"#N/A"},{"$error":"#N/A"},{"$error":"#N/A"},null,null,{"$error":"#N/A"}]
["InventoryTurnover","InventoryTurnover",{"$error":"#N/A"},{"$error":"#N/A"},{"$error":"#N/A"},null,null,{"$error":"#N/A"}]
["WhetherOperatingMarginApplicableOrNotApplicable","WhetherOperatingMarginApplicableOrNotApplicable",{"$error":"#N/A"},{"$error":"#N/A"},{"$error":"#N/A"},null,null,{"$error":"#N/A"}]
["OperatingMargin","OperatingMargin",{"$error":"#N/A"},{"$error":"#N/A"},{"$error":"#N/A"},null,null,{"$error":"#N/A"}]
["WhetherNetProfitMarginApplicableOrNotApplicable","WhetherNetProfitMarginApplicableOrNotApplicable",{"$error":"#N/A"},{"$error":"#N/A"},{"$error":"#N/A"},null,null,{"$error":"#N/A"}]
["NetProfitMargin","NetProfitMargin",{"$error":"#N/A"},{"$error":"#N/A"},{"$error":"#N/A"},null,null,{"$error":"#N/A"}]
["DescriptionOfRatio","DescriptionOfRatio",{"$error":"#N/A"},{"$error":"#N/A"},{"$error":"#N/A"},null,null,{"$error":"#N/A"}]
["Ratio","Ratio",{"$error":"#N/A"},{"$error":"#N/A"},{"$error":"#N/A"},null,null,{"$error":"#N/A"}]
["WhetherOutstandingRedeemablePreferenceShares","WhetherOutstandingRedeemablePreferenceShares",{"$error":"#N/A"},{"$error":"#N/A"},{"$error":"#N/A"},null,null,{"$error":"#N/A"}]
["NumberOfOutstandingRedeemablePreferenceShares","NumberOfOutstandingRedeemablePreferenceShares",{"$error":"#N/A"},{"$error":"#N/A"},{"$error":"#N/A"},null,null,{"$error":"#N/A"}]
["ValuePerRedeemablePreferenceShare","ValuePerRedeemablePreferenceShare",{"$error":"#N/A"},{"$error":"#N/A"},{"$error":"#N/A"},null,null,{"$error":"#N/A"}]
["AmountOfOutstandingRedeemablePreferenceShares","AmountOfOutstandingRedeemablePreferenceShares",{"$error":"#N/A"},{"$error":"#N/A"},{"$error":"#N/A"},null,null,{"$error":"#N/A"}]
["WhetherNonConvertibleRedeemablePreferenceSharesListed","WhetherNonConvertibleRedeemablePreferenceSharesListed",{"$error":"#N/A"},{"$error":"#N/A"},{"$error":"#N/A"},null,null,{"$error":"#N/A"}]
["FreeReserves","FreeReserves",{"$error":"#N/A"},{"$error":"#N/A"},{"$error":"#N/A"},null,null,{"$error":"#N/A"}]
["SecuritiesPremiumAccountBalance","SecuritiesPremiumAccountBalance",{"$error":"#N/A"},{"$error":"#N/A"},{"$error":"#N/A"},null,null,{"$error":"#N/A"}]
["TrackRecordOfDividendPaymentOnNonConvertibleRedeemablePreferenceShares","TrackRecordOfDividendPaymentOnNonConvertibleRedeemablePreferenceShares",{"$error":"#N/A"},{"$error":"#N/A"},{"$error":"#N/A"},null,null,{"$error":"#N/A"}]
["WhetherBreachOfAnyCovenantsUnderTheTermsOfTheNonConvertibleRedeemablePreferenceShares","WhetherBreachOfAnyCovenantsUnderTheTermsOfTheNonConvertibleRedeemablePreferenceShares",{"$error":"#N/A"},{"$error":"#N/A"},{"$error":"#N/A"},null,null,{"$error":"#N/A"}]
["DetailsOfBreachOfAnyCovenantsUnderTheTermsOfTheNonConvertibleRedeemablePreferenceShares","DetailsOfBreachOfAnyCovenantsUnderTheTermsOfTheNonConvertibleRedeemablePreferenceShares",{"$error":"#N/A"},{"$error":"#N/A"},{"$error":"#N/A"},null,null,{"$error":"#N/A"}]
["DetailsOfPrincipalRedemption","DetailsOfPrincipalRedemption",{"$error":"#N/A"},{"$error":"#N/A"},{"$error":"#N/A"},null,null,{"$error":"#N/A"}]
["DetailsOfDividend","DetailsOfDividend",{"$error":"#N/A"},{"$error":"#N/A"},{"$error":"#N/A"},null,null,{"$error":"#N/A"}]
["StatementOfUtilizationOrMaterialDeviationInTheUseOfIssueProceedsIsApplicableOrNotAsPerSubRegulation7Or7AOfRegulation52","StatementOfUtilizationOrMaterialDeviationInTheUseOfIssueProceedsIsApplicableOrNotAsPerSubRegulation7Or7AOfRegulation52",{"$error":"#N/A"},{"$error":"#N/A"},{"$error":"#N/A"},null,null,{"$error":"#N/A"}]
["SecurityCoverUnderSubRegulation2Or3OfRegulation54IsSecuredOrUnsecured","SecurityCoverUnderSubRegulation2Or3OfRegulation54IsSecuredOrUnsecured",{"$error":"#N/A"},{"$error":"#N/A"},{"$error":"#N/A"},null,null,{"$error":"#N/A"}]
[null,null,{"$error":"#N/A"},{"$error":"#N/A"},{"$error":"#N/A"},null,null,{"$error":"#N/A"}]
["NameOfTheIssuer","NameOfTheIssuer",{"$error":"#N/A"},{"$error":"#N/A"},{"$error":"#N/A"},null,null,{"$error":"#N/A"}]
["ISIN","ISIN","ISIN","in-capmkt_ISIN","in-capmkt-types:ISIN",null,null,"duration"]
["ModeOfFundRaised","ModeOfFundRaised",{"$error":"#N/A"},{"$error":"#N/A"},{"$error":"#N/A"},null,null,{"$error":"#N/A"}]
["TypeOfInstrument","TypeOfInstrument",{"$error":"#N/A"},{"$error":"#N/A"},{"$error":"#N/A"},null,null,{"$error":"#N/A"}]
["DateOfFundRaised","DateOfFundRaised",{"$error":"#N/A"},{"$error":"#N/A"},{"$error":"#N/A"},null,null,{"$error":"#N/A"}]
["AmountOfFundsRaised","AmountOfFundsRaised",{"$error":"#N/A"},{"$error":"#N/A"},{"$error":"#N/A"},null,null,{"$error":"#N/A"}]
["AmountOfFundsUtilized","AmountOfFundsUtilized",{"$error":"#N/A"},{"$error":"#N/A"},{"$error":"#N/A"},null,null,{"$error":"#N/A"}]
["IsThereADeviationOrVariationInUseOfFundsRaised","IsThereADeviationOrVariationInUseOfFundsRaised","IsThereADeviationOrVariationInUseOfFundsRaised","in-capmkt_IsThereADeviationOrVariationInUseOfFundsRaised","xbrli:booleanItemType",null,null,"duration",null,null,"1) This field is mandatory.\n2) Please select from dropdown only."]
["PurposeOfDeviationForWhichTheFundsWereUtilized","PurposeOfDeviationForWhichTheFundsWereUtilized",{"$error":"#N/A"},{"$error":"#N/A"},{"$error":"#N/A"},null,null,{"$error":"#N/A"}]
["RemarksForUtilizationOfIssueProceeds","RemarksForUtilizationOfIssueProceeds",{"$error":"#N/A"},{"$error":"#N/A"},{"$error":"#N/A"},null,null,{"$error":"#N/A"}]
["NameOfTheListedEntity","NameOfTheListedEntity",{"$error":"#N/A"},{"$error":"#N/A"},{"$error":"#N/A"},null,null,{"$error":"#N/A"}]
["ModeOfFundRaised","ModeOfFundRaised",{"$error":"#N/A"},{"$error":"#N/A"},{"$error":"#N/A"},null,null,{"$error":"#N/A"}]
["TypeOfInstrument","TypeOfInstrument",{"$error":"#N/A"},{"$error":"#N/A"},{"$error":"#N/A"},null,null,{"$error":"#N/A"}]
["DateOfFundRaised","DateOfFundRaised",{"$error":"#N/A"},{"$error":"#N/A"},{"$error":"#N/A"},null,null,{"$error":"#N/A"}]
["AmountOfFundsRaised","AmountOfFundsRaised",{"$error":"#N/A"},{"$error":"#N/A"},{"$error":"#N/A"},null,null,{"$error":"#N/A"}]
["ReportFiledForQuarterEnded","ReportFiledForQuarterEnded",{"$error":"#N/A"},{"$error":"#N/A"},{"$error":"#N/A"},null,null,{"$error":"#N/A"}]
["IsThereADeviationOrVariationInUseOfFundsRaised","IsThereADeviationOrVariationInUseOfFundsRaised","IsThereADeviationOrVariationInUseOfFundsRaised","in-capmkt_IsThereADeviationOrVariationInUseOfFundsRaised","xbrli:booleanItemType",null,null,"duration"]
["WhetherAnyApprovalIsRequiredToVaryTheObjectsOfTheIssueStatedInTheProspectusOrOfferDocument","WhetherAnyApprovalIsRequiredToVaryTheObjectsOfTheIssueStatedInTheProspectusOrOfferDocument",{"$error":"#N/A"},{"$error":"#N/A"},{"$error":"#N/A"},null,null,{"$error":"#N/A"}]
["DetailsOfTheApprovalIfRequired","DetailsOfTheApprovalIfRequired",{"$error":"#N/A"},{"$error":"#N/A"},{"$error":"#N/A"},null,null,{"$error":"#N/A"}]
["DateOfApproval","DateOfApproval",{"$error":"#N/A"},{"$error":"#N/A"},{"$error":"#N/A"},null,null,{"$error":"#N/A"}]
["ExplanationForTheDeviationOrVariation","ExplanationForTheDeviationOrVariation","ExplanationForTheDeviationOrVariation","in-capmkt_ExplanationForTheDeviationOrVariation","xbrli:stringItemType",null,null,"instant"]
["CommentsOfTheAuditCommitteeAfterReview","CommentsOfTheAuditCommitteeAfterReview","CommentsOfTheAuditCommitteeAfterReview","in-capmkt_CommentsOfTheAuditCommitteeAfterReview","xbrli:stringItemType",null,null,"instant"]
["CommentsOfTheAuditors","CommentsOfTheAuditors","CommentsOfTheAuditors","in-capmkt_CommentsOfTheAuditors","xbrli:stringItemType",null,null,"instant"]
["OriginalObject","OriginalObject","OriginalObject","in-capmkt_OriginalObject","xbrli:stringItemType",null,null,"instant"]
["ModifiedObject","ModifiedObject","ModifiedObject","in-capmkt_ModifiedObject","xbrli:stringItemType",null,null,"instant"]
["OriginalAllocation","OriginalAllocation","OriginalAllocation","in-capmkt_OriginalAllocation","xbrli:monetaryItemType",null,null,"instant"]
["ModifiedAllocation","ModifiedAllocation","ModifiedAllocation","in-capmkt_ModifiedAllocation","xbrli:monetaryItemType",null,null,"instant"]
["FundsUtilised","FundsUtilised","FundsUtilised","in-capmkt_FundsUtilised","xbrli:monetaryItemType",null,null,"instant"]
["AmountOfDeviationOrVariationForTheQuarterAccordingToApplicableObject","AmountOfDeviationOrVariationForTheQuarterAccordingToApplicableObject","AmountOfDeviationOrVariationForTheQuarterAccordingToApplicableObject","in-capmkt_AmountOfDeviationOrVariationForTheQuarterAccordingToApplicableObject","xbrli:monetaryItemType",null,null,"instant"]
["PercentageOfDeviationOrVariationForTheQuarterAccordingToApplicableObject","PercentageOfDeviationOrVariationForTheQuarterAccordingToApplicableObject",{"$error":"#N/A"},{"$error":"#N/A"},{"$error":"#N/A"},null,null,{"$error":"#N/A"}]
["RemarksOfObjectsOfDeviationOrVariationInFundRaised","RemarksOfObjectsOfDeviationOrVariationInFundRaised",{"$error":"#N/A"},{"$error":"#N/A"},{"$error":"#N/A"},null,null,{"$error":"#N/A"}]
["NameOfSignatoryOfStatementOfUtilizationAndDeviationOrVariationInTheUseOfIssueProceeds","NameOfSignatoryOfStatementOfUtilizationAndDeviationOrVariationInTheUseOfIssueProceeds",{"$error":"#N/A"},{"$error":"#N/A"},{"$error":"#N/A"},null,null,{"$error":"#N/A"}]
["DesignationOfSignatoryOfStatementOfUtilizationAndDeviationOrVariationInTheUseOfIssueProceeds","DesignationOfSignatoryOfStatementOfUtilizationAndDeviationOrVariationInTheUseOfIssueProceeds",{"$error":"#N/A"},{"$error":"#N/A"},{"$error":"#N/A"},null,null,{"$error":"#N/A"}]
["DateOfSigningOfStatementOfUtilizationAndDeviationOrVariationInTheUseOfIssueProceeds","DateOfSigningOfStatementOfUtilizationAndDeviationOrVariationInTheUseOfIssueProceeds",{"$error":"#N/A"},{"$error":"#N/A"},{"$error":"#N/A"},null,null,{"$error":"#N/A"}]
["DescriptionOfAssetForWhichThisCertificateRelate","DescriptionOfAssetForWhichThisCertificateRelate",{"$error":"#N/A"},{"$error":"#N/A"},{"$error":"#N/A"},null,null,{"$error":"#N/A"}]
["BookValueOfDebtForWhichThisCertificateBeingIssuedUnderExclusiveCharge","BookValueOfDebtForWhichThisCertificateBeingIssuedUnderExclusiveCharge",{"$error":"#N/A"},{"$error":"#N/A"},{"$error":"#N/A"},null,null,{"$error":"#N/A"}]
["BookValueOfOtherSecuredDebtUnderExclusiveCharge","BookValueOfOtherSecuredDebtUnderExclusiveCharge",{"$error":"#N/A"},{"$error":"#N/A"},{"$error":"#N/A"},null,null,{"$error":"#N/A"}]
["WhetherDebtForWhichThisCertificateBeingIssuedUnderPariPassuCharge","WhetherDebtForWhichThisCertificateBeingIssuedUnderPariPassuCharge",{"$error":"#N/A"},{"$error":"#N/A"},{"$error":"#N/A"},null,null,{"$error":"#N/A"}]
["BookValueOfDebtForWhichThisCertificateBeingIssuedAndOtherDebtWithPariPassuCharge","BookValueOfDebtForWhichThisCertificateBeingIssuedAndOtherDebtWithPariPassuCharge",{"$error":"#N/A"},{"$error":"#N/A"},{"$error":"#N/A"},null,null,{"$error":"#N/A"}]
["BookValueOfOtherAssetsOnWhichThereIsPariPassuCharge","BookValueOfOtherAssetsOnWhichThereIsPariPassuCharge",{"$error":"#N/A"},{"$error":"#N/A"},{"$error":"#N/A"},null,null,{"$error":"#N/A"}]
["AssetsNotOfferedAsSecurity","AssetsNotOfferedAsSecurity",{"$error":"#N/A"},{"$error":"#N/A"},{"$error":"#N/A"},null,null,{"$error":"#N/A"}]
["DebtAmountConsideredMoreThanOnceDueToExclusivePlusPariPassuCharge","DebtAmountConsideredMoreThanOnceDueToExclusivePlusPariPassuCharge",{"$error":"#N/A"},{"$error":"#N/A"},{"$error":"#N/A"},null,null,{"$error":"#N/A"}]
["TotalBookValueOfDebtUnderExclusiveChargeAndPariPassuChargeAndAmountOfAssetsNotOfferedAsSecurity","TotalBookValueOfDebtUnderExclusiveChargeAndPariPassuChargeAndAmountOfAssetsNotOfferedAsSecurity",{"$error":"#N/A"},{"$error":"#N/A"},{"$error":"#N/A"},null,null,{"$error":"#N/A"}]
["MarketValueForAssetsChargedOnExclusiveBasis","MarketValueForAssetsChargedOnExclusiveBasis",{"$error":"#N/A"},{"$error":"#N/A"},{"$error":"#N/A"},null,null,{"$error":"#N/A"}]
["CarryingOrBookValueWhereMarketValueIsNotAscertainableOrApplicableForExclusiveChargeAssets","CarryingOrBookValueWhereMarketValueIsNotAscertainableOrApplicableForExclusiveChargeAssets",{"$error":"#N/A"},{"$error":"#N/A"},{"$error":"#N/A"},null,null,{"$error":"#N/A"}]
["MarketValueForAssetsChargedOnPariPassuBasis","MarketValueForAssetsChargedOnPariPassuBasis",{"$error":"#N/A"},{"$error":"#N/A"},{"$error":"#N/A"},null,null,{"$error":"#N/A"}]
["CarryingOrBookValueWhereMarketValueIsNotAscertainableOrApplicableForPariPassuChargeAssets","CarryingOrBookValueWhereMarketValueIsNotAscertainableOrApplicableForPariPassuChargeAssets",{"$error":"#N/A"},{"$error":"#N/A"},{"$error":"#N/A"},null,null,{"$error":"#N/A"}]
["TotalOfMarketValueAndCarryingOrBookValueWhereMarketValueIsNotAscertainableOrApplicableForExclusiveOrPariPassuChargeAssets","TotalOfMarketValueAndCarryingOrBookValueWhereMarketValueIsNotAscertainableOrApplicableForExclusiveOrPariPassuChargeAssets",{"$error":"#N/A"},{"$error":"#N/A"},{"$error":"#N/A"},null,null,{"$error":"#N/A"}]
["ExclusiveSecurityCoverRatioOfDebtForWhichThisCertificateBeingIssued","ExclusiveSecurityCoverRatioOfDebtForWhichThisCertificateBeingIssued",{"$error":"#N/A"},{"$error":"#N/A"},{"$error":"#N/A"},null,null,{"$error":"#N/A"}]
["ExclusiveSecurityCoverRatioOfOtherSecuredDebt","ExclusiveSecurityCoverRatioOfOtherSecuredDebt",{"$error":"#N/A"},{"$error":"#N/A"},{"$error":"#N/A"},null,null,{"$error":"#N/A"}]
["PariPassuSecurityCoverRatioOfAssetsSharedByPariPassuDebtHolder","PariPassuSecurityCoverRatioOfAssetsSharedByPariPassuDebtHolder",{"$error":"#N/A"},{"$error":"#N/A"},{"$error":"#N/A"},null,null,{"$error":"#N/A"}]
["PariPassuSecurityCoverRatioOfOtherAssetsOnWhichThereIsPariPassuChargeOtherThanAssetsSharedByPariPassuDebtHolder","PariPassuSecurityCoverRatioOfOtherAssetsOnWhichThereIsPariPassuChargeOtherThanAssetsSharedByPariPassuDebtHolder",{"$error":"#N/A"},{"$error":"#N/A"},{"$error":"#N/A"},null,null,{"$error":"#N/A"}]
["PariPassuSecurityCoverRatioOfAssetsNotOfferedAsSecurity","PariPassuSecurityCoverRatioOfAssetsNotOfferedAsSecurity",{"$error":"#N/A"},{"$error":"#N/A"},{"$error":"#N/A"},null,null,{"$error":"#N/A"}]
[null,null,null,null,null,null,null,{"$error":"#N/A"}]
["Additional tag for validations",null,null,null,null,null,null,{"$error":"#N/A"}]
[null,"Segment 1",null,null,null,null,null,{"$error":"#N/A"},null,null,"1) This field is mandatory if value entered in other segment(s).\n2) If value is inserted then relevant filed is mandatory in other segments so kindly check all segments then validate the sheet.\n3) Upto 2 decimal value allowed"]
[null,"Segment 2",null,null,null,null,null,{"$error":"#N/A"},null,null,"1) This field is mandatory if value entered in other segment(s).\n2) If value is inserted then relevant filed is mandatory in other segments so kindly check all segments then validate the sheet.\n3) Upto 2 decimal value allowed"]
[null,"Segment 3",null,null,null,null,null,{"$error":"#N/A"},null,null,"1) This field is mandatory if value entered in other segment(s).\n2) If value is inserted then relevant filed is mandatory in other segments so kindly check all segments then validate the sheet.\n3) Upto 2 decimal value allowed"]
[null,"Segment 4",null,null,null,null,null,{"$error":"#N/A"},null,null,"1) This field is mandatory if value entered in other segment(s).\n2) If value is inserted then relevant filed is mandatory in other segments so kindly check all segments then validate the sheet.\n3) Upto 2 decimal value allowed"]
[null,"Segment 5",null,null,null,null,null,{"$error":"#N/A"},null,null,"1) This field is mandatory if value entered in other segment(s).\n2) If value is inserted then relevant filed is mandatory in other segments so kindly check all segments then validate the sheet.\n3) Upto 2 decimal value allowed"]
[null,"Segment 6",null,null,null,null,null,{"$error":"#N/A"},null,null,"1) This field is mandatory if value entered in other segment(s).\n2) If value is inserted then relevant filed is mandatory in other segments so kindly check all segments then validate the sheet.\n3) Upto 2 decimal value allowed"]
[null,"Segment 7",null,null,null,null,null,{"$error":"#N/A"},null,null,"1) This field is mandatory if value entered in other segment(s).\n2) If value is inserted then relevant filed is mandatory in other segments so kindly check all segments then validate the sheet.\n3) Upto 2 decimal value allowed"]
[null,"Segment 8",null,null,null,null,null,{"$error":"#N/A"},null,null,"1) This field is mandatory if value entered in other segment(s).\n2) If value is inserted then relevant filed is mandatory in other segments so kindly check all segments then validate the sheet.\n3) Upto 2 decimal value allowed"]
[null,"Segment 13",null,null,null,null,null,{"$error":"#N/A"},null,null,"1) This field is mandatory if value entered in other segment(s).\n2) If value is inserted then relevant filed is mandatory in other segments so kindly check all segments then validate the sheet.\n3) Upto 2 decimal value allowed"]
[null,"Segment 10",null,null,null,null,null,{"$error":"#N/A"},null,null,"1) This field is mandatory if value entered in other segment(s).\n2) If value is inserted then relevant filed is mandatory in other segments so kindly check all segments then validate the sheet.\n3) Upto 2 decimal value allowed"]
[null,"Segment 11",null,null,null,null,null,{"$error":"#N/A"},null,null,"1) This field is mandatory if value entered in other segment(s).\n2) If value is inserted then relevant filed is mandatory in other segments so kindly check all segments then validate the sheet.\n3) Upto 2 decimal value allowed"]
[null,"Segment 12",null,null,null,null,null,{"$error":"#N/A"},null,null,"1) This field is mandatory if value entered in other segment(s).\n2) If value is inserted then relevant filed is mandatory in other segments so kindly check all segments then validate the sheet.\n3) Upto 2 decimal value allowed"]
[null,"Segment 13",null,null,null,null,null,{"$error":"#N/A"},null,null,"1) This field is mandatory if value entered in other segment(s).\n2) If value is inserted then relevant filed is mandatory in other segments so kindly check all segments then validate the sheet.\n3) Upto 2 decimal value allowed"]
[null,"Segment 14",null,null,null,null,null,{"$error":"#N/A"},null,null,"1) This field is mandatory if value entered in other segment(s).\n2) If value is inserted then relevant filed is mandatory in other segments so kindly check all segments then validate the sheet.\n3) Upto 2 decimal value allowed"]
[null,"Segment 15",null,null,null,null,null,{"$error":"#N/A"},null,null,"1) This field is mandatory if value entered in other segment(s).\n2) If value is inserted then relevant filed is mandatory in other segments so kindly check all segments then validate the sheet.\n3) Upto 2 decimal value allowed"]
[null,"Segment 16",null,null,null,null,null,{"$error":"#N/A"},null,null,"1) This field is mandatory if value entered in other segment(s).\n2) If value is inserted then relevant filed is mandatory in other segments so kindly check all segments then validate the sheet.\n3) Upto 2 decimal value allowed"]
[null,"Segment 17",null,null,null,null,null,{"$error":"#N/A"},null,null,"1) This field is mandatory if value entered in other segment(s).\n2) If value is inserted then relevant filed is mandatory in other segments so kindly check all segments then validate the sheet.\n3) Upto 2 decimal value allowed"]
[null,"Segment 18",null,null,null,null,null,{"$error":"#N/A"},null,null,"1) This field is mandatory if value entered in other segment(s).\n2) If value is inserted then relevant filed is mandatory in other segments so kindly check all segments then validate the sheet.\n3) Upto 2 decimal value allowed"]
[null,"Segment 15",null,null,null,null,null,{"$error":"#N/A"},null,null,"1) This field is mandatory if value entered in other segment(s).\n2) If value is inserted then relevant filed is mandatory in other segments so kindly check all segments then validate the sheet.\n3) Upto 2 decimal value allowed"]
[null,"Segment 20",null,null,null,null,null,{"$error":"#N/A"},null,null,"1) This field is mandatory if value entered in other segment(s).\n2) If value is inserted then relevant filed is mandatory in other segments so kindly check all segments then validate the sheet.\n3) Upto 2 decimal value allowed"]
[null,"Shareholders",null,null,null,null,null,{"$error":"#N/A"},null,null,"1) This field is mandatory if value entered in other segment(s).\n2) If value is inserted then relevant filed is mandatory in other segments so kindly check all segments then validate the sheet.\n3) Upto 2 decimal value allowed"]
[null,"Unallocated",null,null,null,null,null,{"$error":"#N/A"},null,null,"1) This field is mandatory if value entered in other segment(s).\n2) If value is inserted then relevant filed is mandatory in other segments so kindly check all segments then validate the sheet.\n3) Upto 2 decimal value allowed"]
[null,null,null,null,null,null,null,{"$error":"#N/A"},null,null,"1) This field is mandatory if value entered in other segment(s).\n2) If value is inserted then relevant filed is mandatory in other segments so kindly check all segments then validate the sheet.\n3) Upto 2 decimal value allowed"]
[null,"Date of board meeting when results were approved",null,null,null,null,null,{"$error":"#N/A"}]
["General Info New Added",null,null,null,null,null,null,{"$error":"#N/A"}]
["in-capmkt","Type of company","TypeOfCompany","in-capmkt_TypeOfCompany","in-capmkt-types:TypeOfCompany",null,null,"duration",null,null,"1) This field is mandatory.\n2) Please select from dropdown only."]
["WhetherResultsAreAuditedOrUnaudited","Whether results are audited or unaudited for the quarter ended","WhetherResultsAreAuditedOrUnaudited","in-capmkt_WhetherResultsAreAuditedOrUnaudited","in-capmkt-types:AuditedUnaudited",null,null,"duration",null,null,"1) This field is mandatory.\n2) Please select from dropdown only."]
["WhetherResultsAreAuditedOrUnauditedForImpactOfAuditQualification","Whether results are audited or unaudited for the Year to date for current period ended/year ended","WhetherResultsAreAuditedOrUnauditedForImpactOfAuditQualification","in-capmkt_WhetherResultsAreAuditedOrUnauditedForImpactOfAuditQualification","in-capmkt-types:AuditedUnaudited",null,null,"duration",null,null,"1) This field is mandatory.\n2) Please select from dropdown only."]
["WhetherTheCompanyHasAnyRelatedParty","Whether the company has any related party?","WhetherTheCompanyHasAnyRelatedParty","in-capmkt_WhetherTheCompanyHasAnyRelatedParty","xbrli:booleanItemType",null,null,"duration",null,null,"1) This field is mandatory, if \"Standalone\" selected in \"Nature of report standalone or consolidated\" and \"Second quarter\" or \"Fourth quarter\" or \"Half yearly\" or \"Yearly\" selected in \"Reporting Quarter\" field.\n2) Please select from dropdown only."]
["WhetherTheCompanyHasEnteredIntoAnyRelatedPartyTransactionDuringThePeriod","Whether the company has entered into any Related Party transaction during the selected half year for which it wants to submit disclosure?","WhetherTheCompanyHasEnteredIntoAnyRelatedPartyTransactionDuringThePeriod","in-capmkt_WhetherTheCompanyHasEnteredIntoAnyRelatedPartyTransactionDuringThePeriod","xbrli:booleanItemType",null,null,"duration",null,null,"1) This field is mandatory, if \"Yes\" selected in \"Whether the company has any related party?\" field.\n2) Please select from dropdown only."]
["WeDeclareThatTheAcceptanceOfFixedDepositsByTheBanksOrNonBankingFinanceCompanyAreAtTheTermsUniformlyApplicableOrOfferedToAllShareholdersOrPublic","(I) We declare that the acceptance of fixed deposits by the bans/Non-Banking Finance Company are at the terms uniformly applicable/offered to all shareholders/public","WeDeclareThatTheAcceptanceOfFixedDepositsByTheBanksOrNonBankingFinanceCompanyAreAtTheTermsUniformlyApplicableOrOfferedToAllShareholdersOrPublic","in-capmkt_WeDeclareThatTheAcceptanceOfFixedDepositsByTheBanksOrNonBankingFinanceCompanyAreAtTheTermsUniformlyApplicableOrOfferedToAllShareholdersOrPublic","in-capmkt-types:Declaration",null,null,"duration",null,null,"1) This field is mandatory.\n2) Please select from dropdown only."]
["WeDeclareThatTheScheduledCommercialBankAsPerRBICircularRBIDBR20151619Dated03March2016HasAllowedAdditionalInterestOfOnePerCentPerAnnumOverAndAboveTheRateOfInterestMentionedInTheScheduleOfInterestRatesOnSavings","(II) We declare that the scheduled commercial bank, as per RBI circular RBI/DBR/2015-16/19 dated March 03, 2016, has allowed additional interest of one per cent per annum, over and above the rate of interest mentioned in the schedule of interest rates on savings or a term deposits of bank’s staff and their exclusive associations as well as on deposits of Chairman, Chairman & Managing Director, Executive Director or such other Executives appointed for a fixed tenure.","WeDeclareThatTheScheduledCommercialBankAsPerRBICircularRBIDBR20151619Dated03March2016HasAllowedAdditionalInterestOfOnePerCentPerAnnumOverAndAboveTheRateOfInterestMentionedInTheScheduleOfInterestRatesOnSavings","in-capmkt_WeDeclareThatTheScheduledCommercialBankAsPerRBICircularRBIDBR20151619Dated03March2016HasAllowedAdditionalInterestOfOnePerCentPerAnnumOverAndAboveTheRateOfInterestMentionedInTheScheduleOfInterestRatesOnSavings","in-capmkt-types:Declaration",null,null,"duration",null,null,"1) This field is mandatory.\n2) Please select from dropdown only."]
["WhetherTheCompanyIsAHighValueDebtListedEntityAccordingTo1AOfRegulation15","(III) Whether the company is a ‘high value debt listed entity’ according to regulation 15 (1A)?","WhetherTheCompanyIsAHighValueDebtListedEntityAccordingTo1AOfRegulation15","in-capmkt_WhetherTheCompanyIsAHighValueDebtListedEntityAccordingTo1AOfRegulation15","xbrli:booleanItemType",null,null,"instant",null,null,"1) This field is mandatory.\n2) Please select from dropdown only."]
["IfTheCompanyIsAHighValueDebtListedEntityAccordingTo1AOfRegulation15ThenWhetherComplyingWithProvisoToSubReguation9OfRegulation23","(a) If answer to above question is Yes, whether complying with proviso to regulation 23 (9), i.e., submitting RPT disclosures on the day of results publication?","IfTheCompanyIsAHighValueDebtListedEntityAccordingTo1AOfRegulation15ThenWhetherComplyingWithProvisoToSubReguation9OfRegulation23","in-capmkt_IfTheCompanyIsAHighValueDebtListedEntityAccordingTo1AOfRegulation15ThenWhetherComplyingWithProvisoToSubReguation9OfRegulation23","xbrli:booleanItemType",null,null,"duration",null,null,"1) This field is mandatory, if \"Yes\" selected in \"(III) Whether the company is a ‘high value debt listed entity’ according to regulation 15 (1A)?\" field.\n2) Please select from dropdown only."]
["TheReasonForNotComplyingWithProvisoToSubReguation9OfRegulation23","(b) If answer to above question is No, please explain the reason for not complying.","TheReasonForNotComplyingWithProvisoToSubReguation9OfRegulation23","in-capmkt_TheReasonForNotComplyingWithProvisoToSubReguation9OfRegulation23","nonnum:textBlockItemType",null,null,"duration",null,null,"This field is mandatory, if \"No\" selected in \"(a) If answer to above question is Yes, whether complying with proviso to regulation 23 (9), i.e., submitting RPT disclosures on the day of results publication?\" field."]
["WhetherTheUpdatedRelatedPartyTransactionsPolicyHasBeenUploadedOnTheWebsiteOfTheCompanyInComplianceWithRegulation23","Whether the updated Related Party Transactions (RPT) Policy (in compliance with Reg. 23 of SEBI LODR) has been uploaded on the website of the Company?","WhetherTheUpdatedRelatedPartyTransactionsPolicyHasBeenUploadedOnTheWebsiteOfTheCompanyInComplianceWithRegulation23","in-capmkt_WhetherTheUpdatedRelatedPartyTransactionsPolicyHasBeenUploadedOnTheWebsiteOfTheCompanyInComplianceWithRegulation23","xbrli:booleanItemType",null,null,"duration",null,null,"1) This field is mandatory.\n2) Please select from dropdown only."]
["LatestDateOnWhichRelatedPartyTransactionsPolicyIsUpdated","Latest Date on which RPT policy is updated","LatestDateOnWhichRelatedPartyTransactionsPolicyIsUpdated","in-capmkt_LatestDateOnWhichRelatedPartyTransactionsPolicyIsUpdated","xbrli:dateItemType",null,null,"duration",null,null,"1) This field is mandatory, if \"Yes\" selected in \"Whether the updated Related Party Transactions (RPT) Policy (in compliance with Reg. 23 of SEBI LODR) has been uploaded on the website of the Company?\" field.\n2) Date should be less than or equal to current date.\n3) Enter date in \"DD-MM-YYYY\" format.\n4) Enter a valid date."]
["WebsiteLinkForUpdatedRelatedPartyTransactionsPolicyOfTheCompany","Indicate Company website link for updated RPT policy of the Company","WebsiteLinkForUpdatedRelatedPartyTransactionsPolicyOfTheCompany","in-capmkt_WebsiteLinkForUpdatedRelatedPartyTransactionsPolicyOfTheCompany","xbrli:anyURIItemType",null,null,"duration",null,null,"This field is mandatory, if \"Yes\" selected in \"Whether the updated Related Party Transactions (RPT) Policy (in compliance with Reg. 23 of SEBI LODR) has been uploaded on the website of the Company?\" field."]
["WhetherStatementOnDeviationOrVariationForProceedsOfPublicIssueOrRightIssueOrPreferentialIssueOrQIPEtcIsApplicableToTheCompanyForTheCurrentQuarter","Whether statement on deviation or variation for proceeds of public issue, rights issue, preferential issue, qualified institutions placement etc. is applicable to the company for the current quarter?","WhetherStatementOnDeviationOrVariationForProceedsOfPublicIssueOrRightIssueOrPreferentialIssueOrQIPEtcIsApplicableToTheCompanyForTheCurrentQuarter","in-capmkt_WhetherStatementOnDeviationOrVariationForProceedsOfPublicIssueOrRightIssueOrPreferentialIssueOrQIPEtcIsApplicableToTheCompanyForTheCurrentQuarter","xbrli:booleanItemType",null,null,"duration",null,null,"1) This field is mandatory, if \"Standalone\" selected in \"Nature of report standalone or consolidated\" field.\n2) Please select from dropdown only."]
["NumberOfStatementsOfDeviationForTheCurrentQuarter","No. of times funds raised during the quarter","NumberOfStatementsOfDeviationForTheCurrentQuarter","in-capmkt_NumberOfStatementsOfDeviationForTheCurrentQuarter","xbrli:positiveIntegerItemType",null,null,"duration",null,null,"1) This field is mandatory, if \"Yes\" selected in \"Whether statement on deviation or variation for proceeds of public issue, rights issue, preferential issue, qualified institutions placement etc. is applicable to the company for the current quarter?\" field.\n2) Please select \"No. of times funds raised during the QTR\" between 1 to 10.\n3) Value should be greater than Zero."]
["WhetherTheDisclosureForTheDefaultOnLoansAndDebtSecuritiesIsApplicableToTheEntity","Whether the disclosure for the Default on Loans and Debt Securities is applicable to the entity?","WhetherTheDisclosureForTheDefaultOnLoansAndDebtSecuritiesIsApplicableToTheEntity","in-capmkt_WhetherTheDisclosureForTheDefaultOnLoansAndDebtSecuritiesIsApplicableToTheEntity","xbrli:booleanItemType",null,null,"duration",null,null,"1) This field is mandatory, if \"Standalone\" selected in \"Nature of report standalone or consolidated\" field.\n2) Please select from dropdown only."]
["NoteForNonApplicabilityOfTheDisclosureForTheDefaultOnLoansAndDebtSecuritiesToTheEntity","Notes for Whether the disclosure for the Default on Loans and Debt Securities is applicable to the entity","NoteForNonApplicabilityOfTheDisclosureForTheDefaultOnLoansAndDebtSecuritiesToTheEntity","in-capmkt_NoteForNonApplicabilityOfTheDisclosureForTheDefaultOnLoansAndDebtSecuritiesToTheEntity","nonnum:textBlockItemType",null,null,"duration",null,null,"This field is mandatory, if \"No\" selected in \"Whether the disclosure for the Default on Loans and Debt Securities is applicable to the entity?\" field."]
["RPT",null,null,{"$error":"#N/A"},{"$error":"#N/A"},null,null,{"$error":"#N/A"}]
["NameOfListedEntityOrSubsidiaryEnteringIntoTheTransaction","Name","NameOfListedEntityOrSubsidiaryEnteringIntoTheTransaction","in-capmkt_NameOfListedEntityOrSubsidiaryEnteringIntoTheTransaction","xbrli:stringItemType",null,null,"duration",null,null,"1) This is a mandatory field.\n2) 'Name of listed entity or subsidiary' and 'Name of counter party' should be different."]
["PANOfListedEntityOrSubsidiaryEnteringIntoTheTransaction","PAN","PANOfListedEntityOrSubsidiaryEnteringIntoTheTransaction","in-capmkt_PANOfListedEntityOrSubsidiaryEnteringIntoTheTransaction","in-capmkt-types:PermanentAccountNumber",null,null,"duration",null,null,"1) This is a mandatory field.\n2) Please enter valid PAN number [A-Z][A-Z][A-Z][A-Z][A-Z][0-9][0-9][0-9][0-9][A-Z]\n3) 'PAN of listed entity or subsidiary' and 'PAN of counter party' should be different."]
["NameOfCounterParty","Name","NameOfCounterParty","in-capmkt_NameOfCounterParty","xbrli:stringItemType",null,null,"duration",null,null,"1) This is a mandatory field.\n2) 'Name of listed entity or subsidiary' and 'Name of counter party' should be different."]
["PANOfCounterParty","PAN","PANOfCounterParty","in-capmkt_PANOfCounterParty","in-capmkt-types:PermanentAccountNumber",null,null,"duration",null,null,"1) This is a mandatory field.\n2) Please enter valid PAN number [A-Z][A-Z][A-Z][A-Z][A-Z][0-9][0-9][0-9][0-9][A-Z]\n3) 'PAN of listed entity or subsidiary' and 'PAN of counter party' should be different."]
["RelationshipOfTheCounterpartyWithTheListedEntityOrItsSubsidiary","Relationship of the counterparty with the listed entity or its subsidiary","RelationshipOfTheCounterpartyWithTheListedEntityOrItsSubsidiary","in-capmkt_RelationshipOfTheCounterpartyWithTheListedEntityOrItsSubsidiary","xbrli:stringItemType",null,null,"duration",null,null,"This is a mandatory field."]
["TypeOfRelatedPartyTransaction","Type of related party transaction","TypeOfRelatedPartyTransaction","in-capmkt_TypeOfRelatedPartyTransaction","in-capmkt-types:TypeOfTransaction",null,null,"duration",null,null,"1) This is a mandatory field.\n2) Please select only dropdown menu."]
["DetailsOfOtherRelatedPartyTransaction","Details of  other related party transaction","DetailsOfOtherRelatedPartyTransaction","in-capmkt_DetailsOfOtherRelatedPartyTransaction","xbrli:stringItemType",null,null,"duration",null,null,"This is a mandatory field."]
["ValueOfTheRelatedPartyTransactionAsApprovedByTheAuditCommittee","Value of the related party transaction as approved by the audit committee","ValueOfTheRelatedPartyTransactionAsApprovedByTheAuditCommittee","in-capmkt_ValueOfTheRelatedPartyTransactionAsApprovedByTheAuditCommittee","xbrli:monetaryItemType",null,null,"duration",null,null,"1) This field is mandatory.\n2) Only numeric value allowed.\n3) Upto 2 decimal value allowed."]
["RemarksOnApprovalByAuditCommittee","Remarks on approval by audit committee","RemarksOnApprovalByAuditCommittee","in-capmkt_RemarksOnApprovalByAuditCommittee","xbrli:stringItemType",null,null,"duration",null,null,"This is a mandatory field."]
["ValueOfTheRelatedPartyTransactionRatifiedByTheAuditCommittee","Value of the related party transaction ratified by the audit committee","ValueOfTheRelatedPartyTransactionRatifiedByTheAuditCommittee","in-capmkt_ValueOfTheRelatedPartyTransactionRatifiedByTheAuditCommittee","xbrli:monetaryItemType",null,null,"duration",null,null,"1) This field is mandatory, if entered date in \"Date of Audit Committee Meeting where the ratification was approved\" field.\n2) Only numeric value allowed.\n3) Upto 2 decimal value allowed."]
["DateOfAuditCommitteeMeetingWhereTheRatificationWasApproved","Date of Audit Committee Meeting where the ratification was approved","DateOfAuditCommitteeMeetingWhereTheRatificationWasApproved","in-capmkt_DateOfAuditCommitteeMeetingWhereTheRatificationWasApproved","xbrli:dateItemType",null,null,"duration",null,null,"1) This field is mandatory, if entered value in \"Value of the related party transaction ratified by the audit committee\" field.\n2) Enter date in \"DD-MM-YYYY\" format.\n3) Enter a valid date."]
["AmountOfRelatedPartyTransactionDuringTheReportingPeriod","Value of transaction during the reporting period","AmountOfRelatedPartyTransactionDuringTheReportingPeriod","in-capmkt_AmountOfRelatedPartyTransactionDuringTheReportingPeriod","xbrli:monetaryItemType",null,null,"duration",null,null,"1) This field is mandatory.\n2) Only numeric value allowed.\n3) Upto 2 decimal value allowed."]
["AmountOfRelatedPartyTransaction","Opening balance","AmountOfRelatedPartyTransaction","in-capmkt_AmountOfRelatedPartyTransaction","xbrli:monetaryItemType",null,null,"instant",null,null,"1) This field is mandatory.\n2) Only numeric value allowed.\n3) Upto 2 decimal value allowed."]
["AmountOfRelatedPartyTransaction","Closing balance","AmountOfRelatedPartyTransaction","in-capmkt_AmountOfRelatedPartyTransaction","xbrli:monetaryItemType",null,null,"instant",null,null,"1) This field is mandatory.\n2) Only numeric value allowed.\n3) Upto 2 decimal value allowed."]
["NatureOfFinancialIndebtedness","Nature of indebtedness (loan/ issuance of debt/ any other etc.)","NatureOfFinancialIndebtedness","in-capmkt_NatureOfFinancialIndebtedness","in-capmkt-types:NatureOfIndebtedness",null,null,"duration",null,null,"1) This is a mandatory field.\n2) Please select only dropdown menu."]
["DetailsOfOtherIndebtedness","Details of other indebtedness","DetailsOfOtherIndebtedness","in-capmkt_DetailsOfOtherIndebtedness","xbrli:stringItemType",null,null,"duration",null,null,"This is a mandatory field."]
["CostOfFinancialIndebtedness","Cost","CostOfFinancialIndebtedness","in-capmkt_CostOfFinancialIndebtedness","num:percentItemType",null,null,"duration",null,null,"1) This field is mandatory.\n2) Only numeric value allowed.\n3) Upto 2 decimal value allowed."]
["TenureOfFinancialIndebtedness","Tenure","TenureOfFinancialIndebtedness","in-capmkt_TenureOfFinancialIndebtedness","xbrli:stringItemType",null,null,"duration",null,null,"This is a mandatory field."]
["NatureOfTheLoansOrInterCorporateDepositsOrAdvancesOrInvestments","Nature (loan/ advance/ intercorporate deposit/ investment)","NatureOfTheLoansOrInterCorporateDepositsOrAdvancesOrInvestments","in-capmkt_NatureOfTheLoansOrInterCorporateDepositsOrAdvancesOrInvestments","in-capmkt-types:NatureLoansOrInterCorporateDepositsOrAdvancesOrInvestments",null,null,"duration",null,null,"1) This is a mandatory field.\n2) Please select only dropdown menu."]
["InterestRateOfLoansOrInterCorporateDepositsOrAdvancesOrInvestments","Interest Rate (%)","InterestRateOfLoansOrInterCorporateDepositsOrAdvancesOrInvestments","in-capmkt_InterestRateOfLoansOrInterCorporateDepositsOrAdvancesOrInvestments","num:percentItemType",null,null,"duration",null,null,"1) This field is mandatory.\n2) Only numeric value allowed.\n3) Upto 2 decimal value allowed."]
["TenureOfLoansOrInterCorporateDepositsOrAdvancesOrInvestments","Tenure","TenureOfLoansOrInterCorporateDepositsOrAdvancesOrInvestments","in-capmkt_TenureOfLoansOrInterCorporateDepositsOrAdvancesOrInvestments","xbrli:stringItemType",null,null,"duration",null,null,"This is a mandatory field."]
["TypeOfLoansOrInterCorporateDepositsOrAdvancesOrInvestmentsSecuredOrUnsecured","Secured/ unsecured","TypeOfLoansOrInterCorporateDepositsOrAdvancesOrInvestmentsSecuredOrUnsecured","in-capmkt_TypeOfLoansOrInterCorporateDepositsOrAdvancesOrInvestmentsSecuredOrUnsecured","in-capmkt-types:SecuredOrUnsecured",null,null,"duration",null,null,"1) This is a mandatory field.\n2) Please select only dropdown menu."]
["PurposeForWhichTheFundsWillBeUtilisedByTheUltimateRecipientOfFundsForEndusage","Purpose for which the funds will be utilised by the ultimate recipient of funds (endusage)","PurposeForWhichTheFundsWillBeUtilisedByTheUltimateRecipientOfFundsForEndusage","in-capmkt_PurposeForWhichTheFundsWillBeUtilisedByTheUltimateRecipientOfFundsForEndusage","xbrli:stringItemType",null,null,"duration",null,null,"This is a mandatory field."]
["RelatedPartyTransactionExplanatory","Notes","RelatedPartyTransactionExplanatory","in-capmkt_RelatedPartyTransactionExplanatory","nonnum:textBlockItemType",null,null,"duration",null,null,"This is a mandatory field."]
["AmountOfRelatedPartyTransactionDuringTheReportingPeriod",null,"AmountOfRelatedPartyTransactionDuringTheReportingPeriod","in-capmkt_AmountOfRelatedPartyTransactionDuringTheReportingPeriod","xbrli:monetaryItemType",null,null,"duration"]
["Impact Of Audit Qualification",null,null,{"$error":"#N/A"},{"$error":"#N/A"},null,null,{"$error":"#N/A"}]
["WhetherResultsAreAuditedOrUnauditedForImpactOfAuditQualification","Whether results are audited or unaudited for the Year to date for current period ended/year ended","WhetherResultsAreAuditedOrUnauditedForImpactOfAuditQualification","in-capmkt_WhetherResultsAreAuditedOrUnauditedForImpactOfAuditQualification","in-capmkt-types:AuditedUnaudited",null,null,"duration"]
["OpinionOfAuditors","Auditor's opinion","OpinionOfAuditors","in-capmkt_OpinionOfAuditors","in-capmkt-types:TypeOfQualification",null,null,"duration",null,null,"1) This field is mandatory, if \"Statement on impact of audit qualification\" selected in \"Declaration of unmodified opinion or statement on impact of audit qualification\" field in \"General Info\" sheet.\n2) Please select from dropdown only."]
["DeclarationPursuantToClauseDOfSubRegulation3OfRegulation33OfSEBILODRRegulation2015","Declaration pursuant to Regulation 33 (3) (d) of SEBI (LODR) Regulation, 2015:\nThe company declares that its Statutory Auditor/s have issued an Audit Report with unmodified opinion for the period on Standalone results","DeclarationPursuantToClauseDOfSubRegulation3OfRegulation33OfSEBILODRRegulation2015","in-capmkt_DeclarationPursuantToClauseDOfSubRegulation3OfRegulation33OfSEBILODRRegulation2015","xbrli:booleanItemType",null,null,"duration",null,null,"1) This field is mandatory, if \"Declaration of unmodified opinion\" selected in \"Declaration of unmodified opinion or statement on impact of audit qualification\" field in \"General Info\" sheet.\n2) Please select from dropdown only."]
["AuditorsFirmName","Audit firm's name","AuditorsFirmName","in-capmkt_AuditorsFirmName","xbrli:stringItemType",null,null,"duration",null,null,"This field is mandatory."]
["WhetherTheFirmHoldsAValidPeerReviewCertificateIssuedByPeerReviewBoardOfICAI","Whether the firm holds a valid peer review certificate issued by Peer Review Board of ICAI","WhetherTheFirmHoldsAValidPeerReviewCertificateIssuedByPeerReviewBoardOfICAI","in-capmkt_WhetherTheFirmHoldsAValidPeerReviewCertificateIssuedByPeerReviewBoardOfICAI","xbrli:booleanItemType",null,null,"duration",null,null,"1) This field is mandatory.\n2) Please select from dropdown only."]
["ValidityDateOfCertificate","Certificate valid upto","ValidityDateOfCertificate","in-capmkt_ValidityDateOfCertificate","xbrli:dateItemType",null,null,"duration",null,null,"1) This field is mandatory, if \"Yes\" selected in \"Whether the firm holds a valid peer review certificate issued by Peer Review Board of ICAI\" field.\n2) Enter date in \"DD-MM-YYYY\" format.\n3) Enter a valid date."]
["Financial Details",null,null,{"$error":"#N/A"},{"$error":"#N/A"},null,null,{"$error":"#N/A"}]
["TurnoverOrTotalIncome","Turnover / Total income","TurnoverOrTotalIncome","in-capmkt_TurnoverOrTotalIncome","xbrli:monetaryItemType",null,null,"duration",null,null,"1) This field is mandatory.\n2) Only numeric value allowed.\n3) Upto 2 decimal value allowed."]
["TotalExpenditure","Total Expenditure","TotalExpenditure","in-capmkt_TotalExpenditure","xbrli:monetaryItemType",null,null,"duration",null,null,"1) This field is mandatory.\n2) Only numeric value allowed.\n3) Upto 2 decimal value allowed."]
["NetProfitAfterTax","Net Profit/(Loss)","NetProfitAfterTax","in-capmkt_NetProfitAfterTax","xbrli:monetaryItemType",null,null,"duration",null,null,"1) This field is mandatory.\n2) Only numeric value allowed.\n3) Upto 2 decimal value allowed."]
["EarningPerShare","Earnings Per Share","EarningPerShare","in-capmkt_EarningPerShare","num:perShareItemType",null,null,"duration",null,null,"1) This field is mandatory.\n2) Only numeric value allowed.\n3) Upto 2 decimal value allowed."]
["Assets","Total Assets","Assets","in-capmkt_Assets","xbrli:monetaryItemType",null,null,"instant",null,null,"1) This field is mandatory.\n2) Only numeric value allowed.\n3) Upto 2 decimal value allowed."]
["Liabilities","Total Liabilities","Liabilities","in-capmkt_Liabilities","xbrli:monetaryItemType",null,null,"instant",null,null,"1) This field is mandatory.\n2) Only numeric value allowed.\n3) Upto 2 decimal value allowed."]
["NetWorth","Net Worth","NetWorth","in-capmkt_NetWorth","xbrli:monetaryItemType",null,null,"duration",null,null,"1) This field is mandatory.\n2) Only numeric value allowed.\n3) Upto 2 decimal value allowed."]
["DetailsOfOtherFinancialItem","Particulars","DetailsOfOtherFinancialItem","in-capmkt_DetailsOfOtherFinancialItem","xbrli:stringItemType",null,null,"duration",null,null,"This field is mandatory."]
["AmountOfOtherFinancialItem","Audited Figures (as reported before adjusting for qualifications)","AmountOfOtherFinancialItem","in-capmkt_AmountOfOtherFinancialItem","xbrli:monetaryItemType",null,null,"duration",null,null,"1) This field is mandatory.\n2) Only numeric value allowed.\n3) Upto 2 decimal value allowed."]
[null,"Adjusted Figures (audited figures after adjusting for qualifications)",null,{"$error":"#N/A"},{"$error":"#N/A"},null,null,{"$error":"#N/A"},null,null,"1) This field is mandatory.\n2) Only numeric value allowed.\n3) Upto 2 decimal value allowed."]
["Audit Qualifications",null,null,{"$error":"#N/A"},{"$error":"#N/A"},null,null,{"$error":"#N/A"}]
["DetailsOfAuditQualificationExplanatory","Details of Audit Qualification","DetailsOfAuditQualificationExplanatory","in-capmkt_DetailsOfAuditQualificationExplanatory","nonnum:textBlockItemType",null,null,"duration",null,null,"This field is mandatory."]
["TypeOfAuditQualification","Type of Audit Qualification","TypeOfAuditQualification","in-capmkt_TypeOfAuditQualification","in-capmkt-types:TypeOfQualification",null,null,"duration",null,null,"1) This field is mandatory.\n2) Please select from dropdown only."]
["FrequencyOfAuditQualification","Frequency of qualification","FrequencyOfAuditQualification","in-capmkt_FrequencyOfAuditQualification","in-capmkt-types:FrequencyOfQualification",null,null,"duration",null,null,"1) This field is mandatory.\n2) Please select from dropdown only."]
["AuditQualificationsWhereTheImpactIsQuantifiedByTheAuditorManagementsViewsExplanatory","Management's Views","AuditQualificationsWhereTheImpactIsQuantifiedByTheAuditorManagementsViewsExplanatory","in-capmkt_AuditQualificationsWhereTheImpactIsQuantifiedByTheAuditorManagementsViewsExplanatory","nonnum:textBlockItemType",null,null,"duration",null,null,"This field is mandatory."]
["ManagementsEstimationOnTheImpactOfAuditQualificationExplanatory","(i) Management's estimation on the impact of audit qualification","ManagementsEstimationOnTheImpactOfAuditQualificationExplanatory","in-capmkt_ManagementsEstimationOnTheImpactOfAuditQualificationExplanatory","nonnum:textBlockItemType",null,null,"duration",null,null,"This field is mandatory."]
["ReasonsIfManagementIsUnableToEstimateTheImpactExplanatory","(ii) If management is unable to estimate the impact, reasons for the same","ReasonsIfManagementIsUnableToEstimateTheImpactExplanatory","in-capmkt_ReasonsIfManagementIsUnableToEstimateTheImpactExplanatory","nonnum:textBlockItemType",null,null,"duration",null,null,"This field is mandatory."]
["AuditorsCommentsOnManagementsEstimateOrUnableToEstimateOnTheImpactOfAuditQualificationExplanatory","Auditors' Comments on (i) or (ii) above","AuditorsCommentsOnManagementsEstimateOrUnableToEstimateOnTheImpactOfAuditQualificationExplanatory","in-capmkt_AuditorsCommentsOnManagementsEstimateOrUnableToEstimateOnTheImpactOfAuditQualificationExplanatory","nonnum:textBlockItemType",null,null,"duration",null,null,"This field is mandatory."]
["Signatory Details",null,null,{"$error":"#N/A"},{"$error":"#N/A"},null,null,{"$error":"#N/A"}]
["NameOfCEOOrManagingDirectorAsSignatoryOfImpactOfAuditQualification","Name of CEO / Managing director","NameOfCEOOrManagingDirectorAsSignatoryOfImpactOfAuditQualification","in-capmkt_NameOfCEOOrManagingDirectorAsSignatoryOfImpactOfAuditQualification","xbrli:stringItemType",null,null,"duration",null,null,"This field is mandatory."]
["NameOfCFOAsASignatoryOfImpactOfAuditQualification","Name of CFO","NameOfCFOAsASignatoryOfImpactOfAuditQualification","in-capmkt_NameOfCFOAsASignatoryOfImpactOfAuditQualification","xbrli:stringItemType",null,null,"duration",null,null,"This field is mandatory."]
["NameOfChairmanOfAuditCommitteeAsASignatoryOfImpactOfAuditQualification","Name of audit committee chairman","NameOfChairmanOfAuditCommitteeAsASignatoryOfImpactOfAuditQualification","in-capmkt_NameOfChairmanOfAuditCommitteeAsASignatoryOfImpactOfAuditQualification","xbrli:stringItemType",null,null,"duration",null,null,"This field is mandatory."]
["NameOfStatutoryAuditorAsASignatoryOfImpactOfAuditQualification","Name of statutory auditor","NameOfStatutoryAuditorAsASignatoryOfImpactOfAuditQualification","in-capmkt_NameOfStatutoryAuditorAsASignatoryOfImpactOfAuditQualification","xbrli:stringItemType",null,null,"duration",null,null,"This field is mandatory."]
["NameAndDesignationOfOtherPersonAsASignatoryOfImpactOfAuditQualification","Name of other signatory, if any, with designation","NameAndDesignationOfOtherPersonAsASignatoryOfImpactOfAuditQualification","in-capmkt_NameAndDesignationOfOtherPersonAsASignatoryOfImpactOfAuditQualification","xbrli:stringItemType",null,null,"duration",null,null,"This field is mandatory."]
["PlaceOfSignatoryOfImpactOfAuditQualification","Place","PlaceOfSignatoryOfImpactOfAuditQualification","in-capmkt_PlaceOfSignatoryOfImpactOfAuditQualification","xbrli:stringItemType",null,null,"duration",null,null,"This field is mandatory."]
["DateOfSignatoryOfImpactOfAuditQualification","Date","DateOfSignatoryOfImpactOfAuditQualification","in-capmkt_DateOfSignatoryOfImpactOfAuditQualification","xbrli:dateItemType",null,null,"duration",null,null,"1) This field is mandatory.\n2) Date should be less than or equal to system date."]
["SOD",null,null,{"$error":"#N/A"},{"$error":"#N/A"},null,null,{"$error":"#N/A"}]
["ModeOfFundRaising","Mode of Fund Raising","ModeOfFundRaising","in-capmkt_ModeOfFundRaising","in-capmkt-types:ModeOfFundRaising",null,null,"instant",null,null,"1) This field is mandatory.\n2) Please select from dropdown only."]
["DescriptionOfModeOfFundRaising","Description of mode of fund raising\n(Applicable in case of others is selected)","DescriptionOfModeOfFundRaising","in-capmkt_DescriptionOfModeOfFundRaising","xbrli:stringItemType",null,null,"instant",null,null,"1) This field is mandatory, if \"Others\" selected in \"Mode of Fund Raising\" field."]
["DateOfFundsRaising","Date of Raising Funds","DateOfFundsRaising","in-capmkt_DateOfFundsRaising","xbrli:dateItemType",null,null,"instant",null,null,"1) This field is mandatory.\n2) Future date is not allowed.\n3) Enter date in \"DD-MM-YYYY\" format.\n4) Enter a valid date."]
["AmountRaised","Amount Raised","AmountRaised","in-capmkt_AmountRaised","xbrli:monetaryItemType",null,null,"instant",null,null,"1) This field is mandatory.\n2) Only numeric value allowed.\n3) Upto 2 decimal value allowed."]
["DateOfEndOfReportingPeriod","Report filed for Quarter ended","DateOfEndOfReportingPeriod","in-capmkt_DateOfEndOfReportingPeriod","xbrli:dateItemType",null,null,"duration",null,null,"This field is mandatory."]
["MonitoringAgency","Monitoring Agency","MonitoringAgency","in-capmkt_MonitoringAgency","xbrli:booleanItemType",null,null,"duration",null,null,"1) This field is mandatory.\n2) Please select from dropdown only."]
["NameOfMonitoringAgency","Monitoring Agency Name, if applicable","NameOfMonitoringAgency","in-capmkt_NameOfMonitoringAgency","xbrli:stringItemType",null,null,"instant",null,null,"This field is mandatory, if \"Applicable\" selected in \"Monitoring Agency\" field."]
["IsThereADeviationOrVariationInUseOfFundsRaised","Is there a Deviation / Variation in use of funds raised","IsThereADeviationOrVariationInUseOfFundsRaised","in-capmkt_IsThereADeviationOrVariationInUseOfFundsRaised","xbrli:booleanItemType",null,null,"duration",null,null,"1) This field is mandatory.\n2) Please select from dropdown only."]
["WhetherTheDeviationOrVariationInUseOfFundsIsPursuantToChangeInTermsOfAContractOrObjectsWhichWasApprovedByTheShareholders","If yes, whether the same is pursuant to change in terms of a contract or objects, which was approved by the shareholders","WhetherTheDeviationOrVariationInUseOfFundsIsPursuantToChangeInTermsOfAContractOrObjectsWhichWasApprovedByTheShareholders","in-capmkt_WhetherTheDeviationOrVariationInUseOfFundsIsPursuantToChangeInTermsOfAContractOrObjectsWhichWasApprovedByTheShareholders","xbrli:booleanItemType",null,null,"duration",null,null,"This field is mandatory, if \"Yes\" selected in \"Is there a Deviation / Variation in use of funds raised\" field."]
["DateOfShareholderApproval","If Yes, Date of shareholder Approval","DateOfShareholderApproval","in-capmkt_DateOfShareholderApproval","xbrli:dateItemType",null,null,"instant",null,null,"1) This field is mandatory, if \"Yes\" selected in \"If yes, whether the same is pursuant to change in terms of a contract or objects, which was approved by the shareholders\" field.\n2) Future date is not allowed.\n3) Enter date in \"DD-MM-YYYY\" format.\n4) Enter a valid date."]
["ExplanationForTheDeviationOrVariation","Explanation for the Deviation / Variation","ExplanationForTheDeviationOrVariation","in-capmkt_ExplanationForTheDeviationOrVariation","xbrli:stringItemType",null,null,"instant",null,null,"This field is mandatory."]
["CommentsOfTheAuditCommitteeAfterReview","Comments of the Audit Committee after review","CommentsOfTheAuditCommitteeAfterReview","in-capmkt_CommentsOfTheAuditCommitteeAfterReview","xbrli:stringItemType",null,null,"instant",null,null,"This field is mandatory."]
["CommentsOfTheAuditors","Comments of the auditors, if any","CommentsOfTheAuditors","in-capmkt_CommentsOfTheAuditors","xbrli:stringItemType",null,null,"instant",null,null,"This field is mandatory."]
["OriginalObject","Original Object","OriginalObject","in-capmkt_OriginalObject","xbrli:stringItemType",null,null,"instant",null,null,"This field is mandatory."]
["ModifiedObject","Modified Object, if any","ModifiedObject","in-capmkt_ModifiedObject","xbrli:stringItemType",null,null,"instant",null,null,"This field is mandatory."]
["OriginalAllocation","Original Allocation","OriginalAllocation","in-capmkt_OriginalAllocation","xbrli:monetaryItemType",null,null,"instant",null,null,"1) This field is mandatory.\n2) Only numeric value allowed.\n3) Upto 2 decimal value allowed."]
["ModifiedAllocation","Modified allocation, if any","ModifiedAllocation","in-capmkt_ModifiedAllocation","xbrli:monetaryItemType",null,null,"instant",null,null,"1) This field is mandatory.\n2) Only numeric value allowed.\n3) Upto 2 decimal value allowed."]
["FundsUtilised","Funds Utilised","FundsUtilised","in-capmkt_FundsUtilised","xbrli:monetaryItemType",null,null,"instant",null,null,"1) This field is mandatory.\n2) Only numeric value allowed.\n3) Upto 2 decimal value allowed."]
["AmountOfDeviationOrVariationForTheQuarterAccordingToApplicableObject","Amount of Deviation/Variation for the quarter according to applicable object","AmountOfDeviationOrVariationForTheQuarterAccordingToApplicableObject","in-capmkt_AmountOfDeviationOrVariationForTheQuarterAccordingToApplicableObject","xbrli:monetaryItemType",null,null,"instant",null,null,"1) This field is mandatory.\n2) Only numeric value allowed.\n3) Upto 2 decimal value allowed."]
["DisclosureNotesOnObjectsForWhichFundsHaveBeenRaisedAndWhereThereHasBeenADeviation","Remarks if any","DisclosureNotesOnObjectsForWhichFundsHaveBeenRaisedAndWhereThereHasBeenADeviation","in-capmkt_DisclosureNotesOnObjectsForWhichFundsHaveBeenRaisedAndWhereThereHasBeenADeviation","nonnum:textBlockItemType",null,null,"instant",null,null,"This field is mandatory."]
["NameOfSignatoryOfStatementOfDeviationOrVariationInUtilisationOfFundsRaised","Name of signatory","NameOfSignatoryOfStatementOfDeviationOrVariationInUtilisationOfFundsRaised","in-capmkt_NameOfSignatoryOfStatementOfDeviationOrVariationInUtilisationOfFundsRaised","xbrli:stringItemType",null,null,"duration",null,null,"This field is mandatory."]
["DesignationOfPersonOfStatementOfDeviationOrVariationInUtilisationOfFundsRaised","Designation of person","DesignationOfPersonOfStatementOfDeviationOrVariationInUtilisationOfFundsRaised","in-capmkt_DesignationOfPersonOfStatementOfDeviationOrVariationInUtilisationOfFundsRaised","in-capmkt-types:Designation",null,null,"duration",null,null,"1) This field is mandatory.\n2) Please select from dropdown only."]
["PlaceOfStatementOfDeviationOrVariationInUtilisationOfFundsRaised","Place","PlaceOfStatementOfDeviationOrVariationInUtilisationOfFundsRaised","in-capmkt_PlaceOfStatementOfDeviationOrVariationInUtilisationOfFundsRaised","xbrli:stringItemType",null,null,"duration",null,null,"This field is mandatory."]
["DateOfStatementOfDeviationOrVariationInUtilisationOfFundsRaised","Date","DateOfStatementOfDeviationOrVariationInUtilisationOfFundsRaised","in-capmkt_DateOfStatementOfDeviationOrVariationInUtilisationOfFundsRaised","xbrli:dateItemType",null,null,"instant",null,null,"1) This field is mandatory.\n2) Date should be less than or equal to system date."]
["OS Default on  Loan & Debt Sec.",null,null,{"$error":"#N/A"},{"$error":"#N/A"},null,null,{"$error":"#N/A"}]
["TotalOutstandingAmountOfLoansOrRevolvingFacilitiesAtTheEndOfPeriod","Total amount outstanding as on date","TotalOutstandingAmountOfLoansOrRevolvingFacilitiesAtTheEndOfPeriod","in-capmkt_TotalOutstandingAmountOfLoansOrRevolvingFacilitiesAtTheEndOfPeriod","xbrli:monetaryItemType",null,null,"instant",null,null,"1) This field is mandatory.\n2) Only numeric value allowed.\n3) Upto 2 decimal value allowed."]
["AmountOfDefaultOutOfTotalOutstandingAmountOfLoansOrRevolvingFacilitiesAtTheEndOfPeriod","Of the total amount outstanding, amount of default as on date","AmountOfDefaultOutOfTotalOutstandingAmountOfLoansOrRevolvingFacilitiesAtTheEndOfPeriod","in-capmkt_AmountOfDefaultOutOfTotalOutstandingAmountOfLoansOrRevolvingFacilitiesAtTheEndOfPeriod","xbrli:monetaryItemType",null,null,"instant",null,null,"1) This field is mandatory.\n2) Only numeric value allowed.\n3) Upto 2 decimal value allowed."]
["TotalOutstandingAmountOfUnlistedDebtSecuritiesAtTheEndOfPeriod","Total amount outstanding as on date","TotalOutstandingAmountOfUnlistedDebtSecuritiesAtTheEndOfPeriod","in-capmkt_TotalOutstandingAmountOfUnlistedDebtSecuritiesAtTheEndOfPeriod","xbrli:monetaryItemType",null,null,"instant",null,null,"1) This field is mandatory.\n2) Only numeric value allowed.\n3) Upto 2 decimal value allowed."]
["AmountOfDefaultOutOfTotalOutstandingAmountOfUnlistedDebtSecuritiesAtTheEndOfPeriod","Of the total amount outstanding, amount of default as on date","AmountOfDefaultOutOfTotalOutstandingAmountOfUnlistedDebtSecuritiesAtTheEndOfPeriod","in-capmkt_AmountOfDefaultOutOfTotalOutstandingAmountOfUnlistedDebtSecuritiesAtTheEndOfPeriod","xbrli:monetaryItemType",null,null,"instant",null,null,"1) This field is mandatory.\n2) Only numeric value allowed.\n3) Upto 2 decimal value allowed."]
["AmountOfTotalFinancialIndebtednessOfTheListedEntityIncludingShortTermAndLongTermDebtAtTheEndOfPeriod","Total financial indebtedness of the listed entity including short-term\nand long-term debt","AmountOfTotalFinancialIndebtednessOfTheListedEntityIncludingShortTermAndLongTermDebtAtTheEndOfPeriod","in-capmkt_AmountOfTotalFinancialIndebtednessOfTheListedEntityIncludingShortTermAndLongTermDebtAtTheEndOfPeriod","xbrli:monetaryItemType",null,null,"instant",null,null,"1) This field is mandatory.\n2) Only numeric value allowed.\n3) Upto 2 decimal value allowed."]
["RemarksForTotalOutstandingOfLoansOrRevolvingFacilitiesAtTheEndOfPeriod",null,"RemarksForTotalOutstandingOfLoansOrRevolvingFacilitiesAtTheEndOfPeriod","in-capmkt_RemarksForTotalOutstandingOfLoansOrRevolvingFacilitiesAtTheEndOfPeriod","nonnum:textBlockItemType",null,null,"duration"]
["RemarksForDefaultOutOfTotalOutstandingAmountOfLoansOrRevolvingFacilitiesAtTheEndOfPeriod",null,"RemarksForDefaultOutOfTotalOutstandingAmountOfLoansOrRevolvingFacilitiesAtTheEndOfPeriod","in-capmkt_RemarksForDefaultOutOfTotalOutstandingAmountOfLoansOrRevolvingFacilitiesAtTheEndOfPeriod","nonnum:textBlockItemType",null,null,"duration"]
["RemarksForTotalOutstandingUnlistedDebtSecuritiesAtTheEndOfPeriod",null,"RemarksForTotalOutstandingUnlistedDebtSecuritiesAtTheEndOfPeriod","in-capmkt_RemarksForTotalOutstandingUnlistedDebtSecuritiesAtTheEndOfPeriod","nonnum:textBlockItemType",null,null,"duration"]
["RemarksForDefaultOutOfTotalOutstandingAmountOfUnlistedDebtSecuritiesAtTheEndOfPeriod",null,"RemarksForDefaultOutOfTotalOutstandingAmountOfUnlistedDebtSecuritiesAtTheEndOfPeriod","in-capmkt_RemarksForDefaultOutOfTotalOutstandingAmountOfUnlistedDebtSecuritiesAtTheEndOfPeriod","nonnum:textBlockItemType",null,null,"duration"]
["RemarksForTotalFinancialIndebtednessOfTheListedEntityIncludingShortTermAndLongTermDebtAtTheEndOfPeriod",null,"RemarksForTotalFinancialIndebtednessOfTheListedEntityIncludingShortTermAndLongTermDebtAtTheEndOfPeriod","in-capmkt_RemarksForTotalFinancialIndebtednessOfTheListedEntityIncludingShortTermAndLongTermDebtAtTheEndOfPeriod","nonnum:textBlockItemType",null,null,"duration"]
["Missed Error Message"]
[null,"ShareholdersFunds","ShareholdersFunds","in-capmkt_ShareholdersFunds","xbrli:monetaryItemType",null,null,"instant"]
[null,"Segment 9",null,null,null,null,null,{"$error":"#N/A"},null,null,"1) This field is mandatory if value entered in other segment(s).\n2) If value is inserted then relevant filed is mandatory in other segments so kindly check all segments then validate the sheet.\n3) Upto 2 decimal value allowed"]
[null,"Segment 19",null,null,null,null,null,{"$error":"#N/A"},null,null,"1) This field is mandatory if value entered in other segment(s).\n2) If value is inserted then relevant filed is mandatory in other segments so kindly check all segments then validate the sheet.\n3) Upto 2 decimal value allowed"]
[null,"Other income",null,null,null,null,null,null,null,null,"1) This field is mandatory if value entered in other segment(s).\n2) If value is inserted then relevant filed is mandatory in other segments so kindly check all segments then validate the sheet.\n3) Upto 2 decimal value allowed"]
[null,"Other operating expenses",null,null,null,null,null,null,null,null,"1) This field is mandatory if value entered in Other operating segment(s).\n2) If value is inserted then relevant filed is mandatory in Other operating segments so kindly check all segments then validate the sheet.\n3) Upto 2 decimal value allowed"]
[null,"Proceeds from issuing shares",null,null,null,null,null,null,null,null,"1) This field is mandatory.\n2) Only numeric value allowed.\n3) Upto 2 decimal value allowed."]
[null,"Proceeds from issuing other equity instruments",null,null,null,null,null,null,null,null,"1) This field is mandatory.\n2) Only numeric value allowed.\n3) Upto 2 decimal value allowed."]
[null,"Payments to acquire or redeem entity's shares",null,null,null,null,null,null,null,null,"1) This field is mandatory.\n2) Only numeric value allowed.\n3) Upto 2 decimal value allowed."]
[null,"Payments of other equity instruments",null,null,null,null,null,null,null,null,"1) This field is mandatory.\n2) Only numeric value allowed.\n3) Upto 2 decimal value allowed."]
[null,"Proceeds from exercise of stock options",null,null,null,null,null,null,null,null,"1) This field is mandatory.\n2) Only numeric value allowed.\n3) Upto 2 decimal value allowed."]
[null,"Proceeds from issuing debentures notes bonds etc",null,null,null,null,null,null,null,null,"1) This field is mandatory.\n2) Only numeric value allowed.\n3) Upto 2 decimal value allowed."]
[null,"Proceeds from borrowings",null,null,null,null,null,null,null,null,"1) This field is mandatory.\n2) Only numeric value allowed.\n3) Upto 2 decimal value allowed."]
[null,"Repayments of borrowings",null,null,null,null,null,null,null,null,"1) This field is mandatory.\n2) Only numeric value allowed.\n3) Upto 2 decimal value allowed."]
[null,"Payments of lease liabilities",null,null,null,null,null,null,null,null,"1) This field is mandatory.\n2) Only numeric value allowed.\n3) Upto 2 decimal value allowed."]
[null,"Dividends paid",null,null,null,null,null,null,null,null,"1) This field is mandatory.\n2) Only numeric value allowed.\n3) Upto 2 decimal value allowed."]
[null,"Interest paid",null,null,null,null,null,null,null,null,"1) This field is mandatory.\n2) Only numeric value allowed.\n3) Upto 2 decimal value allowed."]
[null,"Income taxes paid (refund)",null,null,null,null,null,null,null,null,"1) This field is mandatory.\n2) Only numeric value allowed.\n3) Upto 2 decimal value allowed."]
[null,"Other inflows (outflows) of cash",null,null,null,null,null,null,null,null,"1) This field is mandatory.\n2) Only numeric value allowed.\n3) Upto 2 decimal value allowed."]

{"sheet":"1 Segment Income","index":4,"n_rows":124,"n_cols":19,"rows_kept":124,"cut":false,"hidden":false,"merged":[[118,7,118,8],[108,7,108,8],[113,7,113,8],[98,7,98,8],[103,7,103,8],[88,7,88,8],[93,7,93,8],[78,7,78,8],[83,7,83,8],[68,7,68,8],[73,7,73,8],[63,7,63,8],[48,7,48,8],[53,7,53,8],[43,7,43,8],[38,7,38,8],[6,5,6,8],[7,5,7,6],[12,5,12,6],[12,7,12,8],[58,7,58,8],[13,7,13,8],[18,7,18,8],[28,7,28,8],[23,7,23,8],[33,7,33,8],[8,5,8,6],[9,5,9,6],[10,5,10,6],[11,5,11,6]]}
[null,null,null,null,null,null,null,null,null,null,null,null,null,null,"Linked Policy",null,null,"Participating Policies"]
[null,null,null,null,null,null,null,null,null,null,null,null,null,null,"Non-Linked Policy",null,null,"Non-participating Policies"]
[]
[null,null,null,null,null,null,null,null,null,null,"Audited","Unaudited"]
[]
[null,null,null,null,null,null,null,null,{"$f":"IF('General Info'!E22=\"\",\"\",\"Amount in (\"&'General Info'!E22&\")\")","v":""}]
[null,null,null,null,null,"Format for financial results by life insurance companies filed with stock exchanges"]
[null,null,null,null,null,"Particulars",null,"Current Quarter","Year to Date Figures",null,null,"SubmissionOfFinancialResultsByLifeInsuranceCompaniesFiledWithStockExchangesAbstract"]
[null,null,null,null,null,"Date of start of reporting period",null,{"$f":"IF('General Info'!E18=\"\",\"\",IF('General Info'!F18=\"\",\"\",IF(OR('General Info'!$E$24='General Info'!T24,'General Info'!$E$24='General Info'!T9),IF(LEN('General Info'!U24)>1,'General Info'!U24,\"0\"&'General Info'!U24)&\"-\"&IF(LEN('General Info'!V24)>1,'General Info'!V24,\"0\"&'General Info'!V24)&\"-\"&IF(LEN('General Info'!W24)>1,'General Info'!W24,\"0\"&'General Info'!W24),\"\")&IF('General Info'!$E$24='General Info'!T25,IF(LEN('General Info'!U25)>1,'General Info'!U25,\"0\"&'General Info'!U25)&\"-\"&IF(LEN('General Info'!V25)>1,'General Info'!V25,\"0\"&'General Info'!V25)&\"-\"&IF(LEN('General Info'!W25)>1,'General Info'!W24,\"0\"&'General Info'!W25),\"\")&IF(OR('General Info'!$E$24='General Info'!T26,'General Info'!$E$24='General Info'!T10),IF(LEN('General Info'!U26)>1,'General Info'!U26,\"0\"&'General Info'!U26)&\"-\"&IF(LEN('General Info'!V26)>1,'General Info'!V26,\"0\"&'General Info'!V26)&\"-\"&IF(LEN('General Info'!W26)>1,'General Info'!W26,\"0\"&'General Info'!W26),\"\")&IF('General Info'!$E$24='General Info'!T27,IF(LEN('General Info'!U27)>1,'General Info'!U27,\"0\"&'General Info'!U27)&\"-\"&IF(LEN('General Info'!V27)>1,'General Info'!V27,\"0\"&'General Info'!V27)&\"-\"&IF(LEN('General Info'!W27)>1,'General Info'!W27,\"0\"&'General Info'!W27),\"\")))","v":""},{"$f":"IF('General Info'!E24=\"\",\"\",IF('General Info'!F17=\"\",\"\",IF('General Info'!G17=\"\",\"\",'General Info'!E17&\"-\"&'General Info'!F17&\"-\"&'General Info'!G17)))","v":""}]
[null,null,null,null,null,"Date of end of reporting period",null,{"$f":"IF('General Info'!E18=\"\",\"\",IF('General Info'!F18=\"\",\"\",IF('General Info'!$E$24='General Info'!T24,IF(LEN('General Info'!U29)>1,'General Info'!U29,\"0\"&'General Info'!U29)&\"-\"&IF(LEN('General Info'!V29)>1,'General Info'!V29,\"0\"&'General Info'!V29)&\"-\"&IF(LEN('General Info'!W29)>1,'General Info'!W29,\"0\"&'General Info'!W29),\"\")&IF(OR('General Info'!$E$24='General Info'!T25,'General Info'!$E$24='General Info'!T9),IF(LEN('General Info'!U30)>1,'General Info'!U30,\"0\"&'General Info'!U30)&\"-\"&IF(LEN('General Info'!V30)>1,'General Info'!V30,\"0\"&'General Info'!V30)&\"-\"&IF(LEN('General Info'!W30)>1,'General Info'!W30,\"0\"&'General Info'!W30),\"\")&IF('General Info'!$E$24='General Info'!T26,IF(LEN('General Info'!U31)>1,'General Info'!U31,\"0\"&'General Info'!U31)&\"-\"&IF(LEN('General Info'!V31)>1,'General Info'!V31,\"0\"&'General Info'!V31)&\"-\"&IF(LEN('General Info'!W31)>1,'General Info'!W31,\"0\"&'General Info'!W31),\"\")&IF(OR('General Info'!$E$24='General Info'!T27,'General Info'!$E$24='General Info'!T10),IF(LEN('General Info'!U32)>1,'General Info'!U32,\"0\"&'General Info'!U32)&\"-\"&IF(LEN('General Info'!V32)>1,'General Info'!V32,\"0\"&'General Info'!V32)&\"-\"&IF(LEN('General Info'!W32)>1,'General Info'!W32,\"0\"&'General Info'!W32),\"\")))","v":""},{"$f":"IF('General Info'!E18=\"\",\"\",IF('General Info'!F18=\"\",\"\",IF('General Info'!$E$24='General Info'!T24,IF(LEN('General Info'!U29)>1,'General Info'!U29,\"0\"&'General Info'!U29)&\"-\"&IF(LEN('General Info'!V29)>1,'General Info'!V29,\"0\"&'General Info'!V29)&\"-\"&IF(LEN('General Info'!W29)>1,'General Info'!W29,\"0\"&'General Info'!W29),\"\")&IF(OR('General Info'!$E$24='General Info'!T25,'General Info'!$E$24='General Info'!T9),IF(LEN('General Info'!U30)>1,'General Info'!U30,\"0\"&'General Info'!U30)&\"-\"&IF(LEN('General Info'!V30)>1,'General Info'!V30,\"0\"&'General Info'!V30)&\"-\"&IF(LEN('General Info'!W30)>1,'General Info'!W30,\"0\"&'General Info'!W30),\"\")&IF('General Info'!$E$24='General Info'!T26,IF(LEN('General Info'!U31)>1,'General Info'!U31,\"0\"&'General Info'!U31)&\"-\"&IF(LEN('General Info'!V31)>1,'General Info'!V31,\"0\"&'General Info'!V31)&\"-\"&IF(LEN('General Info'!W31)>1,'General Info'!W31,\"0\"&'General Info'!W31),\"\")&IF(OR('General Info'!$E$24='General Info'!T27,'General Info'!$E$24='General Info'!T10),IF(LEN('General Info'!U32)>1,'General Info'!U32,\"0\"&'General Info'!U32)&\"-\"&IF(LEN('General Info'!V32)>1,'General Info'!V32,\"0\"&'General Info'!V32)&\"-\"&IF(LEN('General Info'!W32)>1,'General Info'!W32,\"0\"&'General Info'!W32),\"\")))","v":""},null,null,"DateOfStartOfReportingPeriod"]
[null,null,null,null,null,"Whether results are audited or unaudited",null,{"$f":"+IF(COUNTA('General Info'!E26),'General Info'!E26,\"\")","v":""},{"$f":"+IF(COUNTA('General Info'!E27),'General Info'!E27,H11)","v":""},null,null,"DateOfEndOfReportingPeriod"]
[null,null,null,null,null,"Nature of report standalone or consolidated",null,{"$f":"+IF(COUNTA('General Info'!E25),'General Info'!E25,\"\")","v":""},{"$f":"+IF(COUNTA('General Info'!E25),'General Info'!E25,\"\")","v":""},null,null,"WhetherResultsAreAuditedOrUnaudited"]
[null,null,null,null,null,"Segment Income"]
[null,null,null,null,null,1,"Name of segment",null,null,null,null,"DescriptionOfReportableSegments",null,null,null,null,null,null,{"$f":"+IF(COUNTA('1 Segment Income'!H14),'1 Segment Income'!H14,\"\")","v":""}]
[null,null,null,null,null,"(i)","Net premium",null,null,null,null,"NetPremium",null,null,null,null,null,null,{"$f":"+IF(COUNTA('1 Segment Income'!H15),'1 Segment Income'!H15,\"\")","v":""}]
[null,null,null,null,null,"(ii)","Income form investments",null,null,null,null,"IncomeFormInvestments",null,null,null,null,null,null,{"$f":"+IF(COUNTA('1 Segment Income'!H16),'1 Segment Income'!H16,\"\")","v":""}]
[null,null,null,null,null,"(iii)","Transfer of funds from shareholders' account",null,null,null,null,"TransferOfFundsFromShareholdersAccount",null,null,null,null,null,null,{"$f":"+IF(COUNTA('1 Segment Income'!H17),'1 Segment Income'!H17,\"\")","v":""}]
[null,null,null,null,null,"(iv)","Other income",null,null,null,null,"OtherIncome",null,null,null,null,null,null,{"$f":"+IF(COUNTA('1 Segment Income'!H18),'1 Segment Income'!H18,\"\")","v":""}]
[null,null,null,null,null,2,"Name of segment",null,null,null,null,"DescriptionOfReportableSegments",null,null,null,null,null,null,{"$f":"+IF(COUNTA('1 Segment Income'!H19),'1 Segment Income'!H19,\"\")","v":""}]
[null,null,null,null,null,"(i)","Net premium",null,null,null,null,"NetPremium",null,null,null,null,null,null,{"$f":"+IF(COUNTA('1 Segment Income'!H20),'1 Segment Income'!H20,\"\")","v":""}]
[null,null,null,null,null,"(ii)","Income form investments",null,null,null,null,"IncomeFormInvestments",null,null,null,null,null,null,{"$f":"+IF(COUNTA('1 Segment Income'!H21),'1 Segment Income'!H21,\"\")","v":""}]
[null,null,null,null,null,"(iii)","Transfer of funds from shareholders' account",null,null,null,null,"TransferOfFundsFromShareholdersAccount",null,null,null,null,null,null,{"$f":"+IF(COUNTA('1 Segment Income'!H22),'1 Segment Income'!H22,\"\")","v":""}]
[null,null,null,null,null,"(iv)","Other income",null,null,null,null,"OtherIncome",null,null,null,null,null,null,{"$f":"+IF(COUNTA('1 Segment Income'!H23),'1 Segment Income'!H23,\"\")","v":""}]
[null,null,null,null,null,3,"Name of segment",null,null,null,null,"DescriptionOfReportableSegments",null,null,null,null,null,null,{"$f":"+IF(COUNTA('1 Segment Income'!H24),'1 Segment Income'!H24,\"\")","v":""}]
[null,null,null,null,null,"(i)","Net premium",null,null,null,null,"NetPremium",null,null,null,null,null,null,{"$f":"+IF(COUNTA('1 Segment Income'!H25),'1 Segment Income'!H25,\"\")","v":""}]
[null,null,null,null,null,"(ii)","Income form investments",null,null,null,null,"IncomeFormInvestments",null,null,null,null,null,null,{"$f":"+IF(COUNTA('1 Segment Income'!H26),'1 Segment Income'!H26,\"\")","v":""}]
[null,null,null,null,null,"(iii)","Transfer of funds from shareholders' account",null,null,null,null,"TransferOfFundsFromShareholdersAccount",null,null,null,null,null,null,{"$f":"+IF(COUNTA('1 Segment Income'!H27),'1 Segment Income'!H27,\"\")","v":""}]
[null,null,null,null,null,"(iv)","Other income",null,null,null,null,"OtherIncome",null,null,null,null,null,null,{"$f":"+IF(COUNTA('1 Segment Income'!H28),'1 Segment Income'!H28,\"\")","v":""}]
[null,null,null,null,null,4,"Name of segment",null,null,null,null,"DescriptionOfReportableSegments",null,null,null,null,null,null,{"$f":"+IF(COUNTA('1 Segment Income'!H29),'1 Segment Income'!H29,\"\")","v":""}]
[null,null,null,null,null,"(i)","Net premium",null,null,null,null,"NetPremium",null,null,null,null,null,null,{"$f":"+IF(COUNTA('1 Segment Income'!H30),'1 Segment Income'!H30,\"\")","v":""}]
[null,null,null,null,null,"(ii)","Income form investments",null,null,null,null,"IncomeFormInvestments",null,null,null,null,null,null,{"$f":"+IF(COUNTA('1 Segment Income'!H31),'1 Segment Income'!H31,\"\")","v":""}]
[null,null,null,null,null,"(iii)","Transfer of funds from shareholders' account",null,null,null,null,"TransferOfFundsFromShareholdersAccount",null,null,null,null,null,null,{"$f":"+IF(COUNTA('1 Segment Income'!H32),'1 Segment Income'!H32,\"\")","v":""}]
[null,null,null,null,null,"(iv)","Other income",null,null,null,null,"OtherIncome",null,null,null,null,null,null,{"$f":"+IF(COUNTA('1 Segment Income'!H33),'1 Segment Income'!H33,\"\")","v":""}]
[null,null,null,null,null,5,"Name of segment",null,null,null,null,"DescriptionOfReportableSegments",null,null,null,null,null,null,{"$f":"+IF(COUNTA('1 Segment Income'!H34),'1 Segment Income'!H34,\"\")","v":""}]
[null,null,null,null,null,"(i)","Net premium",null,null,null,null,"NetPremium",null,null,null,null,null,null,{"$f":"+IF(COUNTA('1 Segment Income'!H35),'1 Segment Income'!H35,\"\")","v":""}]
[null,null,null,null,null,"(ii)","Income form investments",null,null,null,null,"IncomeFormInvestments",null,null,null,null,null,null,{"$f":"+IF(COUNTA('1 Segment Income'!H36),'1 Segment Income'!H36,\"\")","v":""}]
[null,null,null,null,null,"(iii)","Transfer of funds from shareholders' account",null,null,null,null,"TransferOfFundsFromShareholdersAccount",null,null,null,null,null,null,{"$f":"+IF(COUNTA('1 Segment Income'!H37),'1 Segment Income'!H37,\"\")","v":""}]
[null,null,null,null,null,"(iv)","Other income",null,null,null,null,"OtherIncome",null,null,null,null,null,null,{"$f":"+IF(COUNTA('1 Segment Income'!H38),'1 Segment Income'!H38,\"\")","v":""}]
[null,null,null,null,null,6,"Name of segment",null,null,null,null,"DescriptionOfReportableSegments",null,null,null,null,null,null,{"$f":"+IF(COUNTA('1 Segment Income'!H39),'1 Segment Income'!H39,\"\")","v":""}]
[null,null,null,null,null,"(i)","Net premium",null,null,null,null,"NetPremium",null,null,null,null,null,null,{"$f":"+IF(COUNTA('1 Segment Income'!H40),'1 Segment Income'!H40,\"\")","v":""}]
[null,null,null,null,null,"(ii)","Income form investments",null,null,null,null,"IncomeFormInvestments",null,null,null,null,null,null,{"$f":"+IF(COUNTA('1 Segment Income'!H41),'1 Segment Income'!H41,\"\")","v":""}]
[null,null,null,null,null,"(iii)","Transfer of funds from shareholders' account",null,null,null,null,"TransferOfFundsFromShareholdersAccount",null,null,null,null,null,null,{"$f":"+IF(COUNTA('1 Segment Income'!H42),'1 Segment Income'!H42,\"\")","v":""}]
[null,null,null,null,null,"(iv)","Other income",null,null,null,null,"OtherIncome",null,null,null,null,null,null,{"$f":"+IF(COUNTA('1 Segment Income'!H43),'1 Segment Income'!H43,\"\")","v":""}]
[null,null,null,null,null,7,"Name of segment",null,null,null,null,"DescriptionOfReportableSegments",null,null,null,null,null,null,{"$f":"+IF(COUNTA('1 Segment Income'!H44),'1 Segment Income'!H44,\"\")","v":""}]
[null,null,null,null,null,"(i)","Net premium",null,null,null,null,"NetPremium",null,null,null,null,null,null,{"$f":"+IF(COUNTA('1 Segment Income'!H45),'1 Segment Income'!H45,\"\")","v":""}]
[null,null,null,null,null,"(ii)","Income form investments",null,null,null,null,"IncomeFormInvestments",null,null,null,null,null,null,{"$f":"+IF(COUNTA('1 Segment Income'!H46),'1 Segment Income'!H46,\"\")","v":""}]
[null,null,null,null,null,"(iii)","Transfer of funds from shareholders' account",null,null,null,null,"TransferOfFundsFromShareholdersAccount",null,null,null,null,null,null,{"$f":"+IF(COUNTA('1 Segment Income'!H47),'1 Segment Income'!H47,\"\")","v":""}]
[null,null,null,null,null,"(iv)","Other income",null,null,null,null,"OtherIncome",null,null,null,null,null,null,{"$f":"+IF(COUNTA('1 Segment Income'!H48),'1 Segment Income'!H48,\"\")","v":""}]
[null,null,null,null,null,8,"Name of segment",null,null,null,null,"DescriptionOfReportableSegments",null,null,null,null,null,null,{"$f":"+IF(COUNTA('1 Segment Income'!H49),'1 Segment Income'!H49,\"\")","v":""}]
[null,null,null,null,null,"(i)","Net premium",null,null,null,null,"NetPremium",null,null,null,null,null,null,{"$f":"+IF(COUNTA('1 Segment Income'!H50),'1 Segment Income'!H50,\"\")","v":""}]
[null,null,null,null,null,"(ii)","Income form investments",null,null,null,null,"IncomeFormInvestments",null,null,null,null,null,null,{"$f":"+IF(COUNTA('1 Segment Income'!H51),'1 Segment Income'!H51,\"\")","v":""}]
[null,null,null,null,null,"(iii)","Transfer of funds from shareholders' account",null,null,null,null,"TransferOfFundsFromShareholdersAccount",null,null,null,null,null,null,{"$f":"+IF(COUNTA('1 Segment Income'!H52),'1 Segment Income'!H52,\"\")","v":""}]
[null,null,null,null,null,"(iv)","Other income",null,null,null,null,"OtherIncome",null,null,null,null,null,null,{"$f":"+IF(COUNTA('1 Segment Income'!H53),'1 Segment Income'!H53,\"\")","v":""}]
[null,null,null,null,null,9,"Name of segment",null,null,null,null,"DescriptionOfReportableSegments",null,null,null,null,null,null,{"$f":"+IF(COUNTA('1 Segment Income'!H54),'1 Segment Income'!H54,\"\")","v":""}]
[null,null,null,null,null,"(i)","Net premium",null,null,null,null,"NetPremium",null,null,null,null,null,null,{"$f":"+IF(COUNTA('1 Segment Income'!H55),'1 Segment Income'!H55,\"\")","v":""}]
[null,null,null,null,null,"(ii)","Income form investments",null,null,null,null,"IncomeFormInvestments",null,null,null,null,null,null,{"$f":"+IF(COUNTA('1 Segment Income'!H56),'1 Segment Income'!H56,\"\")","v":""}]
[null,null,null,null,null,"(iii)","Transfer of funds from shareholders' account",null,null,null,null,"TransferOfFundsFromShareholdersAccount",null,null,null,null,null,null,{"$f":"+IF(COUNTA('1 Segment Income'!H57),'1 Segment Income'!H57,\"\")","v":""}]
[null,null,null,null,null,"(iv)","Other income",null,null,null,null,"OtherIncome",null,null,null,null,null,null,{"$f":"+IF(COUNTA('1 Segment Income'!H58),'1 Segment Income'!H58,\"\")","v":""}]
[null,null,null,null,null,10,"Name of segment",null,null,null,null,"DescriptionOfReportableSegments",null,null,null,null,null,null,{"$f":"+IF(COUNTA('1 Segment Income'!H59),'1 Segment Income'!H59,\"\")","v":""}]
[null,null,null,null,null,"(i)","Net premium",null,null,null,null,"NetPremium",null,null,null,null,null,null,{"$f":"+IF(COUNTA('1 Segment Income'!H60),'1 Segment Income'!H60,\"\")","v":""}]
[null,null,null,null,null,"(ii)","Income form investments",null,null,null,null,"IncomeFormInvestments",null,null,null,null,null,null,{"$f":"+IF(COUNTA('1 Segment Income'!H61),'1 Segment Income'!H61,\"\")","v":""}]
[null,null,null,null,null,"(iii)","Transfer of funds from shareholders' account",null,null,null,null,"TransferOfFundsFromShareholdersAccount",null,null,null,null,null,null,{"$f":"+IF(COUNTA('1 Segment Income'!H62),'1 Segment Income'!H62,\"\")","v":""}]
[null,null,null,null,null,"(iv)","Other income",null,null,null,null,"OtherIncome",null,null,null,null,null,null,{"$f":"+IF(COUNTA('1 Segment Income'!H63),'1 Segment Income'!H63,\"\")","v":""}]
[null,null,null,null,null,11,"Name of segment",null,null,null,null,"DescriptionOfReportableSegments",null,null,null,null,null,null,{"$f":"+IF(COUNTA('1 Segment Income'!H64),'1 Segment Income'!H64,\"\")","v":""}]
[null,null,null,null,null,"(i)","Net premium",null,null,null,null,"NetPremium",null,null,null,null,null,null,{"$f":"+IF(COUNTA('1 Segment Income'!H65),'1 Segment Income'!H65,\"\")","v":""}]
[null,null,null,null,null,"(ii)","Income form investments",null,null,null,null,"IncomeFormInvestments",null,null,null,null,null,null,{"$f":"+IF(COUNTA('1 Segment Income'!H66),'1 Segment Income'!H66,\"\")","v":""}]
[null,null,null,null,null,"(iii)","Transfer of funds from shareholders' account",null,null,null,null,"TransferOfFundsFromShareholdersAccount",null,null,null,null,null,null,{"$f":"+IF(COUNTA('1 Segment Income'!H67),'1 Segment Income'!H67,\"\")","v":""}]
[null,null,null,null,null,"(iv)","Other income",null,null,null,null,"OtherIncome",null,null,null,null,null,null,{"$f":"+IF(COUNTA('1 Segment Income'!H68),'1 Segment Income'!H68,\"\")","v":""}]
[null,null,null,null,null,12,"Name of segment",null,null,null,null,"DescriptionOfReportableSegments",null,null,null,null,null,null,{"$f":"+IF(COUNTA('1 Segment Income'!H69),'1 Segment Income'!H69,\"\")","v":""}]
[null,null,null,null,null,"(i)","Net premium",null,null,null,null,"NetPremium",null,null,null,null,null,null,{"$f":"+IF(COUNTA('1 Segment Income'!H70),'1 Segment Income'!H70,\"\")","v":""}]
[null,null,null,null,null,"(ii)","Income form investments",null,null,null,null,"IncomeFormInvestments",null,null,null,null,null,null,{"$f":"+IF(COUNTA('1 Segment Income'!H71),'1 Segment Income'!H71,\"\")","v":""}]
[null,null,null,null,null,"(iii)","Transfer of funds from shareholders' account",null,null,null,null,"TransferOfFundsFromShareholdersAccount",null,null,null,null,null,null,{"$f":"+IF(COUNTA('1 Segment Income'!H72),'1 Segment Income'!H72,\"\")","v":""}]
[null,null,null,null,null,"(iv)","Other income",null,null,null,null,"OtherIncome",null,null,null,null,null,null,{"$f":"+IF(COUNTA('1 Segment Income'!H73),'1 Segment Income'!H73,\"\")","v":""}]
[null,null,null,null,null,13,"Name of segment",null,null,null,null,"DescriptionOfReportableSegments",null,null,null,null,null,null,{"$f":"+IF(COUNTA('1 Segment Income'!H74),'1 Segment Income'!H74,\"\")","v":""}]
[null,null,null,null,null,"(i)","Net premium",null,null,null,null,"NetPremium",null,null,null,null,null,null,{"$f":"+IF(COUNTA('1 Segment Income'!H75),'1 Segment Income'!H75,\"\")","v":""}]
[null,null,null,null,null,"(ii)","Income form investments",null,null,null,null,"IncomeFormInvestments",null,null,null,null,null,null,{"$f":"+IF(COUNTA('1 Segment Income'!H76),'1 Segment Income'!H76,\"\")","v":""}]
[null,null,null,null,null,"(iii)","Transfer of funds from shareholders' account",null,null,null,null,"TransferOfFundsFromShareholdersAccount",null,null,null,null,null,null,{"$f":"+IF(COUNTA('1 Segment Income'!H77),'1 Segment Income'!H77,\"\")","v":""}]
[null,null,null,null,null,"(iv)","Other income",null,null,null,null,"OtherIncome",null,null,null,null,null,null,{"$f":"+IF(COUNTA('1 Segment Income'!H78),'1 Segment Income'!H78,\"\")","v":""}]
[null,null,null,null,null,14,"Name of segment",null,null,null,null,"DescriptionOfReportableSegments",null,null,null,null,null,null,{"$f":"+IF(COUNTA('1 Segment Income'!H79),'1 Segment Income'!H79,\"\")","v":""}]
[null,null,null,null,null,"(i)","Net premium",null,null,null,null,"NetPremium",null,null,null,null,null,null,{"$f":"+IF(COUNTA('1 Segment Income'!H80),'1 Segment Income'!H80,\"\")","v":""}]
[null,null,null,null,null,"(ii)","Income form investments",null,null,null,null,"IncomeFormInvestments",null,null,null,null,null,null,{"$f":"+IF(COUNTA('1 Segment Income'!H81),'1 Segment Income'!H81,\"\")","v":""}]
[null,null,null,null,null,"(iii)","Transfer of funds from shareholders' account",null,null,null,null,"TransferOfFundsFromShareholdersAccount",null,null,null,null,null,null,{"$f":"+IF(COUNTA('1 Segment Income'!H82),'1 Segment Income'!H82,\"\")","v":""}]
[null,null,null,null,null,"(iv)","Other income",null,null,null,null,"OtherIncome",null,null,null,null,null,null,{"$f":"+IF(COUNTA('1 Segment Income'!H83),'1 Segment Income'!H83,\"\")","v":""}]
[null,null,null,null,null,15,"Name of segment",null,null,null,null,"DescriptionOfReportableSegments",null,null,null,null,null,null,{"$f":"+IF(COUNTA('1 Segment Income'!H84),'1 Segment Income'!H84,\"\")","v":""}]
[null,null,null,null,null,"(i)","Net premium",null,null,null,null,"NetPremium",null,null,null,null,null,null,{"$f":"+IF(COUNTA('1 Segment Income'!H85),'1 Segment Income'!H85,\"\")","v":""}]
[null,null,null,null,null,"(ii)","Income form investments",null,null,null,null,"IncomeFormInvestments",null,null,null,null,null,null,{"$f":"+IF(COUNTA('1 Segment Income'!H86),'1 Segment Income'!H86,\"\")","v":""}]
[null,null,null,null,null,"(iii)","Transfer of funds from shareholders' account",null,null,null,null,"TransferOfFundsFromShareholdersAccount",null,null,null,null,null,null,{"$f":"+IF(COUNTA('1 Segment Income'!H87),'1 Segment Income'!H87,\"\")","v":""}]
[null,null,null,null,null,"(iv)","Other income",null,null,null,null,"OtherIncome",null,null,null,null,null,null,{"$f":"+IF(COUNTA('1 Segment Income'!H88),'1 Segment Income'!H88,\"\")","v":""}]
[null,null,null,null,null,16,"Name of segment",null,null,null,null,"DescriptionOfReportableSegments",null,null,null,null,null,null,{"$f":"+IF(COUNTA('1 Segment Income'!H89),'1 Segment Income'!H89,\"\")","v":""}]
[null,null,null,null,null,"(i)","Net premium",null,null,null,null,"NetPremium",null,null,null,null,null,null,{"$f":"+IF(COUNTA('1 Segment Income'!H90),'1 Segment Income'!H90,\"\")","v":""}]
[null,null,null,null,null,"(ii)","Income form investments",null,null,null,null,"IncomeFormInvestments",null,null,null,null,null,null,{"$f":"+IF(COUNTA('1 Segment Income'!H91),'1 Segment Income'!H91,\"\")","v":""}]
[null,null,null,null,null,"(iii)","Transfer of funds from shareholders' account",null,null,null,null,"TransferOfFundsFromShareholdersAccount",null,null,null,null,null,null,{"$f":"+IF(COUNTA('1 Segment Income'!H92),'1 Segment Income'!H92,\"\")","v":""}]
[null,null,null,null,null,"(iv)","Other income",null,null,null,null,"OtherIncome",null,null,null,null,null,null,{"$f":"+IF(COUNTA('1 Segment Income'!H93),'1 Segment Income'!H93,\"\")","v":""}]
[null,null,null,null,null,17,"Name of segment",null,null,null,null,"DescriptionOfReportableSegments",null,null,null,null,null,null,{"$f":"+IF(COUNTA('1 Segment Income'!H94),'1 Segment Income'!H94,\"\")","v":""}]
[null,null,null,null,null,"(i)","Net premium",null,null,null,null,"NetPremium",null,null,null,null,null,null,{"$f":"+IF(COUNTA('1 Segment Income'!H95),'1 Segment Income'!H95,\"\")","v":""}]
[null,null,null,null,null,"(ii)","Income form investments",null,null,null,null,"IncomeFormInvestments",null,null,null,null,null,null,{"$f":"+IF(COUNTA('1 Segment Income'!H96),'1 Segment Income'!H96,\"\")","v":""}]
[null,null,null,null,null,"(iii)","Transfer of funds from shareholders' account",null,null,null,null,"TransferOfFundsFromShareholdersAccount",null,null,null,null,null,null,{"$f":"+IF(COUNTA('1 Segment Income'!H97),'1 Segment Income'!H97,\"\")","v":""}]
[null,null,null,null,null,"(iv)","Other income",null,null,null,null,"OtherIncome",null,null,null,null,null,null,{"$f":"+IF(COUNTA('1 Segment Income'!H98),'1 Segment Income'!H98,\"\")","v":""}]
[null,null,null,null,null,18,"Name of segment",null,null,null,null,"DescriptionOfReportableSegments",null,null,null,null,null,null,{"$f":"+IF(COUNTA('1 Segment Income'!H99),'1 Segment Income'!H99,\"\")","v":""}]
[null,null,null,null,null,"(i)","Net premium",null,null,null,null,"NetPremium",null,null,null,null,null,null,{"$f":"+IF(COUNTA('1 Segment Income'!H100),'1 Segment Income'!H100,\"\")","v":""}]
[null,null,null,null,null,"(ii)","Income form investments",null,null,null,null,"IncomeFormInvestments",null,null,null,null,null,null,{"$f":"+IF(COUNTA('1 Segment Income'!H101),'1 Segment Income'!H101,\"\")","v":""}]
[null,null,null,null,null,"(iii)","Transfer of funds from shareholders' account",null,null,null,null,"TransferOfFundsFromShareholdersAccount",null,null,null,null,null,null,{"$f":"+IF(COUNTA('1 Segment Income'!H102),'1 Segment Income'!H102,\"\")","v":""}]
[null,null,null,null,null,"(iv)","Other income",null,null,null,null,"OtherIncome",null,null,null,null,null,null,{"$f":"+IF(COUNTA('1 Segment Income'!H103),'1 Segment Income'!H103,\"\")","v":""}]
[null,null,null,null,null,19,"Name of segment",null,null,null,null,"DescriptionOfReportableSegments",null,null,null,null,null,null,{"$f":"+IF(COUNTA('1 Segment Income'!H104),'1 Segment Income'!H104,\"\")","v":""}]
[null,null,null,null,null,"(i)","Net premium",null,null,null,null,"NetPremium",null,null,null,null,null,null,{"$f":"+IF(COUNTA('1 Segment Income'!H105),'1 Segment Income'!H105,\"\")","v":""}]
[null,null,null,null,null,"(ii)","Income form investments",null,null,null,null,"IncomeFormInvestments",null,null,null,null,null,null,{"$f":"+IF(COUNTA('1 Segment Income'!H106),'1 Segment Income'!H106,\"\")","v":""}]
[null,null,null,null,null,"(iii)","Transfer of funds from shareholders' account",null,null,null,null,"TransferOfFundsFromShareholdersAccount",null,null,null,null,null,null,{"$f":"+IF(COUNTA('1 Segment Income'!H107),'1 Segment Income'!H107,\"\")","v":""}]
[null,null,null,null,null,"(iv)","Other income",null,null,null,null,"OtherIncome",null,null,null,null,null,null,{"$f":"+IF(COUNTA('1 Segment Income'!H108),'1 Segment Income'!H108,\"\")","v":""}]
[null,null,null,null,null,20,"Name of segment",null,null,null,null,"DescriptionOfReportableSegments",null,null,null,null,null,null,{"$f":"+IF(COUNTA('1 Segment Income'!H109),'1 Segment Income'!H109,\"\")","v":""}]
[null,null,null,null,null,"(i)","Net premium",null,null,null,null,"NetPremium",null,null,null,null,null,null,{"$f":"+IF(COUNTA('1 Segment Income'!H110),'1 Segment Income'!H110,\"\")","v":""}]
[null,null,null,null,null,"(ii)","Income form investments",null,null,null,null,"IncomeFormInvestments",null,null,null,null,null,null,{"$f":"+IF(COUNTA('1 Segment Income'!H111),'1 Segment Income'!H111,\"\")","v":""}]
[null,null,null,null,null,"(iii)","Transfer of funds from shareholders' account",null,null,null,null,"TransferOfFundsFromShareholdersAccount",null,null,null,null,null,null,{"$f":"+IF(COUNTA('1 Segment Income'!H112),'1 Segment Income'!H112,\"\")","v":""}]
[null,null,null,null,null,"(iv)","Other income",null,null,null,null,"OtherIncome",null,null,null,null,null,null,{"$f":"+IF(COUNTA('1 Segment Income'!H113),'1 Segment Income'!H113,\"\")","v":""}]
[null,null,null,null,null,21,"Name of segment","Shareholders",null,null,null,"DescriptionOfReportableSegments",null,null,null,null,null,null,{"$f":"+IF(COUNTA('1 Segment Income'!H114),'1 Segment Income'!H114,\"\")","v":"Shareholders"}]
[null,null,null,null,null,"(i)","Net premium",null,null,null,null,"NetPremium",null,null,null,null,null,null,{"$f":"+IF(COUNTA('1 Segment Income'!H115),'1 Segment Income'!H115,\"\")","v":""}]
[null,null,null,null,null,"(ii)","Income form investments",null,null,null,null,"IncomeFormInvestments",null,null,null,null,null,null,{"$f":"+IF(COUNTA('1 Segment Income'!H116),'1 Segment Income'!H116,\"\")","v":""}]
[null,null,null,null,null,"(iii)","Transfer of funds from shareholders' account",null,null,null,null,"TransferOfFundsFromShareholdersAccount",null,null,null,null,null,null,{"$f":"+IF(COUNTA('1 Segment Income'!H117),'1 Segment Income'!H117,\"\")","v":""}]
[null,null,null,null,null,"(iv)","Other income",null,null,null,null,"OtherIncome",null,null,null,null,null,null,{"$f":"+IF(COUNTA('1 Segment Income'!H118),'1 Segment Income'!H118,\"\")","v":""}]
[null,null,null,null,null,22,"Name of segment","Unallocated",null,null,null,"DescriptionOfReportableSegments",null,null,null,null,null,null,{"$f":"+IF(COUNTA('1 Segment Income'!H119),'1 Segment Income'!H119,\"\")","v":"Unallocated"}]
[null,null,null,null,null,"(i)","Net premium",null,null,null,null,"NetPremium",null,null,null,null,null,null,{"$f":"+IF(COUNTA('1 Segment Income'!H120),'1 Segment Income'!H120,\"\")","v":""}]
[null,null,null,null,null,"(ii)","Income form investments",null,null,null,null,"IncomeFormInvestments",null,null,null,null,null,null,{"$f":"+IF(COUNTA('1 Segment Income'!H121),'1 Segment Income'!H121,\"\")","v":""}]
[null,null,null,null,null,"(iii)","Transfer of funds from shareholders' account",null,null,null,null,"TransferOfFundsFromShareholdersAccount",null,null,null,null,null,null,{"$f":"+IF(COUNTA('1 Segment Income'!H122),'1 Segment Income'!H122,\"\")","v":""}]
[null,null,null,null,null,"(iv)","Other income",null,null,null,null,"OtherIncome",null,null,null,null,null,null,{"$f":"+IF(COUNTA('1 Segment Income'!H123),'1 Segment Income'!H123,\"\")","v":""}]
[null,null,null,null,null,null,"Notes to Segment Income",null,null,null,null,"DisclosureOfNotesOnSegmentIncomeExplanatoryTextBlock"]

{"sheet":"2 Segment Surplus Deficit","index":5,"n_rows":37,"n_cols":19,"rows_kept":37,"cut":false,"hidden":false,"merged":[[6,5,6,8],[7,5,7,6],[33,5,33,8],[12,7,12,8],[12,5,12,6],[8,5,8,6],[9,5,9,6],[10,5,10,6],[11,5,11,6]]}
[]
[null,null,null,null,null,null,null,"Audited","Unaudited"]
[]
[]
[]
[null,null,null,null,null,null,null,null,{"$f":"IF('General Info'!E22=\"\",\"\",\"Amount in (\"&'General Info'!E22&\")\")","v":""}]
[null,null,null,null,null,"Format for financial results by life insurance companies filed with stock exchanges"]
[null,null,null,null,null,"Particulars",null,"Current Quarter","Year to Date Figures"]
[null,null,null,null,null,"Date of start of reporting period",null,{"$f":"IF('General Info'!E18=\"\",\"\",IF('General Info'!F18=\"\",\"\",IF(OR('General Info'!$E$24='General Info'!T24,'General Info'!$E$24='General Info'!T9),IF(LEN('General Info'!U24)>1,'General Info'!U24,\"0\"&'General Info'!U24)&\"-\"&IF(LEN('General Info'!V24)>1,'General Info'!V24,\"0\"&'General Info'!V24)&\"-\"&IF(LEN('General Info'!W24)>1,'General Info'!W24,\"0\"&'General Info'!W24),\"\")&IF('General Info'!$E$24='General Info'!T25,IF(LEN('General Info'!U25)>1,'General Info'!U25,\"0\"&'General Info'!U25)&\"-\"&IF(LEN('General Info'!V25)>1,'General Info'!V25,\"0\"&'General Info'!V25)&\"-\"&IF(LEN('General Info'!W25)>1,'General Info'!W24,\"0\"&'General Info'!W25),\"\")&IF(OR('General Info'!$E$24='General Info'!T26,'General Info'!$E$24='General Info'!T10),IF(LEN('General Info'!U26)>1,'General Info'!U26,\"0\"&'General Info'!U26)&\"-\"&IF(LEN('General Info'!V26)>1,'General Info'!V26,\"0\"&'General Info'!V26)&\"-\"&IF(LEN('General Info'!W26)>1,'General Info'!W26,\"0\"&'General Info'!W26),\"\")&IF('General Info'!$E$24='General Info'!T27,IF(LEN('General Info'!U27)>1,'General Info'!U27,\"0\"&'General Info'!U27)&\"-\"&IF(LEN('General Info'!V27)>1,'General Info'!V27,\"0\"&'General Info'!V27)&\"-\"&IF(LEN('General Info'!W27)>1,'General Info'!W27,\"0\"&'General Info'!W27),\"\")))","v":""},{"$f":"IF('General Info'!E24=\"\",\"\",IF('General Info'!F17=\"\",\"\",IF('General Info'!G17=\"\",\"\",'General Info'!E17&\"-\"&'General Info'!F17&\"-\"&'General Info'!G17)))","v":""}]
[null,null,null,null,null,"Date of end of reporting period",null,{"$f":"IF('General Info'!E18=\"\",\"\",IF('General Info'!F18=\"\",\"\",IF('General Info'!$E$24='General Info'!T24,IF(LEN('General Info'!U29)>1,'General Info'!U29,\"0\"&'General Info'!U29)&\"-\"&IF(LEN('General Info'!V29)>1,'General Info'!V29,\"0\"&'General Info'!V29)&\"-\"&IF(LEN('General Info'!W29)>1,'General Info'!W29,\"0\"&'General Info'!W29),\"\")&IF(OR('General Info'!$E$24='General Info'!T25,'General Info'!$E$24='General Info'!T9),IF(LEN('General Info'!U30)>1,'General Info'!U30,\"0\"&'General Info'!U30)&\"-\"&IF(LEN('General Info'!V30)>1,'General Info'!V30,\"0\"&'General Info'!V30)&\"-\"&IF(LEN('General Info'!W30)>1,'General Info'!W30,\"0\"&'General Info'!W30),\"\")&IF('General Info'!$E$24='General Info'!T26,IF(LEN('General Info'!U31)>1,'General Info'!U31,\"0\"&'General Info'!U31)&\"-\"&IF(LEN('General Info'!V31)>1,'General Info'!V31,\"0\"&'General Info'!V31)&\"-\"&IF(LEN('General Info'!W31)>1,'General Info'!W31,\"0\"&'General Info'!W31),\"\")&IF(OR('General Info'!$E$24='General Info'!T27,'General Info'!$E$24='General Info'!T10),IF(LEN('General Info'!U32)>1,'General Info'!U32,\"0\"&'General Info'!U32)&\"-\"&IF(LEN('General Info'!V32)>1,'General Info'!V32,\"0\"&'General Info'!V32)&\"-\"&IF(LEN('General Info'!W32)>1,'General Info'!W32,\"0\"&'General Info'!W32),\"\")))","v":""},{"$f":"IF('General Info'!E18=\"\",\"\",IF('General Info'!F18=\"\",\"\",IF('General Info'!$E$24='General Info'!T24,IF(LEN('General Info'!U29)>1,'General Info'!U29,\"0\"&'General Info'!U29)&\"-\"&IF(LEN('General Info'!V29)>1,'General Info'!V29,\"0\"&'General Info'!V29)&\"-\"&IF(LEN('General Info'!W29)>1,'General Info'!W29,\"0\"&'General Info'!W29),\"\")&IF(OR('General Info'!$E$24='General Info'!T25,'General Info'!$E$24='General Info'!T9),IF(LEN('General Info'!U30)>1,'General Info'!U30,\"0\"&'General Info'!U30)&\"-\"&IF(LEN('General Info'!V30)>1,'General Info'!V30,\"0\"&'General Info'!V30)&\"-\"&IF(LEN('General Info'!W30)>1,'General Info'!W30,\"0\"&'General Info'!W30),\"\")&IF('General Info'!$E$24='General Info'!T26,IF(LEN('General Info'!U31)>1,'General Info'!U31,\"0\"&'General Info'!U31)&\"-\"&IF(LEN('General Info'!V31)>1,'General Info'!V31,\"0\"&'General Info'!V31)&\"-\"&IF(LEN('General Info'!W31)>1,'General Info'!W31,\"0\"&'General Info'!W31),\"\")&IF(OR('General Info'!$E$24='General Info'!T27,'General Info'!$E$24='General Info'!T10),IF(LEN('General Info'!U32)>1,'General Info'!U32,\"0\"&'General Info'!U32)&\"-\"&IF(LEN('General Info'!V32)>1,'General Info'!V32,\"0\"&'General Info'!V32)&\"-\"&IF(LEN('General Info'!W32)>1,'General Info'!W32,\"0\"&'General Info'!W32),\"\")))","v":""},null,null,null,"DateOfStartOfReportingPeriod"]
[null,null,null,null,null,"Whether results are audited or unaudited",null,{"$f":"+IF(COUNTA('General Info'!E26),'General Info'!E26,\"\")","v":""},{"$f":"+IF(COUNTA('General Info'!E27),'General Info'!E27,H11)","v":""},null,null,null,"DateOfEndOfReportingPeriod"]
[null,null,null,null,null,"Nature of report standalone or consolidated",null,{"$f":"+IF(COUNTA('General Info'!E25),'General Info'!E25,\"\")","v":""},{"$f":"+IF(COUNTA('General Info'!E25),'General Info'!E25,\"\")","v":""},null,null,null,"WhetherResultsAreAuditedOrUnaudited"]
[null,null,null,null,null,"Segment Surplus/(Deficit) (net of transfer from shareholders' A/c) "]
[null,null,null,null,null,1,{"$f":"+IF(COUNTA('1 Segment Income'!H14),('1 Segment Income'!H14),\"\")","v":""},null,null,null,null,null,"SurplusDeficit","DescriptionOfReportableSegments","TypeOfPolicy","ParticipantingNonParticipantingPolicies",null,null,{"$f":"IF(COUNTA('2 Segment Surplus Deficit'!H14),'2 Segment Surplus Deficit'!H14,\"\")","v":""}]
[null,null,null,null,null,2,{"$f":"+IF(COUNTA('1 Segment Income'!H19),('1 Segment Income'!H19),\"\")","v":""},null,null,null,null,null,"SurplusDeficit","DescriptionOfReportableSegments","TypeOfPolicy","ParticipantingNonParticipantingPolicies",null,null,{"$f":"IF(COUNTA('2 Segment Surplus Deficit'!H15),'2 Segment Surplus Deficit'!H15,\"\")","v":""}]
[null,null,null,null,null,3,{"$f":"+IF(COUNTA('1 Segment Income'!H24),('1 Segment Income'!H24),\"\")","v":""},null,null,null,null,null,"SurplusDeficit","DescriptionOfReportableSegments","TypeOfPolicy","ParticipantingNonParticipantingPolicies",null,null,{"$f":"IF(COUNTA('2 Segment Surplus Deficit'!H16),'2 Segment Surplus Deficit'!H16,\"\")","v":""}]
[null,null,null,null,null,4,{"$f":"+IF(COUNTA('1 Segment Income'!H29),('1 Segment Income'!H29),\"\")","v":""},null,null,null,null,null,"SurplusDeficit","DescriptionOfReportableSegments","TypeOfPolicy","ParticipantingNonParticipantingPolicies",null,null,{"$f":"IF(COUNTA('2 Segment Surplus Deficit'!H17),'2 Segment Surplus Deficit'!H17,\"\")","v":""}]
[null,null,null,null,null,5,{"$f":"+IF(COUNTA('1 Segment Income'!H34),('1 Segment Income'!H34),\"\")","v":""},null,null,null,null,null,"SurplusDeficit","DescriptionOfReportableSegments","TypeOfPolicy","ParticipantingNonParticipantingPolicies",null,null,{"$f":"IF(COUNTA('2 Segment Surplus Deficit'!H18),'2 Segment Surplus Deficit'!H18,\"\")","v":""}]
[null,null,null,null,null,6,{"$f":"+IF(COUNTA('1 Segment Income'!H39),('1 Segment Income'!H39),\"\")","v":""},null,null,null,null,null,"SurplusDeficit","DescriptionOfReportableSegments","TypeOfPolicy","ParticipantingNonParticipantingPolicies",null,null,{"$f":"IF(COUNTA('2 Segment Surplus Deficit'!H19),'2 Segment Surplus Deficit'!H19,\"\")","v":""}]
[null,null,null,null,null,7,{"$f":"+IF(COUNTA('1 Segment Income'!H44),('1 Segment Income'!H44),\"\")","v":""},null,null,null,null,null,"SurplusDeficit","DescriptionOfReportableSegments","TypeOfPolicy","ParticipantingNonParticipantingPolicies",null,null,{"$f":"IF(COUNTA('2 Segment Surplus Deficit'!H20),'2 Segment Surplus Deficit'!H20,\"\")","v":""}]
[null,null,null,null,null,8,{"$f":"+IF(COUNTA('1 Segment Income'!H49),('1 Segment Income'!H49),\"\")","v":""},null,null,null,null,null,"SurplusDeficit","DescriptionOfReportableSegments","TypeOfPolicy","ParticipantingNonParticipantingPolicies",null,null,{"$f":"IF(COUNTA('2 Segment Surplus Deficit'!H21),'2 Segment Surplus Deficit'!H21,\"\")","v":""}]
[null,null,null,null,null,9,{"$f":"+IF(COUNTA('1 Segment Income'!H54),('1 Segment Income'!H54),\"\")","v":""},null,null,null,null,null,"SurplusDeficit","DescriptionOfReportableSegments","TypeOfPolicy","ParticipantingNonParticipantingPolicies",null,null,{"$f":"IF(COUNTA('2 Segment Surplus Deficit'!H22),'2 Segment Surplus Deficit'!H22,\"\")","v":""}]
[null,null,null,null,null,10,{"$f":"+IF(COUNTA('1 Segment Income'!H59),('1 Segment Income'!H59),\"\")","v":""},null,null,null,null,null,"SurplusDeficit","DescriptionOfReportableSegments","TypeOfPolicy","ParticipantingNonParticipantingPolicies",null,null,{"$f":"IF(COUNTA('2 Segment Surplus Deficit'!H23),'2 Segment Surplus Deficit'!H23,\"\")","v":""}]
[null,null,null,null,null,{"$f":"+F23+1","v":11},{"$f":"+IF(COUNTA('1 Segment Income'!H64),('1 Segment Income'!H64),\"\")","v":""},null,null,null,null,null,"SurplusDeficit","DescriptionOfReportableSegments","TypeOfPolicy","ParticipantingNonParticipantingPolicies",null,null,{"$f":"IF(COUNTA('2 Segment Surplus Deficit'!H24),'2 Segment Surplus Deficit'!H24,\"\")","v":""}]
[null,null,null,null,null,{"$f":"+F24+1","v":12},{"$f":"+IF(COUNTA('1 Segment Income'!H69),('1 Segment Income'!H69),\"\")","v":""},null,null,null,null,null,"SurplusDeficit","DescriptionOfReportableSegments","TypeOfPolicy","ParticipantingNonParticipantingPolicies",null,null,{"$f":"IF(COUNTA('2 Segment Surplus Deficit'!H25),'2 Segment Surplus Deficit'!H25,\"\")","v":""}]
[null,null,null,null,null,13,{"$f":"+IF(COUNTA('1 Segment Income'!H74),('1 Segment Income'!H74),\"\")","v":""},null,null,null,null,null,"SurplusDeficit","DescriptionOfReportableSegments","TypeOfPolicy","ParticipantingNonParticipantingPolicies",null,null,{"$f":"IF(COUNTA('2 Segment Surplus Deficit'!H26),'2 Segment Surplus Deficit'!H26,\"\")","v":""}]
[null,null,null,null,null,14,{"$f":"+IF(COUNTA('1 Segment Income'!H79),('1 Segment Income'!H79),\"\")","v":""},null,null,null,null,null,"SurplusDeficit","DescriptionOfReportableSegments","TypeOfPolicy","ParticipantingNonParticipantingPolicies",null,null,{"$f":"IF(COUNTA('2 Segment Surplus Deficit'!H27),'2 Segment Surplus Deficit'!H27,\"\")","v":""}]
[null,null,null,null,null,15,{"$f":"+IF(COUNTA('1 Segment Income'!H84),('1 Segment Income'!H84),\"\")","v":""},null,null,null,null,null,"SurplusDeficit","DescriptionOfReportableSegments","TypeOfPolicy","ParticipantingNonParticipantingPolicies",null,null,{"$f":"IF(COUNTA('2 Segment Surplus Deficit'!H28),'2 Segment Surplus Deficit'!H28,\"\")","v":""}]
[null,null,null,null,null,16,{"$f":"+IF(COUNTA('1 Segment Income'!H89),('1 Segment Income'!H89),\"\")","v":""},null,null,null,null,null,"SurplusDeficit","DescriptionOfReportableSegments","TypeOfPolicy","ParticipantingNonParticipantingPolicies",null,null,{"$f":"IF(COUNTA('2 Segment Surplus Deficit'!H29),'2 Segment Surplus Deficit'!H29,\"\")","v":""}]
[null,null,null,null,null,17,{"$f":"+IF(COUNTA('1 Segment Income'!H94),('1 Segment Income'!H94),\"\")","v":""},null,null,null,null,null,"SurplusDeficit","DescriptionOfReportableSegments","TypeOfPolicy","ParticipantingNonParticipantingPolicies",null,null,{"$f":"IF(COUNTA('2 Segment Surplus Deficit'!H30),'2 Segment Surplus Deficit'!H30,\"\")","v":""}]
[null,null,null,null,null,18,{"$f":"+IF(COUNTA('1 Segment Income'!H99),('1 Segment Income'!H99),\"\")","v":""},null,null,null,null,null,"SurplusDeficit","DescriptionOfReportableSegments","TypeOfPolicy","ParticipantingNonParticipantingPolicies",null,null,{"$f":"IF(COUNTA('2 Segment Surplus Deficit'!H31),'2 Segment Surplus Deficit'!H31,\"\")","v":""}]
[null,null,null,null,null,19,{"$f":"+IF(COUNTA('1 Segment Income'!H104),('1 Segment Income'!H104),\"\")","v":""},null,null,null,null,null,"SurplusDeficit","DescriptionOfReportableSegments","TypeOfPolicy","ParticipantingNonParticipantingPolicies",null,null,{"$f":"IF(COUNTA('2 Segment Surplus Deficit'!H32),'2 Segment Surplus Deficit'!H32,\"\")","v":""}]
[null,null,null,null,null,20,{"$f":"+IF(COUNTA('1 Segment Income'!H109),('1 Segment Income'!H109),\"\")","v":""},null,null,null,null,null,"SurplusDeficit","DescriptionOfReportableSegments","TypeOfPolicy","ParticipantingNonParticipantingPolicies",null,null,{"$f":"IF(COUNTA('2 Segment Surplus Deficit'!H33),'2 Segment Surplus Deficit'!H33,\"\")","v":""}]
[null,null,null,null,null,null,null,null,null,null,null,null,"SurplusDeficit","DescriptionOfReportableSegments","TypeOfPolicy","ParticipantingNonParticipantingPolicies",null,null,{"$f":"IF(COUNTA('2 Segment Surplus Deficit'!H34),'2 Segment Surplus Deficit'!H34,\"\")","v":""}]
[null,null,null,null,null,21,{"$f":"+IF(COUNTA('1 Segment Income'!H114),('1 Segment Income'!H114),\"\")","v":"Shareholders"},null,null,null,null,null,"SurplusDeficit","DescriptionOfReportableSegments","TypeOfPolicy","ParticipantingNonParticipantingPolicies",null,null,{"$f":"IF(COUNTA('2 Segment Surplus Deficit'!H35),'2 Segment Surplus Deficit'!H35,\"\")","v":""}]
[null,null,null,null,null,22,{"$f":"+IF(COUNTA('1 Segment Income'!H119),('1 Segment Income'!H119),\"\")","v":"Unallocated"},null,null,null,null,null,"SurplusDeficit","DescriptionOfReportableSegments","TypeOfPolicy","ParticipantingNonParticipantingPolicies",null,null,{"$f":"IF(COUNTA('2 Segment Surplus Deficit'!H36),'2 Segment Surplus Deficit'!H36,\"\")","v":""}]
[null,null,null,null,null,null,"Notes Segment Surplus/(Deficit) (net of transfer from shareholders' A/c) ",null,null,null,null,null,"DisclosureOfNotesOnSegmentSurplusDeficitExplanatoryTextBlock"]

{"sheet":"3 Segment Assets","index":6,"n_rows":37,"n_cols":18,"rows_kept":37,"cut":false,"hidden":false,"merged":[[6,5,6,7],[7,5,7,6],[33,5,33,7],[12,5,12,6],[8,5,8,6],[9,5,9,6],[10,5,10,6],[11,5,11,6]]}
[]
[]
[]
[null,null,null,null,null,null,null,null,null,"Audited","Unaudited"]
[]
[null,null,null,null,null,null,null,{"$f":"IF('General Info'!E22=\"\",\"\",\"Amount in (\"&'General Info'!E22&\")\")","v":""}]
[null,null,null,null,null,"Format for financial results by life insurance companies filed with stock exchanges"]
[null,null,null,null,null,"Particulars",null,"Current Quarter"]
[null,null,null,null,null,"Date of start of reporting period",null,{"$f":"IF('General Info'!E18=\"\",\"\",IF('General Info'!F18=\"\",\"\",IF(OR('General Info'!$E$24='General Info'!T24,'General Info'!$E$24='General Info'!T9),IF(LEN('General Info'!U24)>1,'General Info'!U24,\"0\"&'General Info'!U24)&\"-\"&IF(LEN('General Info'!V24)>1,'General Info'!V24,\"0\"&'General Info'!V24)&\"-\"&IF(LEN('General Info'!W24)>1,'General Info'!W24,\"0\"&'General Info'!W24),\"\")&IF('General Info'!$E$24='General Info'!T25,IF(LEN('General Info'!U25)>1,'General Info'!U25,\"0\"&'General Info'!U25)&\"-\"&IF(LEN('General Info'!V25)>1,'General Info'!V25,\"0\"&'General Info'!V25)&\"-\"&IF(LEN('General Info'!W25)>1,'General Info'!W24,\"0\"&'General Info'!W25),\"\")&IF(OR('General Info'!$E$24='General Info'!T26,'General Info'!$E$24='General Info'!T10),IF(LEN('General Info'!U26)>1,'General Info'!U26,\"0\"&'General Info'!U26)&\"-\"&IF(LEN('General Info'!V26)>1,'General Info'!V26,\"0\"&'General Info'!V26)&\"-\"&IF(LEN('General Info'!W26)>1,'General Info'!W26,\"0\"&'General Info'!W26),\"\")&IF('General Info'!$E$24='General Info'!T27,IF(LEN('General Info'!U27)>1,'General Info'!U27,\"0\"&'General Info'!U27)&\"-\"&IF(LEN('General Info'!V27)>1,'General Info'!V27,\"0\"&'General Info'!V27)&\"-\"&IF(LEN('General Info'!W27)>1,'General Info'!W27,\"0\"&'General Info'!W27),\"\")))","v":""}]
[null,null,null,null,null,"Date of end of reporting period",null,{"$f":"IF('General Info'!E18=\"\",\"\",IF('General Info'!F18=\"\",\"\",IF('General Info'!$E$24='General Info'!T24,IF(LEN('General Info'!U29)>1,'General Info'!U29,\"0\"&'General Info'!U29)&\"-\"&IF(LEN('General Info'!V29)>1,'General Info'!V29,\"0\"&'General Info'!V29)&\"-\"&IF(LEN('General Info'!W29)>1,'General Info'!W29,\"0\"&'General Info'!W29),\"\")&IF(OR('General Info'!$E$24='General Info'!T25,'General Info'!$E$24='General Info'!T9),IF(LEN('General Info'!U30)>1,'General Info'!U30,\"0\"&'General Info'!U30)&\"-\"&IF(LEN('General Info'!V30)>1,'General Info'!V30,\"0\"&'General Info'!V30)&\"-\"&IF(LEN('General Info'!W30)>1,'General Info'!W30,\"0\"&'General Info'!W30),\"\")&IF('General Info'!$E$24='General Info'!T26,IF(LEN('General Info'!U31)>1,'General Info'!U31,\"0\"&'General Info'!U31)&\"-\"&IF(LEN('General Info'!V31)>1,'General Info'!V31,\"0\"&'General Info'!V31)&\"-\"&IF(LEN('General Info'!W31)>1,'General Info'!W31,\"0\"&'General Info'!W31),\"\")&IF(OR('General Info'!$E$24='General Info'!T27,'General Info'!$E$24='General Info'!T10),IF(LEN('General Info'!U32)>1,'General Info'!U32,\"0\"&'General Info'!U32)&\"-\"&IF(LEN('General Info'!V32)>1,'General Info'!V32,\"0\"&'General Info'!V32)&\"-\"&IF(LEN('General Info'!W32)>1,'General Info'!W32,\"0\"&'General Info'!W32),\"\")))","v":""},null,null,"DateOfStartOfReportingPeriod"]
[null,null,null,null,null,"Whether results are audited or unaudited",null,{"$f":"+IF(COUNTA('General Info'!E26),'General Info'!E26,\"\")","v":""},null,null,"DateOfEndOfReportingPeriod"]
[null,null,null,null,null,"Nature of report standalone or consolidated",null,{"$f":"+IF(COUNTA('General Info'!E25),'General Info'!E25,\"\")","v":""},null,null,"WhetherResultsAreAuditedOrUnaudited"]
[null,null,null,null,null,"Segment Assets"]
[null,null,null,null,null,1,{"$f":"+IF(COUNTA('1 Segment Income'!H14),('1 Segment Income'!H14),\"\")","v":""},null,null,null,"SegmentAssets","DescriptionOfReportableSegments","TypeOfPolicy","ParticipantingNonParticipantingPolicies",null,null,null,{"$f":"IF(COUNTA('3 Segment Assets'!H14),'3 Segment Assets'!H14,\"\")","v":""}]
[null,null,null,null,null,2,{"$f":"+IF(COUNTA('1 Segment Income'!H19),('1 Segment Income'!H19),\"\")","v":""},null,null,null,"SegmentAssets","DescriptionOfReportableSegments","TypeOfPolicy","ParticipantingNonParticipantingPolicies",null,null,null,{"$f":"IF(COUNTA('3 Segment Assets'!H15),'3 Segment Assets'!H15,\"\")","v":""}]
[null,null,null,null,null,3,{"$f":"+IF(COUNTA('1 Segment Income'!H24),('1 Segment Income'!H24),\"\")","v":""},null,null,null,"SegmentAssets","DescriptionOfReportableSegments","TypeOfPolicy","ParticipantingNonParticipantingPolicies",null,null,null,{"$f":"IF(COUNTA('3 Segment Assets'!H16),'3 Segment Assets'!H16,\"\")","v":""}]
[null,null,null,null,null,4,{"$f":"+IF(COUNTA('1 Segment Income'!H29),('1 Segment Income'!H29),\"\")","v":""},null,null,null,"SegmentAssets","DescriptionOfReportableSegments","TypeOfPolicy","ParticipantingNonParticipantingPolicies",null,null,null,{"$f":"IF(COUNTA('3 Segment Assets'!H17),'3 Segment Assets'!H17,\"\")","v":""}]
[null,null,null,null,null,5,{"$f":"+IF(COUNTA('1 Segment Income'!H34),('1 Segment Income'!H34),\"\")","v":""},null,null,null,"SegmentAssets","DescriptionOfReportableSegments","TypeOfPolicy","ParticipantingNonParticipantingPolicies",null,null,null,{"$f":"IF(COUNTA('3 Segment Assets'!H18),'3 Segment Assets'!H18,\"\")","v":""}]
[null,null,null,null,null,6,{"$f":"+IF(COUNTA('1 Segment Income'!H39),('1 Segment Income'!H39),\"\")","v":""},null,null,null,"SegmentAssets","DescriptionOfReportableSegments","TypeOfPolicy","ParticipantingNonParticipantingPolicies",null,null,null,{"$f":"IF(COUNTA('3 Segment Assets'!H19),'3 Segment Assets'!H19,\"\")","v":""}]
[null,null,null,null,null,7,{"$f":"+IF(COUNTA('1 Segment Income'!H44),('1 Segment Income'!H44),\"\")","v":""},null,null,null,"SegmentAssets","DescriptionOfReportableSegments","TypeOfPolicy","ParticipantingNonParticipantingPolicies",null,null,null,{"$f":"IF(COUNTA('3 Segment Assets'!H20),'3 Segment Assets'!H20,\"\")","v":""}]
[null,null,null,null,null,8,{"$f":"+IF(COUNTA('1 Segment Income'!H49),('1 Segment Income'!H49),\"\")","v":""},null,null,null,"SegmentAssets","DescriptionOfReportableSegments","TypeOfPolicy","ParticipantingNonParticipantingPolicies",null,null,null,{"$f":"IF(COUNTA('3 Segment Assets'!H21),'3 Segment Assets'!H21,\"\")","v":""}]
[null,null,null,null,null,9,{"$f":"+IF(COUNTA('1 Segment Income'!H54),('1 Segment Income'!H54),\"\")","v":""},null,null,null,"SegmentAssets","DescriptionOfReportableSegments","TypeOfPolicy","ParticipantingNonParticipantingPolicies",null,null,null,{"$f":"IF(COUNTA('3 Segment Assets'!H22),'3 Segment Assets'!H22,\"\")","v":""}]
[null,null,null,null,null,10,{"$f":"+IF(COUNTA('1 Segment Income'!H59),('1 Segment Income'!H59),\"\")","v":""},null,null,null,"SegmentAssets","DescriptionOfReportableSegments","TypeOfPolicy","ParticipantingNonParticipantingPolicies",null,null,null,{"$f":"IF(COUNTA('3 Segment Assets'!H23),'3 Segment Assets'!H23,\"\")","v":""}]
[null,null,null,null,null,{"$f":"+F23+1","v":11},{"$f":"+IF(COUNTA('1 Segment Income'!H64),('1 Segment Income'!H64),\"\")","v":""},null,null,null,"SegmentAssets","DescriptionOfReportableSegments","TypeOfPolicy","ParticipantingNonParticipantingPolicies",null,null,null,{"$f":"IF(COUNTA('3 Segment Assets'!H24),'3 Segment Assets'!H24,\"\")","v":""}]
[null,null,null,null,null,{"$f":"+F24+1","v":12},{"$f":"+IF(COUNTA('1 Segment Income'!H69),('1 Segment Income'!H69),\"\")","v":""},null,null,null,"SegmentAssets","DescriptionOfReportableSegments","TypeOfPolicy","ParticipantingNonParticipantingPolicies",null,null,null,{"$f":"IF(COUNTA('3 Segment Assets'!H25),'3 Segment Assets'!H25,\"\")","v":""}]
[null,null,null,null,null,13,{"$f":"+IF(COUNTA('1 Segment Income'!H74),('1 Segment Income'!H74),\"\")","v":""},null,null,null,"SegmentAssets","DescriptionOfReportableSegments","TypeOfPolicy","ParticipantingNonParticipantingPolicies",null,null,null,{"$f":"IF(COUNTA('3 Segment Assets'!H26),'3 Segment Assets'!H26,\"\")","v":""}]
[null,null,null,null,null,14,{"$f":"+IF(COUNTA('1 Segment Income'!H79),('1 Segment Income'!H79),\"\")","v":""},null,null,null,"SegmentAssets","DescriptionOfReportableSegments","TypeOfPolicy","ParticipantingNonParticipantingPolicies",null,null,null,{"$f":"IF(COUNTA('3 Segment Assets'!H27),'3 Segment Assets'!H27,\"\")","v":""}]
[null,null,null,null,null,15,{"$f":"+IF(COUNTA('1 Segment Income'!H84),('1 Segment Income'!H84),\"\")","v":""},null,null,null,"SegmentAssets","DescriptionOfReportableSegments","TypeOfPolicy","ParticipantingNonParticipantingPolicies",null,null,null,{"$f":"IF(COUNTA('3 Segment Assets'!H28),'3 Segment Assets'!H28,\"\")","v":""}]
[null,null,null,null,null,16,{"$f":"+IF(COUNTA('1 Segment Income'!H89),('1 Segment Income'!H89),\"\")","v":""},null,null,null,"SegmentAssets","DescriptionOfReportableSegments","TypeOfPolicy","ParticipantingNonParticipantingPolicies",null,null,null,{"$f":"IF(COUNTA('3 Segment Assets'!H29),'3 Segment Assets'!H29,\"\")","v":""}]
[null,null,null,null,null,17,{"$f":"+IF(COUNTA('1 Segment Income'!H94),('1 Segment Income'!H94),\"\")","v":""},null,null,null,"SegmentAssets","DescriptionOfReportableSegments","TypeOfPolicy","ParticipantingNonParticipantingPolicies",null,null,null,{"$f":"IF(COUNTA('3 Segment Assets'!H30),'3 Segment Assets'!H30,\"\")","v":""}]
[null,null,null,null,null,18,{"$f":"+IF(COUNTA('1 Segment Income'!H99),('1 Segment Income'!H99),\"\")","v":""},null,null,null,"SegmentAssets","DescriptionOfReportableSegments","TypeOfPolicy","ParticipantingNonParticipantingPolicies",null,null,null,{"$f":"IF(COUNTA('3 Segment Assets'!H31),'3 Segment Assets'!H31,\"\")","v":""}]
[null,null,null,null,null,19,{"$f":"+IF(COUNTA('1 Segment Income'!H104),('1 Segment Income'!H104),\"\")","v":""},null,null,null,"SegmentAssets","DescriptionOfReportableSegments","TypeOfPolicy","ParticipantingNonParticipantingPolicies",null,null,null,{"$f":"IF(COUNTA('3 Segment Assets'!H32),'3 Segment Assets'!H32,\"\")","v":""}]
[null,null,null,null,null,20,{"$f":"+IF(COUNTA('1 Segment Income'!H109),('1 Segment Income'!H109),\"\")","v":""},null,null,null,"SegmentAssets","DescriptionOfReportableSegments","TypeOfPolicy","ParticipantingNonParticipantingPolicies",null,null,null,{"$f":"IF(COUNTA('3 Segment Assets'!H33),'3 Segment Assets'!H33,\"\")","v":""}]
[null,null,null,null,null,null,null,null,null,null,"SegmentAssets","DescriptionOfReportableSegments","TypeOfPolicy","ParticipantingNonParticipantingPolicies",null,null,null,{"$f":"IF(COUNTA('3 Segment Assets'!H34),'3 Segment Assets'!H34,\"\")","v":""}]
[null,null,null,null,null,21,{"$f":"+IF(COUNTA('1 Segment Income'!H114),('1 Segment Income'!H114),\"\")","v":"Shareholders"},null,null,null,"SegmentAssets","DescriptionOfReportableSegments","TypeOfPolicy","ParticipantingNonParticipantingPolicies",null,null,null,{"$f":"IF(COUNTA('3 Segment Assets'!H35),'3 Segment Assets'!H35,\"\")","v":""}]
[null,null,null,null,null,22,{"$f":"+IF(COUNTA('1 Segment Income'!H119),('1 Segment Income'!H119),\"\")","v":"Unallocated"},null,null,null,"SegmentAssets","DescriptionOfReportableSegments","TypeOfPolicy","ParticipantingNonParticipantingPolicies",null,null,null,{"$f":"IF(COUNTA('3 Segment Assets'!H36),'3 Segment Assets'!H36,\"\")","v":""}]
[null,null,null,null,null,null,"Notes to Segment Assets",null,null,null,"DisclosureOfNotesOnSegmentAssetsExplanatoryTextBlock"]

{"sheet":"4 Segment Liabilities","index":7,"n_rows":37,"n_cols":18,"rows_kept":37,"cut":false,"hidden":false,"merged":[[6,5,6,7],[7,5,7,6],[33,5,33,7],[12,5,12,6],[8,5,8,6],[9,5,9,6],[10,5,10,6],[11,5,11,6]]}
[]
[]
[]
[null,null,null,null,null,null,null,null,null,"Audited","Unaudited"]
[]
[null,null,null,null,null,null,null,{"$f":"IF('General Info'!E22=\"\",\"\",\"Amount in (\"&'General Info'!E22&\")\")","v":""}]
[null,null,null,null,null,"Format for financial results by life insurance companies filed with stock exchanges"]
[null,null,null,null,null,"Particulars",null,"Current Quarter"]
[null,null,null,null,null,"Date of start of reporting period",null,{"$f":"IF('General Info'!E18=\"\",\"\",IF('General Info'!F18=\"\",\"\",IF(OR('General Info'!$E$24='General Info'!T24,'General Info'!$E$24='General Info'!T9),IF(LEN('General Info'!U24)>1,'General Info'!U24,\"0\"&'General Info'!U24)&\"-\"&IF(LEN('General Info'!V24)>1,'General Info'!V24,\"0\"&'General Info'!V24)&\"-\"&IF(LEN('General Info'!W24)>1,'General Info'!W24,\"0\"&'General Info'!W24),\"\")&IF('General Info'!$E$24='General Info'!T25,IF(LEN('General Info'!U25)>1,'General Info'!U25,\"0\"&'General Info'!U25)&\"-\"&IF(LEN('General Info'!V25)>1,'General Info'!V25,\"0\"&'General Info'!V25)&\"-\"&IF(LEN('General Info'!W25)>1,'General Info'!W24,\"0\"&'General Info'!W25),\"\")&IF(OR('General Info'!$E$24='General Info'!T26,'General Info'!$E$24='General Info'!T10),IF(LEN('General Info'!U26)>1,'General Info'!U26,\"0\"&'General Info'!U26)&\"-\"&IF(LEN('General Info'!V26)>1,'General Info'!V26,\"0\"&'General Info'!V26)&\"-\"&IF(LEN('General Info'!W26)>1,'General Info'!W26,\"0\"&'General Info'!W26),\"\")&IF('General Info'!$E$24='General Info'!T27,IF(LEN('General Info'!U27)>1,'General Info'!U27,\"0\"&'General Info'!U27)&\"-\"&IF(LEN('General Info'!V27)>1,'General Info'!V27,\"0\"&'General Info'!V27)&\"-\"&IF(LEN('General Info'!W27)>1,'General Info'!W27,\"0\"&'General Info'!W27),\"\")))","v":""}]
[null,null,null,null,null,"Date of end of reporting period",null,{"$f":"IF('General Info'!E18=\"\",\"\",IF('General Info'!F18=\"\",\"\",IF('General Info'!$E$24='General Info'!T24,IF(LEN('General Info'!U29)>1,'General Info'!U29,\"0\"&'General Info'!U29)&\"-\"&IF(LEN('General Info'!V29)>1,'General Info'!V29,\"0\"&'General Info'!V29)&\"-\"&IF(LEN('General Info'!W29)>1,'General Info'!W29,\"0\"&'General Info'!W29),\"\")&IF(OR('General Info'!$E$24='General Info'!T25,'General Info'!$E$24='General Info'!T9),IF(LEN('General Info'!U30)>1,'General Info'!U30,\"0\"&'General Info'!U30)&\"-\"&IF(LEN('General Info'!V30)>1,'General Info'!V30,\"0\"&'General Info'!V30)&\"-\"&IF(LEN('General Info'!W30)>1,'General Info'!W30,\"0\"&'General Info'!W30),\"\")&IF('General Info'!$E$24='General Info'!T26,IF(LEN('General Info'!U31)>1,'General Info'!U31,\"0\"&'General Info'!U31)&\"-\"&IF(LEN('General Info'!V31)>1,'General Info'!V31,\"0\"&'General Info'!V31)&\"-\"&IF(LEN('General Info'!W31)>1,'General Info'!W31,\"0\"&'General Info'!W31),\"\")&IF(OR('General Info'!$E$24='General Info'!T27,'General Info'!$E$24='General Info'!T10),IF(LEN('General Info'!U32)>1,'General Info'!U32,\"0\"&'General Info'!U32)&\"-\"&IF(LEN('General Info'!V32)>1,'General Info'!V32,\"0\"&'General Info'!V32)&\"-\"&IF(LEN('General Info'!W32)>1,'General Info'!W32,\"0\"&'General Info'!W32),\"\")))","v":""},null,null,"DateOfStartOfReportingPeriod"]
[null,null,null,null,null,"Whether results are audited or unaudited",null,{"$f":"+IF(COUNTA('General Info'!E26),'General Info'!E26,\"\")","v":""},null,null,"DateOfEndOfReportingPeriod"]
[null,null,null,null,null,"Nature of report standalone or consolidated",null,{"$f":"+IF(COUNTA('General Info'!E25),'General Info'!E25,\"\")","v":""},null,null,"WhetherResultsAreAuditedOrUnaudited"]
[null,null,null,null,null,"Segment Liabilities"]
[null,null,null,null,null,1,{"$f":"+IF(COUNTA('1 Segment Income'!H14),('1 Segment Income'!H14),\"\")","v":""},null,null,null,"SegmentLiabilities","DescriptionOfReportableSegments","TypeOfPolicy","ParticipantingNonParticipantingPolicies",null,null,null,{"$f":"IF(COUNTA('4 Segment Liabilities'!H14),'4 Segment Liabilities'!H14,\"\")","v":""}]
[null,null,null,null,null,2,{"$f":"+IF(COUNTA('1 Segment Income'!H19),('1 Segment Income'!H19),\"\")","v":""},null,null,null,"SegmentLiabilities","DescriptionOfReportableSegments","TypeOfPolicy","ParticipantingNonParticipantingPolicies",null,null,null,{"$f":"IF(COUNTA('4 Segment Liabilities'!H15),'4 Segment Liabilities'!H15,\"\")","v":""}]
[null,null,null,null,null,3,{"$f":"+IF(COUNTA('1 Segment Income'!H24),('1 Segment Income'!H24),\"\")","v":""},null,null,null,"SegmentLiabilities","DescriptionOfReportableSegments","TypeOfPolicy","ParticipantingNonParticipantingPolicies",null,null,null,{"$f":"IF(COUNTA('4 Segment Liabilities'!H16),'4 Segment Liabilities'!H16,\"\")","v":""}]
[null,null,null,null,null,4,{"$f":"+IF(COUNTA('1 Segment Income'!H29),('1 Segment Income'!H29),\"\")","v":""},null,null,null,"SegmentLiabilities","DescriptionOfReportableSegments","TypeOfPolicy","ParticipantingNonParticipantingPolicies",null,null,null,{"$f":"IF(COUNTA('4 Segment Liabilities'!H17),'4 Segment Liabilities'!H17,\"\")","v":""}]
[null,null,null,null,null,5,{"$f":"+IF(COUNTA('1 Segment Income'!H34),('1 Segment Income'!H34),\"\")","v":""},null,null,null,"SegmentLiabilities","DescriptionOfReportableSegments","TypeOfPolicy","ParticipantingNonParticipantingPolicies",null,null,null,{"$f":"IF(COUNTA('4 Segment Liabilities'!H18),'4 Segment Liabilities'!H18,\"\")","v":""}]
[null,null,null,null,null,6,{"$f":"+IF(COUNTA('1 Segment Income'!H39),('1 Segment Income'!H39),\"\")","v":""},null,null,null,"SegmentLiabilities","DescriptionOfReportableSegments","TypeOfPolicy","ParticipantingNonParticipantingPolicies",null,null,null,{"$f":"IF(COUNTA('4 Segment Liabilities'!H19),'4 Segment Liabilities'!H19,\"\")","v":""}]
[null,null,null,null,null,7,{"$f":"+IF(COUNTA('1 Segment Income'!H44),('1 Segment Income'!H44),\"\")","v":""},null,null,null,"SegmentLiabilities","DescriptionOfReportableSegments","TypeOfPolicy","ParticipantingNonParticipantingPolicies",null,null,null,{"$f":"IF(COUNTA('4 Segment Liabilities'!H20),'4 Segment Liabilities'!H20,\"\")","v":""}]
[null,null,null,null,null,8,{"$f":"+IF(COUNTA('1 Segment Income'!H49),('1 Segment Income'!H49),\"\")","v":""},null,null,null,"SegmentLiabilities","DescriptionOfReportableSegments","TypeOfPolicy","ParticipantingNonParticipantingPolicies",null,null,null,{"$f":"IF(COUNTA('4 Segment Liabilities'!H21),'4 Segment Liabilities'!H21,\"\")","v":""}]
[null,null,null,null,null,9,{"$f":"+IF(COUNTA('1 Segment Income'!H54),('1 Segment Income'!H54),\"\")","v":""},null,null,null,"SegmentLiabilities","DescriptionOfReportableSegments","TypeOfPolicy","ParticipantingNonParticipantingPolicies",null,null,null,{"$f":"IF(COUNTA('4 Segment Liabilities'!H22),'4 Segment Liabilities'!H22,\"\")","v":""}]
[null,null,null,null,null,10,{"$f":"+IF(COUNTA('1 Segment Income'!H59),('1 Segment Income'!H59),\"\")","v":""},null,null,null,"SegmentLiabilities","DescriptionOfReportableSegments","TypeOfPolicy","ParticipantingNonParticipantingPolicies",null,null,null,{"$f":"IF(COUNTA('4 Segment Liabilities'!H23),'4 Segment Liabilities'!H23,\"\")","v":""}]
[null,null,null,null,null,{"$f":"+F23+1","v":11},{"$f":"+IF(COUNTA('1 Segment Income'!H64),('1 Segment Income'!H64),\"\")","v":""},null,null,null,"SegmentLiabilities","DescriptionOfReportableSegments","TypeOfPolicy","ParticipantingNonParticipantingPolicies",null,null,null,{"$f":"IF(COUNTA('4 Segment Liabilities'!H24),'4 Segment Liabilities'!H24,\"\")","v":""}]
[null,null,null,null,null,{"$f":"+F24+1","v":12},{"$f":"+IF(COUNTA('1 Segment Income'!H69),('1 Segment Income'!H69),\"\")","v":""},null,null,null,"SegmentLiabilities","DescriptionOfReportableSegments","TypeOfPolicy","ParticipantingNonParticipantingPolicies",null,null,null,{"$f":"IF(COUNTA('4 Segment Liabilities'!H25),'4 Segment Liabilities'!H25,\"\")","v":""}]
[null,null,null,null,null,13,{"$f":"+IF(COUNTA('1 Segment Income'!H74),('1 Segment Income'!H74),\"\")","v":""},null,null,null,"SegmentLiabilities","DescriptionOfReportableSegments","TypeOfPolicy","ParticipantingNonParticipantingPolicies",null,null,null,{"$f":"IF(COUNTA('4 Segment Liabilities'!H26),'4 Segment Liabilities'!H26,\"\")","v":""}]
[null,null,null,null,null,14,{"$f":"+IF(COUNTA('1 Segment Income'!H79),('1 Segment Income'!H79),\"\")","v":""},null,null,null,"SegmentLiabilities","DescriptionOfReportableSegments","TypeOfPolicy","ParticipantingNonParticipantingPolicies",null,null,null,{"$f":"IF(COUNTA('4 Segment Liabilities'!H27),'4 Segment Liabilities'!H27,\"\")","v":""}]
[null,null,null,null,null,15,{"$f":"+IF(COUNTA('1 Segment Income'!H84),('1 Segment Income'!H84),\"\")","v":""},null,null,null,"SegmentLiabilities","DescriptionOfReportableSegments","TypeOfPolicy","ParticipantingNonParticipantingPolicies",null,null,null,{"$f":"IF(COUNTA('4 Segment Liabilities'!H28),'4 Segment Liabilities'!H28,\"\")","v":""}]
[null,null,null,null,null,16,{"$f":"+IF(COUNTA('1 Segment Income'!H89),('1 Segment Income'!H89),\"\")","v":""},null,null,null,"SegmentLiabilities","DescriptionOfReportableSegments","TypeOfPolicy","ParticipantingNonParticipantingPolicies",null,null,null,{"$f":"IF(COUNTA('4 Segment Liabilities'!H29),'4 Segment Liabilities'!H29,\"\")","v":""}]
[null,null,null,null,null,17,{"$f":"+IF(COUNTA('1 Segment Income'!H94),('1 Segment Income'!H94),\"\")","v":""},null,null,null,"SegmentLiabilities","DescriptionOfReportableSegments","TypeOfPolicy","ParticipantingNonParticipantingPolicies",null,null,null,{"$f":"IF(COUNTA('4 Segment Liabilities'!H30),'4 Segment Liabilities'!H30,\"\")","v":""}]
[null,null,null,null,null,18,{"$f":"+IF(COUNTA('1 Segment Income'!H99),('1 Segment Income'!H99),\"\")","v":""},null,null,null,"SegmentLiabilities","DescriptionOfReportableSegments","TypeOfPolicy","ParticipantingNonParticipantingPolicies",null,null,null,{"$f":"IF(COUNTA('4 Segment Liabilities'!H31),'4 Segment Liabilities'!H31,\"\")","v":""}]
[null,null,null,null,null,19,{"$f":"+IF(COUNTA('1 Segment Income'!H104),('1 Segment Income'!H104),\"\")","v":""},null,null,null,"SegmentLiabilities","DescriptionOfReportableSegments","TypeOfPolicy","ParticipantingNonParticipantingPolicies",null,null,null,{"$f":"IF(COUNTA('4 Segment Liabilities'!H32),'4 Segment Liabilities'!H32,\"\")","v":""}]
[null,null,null,null,null,20,{"$f":"+IF(COUNTA('1 Segment Income'!H109),('1 Segment Income'!H109),\"\")","v":""},null,null,null,"SegmentLiabilities","DescriptionOfReportableSegments","TypeOfPolicy","ParticipantingNonParticipantingPolicies",null,null,null,{"$f":"IF(COUNTA('4 Segment Liabilities'!H33),'4 Segment Liabilities'!H33,\"\")","v":""}]
[null,null,null,null,null,null,null,null,null,null,"SegmentLiabilities","DescriptionOfReportableSegments","TypeOfPolicy","ParticipantingNonParticipantingPolicies",null,null,null,{"$f":"IF(COUNTA('4 Segment Liabilities'!H34),'4 Segment Liabilities'!H34,\"\")","v":""}]
[null,null,null,null,null,21,{"$f":"+IF(COUNTA('1 Segment Income'!H114),('1 Segment Income'!H114),\"\")","v":"Shareholders"},null,null,null,"SegmentLiabilities","DescriptionOfReportableSegments","TypeOfPolicy","ParticipantingNonParticipantingPolicies",null,null,null,{"$f":"IF(COUNTA('4 Segment Liabilities'!H35),'4 Segment Liabilities'!H35,\"\")","v":""}]
[null,null,null,null,null,22,{"$f":"+IF(COUNTA('1 Segment Income'!H119),('1 Segment Income'!H119),\"\")","v":"Unallocated"},null,null,null,"SegmentLiabilities","DescriptionOfReportableSegments","TypeOfPolicy","ParticipantingNonParticipantingPolicies",null,null,null,{"$f":"IF(COUNTA('4 Segment Liabilities'!H36),'4 Segment Liabilities'!H36,\"\")","v":""}]
[null,null,null,null,null,null,"Notes to Segment Liabilities",null,null,null,"DisclosureOfNotesOnSegmentLiabilitiesExplanatoryTextBlock",null,null,null,null,null,null,{"$f":"IF(COUNTA('4 Segment Liabilities'!H37),'4 Segment Liabilities'!H37,\"\")","v":""}]

{"sheet":"Cash Flow Direct","index":8,"n_rows":90,"n_cols":14,"rows_kept":90,"cut":false,"hidden":true,"merged":[[7,3,7,5],[8,3,8,4],[13,4,13,5],[9,3,9,4],[10,3,10,4],[11,3,11,4],[12,3,12,4]]}
[]
[]
[]
[]
[]
[]
[null,null,null,null,null,{"$f":"IF('General Info'!E22=\"\",\"\",\"Amount in (\"&'General Info'!E22&\")\")","v":""}]
[null,null,null,"Cash flow statement,direct"]
[null,null,null,"Particulars",null,{"$f":"IF('General Info'!E24=\"Half yearly\",\"Half Year ended (dd-mm-yyyy)\",IF('General Info'!E24=\"Second quarter\",\"Half Year ended (dd-mm-yyyy)\",\"Year ended (dd-mm-yyyy)\"))","v":"Year ended (dd-mm-yyyy)"}]
[null,null,null,"Date of start of reporting period",null,{"$f":"IF('General Info'!E24=\"\",\"\",IF('General Info'!F17=\"\",\"\",IF('General Info'!G17=\"\",\"\",'General Info'!E17&\"-\"&'General Info'!F17&\"-\"&'General Info'!G17)))","v":""}]
[null,null,null,"Date of end of reporting period",null,{"$f":"IF('General Info'!E18=\"\",\"\",IF('General Info'!F18=\"\",\"\",IF('General Info'!$E$24='General Info'!T24,IF(LEN('General Info'!U29)>1,'General Info'!U29,\"0\"&'General Info'!U29)&\"-\"&IF(LEN('General Info'!V29)>1,'General Info'!V29,\"0\"&'General Info'!V29)&\"-\"&IF(LEN('General Info'!W29)>1,'General Info'!W29,\"0\"&'General Info'!W29),\"\")&IF(OR('General Info'!$E$24='General Info'!T25,'General Info'!$E$24='General Info'!T9),IF(LEN('General Info'!U30)>1,'General Info'!U30,\"0\"&'General Info'!U30)&\"-\"&IF(LEN('General Info'!V30)>1,'General Info'!V30,\"0\"&'General Info'!V30)&\"-\"&IF(LEN('General Info'!W30)>1,'General Info'!W30,\"0\"&'General Info'!W30),\"\")&IF('General Info'!$E$24='General Info'!T26,IF(LEN('General Info'!U31)>1,'General Info'!U31,\"0\"&'General Info'!U31)&\"-\"&IF(LEN('General Info'!V31)>1,'General Info'!V31,\"0\"&'General Info'!V31)&\"-\"&IF(LEN('General Info'!W31)>1,'General Info'!W31,\"0\"&'General Info'!W31),\"\")&IF(OR('General Info'!$E$24='General Info'!T27,'General Info'!$E$24='General Info'!T10),IF(LEN('General Info'!U32)>1,'General Info'!U32,\"0\"&'General Info'!U32)&\"-\"&IF(LEN('General Info'!V32)>1,'General Info'!V32,\"0\"&'General Info'!V32)&\"-\"&IF(LEN('General Info'!W32)>1,'General Info'!W32,\"0\"&'General Info'!W32),\"\")))","v":""}]
[null,null,null,"Whether results are audited or unaudited",null,{"$f":"IF(COUNTA('Financial Results'!I11),'Financial Results'!I11,\"\")","v":""},null,null,null,null,null,null,null,"Audited"]
[null,null,null,"Nature of report standalone or consolidated",null,{"$f":"+IF(COUNTA('General Info'!E25),'General Info'!E25,\"\")","v":""},null,null,null,null,null,null,null,"Unaudited"]
[null,null,null,"Part I","Blue color marked fields are non-mandatory.                   "]
[null,null,null,null,"Statement of cash flows",null,null,null,null,"Statement of cash flows [Abstract]"]
[null,null,null,null,"Whether cash flow statement is applicable on company",null,null,null,null,"Cash flows from used in operating activities [Abstract]"]
[null,null,null,null,"Cash flows from used in operating activities",null,null,null,null,"Cash flows from used in operating activities [Abstract]"]
[null,null,null,null,"Classes of cash receipts from operating activities",null,null,null,null,"Classes of cash receipts from operating activities [Abstract]"]
[null,null,null,null,"Receipts from sales of goods and rendering of services",null,null,null,null,"Receipts from sales of goods and rendering of services"]
[null,null,null,null,"Receipts from royalties fees, commissions and other revenue",null,null,null,null,"Receipts from royalties fees, commissions and other revenue"]
[null,null,null,null,"Receipts from contracts held for dealing or trading purpose",null,null,null,null,"Receipts from contracts held for dealing or trading purpose"]
[null,null,null,null,"Receipts from premiums and claims annuities and other policy benefits",null,null,null,null,"Receipts from premiums and claims annuities and other policy benefits"]
[null,null,null,null,"Receipts from rents and subsequent sales of assets held for rental to others and subsequently held for sale",null,null,null,null,"Receipts from rents and subsequent sales of assets held for rental to others and subsequently held for sale"]
[null,null,null,null,"Other cash receipts from operating activities",null,null,null,null,"Other cash receipts from operating activities"]
[null,null,null,null,"Classes of cash payments from operating activities",null,null,null,null,"Classes of cash payments from operating activities [Abstract]"]
[null,null,null,null,"Payments to suppliers for goods and services",null,null,null,null,"Payments to suppliers for goods and services"]
[null,null,null,null,"Payments from contracts held for dealing or trading purpose",null,null,null,null,"Payments from contracts held for dealing or trading purpose"]
[null,null,null,null,"Payments to and on behalf of employees",null,null,null,null,"Payments to and on behalf of employees"]
[null,null,null,null,"Payments for premiums and claims, annuities and other policy benefits",null,null,null,null,"Payments for premiums and claims, annuities and other policy benefits"]
[null,null,null,null,"Payments to manufacture or acquire assets held for rental to others and subsequently held for sale",null,null,null,null,"Payments to manufacture or acquire assets held for rental to others and subsequently held for sale"]
[null,null,null,null,"Other cash payments from operating activities",null,null,null,null,"Other cash payments from operating activities"]
[null,null,null,null,"Net cash flows from (used in) operations",{"$f":"IF(COUNT(F19:F31),ROUND(SUM(F19:F24)-SUM(F26:F31),2),\"\")","v":""},null,null,null,"Net cash flows from (used in) operations operating activities"]
[null,null,null,null,"Dividends received",null,null,null,null,"Dividends received operating activities"]
[null,null,null,null,"Interest paid",null,null,null,null,"Interest paid operating activities"]
[null,null,null,null,"Interest received",null,null,null,null,"Interest received operating activities"]
[null,null,null,null,"Income taxes paid (refund)",null,null,null,null,"Income taxes paid (refund) operating activities"]
[null,null,null,null,"Other inflows (outflows) of cash",null,null,null,null,"Other inflows (outflows) of cash operating activities"]
[null,null,null,null,"Net cash flows from (used in) operating activities",{"$f":"IF(COUNT(F32:F37),ROUND(SUM(F32)+SUM(F33)-SUM(F34)+SUM(F35)-SUM(F36)+SUM(F37),2),\"\")","v":""},null,null,null,"Net cash flows from (used in) operating activities"]
[null,null,null,null,"Cash flows from used in investing activities",null,null,null,null,"Cash flows from used in investing activities [Abstract]"]
[null,null,null,null,"Cash flows from losing control of subsidiaries or other businesses",null,null,null,null,"Cash flows from losing control of subsidiaries or other businesses investing activities"]
[null,null,null,null,"Cash flows used in obtaining control of subsidiaries or other businesses",null,null,null,null,"Cash flows used in obtaining control of subsidiaries or other businesses investing activities"]
[null,null,null,null,"Other cash receipts from sales of equity or debt instruments of other entities",null,null,null,null,"Other cash receipts from sales of equity or debt instruments of other entities investing activities"]
[null,null,null,null,"Other cash payments to acquire equity or debt instruments of other entities",null,null,null,null,"Other cash payments to acquire equity or debt instruments of other entities investing activities"]
[null,null,null,null,"Other cash receipts from sales of interests in joint ventures",null,null,null,null,"Other cash receipts from sales of interests in joint ventures investing activities"]
[null,null,null,null,"Other cash payments to acquire interests in joint ventures",null,null,null,null,"Other cash payments to acquire interests in joint ventures investing activities"]
[null,null,null,null,"Proceeds from sales of property, plant and equipment",null,null,null,null,"Proceeds from sales of property, plant and equipment investing activities"]
[null,null,null,null,"Purchase of property, plant and equipment",null,null,null,null,"Purchase of property, plant and equipment investing activities"]
[null,null,null,null,"Proceeds from sales of investment property",null,null,null,null,"Proceeds from sales of investment property investing activities"]
[null,null,null,null,"Purchase of investment property",null,null,null,null,"Purchase of investment property investing activities"]
[null,null,null,null,"Proceeds from sales of goodwill",null,null,null,null,"Proceeds from sales of goodwill investing activities"]
[null,null,null,null,"Purchase of goodwill",null,null,null,null,"Purchase of goodwill investing activities"]
[null,null,null,null,"Proceeds from sales of intangible assets",null,null,null,null,"Proceeds from sales of intangible assets investing activities"]
[null,null,null,null,"Purchase of intangible assets",null,null,null,null,"Purchase of intangible assets investing activities"]
[null,null,null,null,"Proceeds from biological assets other than bearer plants",null,null,null,null,"Proceeds from biological assets other than bearer plants investing activities"]
[null,null,null,null,"Purchase of biological assets other than bearer plants",null,null,null,null,"Purchase of biological assets other than bearer plants investing activities"]
[null,null,null,null,"Proceeds from sales of other long-term assets",null,null,null,null,"Proceeds from sales of other long-term assets investing activities"]
[null,null,null,null,"Purchase of other long-term assets",null,null,null,null,"Purchase of other long-term assets investing activities"]
[null,null,null,null,"Cash advances and loans made to other parties",null,null,null,null,"Cash advances and loans made to other parties investing activities"]
[null,null,null,null,"Cash receipts from repayment of advances and loans made to other parties",null,null,null,null,"Cash receipts from repayment of advances and loans made to other parties investing activities"]
[null,null,null,null,"Cash payments for future contracts, forward contracts, option contracts and swap contracts",null,null,null,null,"Cash payments for future contracts, forward contracts, option contracts and swap contracts investing activities"]
[null,null,null,null,"Cash receipts from future contracts, forward contracts, option contracts and swap contracts",null,null,null,null,"Cash receipts from future contracts, forward contracts, option contracts and swap contracts investing activities"]
[null,null,null,null,"Dividends received",null,null,null,null,"Dividends received investing activities"]
[null,null,null,null,"Interest received",null,null,null,null,"Interest received investing activities"]
[null,null,null,null,"Income taxes paid (refund)",null,null,null,null,"Income taxes paid (refund) investing activities"]
[null,null,null,null,"Other inflows (outflows) of cash",null,null,null,null,"Other inflows (outflows) of cash investing activities"]
[null,null,null,null,"Proceeds from government grants",null,null,null,null,"Proceeds from government grants investing activities"]
[null,null,null,null,"Net cash flows from (used in) investing activities",{"$f":"IF(COUNT(F40:F66),ROUND(SUM(F40)-SUM(F41)+SUM(F42)-SUM(F43)+SUM(F44)-SUM(F45)+SUM(F46)-SUM(F47)+SUM(F48)-SUM(F49)+SUM(F50)-SUM(F51)+SUM(F52)-SUM(F53)+SUM(F54)-SUM(F55)+SUM(F56)-SUM(F57)-SUM(F58)+SUM(F59)-SUM(F60)+SUM(F61)+SUM(F62)+SUM(F63)-SUM(F64)+SUM(F65)+SUM(F66),2),\"\")","v":""},null,null,null,"Net cash flows from (used in) investing activities"]
[null,null,null,null,"Cash flows from used in financing activities",null,null,null,null,"Cash flows from used in financing activities [Abstract]"]
[null,null,null,null,"Proceeds from changes in ownership interests in subsidiaries that do not result in loss of control",null,null,null,null,"Proceeds from changes in ownership interests in subsidiaries that do not result in loss of control"]
[null,null,null,null,"Payments from changes in ownership interests in subsidiaries that do not result in loss of control",null,null,null,null,"Payments from changes in ownership interests in subsidiaries that do not result in loss of control"]
[null,null,null,null,"Proceeds from issuing shares",null,null,null,null,"Proceeds from issuing shares financing activities"]
[null,null,null,null,"Proceeds from issuing other equity instruments",null,null,null,null,"Proceeds from issuing other equity instruments financing activities"]
[null,null,null,null,"Payments to acquire or redeem entity's shares",null,null,null,null,"Payments to acquire or redeem entity's shares financing activities"]
[null,null,null,null,"Payments of other equity instruments",null,null,null,null,"Payments of other equity instruments financing activities"]
[null,null,null,null,"Proceeds from exercise of stock options",null,null,null,null,"Proceeds from exercise of stock options financing activities"]
[null,null,null,null,"Proceeds from issuing debentures notes bonds etc",null,null,null,null,"Proceeds from issuing debentures notes bonds etc financing activities"]
[null,null,null,null,"Proceeds from borrowings",null,null,null,null,"Proceeds from borrowings financing activities"]
[null,null,null,null,"Repayments of borrowings",null,null,null,null,"Repayments of borrowings financing activities"]
[null,null,null,null,"Payments of lease liabilities",null,null,null,null,"Payments of lease liabilities financing activities"]
[null,null,null,null,"Dividends paid",null,null,null,null,"Dividends paid financing activities"]
[null,null,null,null,"Interest paid",null,null,null,null,"Interest paid financing activities"]
[null,null,null,null,"Income taxes paid (refund)",null,null,null,null,"Income taxes paid (refund) financing activities"]
[null,null,null,null,"Other inflows (outflows) of cash",null,null,null,null,"Other inflows (outflows) of cash financing activities"]
[null,null,null,null,"Net cash flows from (used in) financing activities",{"$f":"IF(COUNT(F69:F83),ROUND(SUM(F69)-SUM(F70)+SUM(F71)+SUM(F72)-SUM(F73)-SUM(F74)+SUM(F75)+SUM(F76)+SUM(F77)-SUM(F78)-SUM(F79)-SUM(F80)-SUM(F81)-SUM(F82)+SUM(F83),2),\"\")","v":""},null,null,null,"Net cash flows from (used in) financing activities"]
[null,null,null,null,"Net increase (decrease) in cash and cash equivalents before effect of exchange rate changes",{"$f":"IF(COUNT(F38:F84),ROUND(SUM(F38)+SUM(F67)+SUM(F84),2),\"\")","v":""},null,null,null,"Net increase (decrease) in cash and cash equivalents before effect of exchange rate changes"]
[null,null,null,null,"Effect of exchange rate changes on cash and cash equivalents",null,null,null,null,"Effect of exchange rate changes on cash and cash equivalents [Abstract]"]
[null,null,null,null,"Effect of exchange rate changes on cash and cash equivalents",null,null,null,null,"Effect of exchange rate changes on cash and cash equivalents"]
[null,null,null,null,"Net increase (decrease) in cash and cash equivalents",{"$f":"IF(COUNT(F85,F87),ROUND(SUM(F85,F87),2),\"\")","v":""},null,null,null,"Net increase (decrease) in cash and cash equivalents"]
[null,null,null,null,"Cash and cash equivalents cash flow statement at beginning of period",null,null,null,null,"Cash and cash equivalents cash flow statement at beginning of period"]
[null,null,null,null,"Cash and cash equivalents cash flow statement at end of period",{"$f":"+IF(COUNT(F88:F89),ROUND(SUM(F88,F89),2),\"\")","v":""},null,null,null,"Cash and cash equivalents cash flow statement at end of period"]

{"sheet":"Balance Sheet","index":9,"n_rows":55,"n_cols":11,"rows_kept":55,"cut":false,"hidden":true,"merged":[[5,5,5,7],[6,5,6,6],[34,5,34,6],[11,5,11,6],[7,5,7,6],[8,5,8,6],[9,5,9,6],[10,5,10,6]]}
[]
[]
[]
[null,null,null,null,null,null,null,null,null,"Audited","Unaudited"]
[null,null,null,null,null,null,null,{"$f":"IF('General Info'!E22=\"\",\"\",\"Amount in (\"&'General Info'!E22&\")\")","v":""}]
[null,null,null,null,null,"Format for financial results by life insurance companies filed with stock exchanges"]
[null,null,null,null,null,"Particulars",null,{"$f":"IF('General Info'!E24=\"Half yearly\",\"Half Year ended (dd-mm-yyyy)\",IF('General Info'!E24=\"Second quarter\",\"Half Year ended (dd-mm-yyyy)\",\"Year ended (dd-mm-yyyy)\"))","v":"Year ended (dd-mm-yyyy)"}]
[null,null,null,null,null,"Date of start of reporting period",null,{"$f":"IF('General Info'!E24=\"\",\"\",IF('General Info'!F17=\"\",\"\",IF('General Info'!G17=\"\",\"\",'General Info'!E17&\"-\"&'General Info'!F17&\"-\"&'General Info'!G17)))","v":""},null,null,"BalanceSheetAbstract"]
[null,null,null,null,null,"Date of end of reporting period",null,{"$f":"IF('General Info'!E18=\"\",\"\",IF('General Info'!F18=\"\",\"\",IF('General Info'!$E$24='General Info'!T24,IF(LEN('General Info'!U29)>1,'General Info'!U29,\"0\"&'General Info'!U29)&\"-\"&IF(LEN('General Info'!V29)>1,'General Info'!V29,\"0\"&'General Info'!V29)&\"-\"&IF(LEN('General Info'!W29)>1,'General Info'!W29,\"0\"&'General Info'!W29),\"\")&IF(OR('General Info'!$E$24='General Info'!T25,'General Info'!$E$24='General Info'!T9),IF(LEN('General Info'!U30)>1,'General Info'!U30,\"0\"&'General Info'!U30)&\"-\"&IF(LEN('General Info'!V30)>1,'General Info'!V30,\"0\"&'General Info'!V30)&\"-\"&IF(LEN('General Info'!W30)>1,'General Info'!W30,\"0\"&'General Info'!W30),\"\")&IF('General Info'!$E$24='General Info'!T26,IF(LEN('General Info'!U31)>1,'General Info'!U31,\"0\"&'General Info'!U31)&\"-\"&IF(LEN('General Info'!V31)>1,'General Info'!V31,\"0\"&'General Info'!V31)&\"-\"&IF(LEN('General Info'!W31)>1,'General Info'!W31,\"0\"&'General Info'!W31),\"\")&IF(OR('General Info'!$E$24='General Info'!T27,'General Info'!$E$24='General Info'!T10),IF(LEN('General Info'!U32)>1,'General Info'!U32,\"0\"&'General Info'!U32)&\"-\"&IF(LEN('General Info'!V32)>1,'General Info'!V32,\"0\"&'General Info'!V32)&\"-\"&IF(LEN('General Info'!W32)>1,'General Info'!W32,\"0\"&'General Info'!W32),\"\")))","v":""}]
[null,null,null,null,null,"Whether results are audited or unaudited",null,{"$f":"IF(COUNTA('Financial Results'!I11),'Financial Results'!I11,\"\")","v":""},null,null,"DateOfEndOfReportingPeriod"]
[null,null,null,null,null,"Nature of report standalone or consolidated",null,{"$f":"+IF(COUNTA('General Info'!E25),'General Info'!E25,\"\")","v":""},null,null,"WhetherResultsAreAuditedOrUnaudited"]
[null,null,null,null,null,"Sources of Funds",null,null,null,null,"SourcesOfFundsAbstract"]
[null,null,null,null,null,1,"Share capital                ",null,null,null,"ShareCapital"]
[null,null,null,null,null,2,"Reserves and surplus",null,null,null,"ReservesAndSurplus"]
[null,null,null,null,null,3,"Share application money received pending allotment of shares",null,null,null,"ShareApplicationMoneyReceivedPendingAllotmentOfShares"]
[null,null,null,null,null,4,"Credit (Debit) Fair value change account",null,null,null,"CreditDebitFairValueChangeAccount"]
[null,null,null,null,null,null,"Sub total",{"$f":"+IF(COUNT(H13:H16),+ROUND(SUM(H13:H16),2),\"\")","v":""},null,null,"ShareholdersFunds"]
[null,null,null,null,null,5,"Borrowings",null,null,null,"Borrowings"]
[null,null,null,null,null,6,"Policyholders' funds",null,null,""]
[null,null,null,null,null,null,"Credit (Debit) Fair value change account",null,null,null,"CreditDebitFairValueChangeAccountPolicyholdersFunds"]
[null,null,null,null,null,null,"Policy Liabilities",null,null,null,"PolicyLiabilities"]
[null,null,null,null,null,null,"Insurance Reserve",null,null,null,"InsuranceReserve"]
[null,null,null,null,null,null,"Revaluation reserve - Investment property",null,null,null,"RevaluationReserveInvestmentProperty"]
[null,null,null,null,null,null,"Linked Liabilities"]
[null,null,null,null,null,null,"Provision for Linked Liabilities",null,null,null,"ProvisionForLinkedLiabilities"]
[null,null,null,null,null,null,"Change in fairvalue account",null,null,null,"ChangeInFairvalueAccount"]
[null,null,null,null,null,null,"Funds for Discontinued Policies"]
[null,null,null,null,null,null,"(i) Discontinued on account of non-payment of premium",null,null,null,"DiscontinuedOnAccountOfNonPaymentOfPremium"]
[null,null,null,null,null,null,"(ii) Credit (Debit) Fair value change account",null,null,null,"CreditDebitFairValueChangeAccountFundsForDiscontinuedPolicies"]
[null,null,null,null,null,null,"(iii) Others discontinuance",null,null,null,"OthersDiscontinuance"]
[null,null,null,null,null,null,"Total Linked Liabilities",{"$f":"+IF(COUNT(H25:H30),+ROUND(SUM(H25:H30),2),\"\")","v":""},null,null,"LinkedLiabilities"]
[null,null,null,null,null,null,"Sub total",{"$f":"+IF(COUNT(H20:H23),+ROUND(SUM(H20:H23)+H31,2),\"\")","v":""},null,null,"PolicyholdersFunds"]
[null,null,null,null,null,7,"Funds for Future Appropriations",null,null,null,"FundsForFutureAppropriations"]
[null,null,null,null,null,null,"Total Sources of Funds",{"$f":"+IF(COUNT(H32:H33:H17:H18),+ROUND(SUM(H33,H32,H18,H17),2),\"\")","v":""},null,null,"SourcesOfFunds"]
[null,null,null,null,null,"APPLICATION OF FUNDS"]
[null,null,null,null,null,1,"Investments shareholders",null,null,null,"InvestmentsShareholders"]
[null,null,null,null,null,2,"Investments policyholders",null,null,null,"InvestmentsPolicyholders"]
[]
[null,null,null,null,null,3,"Assets Held to cover link Liabilities",null,null,null,"AssetsHeldToCoverLinkLiabilities"]
[null,null,null,null,null,4,"Loans",null,null,null,"Loans"]
[null,null,null,null,null,5,"Fixed assets",null,null,null,"FixedAssets"]
[null,null,null,null,null,6,"Deferred Tax Asset",null,null,null,"DeferredTaxAsset"]
[null,null,null,null,null,7,"Current assets"]
[null,null,null,null,null,null,"Cash and bank balances",null,null,null,"CashAndBankBalances"]
[null,null,null,null,null,null,"Advances and other assets",null,null,null,"AdvancesAndOtherAssets"]
[null,null,null,null,null,null,"Sub-total (a)",{"$f":"+IF(COUNT(H44:H45),+ROUND(SUM(H44:H45),2),\"\")","v":""},null,null,"CurrentAssets"]
[null,null,null,null,null,8,"Current liabilities",null,null,null,"CurrentLiabilities"]
[null,null,null,null,null,9,"Provisions",null,null,null,"Provisions"]
[null,null,null,null,null,null,"Sub-total (b)",{"$f":"+IF(COUNT(H47:H48),+ROUND(SUM(H47:H48),2),\"\")","v":""},null,null,"CurrentLiabilitiesAndProvisions"]
[null,null,null,null,null,10,"Net current assets (c) = (a – b)",{"$f":"+IF(COUNT(H46,H49),+ROUND(SUM(H46)-SUM(H49),2),\"\")","v":""},null,null,"NetCurrentAssets"]
[null,null,null,null,null,11,"Miscellaneous expenditure (to the extent not written off or adjusted)",null,null,null,"MiscellaneousExpenditureToTheExtentNotWrittenOffOrAdjusted"]
[null,null,null,null,null,12,"Debit balance in profit & loss account (shareholders’ account)",null,null,null,"DebitBalanceInProfitAndLossAccountShareholdersAccount"]
[null,null,null,null,null,null,"Total",{"$f":"+IF(COUNT(H36:H42,H50,H51:H52),ROUND(SUM(H36:H42,H50,H51:H52),2),\"\")","v":""},null,null,"ApplicationOfFunds"]
[null,null,null,null,null,14,"Contingent Liabilities",null,null,null,"ContigentLiabilities"]
[null,null,null,null,null,15,"Notes to the Balance Sheet",null,null,null,"DisclosureOfNotesToBalanceSheetExplanatoryTextBlock"]

{"sheet":"Cash Flow Indirect","index":10,"n_rows":112,"n_cols":10,"rows_kept":112,"cut":false,"hidden":true,"merged":[[7,3,7,5],[8,3,8,4],[13,4,13,5],[9,3,9,4],[10,3,10,4],[11,3,11,4],[12,3,12,4]]}
[]
[]
[]
[]
[]
[]
[null,null,null,null,null,{"$f":"IF('General Info'!E22=\"\",\"\",\"Amount in (\"&'General Info'!E22&\")\")","v":""}]
[null,null,null,"Cash flow statement, indirect"]
[null,null,null,"Particulars",null,{"$f":"IF('General Info'!E24=\"Half yearly\",\"Half Year ended (dd-mm-yyyy)\",IF('General Info'!E24=\"Second quarter\",\"Half Year ended (dd-mm-yyyy)\",\"Year ended (dd-mm-yyyy)\"))","v":"Year ended (dd-mm-yyyy)"}]
[null,null,null,"Date of start of reporting period",null,{"$f":"IF('General Info'!E24=\"\",\"\",IF('General Info'!F17=\"\",\"\",IF('General Info'!G17=\"\",\"\",'General Info'!E17&\"-\"&'General Info'!F17&\"-\"&'General Info'!G17)))","v":""}]
[null,null,null,"Date of end of reporting period",null,{"$f":"IF('General Info'!E18=\"\",\"\",IF('General Info'!F18=\"\",\"\",IF('General Info'!$E$24='General Info'!T24,IF(LEN('General Info'!U29)>1,'General Info'!U29,\"0\"&'General Info'!U29)&\"-\"&IF(LEN('General Info'!V29)>1,'General Info'!V29,\"0\"&'General Info'!V29)&\"-\"&IF(LEN('General Info'!W29)>1,'General Info'!W29,\"0\"&'General Info'!W29),\"\")&IF(OR('General Info'!$E$24='General Info'!T25,'General Info'!$E$24='General Info'!T9),IF(LEN('General Info'!U30)>1,'General Info'!U30,\"0\"&'General Info'!U30)&\"-\"&IF(LEN('General Info'!V30)>1,'General Info'!V30,\"0\"&'General Info'!V30)&\"-\"&IF(LEN('General Info'!W30)>1,'General Info'!W30,\"0\"&'General Info'!W30),\"\")&IF('General Info'!$E$24='General Info'!T26,IF(LEN('General Info'!U31)>1,'General Info'!U31,\"0\"&'General Info'!U31)&\"-\"&IF(LEN('General Info'!V31)>1,'General Info'!V31,\"0\"&'General Info'!V31)&\"-\"&IF(LEN('General Info'!W31)>1,'General Info'!W31,\"0\"&'General Info'!W31),\"\")&IF(OR('General Info'!$E$24='General Info'!T27,'General Info'!$E$24='General Info'!T10),IF(LEN('General Info'!U32)>1,'General Info'!U32,\"0\"&'General Info'!U32)&\"-\"&IF(LEN('General Info'!V32)>1,'General Info'!V32,\"0\"&'General Info'!V32)&\"-\"&IF(LEN('General Info'!W32)>1,'General Info'!W32,\"0\"&'General Info'!W32),\"\")))","v":""}]
[null,null,null,"Whether results are audited or unaudited",null,{"$f":"IF(COUNTA('Financial Results'!I11),'Financial Results'!I11,\"\")","v":""}]
[null,null,null,"Nature of report standalone or consolidated",null,{"$f":"+IF(COUNTA('General Info'!E25),'General Info'!E25,\"\")","v":""}]
[null,null,null,"Part I","Blue color marked fields are non-mandatory.                   "]
[null,null,null,null,"Statement of cash flows"]
[null,null,null,null,"Whether cash flow statement is applicable on company"]
[null,null,null,null,"Cash flows from used in operating activities"]
[null,null,null,null,"Profit before tax",{"$f":"+IF(COUNTA('Financial Results'!$I$108),'Financial Results'!$I$108,\"\")","v":""},null,null,null,"Profit before tax indirect"]
[null,null,null,null,"Adjustments for reconcile profit (loss)",null,null,null,null,"Adjustments for reconcile profit (loss) [Abstract]"]
[null,null,null,null,"Adjustments for finance costs",null,null,null,null,"Adjustments for finance costs"]
[null,null,null,null,"Adjustments for decrease (increase) in inventories",null,null,null,null,"Adjustments for decrease (increase) in inventories"]
[null,null,null,null,"Adjustments for decrease (increase) in trade receivables, current",null,null,null,null,"Adjustments for decrease (increase) in trade receivables, current"]
[null,null,null,null,"Adjustments for decrease (increase) in trade receivables, non-current",null,null,null,null,"Adjustments for decrease (increase) in trade receivables, non-current"]
[null,null,null,null,"Adjustments for decrease (increase) in other current assets",null,null,null,null,"Adjustments for decrease (increase) in other current assets"]
[null,null,null,null,"Adjustments for decrease (increase) in other non-current assets",null,null,null,null,"Adjustments for decrease (increase) in other non-current assets"]
[null,null,null,null,"Adjustments for other financial assets, non-current",null,null,null,null,"Adjustments for other financial assets, non-current"]
[null,null,null,null,"Adjustments for other financial assets, current",null,null,null,null,"Adjustments for other financial assets, current"]
[null,null,null,null,"Adjustments for other bank balances",null,null,null,null,"Adjustments for other bank balances"]
[null,null,null,null,"Adjustments for increase (decrease) in trade payables, current",null,null,null,null,"Adjustments for increase (decrease) in trade payables, current"]
[null,null,null,null,"Adjustments for increase (decrease) in trade payables, non-current",null,null,null,null,"Adjustments for increase (decrease) in trade payables, non-current"]
[null,null,null,null,"Adjustments for increase (decrease) in other current liabilities",null,null,null,null,"Adjustments for increase (decrease) in other current liabilities"]
[null,null,null,null,"Adjustments for increase (decrease) in other non-current liabilities",null,null,null,null,"Adjustments for increase (decrease) in other non-current liabilities"]
[null,null,null,null,"Adjustments for depreciation and amortisation expense",null,null,null,null,"Adjustments for depreciation and amortisation expense"]
[null,null,null,null,"Adjustments for impairment loss reversal of impairment loss recognised in profit or loss",null,null,null,null,"Adjustments for impairment loss reversal of impairment loss recognised in profit or loss"]
[null,null,null,null,"Adjustments for provisions, current",null,null,null,null,"Adjustments for provisions, current"]
[null,null,null,null,"Adjustments for provisions, non-current",null,null,null,null,"Adjustments for provisions, non-current"]
[null,null,null,null,"Adjustments for other financial liabilities, current",null,null,null,null,"Adjustments for other financial liabilities, current"]
[null,null,null,null,"Adjustments for other financial liabilities, non-current",null,null,null,null,"Adjustments for other financial liabilities, non-current"]
[null,null,null,null,"Adjustments for unrealised foreign exchange losses gains",null,null,null,null,"Adjustments for unrealised foreign exchange losses gains"]
[null,null,null,null,"Adjustments for dividend income",null,null,null,null,"Adjustments for dividend income"]
[null,null,null,null,"Adjustments for interest income",null,null,null,null,"Adjustments for interest income"]
[null,null,null,null,"Adjustments for share-based payments",null,null,null,null,"Adjustments for share-based payments"]
[null,null,null,null,"Adjustments for fair value losses (gains)",null,null,null,null,"Adjustments for fair value losses (gains)"]
[null,null,null,null,"Adjustments for undistributed profits of associates",null,null,null,null,"Adjustments for undistributed profits of associates"]
[null,null,null,null,"Other adjustments for which cash effects are investing or financing cash flow",null,null,null,null,"Other adjustments for which cash effects are investing or financing cash flow"]
[null,null,null,null,"Other adjustments to reconcile profit (loss)",null,null,null,null,"Other adjustments to reconcile profit (loss)"]
[null,null,null,null,"Other adjustments for non-cash items",null,null,null,null,"Other adjustments for non-cash items"]
[null,null,null,null,"Share of profit and loss from partnership firm or association of persons or limited liability partnerships",null,null,null,null,"Share of profit and loss from partnership firm or association of persons or limited liability partnerships"]
[null,null,null,null,"Total adjustments for reconcile profit (loss)",{"$f":"IF(COUNT(F20:F48),ROUND(SUM(F20:F39)-SUM(F40:F41)+SUM(F42:F43)-SUM(F44)+SUM(F45:F48),2),\"\")","v":""},null,null,null,"Total adjustments for reconcile profit (loss)"]
[null,null,null,null,"Net cash flows from (used in) operations",{"$f":"IF(COUNT(F18,F49),ROUND(SUM(F18,F49),2),\"\")","v":""},null,null,null,"Net cash flows from (used in) operations operating activities"]
[null,null,null,null,"Dividends received",null,null,null,null,"Dividends received operating activities"]
[null,null,null,null,"Interest paid",null,null,null,null,"Interest paid operating activities"]
[null,null,null,null,"Interest received",null,null,null,null,"Interest received operating activities"]
[null,null,null,null,"Income taxes paid (refund)",null,null,null,null,"Income taxes paid (refund) operating activities"]
[null,null,null,null,"Other inflows (outflows) of cash",null,null,null,null,"Other inflows (outflows) of cash operating activities"]
[null,null,null,null,"Net cash flows from (used in) operating activities",{"$f":"IF(COUNT(F50:F55),ROUND(SUM(F50)+SUM(F51)-SUM(F52)+SUM(F53)-SUM(F54)+SUM(F55),2),\"\")","v":""},null,null,null,"Net cash flows from (used in) operating activities"]
[null,null,null,null,"Cash flows from used in investing activities",null,null,null,null,"Cash flows from used in investing activities [Abstract]"]
[null,null,null,null,"Cash flows from losing control of subsidiaries or other businesses",null,null,null,null,"Cash flows from losing control of subsidiaries or other businesses investing activities"]
[null,null,null,null,"Cash flows used in obtaining control of subsidiaries or other businesses",null,null,null,null,"Cash flows used in obtaining control of subsidiaries or other businesses investing activities"]
[null,null,null,null,"Other cash receipts from sales of equity or debt instruments of other entities",null,null,null,null,"Other cash receipts from sales of equity or debt instruments of other entities investing activities"]
[null,null,null,null,"Other cash payments to acquire equity or debt instruments of other entities",null,null,null,null,"Other cash payments to acquire equity or debt instruments of other entities investing activities"]
[null,null,null,null,"Other cash receipts from sales of interests in joint ventures",null,null,null,null,"Other cash receipts from sales of interests in joint ventures investing activities"]
[null,null,null,null,"Other cash payments to acquire interests in joint ventures",null,null,null,null,"Other cash payments to acquire interests in joint ventures investing activities"]
[null,null,null,null,"Cash receipts from share of profits of partnership firm or association of persons or limited liability partnerships",null,null,null,null,"Cash receipts from share of profits of partnership firm or association of persons or limited liability partnerships"]
[null,null,null,null,"Cash payment for investment in partnership firm or association of persons or limited liability partnerships",null,null,null,null,"Cash payment for investment in partnership firm or association of persons or limited liability partnerships"]
[null,null,null,null,"Proceeds from sales of property, plant and equipment",null,null,null,null,"Proceeds from sales of property, plant and equipment investing activities"]
[null,null,null,null,"Purchase of property, plant and equipment",null,null,null,null,"Purchase of property, plant and equipment investing activities"]
[null,null,null,null,"Proceeds from sales of investment property",null,null,null,null,"Proceeds from sales of investment property investing activities"]
[null,null,null,null,"Purchase of investment property",null,null,null,null,"Purchase of investment property investing activities"]
[null,null,null,null,"Proceeds from sales of intangible assets",null,null,null,null,"Proceeds from sales of intangible assets investing activities"]
[null,null,null,null,"Purchase of intangible assets",null,null,null,null,"Purchase of intangible assets investing activities"]
[null,null,null,null,"Proceeds from sales of intangible assets under development",null,null,null,null,"Proceeds from sales of intangible assets under development"]
[null,null,null,null,"Purchase of intangible assets under development",null,null,null,null,"Purchase of intangible assets under development"]
[null,null,null,null,"Proceeds from sales of goodwill",null,null,null,null,"Proceeds from sales of goodwill investing activities"]
[null,null,null,null,"Purchase of goodwill",null,null,null,null,"Purchase of goodwill investing activities"]
[null,null,null,null,"Proceeds from biological assets other than bearer plants",null,null,null,null,"Proceeds from biological assets other than bearer plants investing activities"]
[null,null,null,null,"Purchase of biological assets other than bearer plants",null,null,null,null,"Purchase of biological assets other than bearer plants investing activities"]
[null,null,null,null,"Proceeds from government grants",null,null,null,null,"Proceeds from government grants investing activities"]
[null,null,null,null,"Proceeds from sales of other long-term assets",null,null,null,null,"Proceeds from sales of other long-term assets investing activities"]
[null,null,null,null,"Purchase of other long-term assets",null,null,null,null,"Purchase of other long-term assets investing activities"]
[null,null,null,null,"Cash advances and loans made to other parties",null,null,null,null,"Cash advances and loans made to other parties investing activities"]
[null,null,null,null,"Cash receipts from repayment of advances and loans made to other parties",null,null,null,null,"Cash receipts from repayment of advances and loans made to other parties investing activities"]
[null,null,null,null,"Cash payments for future contracts, forward contracts, option contracts and swap contracts",null,null,null,null,"Cash payments for future contracts, forward contracts, option contracts and swap contracts investing activities"]
[null,null,null,null,"Cash receipts from future contracts, forward contracts, option contracts and swap contracts",null,null,null,null,"Cash receipts from future contracts, forward contracts, option contracts and swap contracts investing activities"]
[null,null,null,null,"Dividends received",null,null,null,null,"Dividends received investing activities"]
[null,null,null,null,"Interest received",null,null,null,null,"Interest received investing activities"]
[null,null,null,null,"Income taxes paid (refund)",null,null,null,null,"Income taxes paid (refund) investing activities"]
[null,null,null,null,"Other inflows (outflows) of cash",null,null,null,null,"Other inflows (outflows) of cash investing activities"]
[null,null,null,null,"Net cash flows from (used in) investing activities",{"$f":"IF(COUNT(F58:F88),ROUND(SUM(F58)-SUM(F59)+SUM(F60)-SUM(F61)+SUM(F62)-SUM(F63)+SUM(F64)-SUM(F65)+SUM(F66)-SUM(F67)+SUM(F68)-SUM(F69)+SUM(F70)-SUM(F71)+SUM(F72)-SUM(F73)+SUM(F74)-SUM(F75)+SUM(F76)-SUM(F77)+SUM(F78)+SUM(F79)-SUM(F80)-SUM(F81)+SUM(F82)-SUM(F83)+SUM(F84:F86)-SUM(F87)+SUM(F88),2),\"\")","v":""},null,null,null,"Net cash flows from (used in) investing activities"]
[null,null,null,null,"Cash flows from used in financing activities",null,null,null,null,"Cash flows from used in financing activities [Abstract]"]
[null,null,null,null,"Proceeds from changes in ownership interests in subsidiaries",null,null,null,null,"Proceeds from changes in ownership interests in subsidiaries"]
[null,null,null,null,"Payments from changes in ownership interests in subsidiaries",null,null,null,null,"Payments from changes in ownership interests in subsidiaries"]
[null,null,null,null,"Proceeds from issuing shares",null,null,null,null,"Proceeds from issuing shares financing activities"]
[null,null,null,null,"Proceeds from issuing other equity instruments",null,null,null,null,"Proceeds from issuing other equity instruments financing activities"]
[null,null,null,null,"Payments to acquire or redeem entity's shares",null,null,null,null,"Payments to acquire or redeem entity's shares financing activities"]
[null,null,null,null,"Payments of other equity instruments",null,null,null,null,"Payments of other equity instruments financing activities"]
[null,null,null,null,"Proceeds from exercise of stock options",null,null,null,null,"Proceeds from exercise of stock options financing activities"]
[null,null,null,null,"Proceeds from issuing debentures notes bonds etc",null,null,null,null,"Proceeds from issuing debentures notes bonds etc financing activities"]
[null,null,null,null,"Proceeds from borrowings",null,null,null,null,"Proceeds from borrowings financing activities"]
[null,null,null,null,"Repayments of borrowings",null,null,null,null,"Repayments of borrowings financing activities"]
[null,null,null,null,"Payments of lease liabilities",null,null,null,null,"Payments of lease liabilities financing activities"]
[null,null,null,null,"Dividends paid",null,null,null,null,"Dividends paid financing activities"]
[null,null,null,null,"Interest paid",null,null,null,null,"Interest paid financing activities"]
[null,null,null,null,"Income taxes paid (refund)",null,null,null,null,"Income taxes paid (refund) financing activities"]
[null,null,null,null,"Other inflows (outflows) of cash",null,null,null,null,"Other inflows (outflows) of cash financing activities"]
[null,null,null,null,"Net cash flows from (used in) financing activities",{"$f":"IF(COUNT(F91:F105),ROUND(SUM(F91)-SUM(F92)+SUM(F93)+SUM(F94)-SUM(F95)-SUM(F96)+SUM(F97)+SUM(F98)+SUM(F99)-SUM(F100)-SUM(F101)-SUM(F102)-SUM(F103)-SUM(F104)+SUM(F105),2),\"\")","v":""},null,null,null,"Net cash flows from (used in) financing activities"]
[null,null,null,null,"Net increase (decrease) in cash and cash equivalents before effect of exchange rate changes",{"$f":"IF(COUNT(F56:F106),ROUND(SUM(F56,F89,F106),2),\"\")","v":""},null,null,null,"Net increase (decrease) in cash and cash equivalents before effect of exchange rate changes"]
[null,null,null,null,"Effect of exchange rate changes on cash and cash equivalents",null,null,null,null,"Effect of exchange rate changes on cash and cash equivalents [Abstract]"]
[null,null,null,null,"Effect of exchange rate changes on cash and cash equivalents",null,null,null,null,"Effect of exchange rate changes on cash and cash equivalents"]
[null,null,null,null,"Net increase (decrease) in cash and cash equivalents",{"$f":"IF(COUNT(F107,F109),ROUND(SUM(F107,F109),2),\"\")","v":""},null,null,null,"Net increase (decrease) in cash and cash equivalents"]
[null,null,null,null,"Cash and cash equivalents cash flow statement at beginning of period",null,null,null,null,"Cash and cash equivalents cash flow statement at beginning of period"]
[null,null,null,null,"Cash and cash equivalents cash flow statement at end of period",{"$f":"IF(COUNT(F110,F111),ROUND(SUM(F110,F111),2),\"\")","v":""},null,null,null,"Cash and cash equivalents cash flow statement at end of period"]

{"sheet":"Impact of Audit Qualification","index":11,"n_rows":16,"n_cols":21,"rows_kept":16,"cut":false,"hidden":true,"merged":[[7,3,7,5],[13,3,13,5]]}
[null,null,null,null,"Audited","Unaudited",null,null,0,null,null,null,null,null,null,null,null,null,null,"Qualified opinion","Yes"]
[null,null,null,"AuditorsFirmName","WhetherTheFirmHoldsAValidPeerReviewCertificateIssuedByPeerReviewBoardOfICAI","ValidityDateOfCertificate",null,null,null,null,null,null,null,null,null,null,null,null,null,"Disclaimer of opinion","No"]
[null,null,null,null,null,null,null,null,null,null,null,null,null,null,null,null,null,null,null,"Adverse opinion"]
[]
[]
[]
[]
[null,null,null,"Details of Impact of Audit Qualification"]
[null,null,null,"Whether results are audited or unaudited",{"$f":"IF('General Info'!E27=\"\",IF('General Info'!E26=\"\",\"\",'General Info'!E26),'General Info'!E27)","v":""},null,null,null,null,null,null,null,null,null,"WhetherResultsAreAuditedOrUnauditedForImpactOfAuditQualification"]
[null,null,null,"Declaration of unmodified opinion or statement on impact of audit qualification",{"$f":"IF(COUNTA('General Info'!$E$32),'General Info'!$E$32,\"\")","v":""}]
[null,null,null,"Auditor's opinion",null,null,null,null,null,null,null,null,null,null,"OpinionOfAuditors"]
[null,null,null,{"$f":"IF('General Info'!$E$25=\"Standalone\",\"Declaration pursuant to Regulation 33 (3) (d) of SEBI (LODR) Regulation, 2015:\nThe company declares that its Statutory Auditor/s have issued an Audit Report with unmodified opinion for the period on Standalone results\",IF('General Info'!$E$25=\"Consolidated\",\"Declaration pursuant to Regulation 33 (3) (d) of SEBI (LODR) Regulation, 2015:\nThe company declares that its Statutory Auditor/s have issued an Audit Report with unmodified opinion for the period on Consolidated results\",\"Declaration pursuant to Regulation 33 (3) (d) of SEBI (LODR) Regulation, 2015:\nThe company declares that its Statutory Auditor/s have issued an Audit Report with unmodified opinion for the period on Standalone or Consolidated results\"))","v":"Declaration pursuant to Regulation 33 (3) (d) of SEBI (LODR) Regulation, 2015:\nThe company declares that its Statutory Auditor/s have issued an Audit Report with unmodified opinion for the period on Standalone or Consolidated results"},null,null,null,null,null,null,null,null,null,null,"DeclarationPursuantToClauseDOfSubRegulation3OfRegulation33OfSEBILODRRegulation2015"]
[null,null,null,"Audit firm's name","Whether the firm holds a valid peer review certificate issued by Peer Review Board of ICAI","Certificate valid upto",null,null,null,null,null,null,null,null,"OpinionOfAuditors"]
[null,null,null,null,null,null,null,null,null,null,null,null,null,null,"DeclarationPursuantToclauseDOfsubregulation3OfRegulation33OfSEBILODRRegulation2015"]
[]
[null,null,1,null,null,""]

{"sheet":"Financial details","index":12,"n_rows":20,"n_cols":15,"rows_kept":20,"cut":false,"hidden":true,"merged":[[7,3,7,6],[17,3,17,5]]}
[null,null,null,null,null,null,null,null,0]
[]
[]
[]
[]
[]
[null,null,null,null,null,null,{"$f":"IF('General Info'!E22=\"\",\"\",\"Amount in (\"&'General Info'!E22&\")\")","v":""}]
[null,null,null,"Financial details"]
[null,null,null,"Sr.","Particulars","Audited Figures (as reported before adjusting for qualifications)","Adjusted Figures (audited figures after adjusting for qualifications)"]
[null,null,null,1,"Turnover / Total income",null,null,null,null,null,null,null,null,null,"TurnoverOrTotalIncome"]
[null,null,null,{"$f":"+D10+1","v":2},"Total Expenditure",null,null,null,null,null,null,null,null,null,"TotalExpenditure"]
[null,null,null,{"$f":"+D11+1","v":3},"Net Profit/(Loss)",null,null,null,null,null,null,null,null,null,"NetProfitAfterTax"]
[null,null,null,4,"Earnings Per Share",null,null,null,null,null,null,null,null,null,"EarningPerShare"]
[null,null,null,5,"Total Assets",null,null,null,null,null,null,null,null,null,"Assets"]
[null,null,null,6,"Total Liabilities",null,null,null,null,null,null,null,null,null,"Liabilities"]
[null,null,null,7,"Net Worth",null,null,null,null,null,null,null,null,null,"NetWorth"]
[]
[null,null,null,"Any other financial item(s) (as felt appropriate by the management)",null,null,null,null,null,null,null,null,null,null,"DetailsOfOtherFinancialItemAsFeltAppropriateByTheManagement"]
[]
[null,null,null,"*Note : In case company has declared unaudited results, these figures shall be considered as unaudited."]

{"sheet":"Audit qualification","index":13,"n_rows":25,"n_cols":15,"rows_kept":25,"cut":false,"hidden":true,"merged":[[17,4,17,5],[7,3,7,10],[8,3,9,3],[8,4,9,4],[8,5,9,5],[8,6,9,6],[8,8,8,10]]}
[null,null,null,null,null,null,null,null,0,null,null,null,null,"Qualified opinion","Whether appeared first time"]
[null,null,null,null,"DetailsOfAuditQualificationExplanatory","TypeOfAuditQualification","FrequencyOfAuditQualification","AuditQualificationsWhereTheImpactIsQuantifiedByTheAuditorManagementsViewsExplanatory","ManagementsEstimationOnTheImpactOfAuditQualificationExplanatory","ReasonsIfManagementIsUnableToEstimateTheImpactExplanatory","AuditorsCommentsOnManagementsEstimateOrUnableToEstimateOnTheImpactOfAuditQualificationExplanatory",null,null,"Disclaimer of opinion","Repetitive"]
[null,null,null,null,null,null,null,null,null,null,null,null,null,"Adverse opinion","Since how long continuing"]
[]
[]
[]
[]
[null,null,null,"Audit qualification"]
[null,null,null,"Sr.","Details of Audit Qualification","Type of Audit Qualification","Frequency of qualification","For Audit Qualification(s) where the impact is quantified by the auditor","For Audit Qualification(s) where the impact is not quantified by the auditor"]
[null,null,null,null,null,null,null,"Management's Views","(i) Management's estimation on the impact of audit qualification","(ii) If management is unable to estimate the impact, reasons for the same","Auditors' Comments on (i) or (ii) above"]
[]
[]
[]
[null,null,null,"*Note : In case company has declared unaudited results, the details shall be considered as unaudited."]
[]
[]
[]
[null,null,null,null,"Signatories details"]
[null,null,null,null,"Name of CEO / Managing director",null,null,null,null,null,null,null,null,null,"NameOfCEOOrManagingDirectorAsSignatoryOfImpactOfAuditQualification"]
[null,null,null,null,"Name of CFO",null,null,null,null,null,null,null,null,null,"NameOfCFOAsASignatoryOfImpactOfAuditQualification"]
[null,null,null,null,"Name of audit committee chairman",null,null,null,null,null,null,null,null,null,"NameOfChairmanOfAuditCommitteeAsASignatoryOfImpactOfAuditQualification"]
[null,null,null,null,"Name of statutory auditor",null,null,null,null,null,null,null,null,null,"NameOfStatutoryAuditorAsASignatoryOfImpactOfAuditQualification"]
[null,null,null,null,"Name of other signatory, if any, with designation",null,null,null,null,null,null,null,null,null,"NameAndDesignationOfOtherPersonAsASignatoryOfImpactOfAuditQualification"]
[null,null,null,null,"Place",null,null,null,null,null,null,null,null,null,"PlaceOfSignatoryOfImpactOfAuditQualification"]
[null,null,null,null,"Date",null,null,null,null,null,null,null,null,null,"DateOfSignatoryOfImpactOfAuditQualification"]

{"sheet":"Related Party Transactions","index":14,"n_rows":19,"n_cols":34,"rows_kept":19,"cut":false,"hidden":true,"merged":[[9,13,10,13],[18,2,18,11],[12,2,12,3],[7,2,7,8],[8,17,8,26],[9,2,10,2],[9,3,9,4],[9,5,9,7],[9,8,10,8],[9,9,10,9],[9,10,10,10],[9,11,10,11],[9,12,10,12],[9,14,10,14],[9,15,9,16],[9,17,9,20],[9,21,9,26]]}
[null,null,0,null,null,null,null,null,null,null,null,null,null,null,null,null,null,null,null,null,null,null,null,null,null,null,null,null,null,null,null,"Secured","Loan","Loan"]
[null,null,null,"NameOfListedEntityOrSubsidiaryEnteringIntoTheTransaction","PANOfListedEntityOrSubsidiaryEnteringIntoTheTransaction","NameOfCounterParty","PANOfCounterParty","RelationshipOfTheCounterpartyWithTheListedEntityOrItsSubsidiary","TypeOfRelatedPartyTransaction","DetailsOfOtherRelatedPartyTransaction","ValueOfTheRelatedPartyTransactionAsApprovedByTheAuditCommittee","RemarksOnApprovalByAuditCommittee","ValueOfTheRelatedPartyTransactionRatifiedByTheAuditCommittee","DateOfAuditCommitteeMeetingWhereTheRatificationWasApproved","AmountOfRelatedPartyTransactionDuringTheReportingPeriod","AmountOfRelatedPartyTransaction","AmountOfRelatedPartyTransaction","NatureOfFinancialIndebtedness","DetailsOfOtherIndebtedness","CostOfFinancialIndebtedness","TenureOfFinancialIndebtedness","NatureOfTheLoansOrInterCorporateDepositsOrAdvancesOrInvestments","InterestRateOfLoansOrInterCorporateDepositsOrAdvancesOrInvestments","TenureOfLoansOrInterCorporateDepositsOrAdvancesOrInvestments","TypeOfLoansOrInterCorporateDepositsOrAdvancesOrInvestmentsSecuredOrUnsecured","PurposeForWhichTheFundsWillBeUtilisedByTheUltimateRecipientOfFundsForEndusage","RelatedPartyTransactionExplanatory",null,null,null,null,"Unsecured","Issuance of debt","Inter-corporate deposit"]
[null,null,null,null,"Sale of goods or services","Purchase of goods or services","Loan","Inter-corporate deposit","Advance","Investment","Any other transaction","Purchase of fixed assets","Sale of fixed assets","Interest paid","Interest received","Remuneration","Dividend paid","Dividend received",null,null,null,null,null,null,null,null,null,null,null,null,null,null,"Any other","Advance"]
[null,null,null,null,null,null,null,null,null,null,null,null,null,null,null,null,null,null,null,null,null,null,null,null,null,null,null,null,null,null,null,null,null,"Investment"]
[]
[]
[null,null,null,null,null,null,null,null,{"$f":"IF('General Info'!E22=\"\",\"\",\"Amount in (\"&'General Info'!E22&\")\")","v":""}]
[null,null,"Format for Disclosure of Related Party Transactions (applicable only for half-yearly filings i.e., 2nd and 4th quarter)"]
[null,null,null,null,null,null,null,null,null,null,null,null,null,null,null,null,null,"Additional disclosure of related party transactions - applicable only in case the related party transaction relates to loans, inter-corporate deposits, advances or investments made or given by the listed entity/subsidiary. These details need to be disclosed only once, during the reporting period when such transaction was undertaken."]
[null,null,"Sr. No.","Details of the party (listed entity /subsidiary) entering into the transaction",null,"Details of the counterparty",null,null,"Type of related party transaction","Details of  other related party transaction","Value of the related party transaction as approved by the audit committee","Remarks on approval by audit committee","Value of the related party transaction ratified by the audit committee","Date of Audit Committee Meeting where the ratification was approved","Value of transaction during the reporting period","In case monies are due to either party as a result of the transaction",null,"In case any financial indebtedness is incurred to make or give loans, inter-corporate deposits, advances or investments",null,null,null,"Details of the loans, inter-corporate deposits, advances or investments"]
[null,null,null,"Name","PAN","Name","PAN","Relationship of the counterparty with the listed entity or its subsidiary",null,null,null,null,null,null,null,"Opening balance","Closing balance","Nature of indebtedness (loan/ issuance of debt/ any other etc.)","Details of other indebtedness","Cost","Tenure","Nature (loan/ advance/ intercorporate deposit/ investment)","Interest Rate (%)","Tenure","Secured/ unsecured","Purpose for which the funds will be utilised by the ultimate recipient of funds (endusage)","Notes"]
[]
[]
[]
[null,null,"Total value of transaction during the reporting period",null,null,null,null,null,null,null,null,null,null,null,{"$f":"IF(COUNT($O$13:O14)>0,SUM($O$13:O14),\"\")","v":""}]
[]
[]
[null,null,"Notes:"]
[null,null,"1. The details in this format are required to be provided for all transactions undertaken during the reporting period. However, opening and closing balances, including commitments, \nto be disclosed for existing related party transactions even if there is no new related party transaction during the reporting period.\n2. Where a transaction is undertaken between members of the consolidated entity (between the listed entity and its subsidiary or between subsidiaries), it may be reported once.\n3. Listed banks shall not be required to provide the disclosures with respect to related party transactions involving loans, inter-corporate deposits, advances or investments made or given by the listed banks.\n4. For companies with financial year ending March 31, this information has to be provided for six months ended September 30 and six months ended March 31. \nCompanies with financial years ending in other months, the six months period shall apply accordingly.\n5. Each type of related party transaction (for e.g. sale of goods/services, purchase of goods/services or whether it involves a loan, inter-corporate deposit, advance or investment) with a single party shall be disclosed separately and there should be no clubbing or netting of transactions of same type. \nHowever, transactions with the same counterparty of the same type may be aggregated for the reporting period. For instance, sale transactions with the same party may be aggregated for the reporting period and purchase transactions may also be disclosed in a similar manner. There should be no netting off for sale and purchase transactions. Similarly, loans advanced to and received from the same counterparty should be disclosed separately, without any netting off.\n6. In case of a multi-year related party transaction:\n  a. The aggregate value of such related party transaction as approved by the audit committee shall be disclosed in the column “Value of the related party transaction as approved by the audit committee”.\n  b. The value of the related party transaction ratified by the audit committee shall be disclosed in the column “Value of the related party transaction ratified by the audit committee”.\n  c. The value of the related party transaction undertaken in the reporting period shall be reported in the column “Value of related party transaction during the reporting period”.\n7. \"Cost\" refers to the cost of borrowed funds for the listed entity. 8. Transactions such as acceptance of fixed deposits by banks/NBFCs, undertaken with related parties, at the terms uniformly applicable /offered to all shareholders/ public shall also be reported."]

{"sheet":"SOD","index":15,"n_rows":39,"n_cols":15,"rows_kept":39,"cut":false,"hidden":true,"merged":[[7,4,7,5],[24,3,25,3],[24,4,25,4],[24,5,25,5],[24,6,25,6],[34,4,34,5],[31,4,31,5],[24,8,25,8],[24,9,25,9],[24,10,25,10],[27,3,27,4],[24,7,25,7]]}
[null,null,null,null,null,null,null,null,0,null,null,null,"Public Issues","Applicable","Yes"]
[null,null,null,null,"OriginalObject","ModifiedObject","OriginalAllocation","ModifiedAllocation","FundsUtilised","AmountOfDeviationOrVariationForTheQuarterAccordingToApplicableObject","DisclosureNotesOnObjectsForWhichFundsHaveBeenRaisedAndWhereThereHasBeenADeviation",null,"Rights Issues","Not applicable","No"]
[null,null,null,null,"Chief Financial Officer","CEO","Company Secretary","Company Secretary and Compliance Officer","Compliance Officer","Director","Managing Director",null,"Preferential Issues"]
[null,null,null,null,null,null,null,null,null,null,null,null,"QIP"]
[null,null,null,null,null,null,null,null,null,null,null,null,"Others"]
[]
[null,null,null,null,null,{"$f":"IF('General Info'!E22=\"\",\"\",\"Amount in (\"&'General Info'!E22&\")\")","v":""}]
[null,null,null,null,"Statement on Deviation or Variation for proceeds of Public Issue, Rights Issue, Preferential Issue, Qualified Institutions Placement Etc. (1)"]
[null,null,null,null,"Mode of Fund Raising",null,null,null,null,null,null,null,null,null,"ModeOfFundRaising"]
[null,null,null,null,"Description of mode of fund raising\n(Applicable in case of others is selected)",null,null,null,null,null,null,null,null,null,"DescriptionOfModeOfFundRaising"]
[null,null,null,null,"Date of Raising Funds",null,null,null,null,null,null,null,null,null,"DateOfFundsRaising"]
[null,null,null,null,"Amount Raised",null,null,null,null,null,null,null,null,null,"AmountRaised"]
[null,null,null,null,"Report filed for Quarter ended",{"$f":"IF(COUNTA('Financial Results'!H10),'Financial Results'!H10,\"\")","v":""},null,null,null,null,null,null,null,null,"DateOfEndOfReportingPeriod"]
[null,null,null,null,"Monitoring Agency",null,null,null,null,null,null,null,null,null,"MonitoringAgency"]
[null,null,null,null,"Monitoring Agency Name, if applicable",null,null,null,null,null,null,null,null,null,"NameOfMonitoringAgency"]
[null,null,null,null,"Is there a Deviation / Variation in use of funds raised",null,null,null,null,null,null,null,null,null,"IsThereADeviationOrVariationInUseOfFundsRaised"]
[null,null,null,null,"If yes, whether the same is pursuant to change in terms of a contract or objects, which was approved by the shareholders",null,null,null,null,null,null,null,null,null,"WhetherTheDeviationOrVariationInUseOfFundsIsPursuantToChangeInTermsOfAContractOrObjectsWhichWasApprovedByTheShareholders"]
[null,null,null,null,"If Yes, Date of shareholder Approval","",null,null,null,null,null,null,null,null,"DateOfShareholderApproval"]
[null,null,null,null,"Explanation for the Deviation / Variation",null,null,null,null,null,null,null,null,null,"ExplanationForTheDeviationOrVariation"]
[null,null,null,null,"Comments of the Audit Committee after review",null,null,null,null,null,null,null,null,null,"CommentsOfTheAuditCommitteeAfterReview"]
[null,null,null,null,"Comments of the auditors, if any",null,null,null,null,null,null,null,null,null,"CommentsOfTheAuditors"]
[]
[null,null,null,null,"Objects for which funds have been raised and where there has been a deviation, in the following table:"]
[]
[null,null,null,"Sr.","Original Object","Modified Object, if any","Original Allocation","Modified allocation, if any","Funds Utilised","Amount of Deviation/Variation for the quarter according to applicable object","Remarks if any"]
[]
[]
[]
[]
[]
[]
[null,null,null,null,"Deviation or variation could mean:\n(a) Deviation in the objects or purposes for which the funds have been raised or\n(b) Deviation in the amount of funds actually utilized as against what was originally disclosed or\n(c) Change in terms of a contract referred to in the fund raising document i.e. prospectus, letter of offer, etc"]
[]
[]
[null,null,null,null,"Signatory Details"]
[null,null,null,null,"Name of signatory",null,null,null,null,null,null,null,null,null,"NameOfSignatoryOfStatementOfDeviationOrVariationInUtilisationOfFundsRaised"]
[null,null,null,null,"Designation of person",null,null,null,null,null,null,null,null,null,"DesignationOfPersonOfStatementOfDeviationOrVariationInUtilisationOfFundsRaised"]
[null,null,null,null,"Place",null,null,null,null,null,null,null,null,null,"PlaceOfStatementOfDeviationOrVariationInUtilisationOfFundsRaised"]
[null,null,null,null,"Date",null,null,null,null,null,null,null,null,null,"DateOfStatementOfDeviationOrVariationInUtilisationOfFundsRaised"]

{"sheet":"OS Default on Loans & Debt Sec.","index":16,"n_rows":15,"n_cols":16,"rows_kept":15,"cut":false,"hidden":true,"merged":[[6,3,6,6],[8,4,8,6],[11,4,11,6]]}
[]
[]
[]
[]
[]
[null,null,null,null,null,null,{"$f":"IF('General Info'!E22=\"\",\"\",\"Amount in (\"&'General Info'!E22&\")\")","v":""}]
[null,null,null,"Format for Disclosing Outstanding Default on Loans and Debt Securities"]
[null,null,null,"Sr. No.","Particulars","Amount","Remarks"]
[null,null,null,"1.","Loans / revolving facilities like cash credit from banks / financial institutions"]
[null,null,null,"A","Total amount outstanding as on date",null,null,null,null,null,null,null,null,null,"TotalOutstandingAmountOfLoansOrRevolvingFacilitiesAtTheEndOfPeriod","RemarksForTotalOutstandingOfLoansOrRevolvingFacilitiesAtTheEndOfPeriod"]
[null,null,null,"B","Of the total amount outstanding, amount of default as on date",null,null,null,null,null,null,null,null,null,"AmountOfDefaultOutOfTotalOutstandingAmountOfLoansOrRevolvingFacilitiesAtTheEndOfPeriod","RemarksForDefaultOutOfTotalOutstandingAmountOfLoansOrRevolvingFacilitiesAtTheEndOfPeriod"]
[null,null,null,"2.","Unlisted debt securities i.e. NCDs and NCRPS"]
[null,null,null,"A","Total amount outstanding as on date",null,null,null,null,null,null,null,null,null,"TotalOutstandingAmountOfUnlistedDebtSecuritiesAtTheEndOfPeriod","RemarksForTotalOutstandingUnlistedDebtSecuritiesAtTheEndOfPeriod"]
[null,null,null,"B","Of the total amount outstanding, amount of default as on date",null,null,null,null,null,null,null,null,null,"AmountOfDefaultOutOfTotalOutstandingAmountOfUnlistedDebtSecuritiesAtTheEndOfPeriod","RemarksForDefaultOutOfTotalOutstandingAmountOfUnlistedDebtSecuritiesAtTheEndOfPeriod"]
[null,null,null,"3.","Total financial indebtedness of the listed entity including short-term\nand long-term debt",null,null,null,null,null,null,null,null,null,"AmountOfTotalFinancialIndebtednessOfTheListedEntityIncludingShortTermAndLongTermDebtAtTheEndOfPeriod","RemarksForTotalFinancialIndebtednessOfTheListedEntityIncludingShortTermAndLongTermDebtAtTheEndOfPeriod"]

{"sheet":"TextBlock","index":17,"n_rows":0,"n_cols":0,"rows_kept":0,"cut":false,"hidden":true,"merged":[]}